Workbook

Sheet Forudsætninger
B3: Input til værktøjet
B5: For at komme i gang skal der først indhentes data til værktøjet
B7: Hvis man kun vil bruge årsrapporter hentes datastrengen på den pågældende ejendom i RegnskabsDataBanken
B8: Der hentes for det seneste år og årene før hvis man vil have historik med
B10: Hvis man vil bruge det seneste budget udlæses dette i Ø90 - resultatbudget
B12: Inputfaner er grønne
B14: Hvis der tages udgangspunkt i budget skal der indsættes i følgende faner:
B15: Budget for fremskrivningsåret i fanen "Budget"
B16: Årsrapporten for året før i fanen "Årsrapport 1 år før"
B17: Årsrapporten for to år før i fanen "Årsrapport 2 år før" osv.
B18: Fanen Årsrapport skal ikke anvendes i dette tilfælde
B20: Hvis der tages udgangspunkt i årsrapport skal der indsættes i følgende faner:
B21: Årsrapport for fremskrivningsåret i fanen "årsrapport"
B22: Årsrapporten for året før i fanen "Årsrapport 1 år før"
B23: Årsrapporten for to år før i fanen "Årsrapport 2 år før" osv.
B24: Fanen Budget skal ikke anvendes i dette tilfælde
B28: Udgangspunkt og fremskrivningsår
B30: Skal der tages udgangspunkt i budget eller årsrapport?
B33: Hvilket regnskabsår skal der fremskrives på?
B34: 2024 | C34: Indtast årstal
B37: Dækningsbidrag pr. enhed
B39: Værktøjet tager udgangspunkt i Dækningsbidrag pr enhed og der skal derfor tages stilling til enheder og beløb.
B41: Hvis man tager udgangspunkt i budgettet er der ingen enheder angivet så det skal man selv indtaste (se nedenstående)
B43: Ved årsrapporterne skal der også tages stilling, især hvis der ikke er lavet driftsgrensanalyser på (se nedenstående)
B45: =IF($B$31="årsrapport",D45,IF($B$31="Budget",D48,"")) ->  | D45: Hvis årsrapporten ikke indeholder driftsgrensanalyser skal der indtastes oplysninger omkring dækningsbidrag pr. enhed.
B46: =IF($B$31="årsrapport",D46,IF($B$31="Budget",D49,"")) ->  | D46: Dette gøres i fanen DB pr enhed årsrapport
B48: =IF($B$31="Budget",D51,"") ->  | D48: Hvis der fremskrives på budgettet, skal der indtastes oplysninger omkring dækningsbidrag pr. enhed
B49: =IF($B$31="Budget",D52,"") ->  | D49: Dette gøres i fanen DB pr enhed budget
D51: Hvis de historiske år ikke indeholder driftsgrensanalyser og man vil have historikken med,
B52: Mere forklaring findes i de pågældende faner | D52: så skal der indtastes oplysninger omkring dækningsbidrag pr enhed i de historiske år
D53: Dette gøres i fanen DB pr enhed årsrapport

Sheet Budget
A1: INDSÆT BUDGET HER ->
A14: =IFERROR(VALUE(_xlfn.CONCAT(LEFT(E14,4),MID(E14&" ",6,2))),"") -> 
A15: =IFERROR(VALUE(_xlfn.CONCAT(LEFT(E15,4),MID(E15&" ",6,2))),"") -> 
A79: =IFERROR(VALUE(_xlfn.CONCAT(LEFT(E79,4),MID(E79&" ",6,2))),"") -> 
A143: =IFERROR(VALUE(_xlfn.CONCAT(LEFT(E143,4),MID(E143&" ",6,2))),"") -> 
A207: =IFERROR(VALUE(_xlfn.CONCAT(LEFT(E207,4),MID(E207&" ",6,2))),"") -> 
A271: =IFERROR(VALUE(_xlfn.CONCAT(LEFT(E271,4),MID(E271&" ",6,2))),"") -> 
A335: =IFERROR(VALUE(_xlfn.CONCAT(LEFT(E335,4),MID(E335&" ",6,2))),"") -> 
A399: =IFERROR(VALUE(_xlfn.CONCAT(LEFT(E399,4),MID(E399&" ",6,2))),"") -> 
A463: =IFERROR(VALUE(_xlfn.CONCAT(LEFT(E463,4),MID(E463&" ",6,2))),"") -> 
A527: =IFERROR(VALUE(_xlfn.CONCAT(LEFT(E527,4),MID(E527&" ",6,2))),"") -> 
A591: =IFERROR(VALUE(_xlfn.CONCAT(LEFT(E591,4),MID(E591&" ",6,2))),"") -> 
A655: =IFERROR(VALUE(_xlfn.CONCAT(LEFT(E655,4),MID(E655&" ",6,2))),"") -> 
A719: =IFERROR(VALUE(_xlfn.CONCAT(LEFT(E719,4),MID(E719&" ",6,2))),"") -> 
A783: =IFERROR(VALUE(_xlfn.CONCAT(LEFT(E783,4),MID(E783&" ",6,2))),"") -> 
A847: =IFERROR(VALUE(_xlfn.CONCAT(LEFT(E847,4),MID(E847&" ",6,2))),"") -> 
A911: =IFERROR(VALUE(_xlfn.CONCAT(LEFT(E911,4),MID(E911&" ",6,2))),"") -> 
A975: =IFERROR(VALUE(_xlfn.CONCAT(LEFT(E975,4),MID(E975&" ",6,2))),"") -> 
A1039: =IFERROR(VALUE(_xlfn.CONCAT(LEFT(E1039,4),MID(E1039&" ",6,2))),"") -> 
A1103: =IFERROR(VALUE(_xlfn.CONCAT(LEFT(E1103,4),MID(E1103&" ",6,2))),"") -> 
A1167: =IFERROR(VALUE(_xlfn.CONCAT(LEFT(E1167,4),MID(E1167&" ",6,2))),"") -> 
A1231: =IFERROR(VALUE(_xlfn.CONCAT(LEFT(E1231,4),MID(E1231&" ",6,2))),"") -> 
A1295: =IFERROR(VALUE(_xlfn.CONCAT(LEFT(E1295,4),MID(E1295&" ",6,2))),"") -> 
A1359: =IFERROR(VALUE(_xlfn.CONCAT(LEFT(E1359,4),MID(E1359&" ",6,2))),"") -> 
A1423: =IFERROR(VALUE(_xlfn.CONCAT(LEFT(E1423,4),MID(E1423&" ",6,2))),"") -> 
A1487: =IFERROR(VALUE(_xlfn.CONCAT(LEFT(E1487,4),MID(E1487&" ",6,2))),"") -> 
A1551: =IFERROR(VALUE(_xlfn.CONCAT(LEFT(E1551,4),MID(E1551&" ",6,2))),"") -> 
A1615: =IFERROR(VALUE(_xlfn.CONCAT(LEFT(E1615,4),MID(E1615&" ",6,2))),"") -> 
A1679: =IFERROR(VALUE(_xlfn.CONCAT(LEFT(E1679,4),MID(E1679&" ",6,2))),"") -> 
A1743: =IFERROR(VALUE(_xlfn.CONCAT(LEFT(E1743,4),MID(E1743&" ",6,2))),"") -> 
A1807: =IFERROR(VALUE(_xlfn.CONCAT(LEFT(E1807,4),MID(E1807&" ",6,2))),"") -> 
A1871: =IFERROR(VALUE(_xlfn.CONCAT(LEFT(E1871,4),MID(E1871&" ",6,2))),"") -> 
A1935: =IFERROR(VALUE(_xlfn.CONCAT(LEFT(E1935,4),MID(E1935&" ",6,2))),"") -> 
A1999: =IFERROR(VALUE(_xlfn.CONCAT(LEFT(E1999,4),MID(E1999&" ",6,2))),"") -> 
A2063: =IFERROR(VALUE(_xlfn.CONCAT(LEFT(E2063,4),MID(E2063&" ",6,2))),"") -> 
A2127: =IFERROR(VALUE(_xlfn.CONCAT(LEFT(E2127,4),MID(E2127&" ",6,2))),"") -> 
A2191: =IFERROR(VALUE(_xlfn.CONCAT(LEFT(E2191,4),MID(E2191&" ",6,2))),"") -> 
A2255: =IFERROR(VALUE(_xlfn.CONCAT(LEFT(E2255,4),MID(E2255&" ",6,2))),"") -> 
A2319: =IFERROR(VALUE(_xlfn.CONCAT(LEFT(E2319,4),MID(E2319&" ",6,2))),"") -> 
A2383: =IFERROR(VALUE(_xlfn.CONCAT(LEFT(E2383,4),MID(E2383&" ",6,2))),"") -> 
A2447: =IFERROR(VALUE(_xlfn.CONCAT(LEFT(E2447,4),MID(E2447&" ",6,2))),"") -> 
A2511: =IFERROR(VALUE(_xlfn.CONCAT(LEFT(E2511,4),MID(E2511&" ",6,2))),"") -> 
A2575: =IFERROR(VALUE(_xlfn.CONCAT(LEFT(E2575,4),MID(E2575&" ",6,2))),"") -> 
A2639: =IFERROR(VALUE(_xlfn.CONCAT(LEFT(E2639,4),MID(E2639&" ",6,2))),"") -> 
A2703: =IFERROR(VALUE(_xlfn.CONCAT(LEFT(E2703,4),MID(E2703&" ",6,2))),"") -> 
A2767: =IFERROR(VALUE(_xlfn.CONCAT(LEFT(E2767,4),MID(E2767&" ",6,2))),"") -> 
A2831: =IFERROR(VALUE(_xlfn.CONCAT(LEFT(E2831,4),MID(E2831&" ",6,2))),"") -> 
A2895: =IFERROR(VALUE(_xlfn.CONCAT(LEFT(E2895,4),MID(E2895&" ",6,2))),"") -> 
A2959: =IFERROR(VALUE(_xlfn.CONCAT(LEFT(E2959,4),MID(E2959&" ",6,2))),"") -> 
A3023: =IFERROR(VALUE(_xlfn.CONCAT(LEFT(E3023,4),MID(E3023&" ",6,2))),"") -> 
A3087: =IFERROR(VALUE(_xlfn.CONCAT(LEFT(E3087,4),MID(E3087&" ",6,2))),"") -> 
A3151: =IFERROR(VALUE(_xlfn.CONCAT(LEFT(E3151,4),MID(E3151&" ",6,2))),"") -> 
A3215: =IFERROR(VALUE(_xlfn.CONCAT(LEFT(E3215,4),MID(E3215&" ",6,2))),"") -> 
A3279: =IFERROR(VALUE(_xlfn.CONCAT(LEFT(E3279,4),MID(E3279&" ",6,2))),"") -> 
A3343: =IFERROR(VALUE(_xlfn.CONCAT(LEFT(E3343,4),MID(E3343&" ",6,2))),"") -> 
A3407: =IFERROR(VALUE(_xlfn.CONCAT(LEFT(E3407,4),MID(E3407&" ",6,2))),"") -> 
A3471: =IFERROR(VALUE(_xlfn.CONCAT(LEFT(E3471,4),MID(E3471&" ",6,2))),"") -> 
A3535: =IFERROR(VALUE(_xlfn.CONCAT(LEFT(E3535,4),MID(E3535&" ",6,2))),"") -> 
A3599: =IFERROR(VALUE(_xlfn.CONCAT(LEFT(E3599,4),MID(E3599&" ",6,2))),"") -> 
A3663: =IFERROR(VALUE(_xlfn.CONCAT(LEFT(E3663,4),MID(E3663&" ",6,2))),"") -> 
A3727: =IFERROR(VALUE(_xlfn.CONCAT(LEFT(E3727,4),MID(E3727&" ",6,2))),"") -> 
A3791: =IFERROR(VALUE(_xlfn.CONCAT(LEFT(E3791,4),MID(E3791&" ",6,2))),"") -> 

Sheet Årsrapport

Sheet Årsrapport 1 år før

Sheet Årsrapport 2 år før

Sheet Årsrapport 3 år før

Sheet DB pr enhed budget
B2: Dækningsbidrag pr. enhed i budgettet
B4: I denne fane kan man fordele sit dækningsbidrag i budgettet
B5: enten helt manuelt eller med hjælp fra fordelinger året før budgettet
B8: Ved budget skal der tages stilling til enheder, da de ikke findes i budgettet | J8: Fordel DB-beløb i de grå felter hvis der ikke skal bruges samme fordeling af beløb som året før eller de ikke findes
B9: Enten indtast eller brug antal fra sidste år evt med en faktor
B12: Budget | C12: Angivelse af antal enten manuelt eller via året før | J12: Budget | K12: Manuelt indtastet fordeling af beløb
B14: Enheder | E14: Indtast | F14: Antal | G14: Antal | J14: Dækningsbidrag pr enhed | M14: =IF(M37="","",M37) -> Enheder | N14: =IF(N37="","",N37) -> Kr pr enhed | O14: =IF(O37="","",O37) -> I alt
E15: nyt antal | F15: året før | G15: med faktor
B16: Salgsafgrøder | C16: Ha | F16: =Fremskrivning!Q11 -> 0 | G16: =F16*$G$30 -> 0 | J16: Salgsafgrøder | K16: Ha | M16: =IF(E16<>"",E16,G16) -> 0 | N16: =IFERROR(O16/M16,0) -> 0
B17: Kartofler | C17: Ha | F17: =Fremskrivning!Q12 -> 0 | G17: =F17*$G$30 -> 0 | J17: Kartofler | K17: Ha | M17: 0 | N17: =IFERROR(O17/M17,0) -> 0
B18: Roer | C18: Ha | F18: =Fremskrivning!Q13 -> 0 | G18: 0 | J18: Roer | K18: Ha | M18: 0 | N18: 0
B19: Grovfoder | C19: Ha | F19: =Fremskrivning!Q14 -> 0 | G19: 0 | J19: Grovfoder | K19: Ha | M19: 0 | N19: 0
C20: Ha | F20: ='DB pr enhed årsrapporter'!M18 -> 0 | G20: 0 | J20: =IF(B20="","",B20) ->  | K20: Ha | M20: 0 | N20: 0
B21: Mælk | C21: Årskøer | F21: =Fremskrivning!Q16 -> 0 | G21: 0 | J21: Mælk | K21: Årskøer | M21: 0 | N21: 0
B22: Slagtekalve | C22: Prod. slagtekalve | F22: =Fremskrivning!Q17 -> 0 | G22: 0 | J22: Slagtekalve | K22: Prod. slagtekalve | M22: 0 | N22: 0
B23: Sohold 7 kg | C23: Årssøer | F23: =Fremskrivning!Q18 -> 0 | G23: 0 | J23: Sohold 7 kg | K23: Årssøer | M23: 0 | N23: 0
B24: Sohold 30 kg | C24: Årssøer | F24: =Fremskrivning!Q19 -> 0 | G24: 0 | J24: Sohold 30 kg | K24: Årssøer | M24: 0 | N24: 0
B25: Slagtegrise | C25: Prod. Slagtegrise | F25: =Fremskrivning!Q20 -> 0 | G25: 0 | J25: Slagtegrise | K25: Prod. Slagtegrise | M25: 0 | N25: 0
B26: Slagtekyllinger | C26: Prod. Slagtekyllinger | F26: =Fremskrivning!Q21 -> 0 | G26: 0 | J26: Slagtekyllinger | K26: Prod. Slagtekyllinger | M26: 0 | N26: 0
B27: Høns | C27: Årshøns | F27: =Fremskrivning!Q22 -> 0 | G27: 0 | J27: Høns | K27: Årshøns | M27: 0 | N27: 0
J28: Øvrige | K28: Rest | O28: =O30-SUM(O16:O27) -> 0
G29: Evt faktor:
J30: Dækningsbidrag i alt | O30: ='Skjul Resultatopstilling'!R18*1000 -> 0
E31: Indtastning overruler faktor.
B33: Fordelinger af beløb året før hvis den findes | J33: Fordeling ud fra fordeling året før hvis den findes
B35: Årsrapport året før | E35: Procentvis fordeling fra året før | J35: Budget ud fra fordeling året før | M35: Beløbfordeling udfra året før
B37: Enheder | E37: Enheder | F37: Kr pr enhed | G37: I alt | H37: Fordeling | J37: Dækningsbidrag pr enhed | M37: Enheder | N37: Kr pr enhed | O37: I alt
B39: Salgsafgrøder | C39: Ha | E39: ='Skjul Resultatopstilling'!E642 -> 0 | F39: ='Skjul Resultatopstilling'!E740 -> 0 | G39: =E39*F39 -> 0 | H39: =IFERROR(G39/$G$53,0) -> 0 | J39: Salgsafgrøder | K39: Ha | M39: =IF(E16<>"",E16,G16) -> 0 | N39: =IFERROR(O39/M39,0) -> 0 | O39: =H39*$O$53 -> 0
B40: Kartofler | C40: Ha | E40: ='Skjul Resultatopstilling'!E643 -> 0 | F40: ='Skjul Resultatopstilling'!E741 -> 0 | G40: 0 | H40: 0 | J40: Kartofler | K40: Ha | M40: 0 | N40: =IFERROR(O40/M40,0) -> 0 | O40: 0
B41: Roer | C41: Ha | E41: ='Skjul Resultatopstilling'!E644 -> 0 | F41: ='Skjul Resultatopstilling'!E742 -> 0 | G41: 0 | H41: 0 | J41: Roer | K41: Ha | M41: 0 | N41: 0 | O41: 0
B42: Grovfoder | C42: Ha | E42: ='Skjul Resultatopstilling'!E641 -> 0 | F42: ='Skjul Resultatopstilling'!E743 -> 0 | G42: 0 | H42: 0 | J42: Grovfoder | K42: Ha | M42: 0 | N42: 0 | O42: 0
B43: =IF(B20="","",B20) ->  | C43: Ha | E43: ='DB pr enhed årsrapporter'!M39 -> 0 | F43: ='DB pr enhed årsrapporter'!N39 -> 0 | G43: ='DB pr enhed årsrapporter'!O39 -> 0 | H43: 0 | J43: =IF(B20="","",B20) ->  | K43: Ha | M43: 0 | N43: =IFERROR(O43/M43,0) -> 0 | O43: 0
B44: Mælk | C44: Årskøer | E44: ='Skjul Resultatopstilling'!E648 -> 0 | F44: ='Skjul Resultatopstilling'!E745 -> 0 | G44: 0 | H44: 0 | J44: Mælk | K44: Årskøer | M44: 0 | N44: 0 | O44: 0
B45: Slagtekalve | C45: Prod. slagtekalve | E45: ='Skjul Resultatopstilling'!E658 -> 0 | F45: ='Skjul Resultatopstilling'!E746 -> 0 | G45: 0 | H45: 0 | J45: Slagtekalve | K45: Prod. slagtekalve | M45: 0 | N45: 0 | O45: 0
B46: Sohold 7 kg | C46: Årssøer | E46: ='Skjul Resultatopstilling'!E662 -> 0 | F46: ='Skjul Resultatopstilling'!E747 -> 0 | G46: 0 | H46: 0 | J46: Sohold 7 kg | K46: Årssøer | M46: 0 | N46: 0 | O46: 0
B47: Sohold 30 kg | C47: Årssøer | E47: ='Skjul Resultatopstilling'!E662 -> 0 | F47: ='Skjul Resultatopstilling'!E748 -> 0 | G47: 0 | H47: 0 | J47: Sohold 30 kg | K47: Årssøer | M47: 0 | N47: 0 | O47: 0
B48: Slagtegrise | C48: Prod. Slagtegrise | E48: ='Skjul Resultatopstilling'!E665 -> 0 | F48: ='Skjul Resultatopstilling'!E750 -> 0 | G48: 0 | H48: 0 | J48: Slagtegrise | K48: Prod. Slagtegrise | M48: 0 | N48: 0 | O48: 0
B49: Slagtekyllinger | C49: Prod. Slagtekyllinger | E49: ='Skjul Resultatopstilling'!E683 -> 0 | F49: ='Skjul Resultatopstilling'!E751 -> 0 | G49: 0 | H49: 0 | J49: Slagtekyllinger | K49: Prod. Slagtekyllinger | M49: 0 | N49: 0 | O49: 0
B50: Høns | C50: Årshøns | E50: ='Skjul Resultatopstilling'!E684 -> 0 | F50: ='Skjul Resultatopstilling'!E752 -> 0 | G50: 0 | H50: 0 | J50: Høns | K50: Årshøns | M50: 0 | N50: 0 | O50: 0
G51: =G53-SUM(G39:G50) -> 0 | H51: 0 | J51: Øvrige | K51: Rest | O51: =O53-SUM(O39:O50) -> 0
B53: Dækningsbidrag i alt | G53: ='Skjul Resultatopstilling'!E18 -> 0 | H53: =SUM(H39:H51) -> 0 | J53: Dækningsbidrag i alt | O53: ='Skjul Resultatopstilling'!R18*1000 -> 0
J57: Hvilken skal bruges:
J59: Salgsafgrøder | M59: =IF($O16<>"",M16,M39) -> 0 | N59: 0 | O59: 0
J60: Kartofler | M60: 0 | N60: 0 | O60: 0
J61: Roer | M61: 0 | N61: 0 | O61: 0
J62: Grovfoder | M62: 0 | N62: 0 | O62: 0
J63: =IF(B20="","",B20) ->  | M63: 0 | N63: 0 | O63: 0
J64: Mælk | M64: 0 | N64: 0 | O64: 0
J65: Slagtekalve | M65: 0 | N65: 0 | O65: 0
J66: Sohold 7 kg | M66: 0 | N66: 0 | O66: 0
J67: Sohold 30 kg | M67: 0 | N67: 0 | O67: 0
J68: Slagtegrise | M68: 0 | N68: 0 | O68: 0
J69: Slagtekyllinger | M69: 0 | N69: 0 | O69: 0
J70: Høns | M70: 0 | N70: 0 | O70: 0
J71: Øvrige | M71: 0 | N71: 0 | O71: =O73-SUM(O59:O70) -> 0
J73: Dækningsbidrag i alt | M73: =IF($O30<>"",M30,M53) -> 0 | N73: =IF($O30<>"",N30,N53) -> 0 | O73: =IF($O30<>"",O30,O53) -> 0

Sheet DB pr enhed årsrapporter
B2: Dækningsbidrag pr. enhed i årsrapporten
Q3: =IF(Forudsætninger!B31="Årsrapport",1,0) -> 0
B4: I denne fane kan man fordele sit dækningsbidrag ved de forskellige driftsgrene for at beregne dækningsbidrag pr enhed
B5: Det totale dækningsbidrag vises forneden og øvrige ændres efterhånden som der sættes ind
B6: Enheder hentes direkte fra de historiske årsrapporter
B8: Hvis der er lavet driftsgrensanalyser laves fordelingen automatisk og kan ses nedenunder
B10: Fordel beløb i de grå felter | E10: =Forudsætninger!B34-3 -> 2021 | I10: =Forudsætninger!B34-2 -> 2022 | M10: =Forudsætninger!B34-1 -> 2023 | Q10: =IF(Forudsætninger!B31="Årsrapport",Forudsætninger!B34,"Denne udfyldes ved budget") -> Denne udfyldes ved budget
B12: Dækningsbidrag pr enhed | C12: =IF(C33="","",C33) ->  | E12: Enheder | F12: Kr pr enhed | G12: I alt | I12: Enheder | J12: Kr pr enhed | K12: I alt | M12: Enheder | N12: Kr pr enhed | O12: I alt | Q12: Enheder | R12: Kr pr enhed | S12: I alt
E13: =IF(E34="","",E34) -> 
B14: Salgsafgrøder | C14: Ha | E14: =IF(E35="","",E35) -> 0 | F14: =IFERROR(G14/E14,0) -> 0 | H14: =IF(H35="","",H35) ->  | I14: 0 | J14: =IFERROR(K14/I14,0) -> 0 | L14: =IF(L35="","",L35) ->  | M14: 0 | N14: =IFERROR(O14/M14,0) -> 0 | P14: =IF(P35="","",P35) ->  | Q14: 0 | R14: =IFERROR(S14/Q14,0) -> 0
B15: Kartofler | C15: Ha | E15: =IF(E36="","",E36) -> 0 | F15: =IFERROR(G15/E15,0) -> 0 | I15: 0 | J15: =IFERROR(K15/I15,0) -> 0 | M15: 0 | N15: =IFERROR(O15/M15,0) -> 0 | Q15: 0 | R15: =IFERROR(S15/Q15,0) -> 0
B16: Roer | C16: Ha | E16: =IF(E37="","",E37) -> 0 | F16: 0 | I16: 0 | J16: 0 | M16: 0 | N16: 0 | Q16: 0 | R16: 0
B17: Grovfoder | C17: Ha | E17: =IF(E38="","",E38) -> 0 | F17: 0 | I17: 0 | J17: 0 | M17: 0 | N17: 0 | Q17: 0 | R17: 0
C18: Ha | F18: 0 | J18: 0 | N18: 0 | R18: 0
B19: Mælk | C19: Årskøer | E19: =IF(E40="","",E40) -> 0 | F19: 0 | H19: =IF(H40="","",H40) ->  | I19: 0 | J19: 0 | L19: =IF(L40="","",L40) ->  | M19: 0 | N19: 0 | P19: =IF(P40="","",P40) ->  | Q19: 0 | R19: 0
B20: Slagtekalve | C20: Prod. slagtekalve | E20: 0 | F20: 0 | I20: 0 | J20: 0 | M20: 0 | N20: 0 | Q20: 0 | R20: 0
B21: Sohold 7 kg | C21: Årssøer | E21: 0 | F21: 0 | I21: 0 | J21: 0 | M21: 0 | N21: 0 | Q21: 0 | R21: 0
B22: Sohold 30 kg | C22: Årssøer | E22: 0 | F22: 0 | I22: 0 | J22: 0 | M22: 0 | N22: 0 | Q22: 0 | R22: 0
B23: Slagtegrise | C23: Prod. Slagtegrise | E23: 0 | F23: 0 | I23: 0 | J23: 0 | M23: 0 | N23: 0 | Q23: 0 | R23: 0
B24: Slagtekyllinger | C24: Prod. Slagtekyllinger | E24: 0 | F24: 0 | I24: 0 | J24: 0 | M24: 0 | N24: 0 | Q24: 0 | R24: 0
B25: Høns | C25: Årshøns | E25: 0 | F25: 0 | I25: 0 | J25: 0 | M25: 0 | N25: 0 | Q25: 0 | R25: 0
B26: Øvrige | C26: Rest | F26: =IF(F47="","",F47) ->  | G26: =G28-SUM(G14:G25) -> 0 | J26: =IF(J47="","",J47) ->  | K26: =K28-SUM(K14:K25) -> 0 | N26: =IF(N47="","",N47) ->  | O26: =O28-SUM(O14:O25) -> 0 | R26: =IF(R47="","",R47) ->  | S26: =S28-SUM(S14:S25) -> 0
F27: =IF(F48="","",F48) ->  | G27: =IF(G48="","",G48) ->  | J27: =IF(J48="","",J48) ->  | K27: =IF(K48="","",K48) ->  | N27: =IF(N48="","",N48) ->  | O27: =IF(O48="","",O48) ->  | R27: =IF(R48="","",R48) ->  | S27: =IF(S48="","",S48) -> 
B28: Dækningsbidrag i alt | F28: =IF(F49="","",F49) ->  | G28: =IF(G49="","",G49) -> 0 | J28: =IF(J49="","",J49) ->  | K28: =IF(K49="","",K49) -> 0 | N28: =IF(N49="","",N49) ->  | O28: =IF(O49="","",O49) -> 0 | R28: =IF(R49="","",R49) ->  | S28: =IF(S49="","",S49) -> 0
B31: Hvis der findes driftsgrensopgørelse på de forskellige driftsgrene:
B33: Dækningsbidrag pr enhed | E33: Enheder | F33: Kr pr enhed | G33: I alt | I33: Enheder | J33: Kr pr enhed | K33: I alt | M33: Enheder | N33: Kr pr enhed | O33: I alt | Q33: Enheder | R33: Kr pr enhed | S33: I alt
B35: Salgsafgrøder | C35: Ha | E35: ='Skjul Resultatopstilling'!C642 -> 0 | F35: ='Skjul Resultatopstilling'!C740 -> 0 | G35: =E35*F35 -> 0 | I35: ='Skjul Resultatopstilling'!D642 -> 0 | J35: ='Skjul Resultatopstilling'!D740 -> 0 | K35: =I35*J35 -> 0 | M35: ='Skjul Resultatopstilling'!E642 -> 0 | N35: ='Skjul Resultatopstilling'!E740 -> 0 | O35: =M35*N35 -> 0 | Q35: ='Skjul Resultatopstilling'!F642 -> 0 | R35: ='Skjul Resultatopstilling'!F740 -> 0 | S35: =Q35*R35 -> 0
B36: Kartofler | C36: Ha | E36: ='Skjul Resultatopstilling'!C643 -> 0 | F36: ='Skjul Resultatopstilling'!C741 -> 0 | G36: 0 | I36: ='Skjul Resultatopstilling'!D643 -> 0 | J36: ='Skjul Resultatopstilling'!D741 -> 0 | K36: 0 | M36: ='Skjul Resultatopstilling'!E643 -> 0 | N36: ='Skjul Resultatopstilling'!E741 -> 0 | O36: 0 | Q36: ='Skjul Resultatopstilling'!F643 -> 0 | R36: ='Skjul Resultatopstilling'!F741 -> 0 | S36: 0
B37: Roer | C37: Ha | E37: ='Skjul Resultatopstilling'!C644 -> 0 | F37: ='Skjul Resultatopstilling'!C742 -> 0 | G37: 0 | I37: ='Skjul Resultatopstilling'!D644 -> 0 | J37: ='Skjul Resultatopstilling'!D742 -> 0 | K37: 0 | M37: ='Skjul Resultatopstilling'!E644 -> 0 | N37: ='Skjul Resultatopstilling'!E742 -> 0 | O37: 0 | Q37: ='Skjul Resultatopstilling'!F644 -> 0 | R37: ='Skjul Resultatopstilling'!F742 -> 0 | S37: 0
B38: Grovfoder | C38: Ha | E38: ='Skjul Resultatopstilling'!C641 -> 0 | F38: ='Skjul Resultatopstilling'!C743 -> 0 | G38: 0 | I38: ='Skjul Resultatopstilling'!D641 -> 0 | J38: ='Skjul Resultatopstilling'!D743 -> 0 | K38: 0 | M38: ='Skjul Resultatopstilling'!E641 -> 0 | N38: ='Skjul Resultatopstilling'!E743 -> 0 | O38: 0 | Q38: ='Skjul Resultatopstilling'!F641 -> 0 | R38: ='Skjul Resultatopstilling'!F743 -> 0 | S38: 0
B39: =IF(B18="","",B18) ->  | C39: Ha | E39: =IF(E18="",0,E18) -> 0 | F39: =IF(F18="",0,F18) -> 0 | G39: =IF(G18="",0,G18) -> 0 | I39: =IF(I18="",0,I18) -> 0 | J39: =IF(J18="",0,J18) -> 0 | K39: =IF(K18="",0,K18) -> 0 | M39: =IF(M18="",0,M18) -> 0 | N39: =IF(N18="",0,N18) -> 0 | O39: =IF(O18="",0,O18) -> 0 | Q39: =IF(Q18="",0,Q18) -> 0 | R39: =IF(R18="",0,R18) -> 0 | S39: =IF(S18="",0,S18) -> 0
B40: Mælk | C40: Årskøer | E40: ='Skjul Resultatopstilling'!C648 -> 0 | F40: ='Skjul Resultatopstilling'!C745 -> 0 | G40: 0 | I40: ='Skjul Resultatopstilling'!D648 -> 0 | J40: ='Skjul Resultatopstilling'!D745 -> 0 | K40: 0 | M40: ='Skjul Resultatopstilling'!E648 -> 0 | N40: ='Skjul Resultatopstilling'!E745 -> 0 | O40: 0 | Q40: ='Skjul Resultatopstilling'!F648 -> 0 | R40: ='Skjul Resultatopstilling'!F745 -> 0 | S40: 0
B41: Slagtekalve | C41: Prod. slagtekalve | E41: ='Skjul Resultatopstilling'!C658 -> 0 | F41: ='Skjul Resultatopstilling'!C746 -> 0 | G41: 0 | I41: ='Skjul Resultatopstilling'!D658 -> 0 | J41: ='Skjul Resultatopstilling'!D746 -> 0 | K41: 0 | M41: ='Skjul Resultatopstilling'!E658 -> 0 | N41: ='Skjul Resultatopstilling'!E746 -> 0 | O41: 0 | Q41: ='Skjul Resultatopstilling'!F658 -> 0 | R41: ='Skjul Resultatopstilling'!F746 -> 0 | S41: 0
B42: Sohold 7 kg | C42: Årssøer | E42: ='Skjul Resultatopstilling'!C662 -> 0 | F42: ='Skjul Resultatopstilling'!C747 -> 0 | G42: 0 | I42: ='Skjul Resultatopstilling'!D662 -> 0 | J42: ='Skjul Resultatopstilling'!D747 -> 0 | K42: 0 | M42: ='Skjul Resultatopstilling'!E662 -> 0 | N42: ='Skjul Resultatopstilling'!E747 -> 0 | O42: 0 | Q42: ='Skjul Resultatopstilling'!F662 -> 0 | R42: ='Skjul Resultatopstilling'!F747 -> 0 | S42: 0
B43: Sohold 30 kg | C43: Årssøer | E43: ='Skjul Resultatopstilling'!C662 -> 0 | F43: ='Skjul Resultatopstilling'!C748 -> 0 | G43: 0 | I43: ='Skjul Resultatopstilling'!D662 -> 0 | J43: ='Skjul Resultatopstilling'!D748 -> 0 | K43: 0 | M43: ='Skjul Resultatopstilling'!E662 -> 0 | N43: ='Skjul Resultatopstilling'!E748 -> 0 | O43: 0 | Q43: ='Skjul Resultatopstilling'!F662 -> 0 | R43: ='Skjul Resultatopstilling'!F748 -> 0 | S43: 0
B44: Slagtegrise | C44: Prod. Slagtegrise | E44: ='Skjul Resultatopstilling'!C665 -> 0 | F44: ='Skjul Resultatopstilling'!C750 -> 0 | G44: 0 | I44: ='Skjul Resultatopstilling'!D665 -> 0 | J44: ='Skjul Resultatopstilling'!D750 -> 0 | K44: 0 | M44: ='Skjul Resultatopstilling'!E665 -> 0 | N44: ='Skjul Resultatopstilling'!E750 -> 0 | O44: 0 | Q44: ='Skjul Resultatopstilling'!F665 -> 0 | R44: ='Skjul Resultatopstilling'!F750 -> 0 | S44: 0
B45: Slagtekyllinger | C45: Prod. Slagtekyllinger | E45: ='Skjul Resultatopstilling'!C683 -> 0 | F45: ='Skjul Resultatopstilling'!C751 -> 0 | G45: 0 | I45: ='Skjul Resultatopstilling'!D683 -> 0 | J45: ='Skjul Resultatopstilling'!D751 -> 0 | K45: 0 | M45: ='Skjul Resultatopstilling'!E683 -> 0 | N45: ='Skjul Resultatopstilling'!E751 -> 0 | O45: 0 | Q45: ='Skjul Resultatopstilling'!F683 -> 0 | R45: ='Skjul Resultatopstilling'!F751 -> 0 | S45: 0
B46: Høns | C46: Årshøns | E46: ='Skjul Resultatopstilling'!C684 -> 0 | F46: ='Skjul Resultatopstilling'!C752 -> 0 | G46: 0 | I46: ='Skjul Resultatopstilling'!D684 -> 0 | J46: ='Skjul Resultatopstilling'!D752 -> 0 | K46: 0 | M46: ='Skjul Resultatopstilling'!E684 -> 0 | N46: ='Skjul Resultatopstilling'!E752 -> 0 | O46: 0 | Q46: ='Skjul Resultatopstilling'!F684 -> 0 | R46: ='Skjul Resultatopstilling'!F752 -> 0 | S46: 0
B47: Øvrige | C47: Rest | G47: =G49-SUM(G35:G46) -> 0 | K47: =K49-SUM(K35:K46) -> 0 | O47: =O49-SUM(O35:O46) -> 0 | S47: =S49-SUM(S35:S46) -> 0
B49: Dækningsbidrag i alt | G49: ='Skjul Resultatopstilling'!C18 -> 0 | K49: ='Skjul Resultatopstilling'!D18 -> 0 | O49: ='Skjul Resultatopstilling'!E18 -> 0 | S49: ='Skjul Resultatopstilling'!F18 -> 0
B51: Det der skal bruges:
B53: Dækningsbidrag pr enhed | E53: Enheder | F53: Kr pr enhed | G53: I alt | I53: Enheder | J53: Kr pr enhed | K53: I alt | M53: Enheder | N53: Kr pr enhed | O53: I alt | Q53: Enheder | R53: Kr pr enhed | S53: I alt
B55: Salgsafgrøder | C55: Ha | E55: =IF(E14<>"",E14,E35) -> 0 | F55: =IFERROR(G55/E55,0) -> 0 | G55: =IF(G14<>"",G14,G35) -> 0 | I55: =IF(I14<>"",I14,I35) -> 0 | J55: =IFERROR(K55/I55,0) -> 0 | K55: =IF(K14<>"",K14,K35) -> 0 | M55: =IF(M14<>"",M14,M35) -> 0 | N55: =IFERROR(O55/M55,0) -> 0 | O55: =IF(O14<>"",O14,O35) -> 0 | Q55: =IF(Q14<>"",Q14,Q35) -> 0 | R55: =IFERROR(S55/Q55,0) -> 0 | S55: =IF(S14<>"",S14,S35) -> 0
B56: Kartofler | C56: Ha | E56: 0 | F56: =IFERROR(G56/E56,0) -> 0 | G56: 0 | I56: 0 | J56: =IFERROR(K56/I56,0) -> 0 | K56: 0 | M56: 0 | N56: =IFERROR(O56/M56,0) -> 0 | O56: 0 | Q56: 0 | R56: =IFERROR(S56/Q56,0) -> 0 | S56: 0
B57: Roer | C57: Ha | E57: 0 | F57: 0 | G57: 0 | I57: 0 | J57: 0 | K57: 0 | M57: 0 | N57: 0 | O57: 0 | Q57: 0 | R57: 0 | S57: 0
B58: Grovfoder | C58: Ha | E58: 0 | F58: 0 | G58: 0 | I58: 0 | J58: 0 | K58: 0 | M58: 0 | N58: 0 | O58: 0 | Q58: 0 | R58: 0 | S58: 0
B59: =B18 -> 0 | C59: Ha | E59: 0 | F59: =IFERROR(G59/E59,0) -> 0 | G59: 0 | I59: 0 | J59: =IFERROR(K59/I59,0) -> 0 | K59: 0 | M59: 0 | N59: =IFERROR(O59/M59,0) -> 0 | O59: 0 | Q59: 0 | R59: =IFERROR(S59/Q59,0) -> 0 | S59: 0
B60: Mælk | C60: Årskøer | E60: 0 | F60: 0 | G60: 0 | I60: 0 | J60: 0 | K60: 0 | M60: 0 | N60: 0 | O60: 0 | Q60: 0 | R60: 0 | S60: 0
B61: Slagtekalve | C61: Prod. slagtekalve | E61: 0 | F61: 0 | G61: 0 | I61: 0 | J61: 0 | K61: 0 | M61: 0 | N61: 0 | O61: 0 | Q61: 0 | R61: 0 | S61: 0
B62: Sohold 7 kg | C62: Årssøer | E62: 0 | F62: 0 | G62: 0 | I62: 0 | J62: 0 | K62: 0 | M62: 0 | N62: 0 | O62: 0 | Q62: 0 | R62: 0 | S62: 0
B63: Sohold 30 kg | C63: Årssøer | E63: 0 | F63: 0 | G63: 0 | I63: 0 | J63: 0 | K63: 0 | M63: 0 | N63: 0 | O63: 0 | Q63: 0 | R63: 0 | S63: 0
B64: Slagtegrise | C64: Prod. Slagtegrise | E64: 0 | F64: 0 | G64: 0 | I64: 0 | J64: 0 | K64: 0 | M64: 0 | N64: 0 | O64: 0 | Q64: 0 | R64: 0 | S64: 0
B65: Slagtekyllinger | C65: Prod. Slagtekyllinger | E65: 0 | F65: 0 | G65: 0 | I65: 0 | J65: 0 | K65: 0 | M65: 0 | N65: 0 | O65: 0 | Q65: 0 | R65: 0 | S65: 0
B66: Høns | C66: Årshøns | E66: 0 | F66: 0 | G66: 0 | I66: 0 | J66: 0 | K66: 0 | M66: 0 | N66: 0 | O66: 0 | Q66: 0 | R66: 0 | S66: 0
B67: Øvrige | C67: Rest | G67: =G69-SUM(G55:G66) -> 0 | K67: =K69-SUM(K55:K66) -> 0 | O67: =O69-SUM(O55:O66) -> 0 | S67: =S69-SUM(S55:S66) -> 0
G68: =IF(G24="","",G24) ->  | K68: =IF(K24="","",K24) ->  | O68: =IF(O24="","",O24) ->  | S68: =IF(S24="","",S24) -> 
B69: Dækningsbidrag i alt | G69: =G49 -> 0 | K69: =K49 -> 0 | O69: =O49 -> 0 | S69: =S49 -> 0

Sheet Forklaring til fremskrivning
B3: Værktøjet tager udgangspunkt i ern manuel fremskrivning af resultaterne ud fra dækningsbidraget.
B5: Dækningsbidrag:
B6: Ved dækningsbidraget skal man fremskrive både antallet af enheder (f.eks. Antal årskøer) og kroner pr. enhed.
B7: Man kan enten vælge at fremskrive med en faktor eller med et beløb. Hvis der skrives i begge er det beløbet der gælder.
B8: Parameteren Øvrige kan kun fremskrives med faktor på beløbet eller selve beløbet.
B10: Hele fremskrivningen af dækningsbidraget fungerer manuelt, så ved eventuelle ændringer frem i tid skal der tages stilling til hvorledes det påvirker dækningsbidraget
B12: Resten af resultatopgørelsen:
B14: Kontante kapacitetsomkostninger:
B15: Kan gøres på to måder. Hvis der ikke er de store ændringer kan man bare skrive en faktor i det grønne felt, så bruger den den faktor i alle årene frem.
B16: Ellers fremskrives enten med en faktor der ganges på året før eller et beløb (beløb bruges hvis der er tastet i begge)
B17: Hvis der hverken er faktor eller belløb fremskrives beløbet fra året før bare
B19: Afskrivninger:
B20: Afskrivninger bliver delt op i driftsbygninger, Markredskaber og staldinventar, da de påvirkes af de investeringer der foretages det pågældende år
B21: Selve investeringerne indtastes længere nede i pengebindingen
B22: Afskrivningerne fremskrivers ud fra afskrivninger året før plus nye afskrivninger beregnet ud fra nye investeringer.
B23: (Det antages at der er fuld afskrivning i året der er investeriet i. Hvis dette ikke er tilfældet og har stor betydning må man selv indtaste afskrivningsbeløbet)
B24: Hvis der vælges en faktor fremskrives de gamle med denne faktor og de nye lægges til.
B25: Hvis der skrives et beløb er det dette beløb den tager med videre
B27: Resten af resultatopgørelsen:
B28: Faktor/beløb afskrivningen fortsætter hele vejen ned gennem resultatopgørelsen, undtaget rente og bidragsudgifter
B29: Specielt for renteudgifter:
B30: Renteudgifter bestemmes via nogle parametre længere nede på siden udender balancen
B31: Her er gæld delt op i forksellige grupper og der skrives en rentesats for hver gruppe, hvor renteudgiften så bliver beregnet ud fra Ultimo og primo gælden
B32: Hvis man har tastet en rentesata i første fremskrivningsår og intet i de efterfølgende bruger den samme rentesat i årene frem.
B33: Hvis der ikke beregnes en renteudgift i den nederste tabel bruger den bare renteudgiften fra året før
B35: Pengebinding:
B36: Årest resultat og tilbageførsel hentes fra resultatopgørelsen
B37: Privat udtræk, skat og pension fremskrives med enten faktor eller beløb
B39: Besætning og beholdning indtastes beløb
B40: Ved investeringer er der opdelt i jord, driftsbygnnger, inventar markbrug, inventar husdyrbrug, privat m.m.
B41: I det turkise felt indtastes investeringsbeløbet (med - foran)
B42: I det lysegrønne felt indtastes levetiden på investeringen hvis det skal med i afskrivningerne (efterlades tom hvis investeringen ikke skal afskrives)
B43: Det antages at investeringen laves først på året så fulde afskrivninger kommer med det samme år. Hvis ikke må man manuelt skrive et andet beøb ved afskrivninger
B45: Under finansiering skal der tages stilling til hvordan et likviditetsunderskud skal finansieres ved optagelse af gæld
B46: Eller hvis der er et likviditetsoverskud hvordan det giver reducering i gælden
B47: Der er plads til at skrive både anvendelse (afdrag) og Fremskaffelse (låneoptagelse)
B48: Ved begge gælder følgende: Reducering af gæld skrives med minus og optagelse af gæld skrives med +
B49: Kassekreditten bliver default. Dvs resten af beløbet fra det indtastede og op til likviditetsanvendelse/-fremskaffelse
B50: Hvis der ikke indtastes noget bliver beløbene 0 (kassekredit stadig default)
B52: Denne optagelse eller reducering af gæld tages med ned i nederste tabel hvor renteudgifter skal beregnes.
B53: Her anvendes nemlig den gennemsnitlige gæld henover året til at beregne renteudgiften
B54: Der tages ikke hensyn til hvornår I løbet af året investeringen er lavet , renten beregnes bare som den gennemsnitlige gæld henover året gange rentesats.
B55: Dette gøres for at forsimple beregningerne. Hvis det ønskes mere præcist må man i gang med de manuelle indtastninger
B58: Balancen:
B59: Balancen er sat ind til sidst, da der ikke skal tages hensyn til noget her, den bruger bare alle beregningerne fra resultatopgøelsen og pengebindingen
B60: Man kan bruge faktor eller beløb fremskrivninger hvis man vil det
B61: Undtagen ved gæld, der kan man kun skrive et nyt beløb da en faktorfremskrivning ikke giver mening her.

Sheet Fremskrivning
U2: Disse kolonner skjules da de kommer hen i næste kolonne hvis valgt | AC2: =IF(Forudsætninger!B31="Budget","Budget","Årsrapport") -> Årsrapport
U3: disse kolonner skal være skjult i det færdige regneark
I4: Historik | AG4: Fremskrivning
F6: Resultatopgørelse | I6: ="Årsrapport "&Forudsætninger!B34-3 -> Årsrapport 2021 | M6: ="Årsrapport "&Forudsætninger!B34-2 -> Årsrapport 2022 | Q6: ="Årsrapport "&Forudsætninger!B34-1 -> Årsrapport 2023 | U6: ="Årsrapport "&Forudsætninger!B34 -> Årsrapport 2024 | Y6: ="Budget "&Forudsætninger!B34 -> Budget 2024 | AC6: =IF(AC2="Budget",Y6,U6) -> Årsrapport 2024 | AM6: =Forudsætninger!B34+1 -> 2025 | AU6: =Forudsætninger!B34+2 -> 2026 | BC6: =Forudsætninger!B34+3 -> 2027 | BK6: =Forudsætninger!B34+4 -> 2028 | BS6: =Forudsætninger!B34+5 -> 2029 | CA6: =Forudsætninger!B34+6 -> 2030 | CI6: =Forudsætninger!B34+7 -> 2031 | CQ6: =Forudsætninger!B34+8 -> 2032 | CY6: =Forudsætninger!B34+9 -> 2033 | DG6: =Forudsætninger!B34+10 -> 2034
AG8: Stk overruler faktor | AO8: Stk overruler % | AW8: Stk overruler % | BE8: Stk overruler % | BM8: Stk overruler % | BU8: Stk overruler % | CC8: Stk overruler % | CK8: Stk overruler % | CS8: Stk overruler % | DA8: Stk overruler %
F9: Dækningsbidrag pr enhed | I9: Enheder | J9: Kr pr enhed | K9: I alt | M9: Enheder | N9: Kr pr enhed | O9: I alt | Q9: Enheder | R9: Kr pr enhed | S9: I alt | U9: Enheder | V9: Kr pr enhed | W9: I alt | AC9: Enheder | AD9: Kr pr enhed | AE9: I alt | AG9: Enhed | AH9: Enhed | AI9: Kr pr enhed eller beløb | AJ9: Kr pr enhed eller beløb | AK9: Enhed | AL9: Kr pr enhed | AM9: I alt | AO9: Enhed | AP9: Enhed | AQ9: Kr pr enhed eller beløb | AR9: Kr pr enhed eller beløb | AS9: Enhed | AT9: Kr pr enhed | AU9: I alt | AW9: Enhed | AX9: Enhed | AY9: Kr pr enhed eller beløb | AZ9: Kr pr enhed eller beløb | BA9: Enhed | BB9: Kr pr enhed | BC9: I alt | BE9: Enhed | BF9: Enhed | BG9: Kr pr enhed eller beløb | BH9: Kr pr enhed eller beløb | BI9: Enhed | BJ9: Kr pr enhed | BK9: I alt | BM9: Enhed | BN9: Enhed | BO9: Kr pr enhed eller beløb | BP9: Kr pr enhed eller beløb | BQ9: Enhed | BR9: Kr pr enhed | BS9: I alt | BU9: Enhed | BV9: Enhed | BW9: Kr pr enhed eller beløb | BX9: Kr pr enhed eller beløb | BY9: Enhed | BZ9: Kr pr enhed | CA9: I alt | CC9: Enhed | CD9: Enhed | CE9: Kr pr enhed eller beløb | CF9: Kr pr enhed eller beløb | CG9: Enhed | CH9: Kr pr enhed | CI9: I alt | CK9: Enhed | CL9: Enhed | CM9: Kr pr enhed eller beløb | CN9: Kr pr enhed eller beløb | CO9: Enhed | CP9: Kr pr enhed | CQ9: I alt | CS9: Enhed | CT9: Enhed | CU9: Kr pr enhed eller beløb | CV9: Kr pr enhed eller beløb | CW9: Enhed | CX9: Kr pr enhed | CY9: I alt | DA9: Enhed | DB9: Enhed | DC9: Kr pr enhed eller beløb | DD9: Kr pr enhed eller beløb | DE9: Enhed | DF9: Kr pr enhed | DG9: I alt
AG10: Faktor | AH10: Stk | AI10: Faktor | AJ10: Beløb | AO10: Faktor | AP10: Stk | AQ10: Faktor | AR10: Beløb | AW10: Faktor | AX10: Stk | AY10: Faktor | AZ10: Beløb | BE10: Faktor | BF10: Stk | BG10: Faktor | BH10: Beløb | BM10: Faktor | BN10: Stk | BO10: Faktor | BP10: Beløb | BU10: Faktor | BV10: Stk | BW10: Faktor | BX10: Beløb | CC10: Faktor | CD10: Stk | CE10: Faktor | CF10: Beløb | CK10: Faktor | CL10: Stk | CM10: Faktor | CN10: Beløb | CS10: Faktor | CT10: Stk | CU10: Faktor | CV10: Beløb | DA10: Faktor | DB10: Stk | DC10: Faktor | DD10: Beløb
F11: Salgsafgrøder | G11: Ha | I11: ='DB pr enhed årsrapporter'!E55 -> 0 | J11: ='DB pr enhed årsrapporter'!F55 -> 0 | K11: =I11*J11 -> 0 | M11: ='DB pr enhed årsrapporter'!I55 -> 0 | N11: ='DB pr enhed årsrapporter'!J55 -> 0 | O11: =M11*N11 -> 0 | Q11: ='DB pr enhed årsrapporter'!M55 -> 0 | R11: ='DB pr enhed årsrapporter'!N55 -> 0 | S11: =Q11*R11 -> 0 | U11: ='DB pr enhed årsrapporter'!Q55 -> 0 | V11: ='DB pr enhed årsrapporter'!R55 -> 0 | W11: =U11*V11 -> 0 | Y11: ='DB pr enhed budget'!M59 -> 0 | Z11: ='DB pr enhed budget'!N59 -> 0 | AA11: ='DB pr enhed budget'!O59 -> 0 | AC11: =IF($AC$2="Budget",Y11,U11) -> 0 | AD11: =IF($AC$2="Budget",Z11,V11) -> 0 | AE11: =IF($AC$2="Budget",AA11,W11) -> 0 | AK11: =IF(AND(AG11="",AH11=""),AC11,IF(AH11<>"",AH11,AG11*AC11)) -> 0 | AL11: =IF(AND(AI11="",AJ11=""),AD11,IF(AJ11<>"",AJ11,AI11*AD11)) -> 0 | AM11: =AK11*AL11 -> 0 | AS11: =IF(AND(AO11="",AP11=""),AK11,IF(AP11<>"",AP11,AO11*AK11)) -> 0 | AT11: =IF(AND(AQ11="",AR11=""),AL11,IF(AR11<>"",AR11,AQ11*AL11)) -> 0 | AU11: =AS11*AT11 -> 0 | BA11: =IF(AND(AW11="",AX11=""),AS11,IF(AX11<>"",AX11,AW11*AS11)) -> 0 | BB11: =IF(AND(AY11="",AZ11=""),AT11,IF(AZ11<>"",AZ11,AY11*AT11)) -> 0 | BC11: =BA11*BB11 -> 0 | BI11: =IF(AND(BE11="",BF11=""),BA11,IF(BF11<>"",BF11,BE11*BA11)) -> 0 | BJ11: =IF(AND(BG11="",BH11=""),BB11,IF(BH11<>"",BH11,BG11*BB11)) -> 0 | BK11: =BI11*BJ11 -> 0 | BQ11: =IF(AND(BM11="",BN11=""),BI11,IF(BN11<>"",BN11,BM11*BI11)) -> 0 | BR11: =IF(AND(BO11="",BP11=""),BJ11,IF(BP11<>"",BP11,BO11*BJ11)) -> 0 | BS11: =BQ11*BR11 -> 0 | BY11: =IF(AND(BU11="",BV11=""),BQ11,IF(BV11<>"",BV11,BU11*BQ11)) -> 0 | BZ11: =IF(AND(BW11="",BX11=""),BR11,IF(BX11<>"",BX11,BW11*BR11)) -> 0 | CA11: =BY11*BZ11 -> 0 | CG11: =IF(AND(CC11="",CD11=""),BY11,IF(CD11<>"",CD11,CC11*BY11)) -> 0 | CH11: =IF(AND(CE11="",CF11=""),BZ11,IF(CF11<>"",CF11,CE11*BZ11)) -> 0 | CI11: =CG11*CH11 -> 0 | CO11: =IF(AND(CK11="",CL11=""),CG11,IF(CL11<>"",CL11,CK11*CG11)) -> 0 | CP11: =IF(AND(CM11="",CN11=""),CH11,IF(CN11<>"",CN11,CM11*CH11)) -> 0 | CQ11: =CO11*CP11 -> 0 | CW11: =IF(AND(CS11="",CT11=""),CO11,IF(CT11<>"",CT11,CS11*CO11)) -> 0 | CX11: =IF(AND(CU11="",CV11=""),CP11,IF(CV11<>"",CV11,CU11*CP11)) -> 0 | CY11: =CW11*CX11 -> 0 | DE11: =IF(AND(DA11="",DB11=""),CW11,IF(DB11<>"",DB11,DA11*CW11)) -> 0 | DF11: =IF(AND(DC11="",DD11=""),CX11,IF(DD11<>"",DD11,DC11*CX11)) -> 0 | DG11: =DE11*DF11 -> 0
F12: Kartofler | G12: Ha | I12: ='DB pr enhed årsrapporter'!E56 -> 0 | J12: ='DB pr enhed årsrapporter'!F56 -> 0 | K12: 0 | M12: ='DB pr enhed årsrapporter'!I56 -> 0 | N12: ='DB pr enhed årsrapporter'!J56 -> 0 | O12: 0 | Q12: ='DB pr enhed årsrapporter'!M56 -> 0 | R12: ='DB pr enhed årsrapporter'!N56 -> 0 | S12: 0 | U12: ='DB pr enhed årsrapporter'!Q56 -> 0 | V12: ='DB pr enhed årsrapporter'!R56 -> 0 | W12: 0 | Y12: ='DB pr enhed budget'!M60 -> 0 | Z12: ='DB pr enhed budget'!N60 -> 0 | AA12: ='DB pr enhed budget'!O60 -> 0 | AC12: 0 | AD12: 0 | AE12: 0 | AK12: =IF(AND(AG12="",AH12=""),AC12,IF(AH12<>"",AH12,AG12*AC12)) -> 0 | AL12: =IF(AND(AI12="",AJ12=""),AD12,IF(AJ12<>"",AJ12,AI12*AD12)) -> 0 | AM12: =AK12*AL12 -> 0 | AS12: =IF(AND(AO12="",AP12=""),AK12,IF(AP12<>"",AP12,AO12*AK12)) -> 0 | AT12: =IF(AND(AQ12="",AR12=""),AL12,IF(AR12<>"",AR12,AQ12*AL12)) -> 0 | AU12: =AS12*AT12 -> 0 | BA12: =IF(AND(AW12="",AX12=""),AS12,IF(AX12<>"",AX12,AW12*AS12)) -> 0 | BB12: =IF(AND(AY12="",AZ12=""),AT12,IF(AZ12<>"",AZ12,AY12*AT12)) -> 0 | BC12: =BA12*BB12 -> 0 | BI12: =IF(AND(BE12="",BF12=""),BA12,IF(BF12<>"",BF12,BE12*BA12)) -> 0 | BJ12: =IF(AND(BG12="",BH12=""),BB12,IF(BH12<>"",BH12,BG12*BB12)) -> 0 | BK12: =BI12*BJ12 -> 0 | BQ12: =IF(AND(BM12="",BN12=""),BI12,IF(BN12<>"",BN12,BM12*BI12)) -> 0 | BR12: =IF(AND(BO12="",BP12=""),BJ12,IF(BP12<>"",BP12,BO12*BJ12)) -> 0 | BS12: =BQ12*BR12 -> 0 | BY12: =IF(AND(BU12="",BV12=""),BQ12,IF(BV12<>"",BV12,BU12*BQ12)) -> 0 | BZ12: =IF(AND(BW12="",BX12=""),BR12,IF(BX12<>"",BX12,BW12*BR12)) -> 0 | CA12: =BY12*BZ12 -> 0 | CG12: =IF(AND(CC12="",CD12=""),BY12,IF(CD12<>"",CD12,CC12*BY12)) -> 0 | CH12: =IF(AND(CE12="",CF12=""),BZ12,IF(CF12<>"",CF12,CE12*BZ12)) -> 0 | CI12: =CG12*CH12 -> 0 | CO12: =IF(AND(CK12="",CL12=""),CG12,IF(CL12<>"",CL12,CK12*CG12)) -> 0 | CP12: =IF(AND(CM12="",CN12=""),CH12,IF(CN12<>"",CN12,CM12*CH12)) -> 0 | CQ12: =CO12*CP12 -> 0 | CW12: =IF(AND(CS12="",CT12=""),CO12,IF(CT12<>"",CT12,CS12*CO12)) -> 0 | CX12: =IF(AND(CU12="",CV12=""),CP12,IF(CV12<>"",CV12,CU12*CP12)) -> 0 | CY12: =CW12*CX12 -> 0 | DE12: =IF(AND(DA12="",DB12=""),CW12,IF(DB12<>"",DB12,DA12*CW12)) -> 0 | DF12: =IF(AND(DC12="",DD12=""),CX12,IF(DD12<>"",DD12,DC12*CX12)) -> 0 | DG12: =DE12*DF12 -> 0
F13: Roer | G13: Ha | I13: ='DB pr enhed årsrapporter'!E57 -> 0 | J13: ='DB pr enhed årsrapporter'!F57 -> 0 | K13: 0 | M13: ='DB pr enhed årsrapporter'!I57 -> 0 | N13: ='DB pr enhed årsrapporter'!J57 -> 0 | O13: 0 | Q13: ='DB pr enhed årsrapporter'!M57 -> 0 | R13: ='DB pr enhed årsrapporter'!N57 -> 0 | S13: 0 | U13: ='DB pr enhed årsrapporter'!Q57 -> 0 | V13: ='DB pr enhed årsrapporter'!R57 -> 0 | W13: 0 | Y13: ='DB pr enhed budget'!M61 -> 0 | Z13: ='DB pr enhed budget'!N61 -> 0 | AA13: ='DB pr enhed budget'!O61 -> 0 | AC13: 0 | AD13: 0 | AE13: 0 | AK13: 0 | AL13: 0 | AM13: 0 | AS13: 0 | AT13: 0 | AU13: 0 | BA13: 0 | BB13: 0 | BC13: 0 | BI13: 0 | BJ13: 0 | BK13: 0 | BQ13: 0 | BR13: 0 | BS13: 0 | BY13: 0 | BZ13: 0 | CA13: 0 | CG13: 0 | CH13: 0 | CI13: 0 | CO13: 0 | CP13: 0 | CQ13: 0 | CW13: 0 | CX13: 0 | CY13: 0 | DE13: 0 | DF13: 0 | DG13: 0
F14: Grovfoder | G14: Ha | I14: ='DB pr enhed årsrapporter'!E58 -> 0 | J14: ='DB pr enhed årsrapporter'!F58 -> 0 | K14: 0 | M14: ='DB pr enhed årsrapporter'!I58 -> 0 | N14: ='DB pr enhed årsrapporter'!J58 -> 0 | O14: 0 | Q14: ='DB pr enhed årsrapporter'!M58 -> 0 | R14: ='DB pr enhed årsrapporter'!N58 -> 0 | S14: 0 | U14: ='DB pr enhed årsrapporter'!Q58 -> 0 | V14: ='DB pr enhed årsrapporter'!R58 -> 0 | W14: 0 | Y14: ='DB pr enhed budget'!M62 -> 0 | Z14: ='DB pr enhed budget'!N62 -> 0 | AA14: ='DB pr enhed budget'!O62 -> 0 | AC14: 0 | AD14: 0 | AE14: 0 | AK14: 0 | AL14: 0 | AM14: 0 | AS14: 0 | AT14: 0 | AU14: 0 | BA14: 0 | BB14: 0 | BC14: 0 | BI14: 0 | BJ14: 0 | BK14: 0 | BQ14: 0 | BR14: 0 | BS14: 0 | BY14: 0 | BZ14: 0 | CA14: 0 | CG14: 0 | CH14: 0 | CI14: 0 | CO14: 0 | CP14: 0 | CQ14: 0 | CW14: 0 | CX14: 0 | CY14: 0 | DE14: 0 | DF14: 0 | DG14: 0
F15: =IF(AND('DB pr enhed budget'!B20="",'DB pr enhed årsrapporter'!B18=""),"",IF('DB pr enhed budget'!B20="",'DB pr enhed årsrapporter'!B18,'DB pr enhed budget'!B20)) ->  | G15: Ha | I15: ='DB pr enhed årsrapporter'!E59 -> 0 | J15: ='DB pr enhed årsrapporter'!F59 -> 0 | K15: =I15*J15 -> 0 | M15: ='DB pr enhed årsrapporter'!I59 -> 0 | N15: ='DB pr enhed årsrapporter'!J59 -> 0 | O15: =M15*N15 -> 0 | Q15: ='DB pr enhed årsrapporter'!M59 -> 0 | R15: ='DB pr enhed årsrapporter'!N59 -> 0 | S15: =Q15*R15 -> 0 | U15: ='DB pr enhed årsrapporter'!Q59 -> 0 | V15: ='DB pr enhed årsrapporter'!R59 -> 0 | W15: =U15*V15 -> 0 | Y15: ='DB pr enhed budget'!M63 -> 0 | Z15: ='DB pr enhed budget'!N63 -> 0 | AA15: ='DB pr enhed budget'!O63 -> 0 | AC15: 0 | AD15: 0 | AE15: 0 | AK15: =IF(AND(AG15="",AH15=""),AC15,IF(AH15<>"",AH15,AG15*AC15)) -> 0 | AL15: =IF(AND(AI15="",AJ15=""),AD15,IF(AJ15<>"",AJ15,AI15*AD15)) -> 0 | AM15: =AK15*AL15 -> 0 | AS15: =IF(AND(AO15="",AP15=""),AK15,IF(AP15<>"",AP15,AO15*AK15)) -> 0 | AT15: =IF(AND(AQ15="",AR15=""),AL15,IF(AR15<>"",AR15,AQ15*AL15)) -> 0 | AU15: =AS15*AT15 -> 0 | BA15: =IF(AND(AW15="",AX15=""),AS15,IF(AX15<>"",AX15,AW15*AS15)) -> 0 | BB15: =IF(AND(AY15="",AZ15=""),AT15,IF(AZ15<>"",AZ15,AY15*AT15)) -> 0 | BC15: =BA15*BB15 -> 0 | BI15: =IF(AND(BE15="",BF15=""),BA15,IF(BF15<>"",BF15,BE15*BA15)) -> 0 | BJ15: =IF(AND(BG15="",BH15=""),BB15,IF(BH15<>"",BH15,BG15*BB15)) -> 0 | BK15: =BI15*BJ15 -> 0 | BQ15: =IF(AND(BM15="",BN15=""),BI15,IF(BN15<>"",BN15,BM15*BI15)) -> 0 | BR15: =IF(AND(BO15="",BP15=""),BJ15,IF(BP15<>"",BP15,BO15*BJ15)) -> 0 | BS15: =BQ15*BR15 -> 0 | BY15: =IF(AND(BU15="",BV15=""),BQ15,IF(BV15<>"",BV15,BU15*BQ15)) -> 0 | BZ15: =IF(AND(BW15="",BX15=""),BR15,IF(BX15<>"",BX15,BW15*BR15)) -> 0 | CA15: =BY15*BZ15 -> 0 | CG15: =IF(AND(CC15="",CD15=""),BY15,IF(CD15<>"",CD15,CC15*BY15)) -> 0 | CH15: =IF(AND(CE15="",CF15=""),BZ15,IF(CF15<>"",CF15,CE15*BZ15)) -> 0 | CI15: =CG15*CH15 -> 0 | CO15: =IF(AND(CK15="",CL15=""),CG15,IF(CL15<>"",CL15,CK15*CG15)) -> 0 | CP15: =IF(AND(CM15="",CN15=""),CH15,IF(CN15<>"",CN15,CM15*CH15)) -> 0 | CQ15: =CO15*CP15 -> 0 | CW15: =IF(AND(CS15="",CT15=""),CO15,IF(CT15<>"",CT15,CS15*CO15)) -> 0 | CX15: =IF(AND(CU15="",CV15=""),CP15,IF(CV15<>"",CV15,CU15*CP15)) -> 0 | CY15: =CW15*CX15 -> 0 | DE15: =IF(AND(DA15="",DB15=""),CW15,IF(DB15<>"",DB15,DA15*CW15)) -> 0 | DF15: =IF(AND(DC15="",DD15=""),CX15,IF(DD15<>"",DD15,DC15*CX15)) -> 0 | DG15: =DE15*DF15 -> 0
F16: Mælk | G16: Årskøer | I16: ='DB pr enhed årsrapporter'!E60 -> 0 | J16: ='DB pr enhed årsrapporter'!F60 -> 0 | K16: 0 | M16: ='DB pr enhed årsrapporter'!I60 -> 0 | N16: ='DB pr enhed årsrapporter'!J60 -> 0 | O16: 0 | Q16: ='DB pr enhed årsrapporter'!M60 -> 0 | R16: ='DB pr enhed årsrapporter'!N60 -> 0 | S16: 0 | U16: ='DB pr enhed årsrapporter'!Q60 -> 0 | V16: ='DB pr enhed årsrapporter'!R60 -> 0 | W16: 0 | Y16: ='DB pr enhed budget'!M64 -> 0 | Z16: ='DB pr enhed budget'!N64 -> 0 | AA16: ='DB pr enhed budget'!O64 -> 0 | AC16: 0 | AD16: 0 | AE16: 0 | AK16: 0 | AL16: 0 | AM16: 0 | AS16: 0 | AT16: 0 | AU16: 0 | BA16: 0 | BB16: 0 | BC16: 0 | BI16: 0 | BJ16: 0 | BK16: 0 | BQ16: 0 | BR16: 0 | BS16: 0 | BY16: 0 | BZ16: 0 | CA16: 0 | CG16: 0 | CH16: 0 | CI16: 0 | CO16: 0 | CP16: 0 | CQ16: 0 | CW16: 0 | CX16: 0 | CY16: 0 | DE16: 0 | DF16: 0 | DG16: 0
F17: Slagtekalve | G17: Prod. slagtekalve | I17: ='DB pr enhed årsrapporter'!E61 -> 0 | J17: ='DB pr enhed årsrapporter'!F61 -> 0 | K17: 0 | M17: ='DB pr enhed årsrapporter'!I61 -> 0 | N17: ='DB pr enhed årsrapporter'!J61 -> 0 | O17: 0 | Q17: ='DB pr enhed årsrapporter'!M61 -> 0 | R17: ='DB pr enhed årsrapporter'!N61 -> 0 | S17: 0 | U17: ='DB pr enhed årsrapporter'!Q61 -> 0 | V17: ='DB pr enhed årsrapporter'!R61 -> 0 | W17: 0 | Y17: ='DB pr enhed budget'!M65 -> 0 | Z17: ='DB pr enhed budget'!N65 -> 0 | AA17: ='DB pr enhed budget'!O65 -> 0 | AC17: 0 | AD17: 0 | AE17: 0 | AK17: 0 | AL17: 0 | AM17: 0 | AS17: 0 | AT17: 0 | AU17: 0 | BA17: 0 | BB17: 0 | BC17: 0 | BI17: 0 | BJ17: 0 | BK17: 0 | BQ17: 0 | BR17: 0 | BS17: 0 | BY17: 0 | BZ17: 0 | CA17: 0 | CG17: 0 | CH17: 0 | CI17: 0 | CO17: 0 | CP17: 0 | CQ17: 0 | CW17: 0 | CX17: 0 | CY17: 0 | DE17: 0 | DF17: 0 | DG17: 0
F18: Sohold 7 kg | G18: Årssøer | I18: ='DB pr enhed årsrapporter'!E62 -> 0 | J18: ='DB pr enhed årsrapporter'!F62 -> 0 | K18: 0 | M18: ='DB pr enhed årsrapporter'!I62 -> 0 | N18: ='DB pr enhed årsrapporter'!J62 -> 0 | O18: 0 | Q18: ='DB pr enhed årsrapporter'!M62 -> 0 | R18: ='DB pr enhed årsrapporter'!N62 -> 0 | S18: 0 | U18: ='DB pr enhed årsrapporter'!Q62 -> 0 | V18: ='DB pr enhed årsrapporter'!R62 -> 0 | W18: 0 | Y18: ='DB pr enhed budget'!M66 -> 0 | Z18: ='DB pr enhed budget'!N66 -> 0 | AA18: ='DB pr enhed budget'!O66 -> 0 | AC18: 0 | AD18: 0 | AE18: 0 | AK18: 0 | AL18: 0 | AM18: 0 | AS18: 0 | AT18: 0 | AU18: 0 | BA18: 0 | BB18: 0 | BC18: 0 | BI18: 0 | BJ18: 0 | BK18: 0 | BQ18: 0 | BR18: 0 | BS18: 0 | BY18: 0 | BZ18: 0 | CA18: 0 | CG18: 0 | CH18: 0 | CI18: 0 | CO18: 0 | CP18: 0 | CQ18: 0 | CW18: 0 | CX18: 0 | CY18: 0 | DE18: 0 | DF18: 0 | DG18: 0
F19: Sohold 30 kg | G19: Årssøer | I19: ='DB pr enhed årsrapporter'!E63 -> 0 | J19: ='DB pr enhed årsrapporter'!F63 -> 0 | K19: 0 | M19: ='DB pr enhed årsrapporter'!I63 -> 0 | N19: ='DB pr enhed årsrapporter'!J63 -> 0 | O19: 0 | Q19: ='DB pr enhed årsrapporter'!M63 -> 0 | R19: ='DB pr enhed årsrapporter'!N63 -> 0 | S19: 0 | U19: ='DB pr enhed årsrapporter'!Q63 -> 0 | V19: ='DB pr enhed årsrapporter'!R63 -> 0 | W19: 0 | Y19: ='DB pr enhed budget'!M67 -> 0 | Z19: ='DB pr enhed budget'!N67 -> 0 | AA19: ='DB pr enhed budget'!O67 -> 0 | AC19: 0 | AD19: 0 | AE19: 0 | AK19: 0 | AL19: 0 | AM19: 0 | AS19: 0 | AT19: 0 | AU19: 0 | BA19: 0 | BB19: 0 | BC19: 0 | BI19: 0 | BJ19: 0 | BK19: 0 | BQ19: 0 | BR19: 0 | BS19: 0 | BY19: 0 | BZ19: 0 | CA19: 0 | CG19: 0 | CH19: 0 | CI19: 0 | CO19: 0 | CP19: 0 | CQ19: 0 | CW19: 0 | CX19: 0 | CY19: 0 | DE19: 0 | DF19: 0 | DG19: 0
F20: Slagtegrise | G20: Prod. Slagtegrise | I20: ='DB pr enhed årsrapporter'!E64 -> 0 | J20: ='DB pr enhed årsrapporter'!F64 -> 0 | K20: 0 | M20: ='DB pr enhed årsrapporter'!I64 -> 0 | N20: ='DB pr enhed årsrapporter'!J64 -> 0 | O20: 0 | Q20: ='DB pr enhed årsrapporter'!M64 -> 0 | R20: ='DB pr enhed årsrapporter'!N64 -> 0 | S20: 0 | U20: ='DB pr enhed årsrapporter'!Q64 -> 0 | V20: ='DB pr enhed årsrapporter'!R64 -> 0 | W20: 0 | Y20: ='DB pr enhed budget'!M68 -> 0 | Z20: ='DB pr enhed budget'!N68 -> 0 | AA20: ='DB pr enhed budget'!O68 -> 0 | AC20: 0 | AD20: 0 | AE20: 0 | AK20: =IF(AND(AG20="",AH20=""),AC20,IF(AH20<>"",AH20,AG20*AC20)) -> 0 | AL20: =IF(AND(AI20="",AJ20=""),AD20,IF(AJ20<>"",AJ20,AI20*AD20)) -> 0 | AM20: =AK20*AL20 -> 0 | AS20: 0 | AT20: 0 | AU20: 0 | BA20: 0 | BB20: 0 | BC20: 0 | BI20: 0 | BJ20: 0 | BK20: 0 | BQ20: 0 | BR20: 0 | BS20: 0 | BY20: 0 | BZ20: 0 | CA20: 0 | CG20: 0 | CH20: 0 | CI20: 0 | CO20: 0 | CP20: 0 | CQ20: 0 | CW20: 0 | CX20: 0 | CY20: 0 | DE20: 0 | DF20: 0 | DG20: 0
F21: Slagtekyllinger | G21: Prod. Slagtekyllinger | I21: ='DB pr enhed årsrapporter'!E65 -> 0 | J21: ='DB pr enhed årsrapporter'!F65 -> 0 | K21: 0 | M21: ='DB pr enhed årsrapporter'!I65 -> 0 | N21: ='DB pr enhed årsrapporter'!J65 -> 0 | O21: =M21*N21 -> 0 | Q21: ='DB pr enhed årsrapporter'!M65 -> 0 | R21: ='DB pr enhed årsrapporter'!N65 -> 0 | S21: =Q21*R21 -> 0 | U21: ='DB pr enhed årsrapporter'!Q65 -> 0 | V21: ='DB pr enhed årsrapporter'!R65 -> 0 | W21: =U21*V21 -> 0 | Y21: ='DB pr enhed budget'!M69 -> 0 | Z21: ='DB pr enhed budget'!N69 -> 0 | AA21: ='DB pr enhed budget'!O69 -> 0 | AC21: 0 | AD21: 0 | AE21: 0 | AK21: 0 | AL21: 0 | AM21: 0 | AS21: 0 | AT21: 0 | AU21: 0 | BA21: 0 | BB21: 0 | BC21: 0 | BI21: 0 | BJ21: 0 | BK21: 0 | BQ21: 0 | BR21: 0 | BS21: 0 | BY21: 0 | BZ21: 0 | CA21: 0 | CG21: 0 | CH21: 0 | CI21: 0 | CO21: 0 | CP21: 0 | CQ21: 0 | CW21: 0 | CX21: 0 | CY21: 0 | DE21: 0 | DF21: 0 | DG21: 0
F22: Høns | G22: Årshøns | I22: ='DB pr enhed årsrapporter'!E66 -> 0 | J22: ='DB pr enhed årsrapporter'!F66 -> 0 | K22: 0 | M22: ='DB pr enhed årsrapporter'!I66 -> 0 | N22: ='DB pr enhed årsrapporter'!J66 -> 0 | O22: 0 | Q22: ='DB pr enhed årsrapporter'!M66 -> 0 | R22: ='DB pr enhed årsrapporter'!N66 -> 0 | S22: 0 | U22: ='DB pr enhed årsrapporter'!Q66 -> 0 | V22: ='DB pr enhed årsrapporter'!R66 -> 0 | W22: 0 | Y22: ='DB pr enhed budget'!M70 -> 0 | Z22: ='DB pr enhed budget'!N70 -> 0 | AA22: ='DB pr enhed budget'!O70 -> 0 | AC22: 0 | AD22: 0 | AE22: 0 | AK22: 0 | AL22: 0 | AM22: 0 | AS22: 0 | AT22: 0 | AU22: 0 | BA22: 0 | BB22: 0 | BC22: 0 | BI22: 0 | BJ22: 0 | BK22: 0 | BQ22: 0 | BR22: 0 | BS22: 0 | BY22: 0 | BZ22: 0 | CA22: 0 | CG22: 0 | CH22: 0 | CI22: 0 | CO22: 0 | CP22: 0 | CQ22: 0 | CW22: 0 | CX22: 0 | CY22: 0 | DE22: 0 | DF22: 0 | DG22: 0
F23: Øvrige | G23: Rest | K23: =K25-SUM(K11:K22) -> 0 | O23: =O25-SUM(O11:O22) -> 0 | S23: =S25-SUM(S11:S22) -> 0 | W23: =W25-SUM(W11:W22) -> 0 | Y23: ='DB pr enhed budget'!M71 -> 0 | Z23: ='DB pr enhed budget'!N71 -> 0 | AA23: ='DB pr enhed budget'!O71 -> 0 | AE23: =IF($AC$2="Budget",AA23,W23) -> 0 | AM23: =IF(AND(AI23="",AJ23=""),AE23,IF(AJ23<>"",AJ23,AI23*AE23)) -> 0 | AU23: =IF(AND(AQ23="",AR23=""),AM23,IF(AR23<>"",AR23,AQ23*AM23)) -> 0 | BC23: =IF(AND(AY23="",AZ23=""),AU23,IF(AZ23<>"",AZ23,AY23*AU23)) -> 0 | BK23: =IF(AND(BG23="",BH23=""),BC23,IF(BH23<>"",BH23,BG23*BC23)) -> 0 | BS23: =IF(AND(BO23="",BP23=""),BK23,IF(BP23<>"",BP23,BO23*BK23)) -> 0 | CA23: =IF(AND(BW23="",BX23=""),BS23,IF(BX23<>"",BX23,BW23*BS23)) -> 0 | CI23: =IF(AND(CE23="",CF23=""),CA23,IF(CF23<>"",CF23,CE23*CA23)) -> 0 | CQ23: =IF(AND(CM23="",CN23=""),CI23,IF(CN23<>"",CN23,CM23*CI23)) -> 0 | CY23: =IF(AND(CU23="",CV23=""),CQ23,IF(CV23<>"",CV23,CU23*CQ23)) -> 0 | DG23: =IF(AND(DC23="",DD23=""),CY23,IF(DD23<>"",DD23,DC23*CY23)) -> 0
F25: Dækningsbidrag i alt | K25: ='DB pr enhed årsrapporter'!G69 -> 0 | O25: ='DB pr enhed årsrapporter'!K69 -> 0 | S25: ='DB pr enhed årsrapporter'!O69 -> 0 | W25: ='DB pr enhed årsrapporter'!S69 -> 0 | AA25: ='DB pr enhed budget'!O73 -> 0 | AE25: =IF($AC$2="Budget",AA25,W25) -> 0 | AM25: =SUM(AM11:AM23) -> 0 | AU25: =SUM(AU11:AU23) -> 0 | BC25: =SUM(BC11:BC23) -> 0 | BK25: =SUM(BK11:BK23) -> 0 | BS25: =SUM(BS11:BS23) -> 0 | CA25: =SUM(CA11:CA23) -> 0 | CI25: =SUM(CI11:CI23) -> 0 | CQ25: =SUM(CQ11:CQ23) -> 0 | CY25: =SUM(CY11:CY23) -> 0 | DG25: =SUM(DG11:DG23) -> 0
F27: Energi og brændstof | K27: ='Skjul Resultatopstilling'!C20 -> 0 | O27: ='Skjul Resultatopstilling'!D20 -> 0 | S27: ='Skjul Resultatopstilling'!E20 -> 0 | W27: ='Skjul Resultatopstilling'!F20 -> 0 | AA27: ='Skjul Resultatopstilling'!R20*1000 -> 0 | AE27: =IF($AC$2="Budget",AA27,W27) -> 0 | AG27: Hvis der ønskes at de kontante kapacitetsomkostninger bare fremskrives med en fast faktor i alle årene frem indtastes der i nedenstående grønne felt. En indtastning i de blå vil altid overrule denne standardfremskrivning | AM27: =IF(AND(AI27="",AJ27=""),IF($AG$34="",AE27,AE27*$AG$34),IF(AJ27<>"",AJ27,AI27*AE27)) -> 0 | AU27: =IF(AND(AQ27="",AR27=""),IF($AG$34="",AM27,AM27*$AG$34),IF(AR27<>"",AR27,AQ27*AM27)) -> 0 | BC27: =IF(AND(AY27="",AZ27=""),IF($AG$34="",AU27,AU27*$AG$34),IF(AZ27<>"",AZ27,AY27*AU27)) -> 0 | BK27: =IF(AND(BG27="",BH27=""),IF($AG$34="",BC27,BC27*$AG$34),IF(BH27<>"",BH27,BG27*BC27)) -> 0 | BS27: =IF(AND(BO27="",BP27=""),IF($AG$34="",BK27,BK27*$AG$34),IF(BP27<>"",BP27,BO27*BK27)) -> 0 | CA27: =IF(AND(BW27="",BX27=""),IF($AG$34="",BS27,BS27*$AG$34),IF(BX27<>"",BX27,BW27*BS27)) -> 0 | CI27: =IF(AND(CE27="",CF27=""),IF($AG$34="",CA27,CA27*$AG$34),IF(CF27<>"",CF27,CE27*CA27)) -> 0 | CQ27: =IF(AND(CM27="",CN27=""),IF($AG$34="",CI27,CI27*$AG$34),IF(CN27<>"",CN27,CM27*CI27)) -> 0 | CY27: =IF(AND(CU27="",CV27=""),IF($AG$34="",CQ27,CQ27*$AG$34),IF(CV27<>"",CV27,CU27*CQ27)) -> 0 | DG27: =IF(AND(DC27="",DD27=""),IF($AG$34="",CY27,CY27*$AG$34),IF(DD27<>"",DD27,DC27*CY27)) -> 0
F28: Maskinstation | K28: ='Skjul Resultatopstilling'!C21 -> 0 | O28: ='Skjul Resultatopstilling'!D21 -> 0 | S28: ='Skjul Resultatopstilling'!E21 -> 0 | W28: ='Skjul Resultatopstilling'!F21 -> 0 | AA28: ='Skjul Resultatopstilling'!R21*1000 -> 0 | AE28: 0 | AM28: =IF(AND(AI28="",AJ28=""),IF($AG$34="",AE28,AE28*$AG$34),IF(AJ28<>"",AJ28,AI28*AE28)) -> 0 | AU28: =IF(AND(AQ28="",AR28=""),IF($AG$34="",AM28,AM28*$AG$34),IF(AR28<>"",AR28,AQ28*AM28)) -> 0 | BC28: =IF(AND(AY28="",AZ28=""),IF($AG$34="",AU28,AU28*$AG$34),IF(AZ28<>"",AZ28,AY28*AU28)) -> 0 | BK28: =IF(AND(BG28="",BH28=""),IF($AG$34="",BC28,BC28*$AG$34),IF(BH28<>"",BH28,BG28*BC28)) -> 0 | BS28: =IF(AND(BO28="",BP28=""),IF($AG$34="",BK28,BK28*$AG$34),IF(BP28<>"",BP28,BO28*BK28)) -> 0 | CA28: =IF(AND(BW28="",BX28=""),IF($AG$34="",BS28,BS28*$AG$34),IF(BX28<>"",BX28,BW28*BS28)) -> 0 | CI28: =IF(AND(CE28="",CF28=""),IF($AG$34="",CA28,CA28*$AG$34),IF(CF28<>"",CF28,CE28*CA28)) -> 0 | CQ28: =IF(AND(CM28="",CN28=""),IF($AG$34="",CI28,CI28*$AG$34),IF(CN28<>"",CN28,CM28*CI28)) -> 0 | CY28: =IF(AND(CU28="",CV28=""),IF($AG$34="",CQ28,CQ28*$AG$34),IF(CV28<>"",CV28,CU28*CQ28)) -> 0 | DG28: =IF(AND(DC28="",DD28=""),IF($AG$34="",CY28,CY28*$AG$34),IF(DD28<>"",DD28,DC28*CY28)) -> 0
F29: Vedligeholdelse | K29: ='Skjul Resultatopstilling'!C22 -> 0 | O29: ='Skjul Resultatopstilling'!D22 -> 0 | S29: ='Skjul Resultatopstilling'!E22 -> 0 | W29: ='Skjul Resultatopstilling'!F22 -> 0 | AA29: ='Skjul Resultatopstilling'!R22*1000 -> 0 | AE29: 0 | AM29: 0 | AU29: 0 | BC29: 0 | BK29: 0 | BS29: 0 | CA29: 0 | CI29: 0 | CQ29: 0 | CY29: 0 | DG29: 0
F30: Investeringer over driften | K30: ='Skjul Resultatopstilling'!C23 -> 0 | O30: ='Skjul Resultatopstilling'!D23 -> 0 | S30: ='Skjul Resultatopstilling'!E23 -> 0 | W30: ='Skjul Resultatopstilling'!F23 -> 0 | AA30: ='Skjul Resultatopstilling'!R23*1000 -> 0 | AE30: 0 | AM30: 0 | AU30: 0 | BC30: 0 | BK30: 0 | BS30: 0 | CA30: 0 | CI30: 0 | CQ30: 0 | CY30: 0 | DG30: 0
F31: Lønomkostninger | K31: ='Skjul Resultatopstilling'!C24 -> 0 | O31: ='Skjul Resultatopstilling'!D24 -> 0 | S31: ='Skjul Resultatopstilling'!E24 -> 0 | W31: ='Skjul Resultatopstilling'!F24 -> 0 | AA31: ='Skjul Resultatopstilling'!R24*1000 -> 0 | AE31: 0 | AM31: 0 | AU31: 0 | BC31: 0 | BK31: 0 | BS31: 0 | CA31: 0 | CI31: 0 | CQ31: 0 | CY31: 0 | DG31: 0
F32: Ejendomsskat og forsikringer | K32: ='Skjul Resultatopstilling'!C25 -> 0 | O32: ='Skjul Resultatopstilling'!D25 -> 0 | S32: ='Skjul Resultatopstilling'!E25 -> 0 | W32: ='Skjul Resultatopstilling'!F25 -> 0 | AA32: ='Skjul Resultatopstilling'!R25*1000 -> 0 | AE32: 0 | AM32: 0 | AU32: 0 | BC32: 0 | BK32: 0 | BS32: 0 | CA32: 0 | CI32: 0 | CQ32: 0 | CY32: 0 | DG32: 0
F33: Diverse omkostninger | K33: ='Skjul Resultatopstilling'!C26 -> 0 | O33: ='Skjul Resultatopstilling'!D26 -> 0 | S33: ='Skjul Resultatopstilling'!E26 -> 0 | W33: ='Skjul Resultatopstilling'!F26 -> 0 | AA33: ='Skjul Resultatopstilling'!R26*1000 -> 0 | AE33: 0 | AM33: 0 | AU33: 0 | BC33: 0 | BK33: 0 | BS33: 0 | CA33: 0 | CI33: 0 | CQ33: 0 | CY33: 0 | DG33: 0
F34: Kontante kapacitetsomkostninger | K34: ='Skjul Resultatopstilling'!C27 -> 0 | O34: ='Skjul Resultatopstilling'!D27 -> 0 | S34: ='Skjul Resultatopstilling'!E27 -> 0 | W34: ='Skjul Resultatopstilling'!F27 -> 0 | AA34: =SUM(AA27:AA33) -> 0 | AE34: 0 | AM34: =SUM(AM27:AM33) -> 0 | AU34: =SUM(AU27:AU33) -> 0 | BC34: =SUM(BC27:BC33) -> 0 | BK34: =SUM(BK27:BK33) -> 0 | BS34: =SUM(BS27:BS33) -> 0 | CA34: =SUM(CA27:CA33) -> 0 | CI34: =SUM(CI27:CI33) -> 0 | CQ34: =SUM(CQ27:CQ33) -> 0 | CY34: =SUM(CY27:CY33) -> 0 | DG34: =SUM(DG27:DG33) -> 0
F36: Afskrivninger | K36: ='Skjul Resultatopstilling'!C29 -> 0 | O36: ='Skjul Resultatopstilling'!D29 -> 0 | S36: ='Skjul Resultatopstilling'!E29 -> 0 | W36: ='Skjul Resultatopstilling'!F29 -> 0 | AA36: ='Skjul Resultatopstilling'!R29*1000 -> 0 | AE36: =IF($AC$2="Budget",AA36,W36) -> 0 | AM36: =SUM(AM37:AM40) -> 0 | AU36: =SUM(AU37:AU40) -> 0 | BC36: =SUM(BC37:BC40) -> 0 | BK36: =SUM(BK37:BK40) -> 0 | BS36: =SUM(BS37:BS40) -> 0 | CA36: =SUM(CA37:CA40) -> 0 | CI36: =SUM(CI37:CI40) -> 0 | CQ36: =SUM(CQ37:CQ40) -> 0 | CY36: =SUM(CY37:CY40) -> 0 | DG36: =SUM(DG37:DG40) -> 0
F37: Driftsbygninger | K37: ='Skjul Resultatopstilling'!C30 -> 0 | O37: ='Skjul Resultatopstilling'!D30 -> 0 | S37: ='Skjul Resultatopstilling'!E30 -> 0 | W37: ='Skjul Resultatopstilling'!F30 -> 0 | AA37: ='Skjul Resultatopstilling'!R30*1000 -> 0 | AE37: =IF($AC$2="Budget",AA37,W37) -> 0 | AM37: =IF(AND(AI37="",AJ37=""),AE37+IFERROR(AJ89/AI89,0),IF(AJ37<>"",AJ37,AI37*AE37+IFERROR(AJ89/AI89,0))) -> 0 | AU37: =IF(AND(AQ37="",AR37=""),AM37+IFERROR(AR89/AQ89,0),IF(AR37<>"",AR37,AQ37*AM37+IFERROR(AR89/AQ89,0))) -> 0 | BC37: =IF(AND(AY37="",AZ37=""),AU37+IFERROR(AZ89/AY89,0),IF(AZ37<>"",AZ37,AY37*AU37+IFERROR(AZ89/AY89,0))) -> 0 | BK37: =IF(AND(BG37="",BH37=""),BC37+IFERROR(BH89/BG89,0),IF(BH37<>"",BH37,BG37*BC37+IFERROR(BH89/BG89,0))) -> 0 | BS37: =IF(AND(BO37="",BP37=""),BK37+IFERROR(BP89/BO89,0),IF(BP37<>"",BP37,BO37*BK37+IFERROR(BP89/BO89,0))) -> 0 | CA37: =IF(AND(BW37="",BX37=""),BS37+IFERROR(BX89/BW89,0),IF(BX37<>"",BX37,BW37*BS37+IFERROR(BX89/BW89,0))) -> 0 | CI37: =IF(AND(CE37="",CF37=""),CA37+IFERROR(CF89/CE89,0),IF(CF37<>"",CF37,CE37*CA37+IFERROR(CF89/CE89,0))) -> 0 | CQ37: =IF(AND(CM37="",CN37=""),CI37+IFERROR(CN89/CM89,0),IF(CN37<>"",CN37,CM37*CI37+IFERROR(CN89/CM89,0))) -> 0 | CY37: =IF(AND(CU37="",CV37=""),CQ37+IFERROR(CV89/CU89,0),IF(CV37<>"",CV37,CU37*CQ37+IFERROR(CV89/CU89,0))) -> 0 | DG37: =IF(AND(DC37="",DD37=""),CY37+IFERROR(DD89/DC89,0),IF(DD37<>"",DD37,DC37*CY37+IFERROR(DD89/DC89,0))) -> 0
F38: Markredskaber | K38: ='Skjul Resultatopstilling'!C31 -> 0 | O38: ='Skjul Resultatopstilling'!D31 -> 0 | S38: ='Skjul Resultatopstilling'!E31 -> 0 | W38: ='Skjul Resultatopstilling'!F31 -> 0 | AA38: ='Skjul Resultatopstilling'!R31*1000 -> 0 | AE38: 0 | AM38: =IF(AND(AI38="",AJ38=""),AE38+IFERROR(AJ90/AI90,0),IF(AJ38<>"",AJ38,AI38*AE38+IFERROR(AJ90/AI90,0))) -> 0 | AU38: =IF(AND(AQ38="",AR38=""),AM38+IFERROR(AR90/AQ90,0),IF(AR38<>"",AR38,AQ38*AM38+IFERROR(AR90/AQ90,0))) -> 0 | BC38: =IF(AND(AY38="",AZ38=""),AU38+IFERROR(AZ90/AY90,0),IF(AZ38<>"",AZ38,AY38*AU38+IFERROR(AZ90/AY90,0))) -> 0 | BK38: =IF(AND(BG38="",BH38=""),BC38+IFERROR(BH90/BG90,0),IF(BH38<>"",BH38,BG38*BC38+IFERROR(BH90/BG90,0))) -> 0 | BS38: =IF(AND(BO38="",BP38=""),BK38+IFERROR(BP90/BO90,0),IF(BP38<>"",BP38,BO38*BK38+IFERROR(BP90/BO90,0))) -> 0 | CA38: =IF(AND(BW38="",BX38=""),BS38+IFERROR(BX90/BW90,0),IF(BX38<>"",BX38,BW38*BS38+IFERROR(BX90/BW90,0))) -> 0 | CI38: =IF(AND(CE38="",CF38=""),CA38+IFERROR(CF90/CE90,0),IF(CF38<>"",CF38,CE38*CA38+IFERROR(CF90/CE90,0))) -> 0 | CQ38: =IF(AND(CM38="",CN38=""),CI38+IFERROR(CN90/CM90,0),IF(CN38<>"",CN38,CM38*CI38+IFERROR(CN90/CM90,0))) -> 0 | CY38: =IF(AND(CU38="",CV38=""),CQ38+IFERROR(CV90/CU90,0),IF(CV38<>"",CV38,CU38*CQ38+IFERROR(CV90/CU90,0))) -> 0 | DG38: =IF(AND(DC38="",DD38=""),CY38+IFERROR(DD90/DC90,0),IF(DD38<>"",DD38,DC38*CY38+IFERROR(DD90/DC90,0))) -> 0
F39: Staldinventar | K39: ='Skjul Resultatopstilling'!C32 -> 0 | O39: ='Skjul Resultatopstilling'!D32 -> 0 | S39: ='Skjul Resultatopstilling'!E32 -> 0 | W39: ='Skjul Resultatopstilling'!F32 -> 0 | AA39: ='Skjul Resultatopstilling'!R32*1000 -> 0 | AE39: 0 | AM39: 0 | AU39: 0 | BC39: 0 | BK39: 0 | BS39: 0 | CA39: 0 | CI39: 0 | CQ39: 0 | CY39: 0 | DG39: 0
F40: Øvrige | K40: ='Skjul Resultatopstilling'!C33 -> 0 | O40: ='Skjul Resultatopstilling'!D33 -> 0 | S40: ='Skjul Resultatopstilling'!E33 -> 0 | W40: ='Skjul Resultatopstilling'!F33 -> 0 | AA40: ='Skjul Resultatopstilling'!R33*1000 -> 0 | AE40: 0 | AM40: 0 | AU40: 0 | BC40: 0 | BK40: 0 | BS40: 0 | CA40: 0 | CI40: 0 | CQ40: 0 | CY40: 0 | DG40: 0
F41: Nedskrivninger | K41: ='Skjul Resultatopstilling'!C34 -> 0 | O41: ='Skjul Resultatopstilling'!D34 -> 0 | S41: ='Skjul Resultatopstilling'!E34 -> 0 | W41: ='Skjul Resultatopstilling'!F34 -> 0 | AA41: ='Skjul Resultatopstilling'!R34*1000 -> 0 | AE41: =IF($AC$2="Budget",AA41,W41) -> 0 | AM41: =IF(AND(AI41="",AJ41=""),AE41,IF(AJ41<>"",AJ41,AI41*AE41)) -> 0 | AU41: =IF(AND(AQ41="",AR41=""),AM41,IF(AR41<>"",AR41,AQ41*AM41)) -> 0 | BC41: =IF(AND(AY41="",AZ41=""),AU41,IF(AZ41<>"",AZ41,AY41*AU41)) -> 0 | BK41: =IF(AND(BG41="",BH41=""),BC41,IF(BH41<>"",BH41,BG41*BC41)) -> 0 | BS41: =IF(AND(BO41="",BP41=""),BK41,IF(BP41<>"",BP41,BO41*BK41)) -> 0 | CA41: =IF(AND(BW41="",BX41=""),BS41,IF(BX41<>"",BX41,BW41*BS41)) -> 0 | CI41: =IF(AND(CE41="",CF41=""),CA41,IF(CF41<>"",CF41,CE41*CA41)) -> 0 | CQ41: =IF(AND(CM41="",CN41=""),CI41,IF(CN41<>"",CN41,CM41*CI41)) -> 0 | CY41: =IF(AND(CU41="",CV41=""),CQ41,IF(CV41<>"",CV41,CU41*CQ41)) -> 0 | DG41: =IF(AND(DC41="",DD41=""),CY41,IF(DD41<>"",DD41,DC41*CY41)) -> 0
F42: Tab/gevinst | K42: ='Skjul Resultatopstilling'!C35 -> 0 | O42: ='Skjul Resultatopstilling'!D35 -> 0 | S42: ='Skjul Resultatopstilling'!E35 -> 0 | W42: ='Skjul Resultatopstilling'!F35 -> 0 | AA42: ='Skjul Resultatopstilling'!R35*1000 -> 0 | AE42: =IF($AC$2="Budget",AA42,W42) -> 0 | AM42: 0 | AU42: 0 | BC42: 0 | BK42: 0 | BS42: 0 | CA42: 0 | CI42: 0 | CQ42: 0 | CY42: 0 | DG42: 0
F43: Kapacitetsomkostninger i alt | K43: ='Skjul Resultatopstilling'!C36 -> 0 | O43: ='Skjul Resultatopstilling'!D36 -> 0 | S43: ='Skjul Resultatopstilling'!E36 -> 0 | W43: ='Skjul Resultatopstilling'!F36 -> 0 | AA43: =SUM(AA37:AA42)+AA34 -> 0 | AE43: =IF($AC$2="Budget",AA43,W43) -> 0 | AM43: =SUM(AM37:AM42)+AM34 -> 0 | AU43: =SUM(AU37:AU42)+AU34 -> 0 | BC43: =SUM(BC37:BC42)+BC34 -> 0 | BK43: =SUM(BK37:BK42)+BK34 -> 0 | BS43: =SUM(BS37:BS42)+BS34 -> 0 | CA43: =SUM(CA37:CA42)+CA34 -> 0 | CI43: =SUM(CI37:CI42)+CI34 -> 0 | CQ43: =SUM(CQ37:CQ42)+CQ34 -> 0 | CY43: =SUM(CY37:CY42)+CY34 -> 0 | DG43: =SUM(DG37:DG42)+DG34 -> 0
F45: Resultat af primær drift | K45: ='Skjul Resultatopstilling'!C38 -> 0 | O45: ='Skjul Resultatopstilling'!D38 -> 0 | S45: ='Skjul Resultatopstilling'!E38 -> 0 | W45: ='Skjul Resultatopstilling'!F38 -> 0 | AA45: =AA25+AA43 -> 0 | AE45: =IF($AC$2="Budget",AA45,W45) -> 0 | AM45: =AM25+AM43 -> 0 | AU45: =AU25+AU43 -> 0 | BC45: =BC25+BC43 -> 0 | BK45: =BK25+BK43 -> 0 | BS45: =BS25+BS43 -> 0 | CA45: =CA25+CA43 -> 0 | CI45: =CI25+CI43 -> 0 | CQ45: =CQ25+CQ43 -> 0 | CY45: =CY25+CY43 -> 0 | DG45: =DG25+DG43 -> 0
F47: Anden indtjening/virksomhed | K47: ='Skjul Resultatopstilling'!C40 -> 0 | O47: ='Skjul Resultatopstilling'!D40 -> 0 | S47: ='Skjul Resultatopstilling'!E40 -> 0 | W47: ='Skjul Resultatopstilling'!F40 -> 0 | AA47: ='Skjul Resultatopstilling'!R40*1000 -> 0 | AE47: =IF($AC$2="Budget",AA47,W47) -> 0 | AM47: =IF(AND(AI47="",AJ47=""),AE47,IF(AJ47<>"",AJ47,AI47*AE47)) -> 0 | AU47: =IF(AND(AQ47="",AR47=""),AM47,IF(AR47<>"",AR47,AQ47*AM47)) -> 0 | BC47: =IF(AND(AY47="",AZ47=""),AU47,IF(AZ47<>"",AZ47,AY47*AU47)) -> 0 | BK47: =IF(AND(BG47="",BH47=""),BC47,IF(BH47<>"",BH47,BG47*BC47)) -> 0 | BS47: =IF(AND(BO47="",BP47=""),BK47,IF(BP47<>"",BP47,BO47*BK47)) -> 0 | CA47: =IF(AND(BW47="",BX47=""),BS47,IF(BX47<>"",BX47,BW47*BS47)) -> 0 | CI47: =IF(AND(CE47="",CF47=""),CA47,IF(CF47<>"",CF47,CE47*CA47)) -> 0 | CQ47: =IF(AND(CM47="",CN47=""),CI47,IF(CN47<>"",CN47,CM47*CI47)) -> 0 | CY47: =IF(AND(CU47="",CV47=""),CQ47,IF(CV47<>"",CV47,CU47*CQ47)) -> 0 | DG47: =IF(AND(DC47="",DD47=""),CY47,IF(DD47<>"",DD47,DC47*CY47)) -> 0
F48: Afkoblet EU-støtte mv. | K48: ='Skjul Resultatopstilling'!C41 -> 0 | O48: ='Skjul Resultatopstilling'!D41 -> 0 | S48: ='Skjul Resultatopstilling'!E41 -> 0 | W48: ='Skjul Resultatopstilling'!F41 -> 0 | AA48: ='Skjul Resultatopstilling'!R41*1000 -> 0 | AE48: =IF($AC$2="Budget",AA48,W48) -> 0 | AM48: 0 | AU48: 0 | BC48: 0 | BK48: 0 | BS48: 0 | CA48: 0 | CI48: 0 | CQ48: 0 | CY48: 0 | DG48: 0
F50: Resultat før finansiering | K50: ='Skjul Resultatopstilling'!C43 -> 0 | O50: ='Skjul Resultatopstilling'!D43 -> 0 | S50: ='Skjul Resultatopstilling'!E43 -> 0 | W50: ='Skjul Resultatopstilling'!F43 -> 0 | AA50: =AA45+AA47+AA48 -> 0 | AE50: =IF($AC$2="Budget",AA50,W50) -> 0 | AM50: =AM45+AM47+AM48 -> 0 | AU50: =AU45+AU47+AU48 -> 0 | BC50: =BC45+BC47+BC48 -> 0 | BK50: =BK45+BK47+BK48 -> 0 | BS50: =BS45+BS47+BS48 -> 0 | CA50: =CA45+CA47+CA48 -> 0 | CI50: =CI45+CI47+CI48 -> 0 | CQ50: =CQ45+CQ47+CQ48 -> 0 | CY50: =CY45+CY47+CY48 -> 0 | DG50: =DG45+DG47+DG48 -> 0
F52: Forpagtningsindtægt | K52: ='Skjul Resultatopstilling'!C45 -> 0 | O52: ='Skjul Resultatopstilling'!D45 -> 0 | S52: ='Skjul Resultatopstilling'!E45 -> 0 | W52: ='Skjul Resultatopstilling'!F45 -> 0 | AA52: ='Skjul Resultatopstilling'!R45*1000 -> 0 | AE52: =IF($AC$2="Budget",AA52,W52) -> 0 | AM52: =IF(AND(AI52="",AJ52=""),AE52,IF(AJ52<>"",AJ52,AI52*AE52)) -> 0 | AU52: =IF(AND(AQ52="",AR52=""),AM52,IF(AR52<>"",AR52,AQ52*AM52)) -> 0 | BC52: =IF(AND(AY52="",AZ52=""),AU52,IF(AZ52<>"",AZ52,AY52*AU52)) -> 0 | BK52: =IF(AND(BG52="",BH52=""),BC52,IF(BH52<>"",BH52,BG52*BC52)) -> 0 | BS52: =IF(AND(BO52="",BP52=""),BK52,IF(BP52<>"",BP52,BO52*BK52)) -> 0 | CA52: =IF(AND(BW52="",BX52=""),BS52,IF(BX52<>"",BX52,BW52*BS52)) -> 0 | CI52: =IF(AND(CE52="",CF52=""),CA52,IF(CF52<>"",CF52,CE52*CA52)) -> 0 | CQ52: =IF(AND(CM52="",CN52=""),CI52,IF(CN52<>"",CN52,CM52*CI52)) -> 0 | CY52: =IF(AND(CU52="",CV52=""),CQ52,IF(CV52<>"",CV52,CU52*CQ52)) -> 0 | DG52: =IF(AND(DC52="",DD52=""),CY52,IF(DD52<>"",DD52,DC52*CY52)) -> 0
F53: Forpagtningsafgift | K53: ='Skjul Resultatopstilling'!C46 -> 0 | O53: ='Skjul Resultatopstilling'!D46 -> 0 | S53: ='Skjul Resultatopstilling'!E46 -> 0 | W53: ='Skjul Resultatopstilling'!F46 -> 0 | AA53: ='Skjul Resultatopstilling'!R46*1000 -> 0 | AE53: 0 | AM53: 0 | AU53: 0 | BC53: 0 | BK53: 0 | BS53: 0 | CA53: 0 | CI53: 0 | CQ53: 0 | CY53: 0 | DG53: 0
F54: Renteindtægter, aktieudbytte og tilskud | K54: ='Skjul Resultatopstilling'!C47 -> 0 | O54: ='Skjul Resultatopstilling'!D47 -> 0 | S54: ='Skjul Resultatopstilling'!E47 -> 0 | W54: ='Skjul Resultatopstilling'!F47 -> 0 | AA54: ='Skjul Resultatopstilling'!R47*1000 -> 0 | AE54: 0 | AM54: =IF(AND(AI54="",AJ54=""),AE54,IF(AJ54<>"",AJ54,AI54*AE54)) -> 0 | AU54: 0 | BC54: 0 | BK54: 0 | BS54: 0 | CA54: 0 | CI54: 0 | CQ54: 0 | CY54: 0 | DG54: 0
F55: Realiseret gevinst/tab finansaktiver | K55: ='Skjul Resultatopstilling'!C48 -> 0 | O55: ='Skjul Resultatopstilling'!D48 -> 0 | S55: ='Skjul Resultatopstilling'!E48 -> 0 | W55: ='Skjul Resultatopstilling'!F48 -> 0 | AA55: ='Skjul Resultatopstilling'!R48*1000 -> 0 | AE55: 0 | AM55: =IF(AND(AI55="",AJ55=""),AE55,IF(AJ55<>"",AJ55,AI55*AE55)) -> 0 | AU55: =IF(AND(AQ55="",AR55=""),AM55,IF(AR55<>"",AR55,AQ55*AM55)) -> 0 | BC55: 0 | BK55: 0 | BS55: 0 | CA55: 0 | CI55: 0 | CQ55: 0 | CY55: 0 | DG55: 0
F56: Rente- og bidragsudgifter | K56: ='Skjul Resultatopstilling'!C49 -> 0 | O56: ='Skjul Resultatopstilling'!D49 -> 0 | S56: ='Skjul Resultatopstilling'!E49 -> 0 | W56: ='Skjul Resultatopstilling'!F49 -> 0 | AA56: ='Skjul Resultatopstilling'!R49*1000 -> 0 | AE56: 0 | AM56: =IF(AM154=0,AE56,AM154) -> 0 | AU56: =IF(AU154=0,AM56,AU154) -> 0 | BC56: =IF(BC154=0,AU56,BC154) -> 0 | BK56: =IF(BK154=0,BC56,BK154) -> 0 | BS56: =IF(BS154=0,BK56,BS154) -> 0 | CA56: =IF(CA154=0,BS56,CA154) -> 0 | CI56: =IF(CI154=0,CA56,CI154) -> 0 | CQ56: =IF(CQ154=0,CI56,CQ154) -> 0 | CY56: =IF(CY154=0,CQ56,CY154) -> 0 | DG56: =IF(DG154=0,CY56,DG154) -> 0
F57: Prioritetsomkostninger | K57: ='Skjul Resultatopstilling'!C50 -> 0 | O57: ='Skjul Resultatopstilling'!D50 -> 0 | S57: ='Skjul Resultatopstilling'!E50 -> 0 | W57: ='Skjul Resultatopstilling'!F50 -> 0 | AA57: ='Skjul Resultatopstilling'!R50*1000 -> 0 | AE57: 0 | AM57: 0 | AU57: 0 | BC57: 0 | BK57: 0 | BS57: 0 | CA57: 0 | CI57: 0 | CQ57: 0 | CY57: 0 | DG57: 0
F58: Realiseret gevinst/tab gæld | K58: ='Skjul Resultatopstilling'!C51 -> 0 | O58: ='Skjul Resultatopstilling'!D51 -> 0 | S58: ='Skjul Resultatopstilling'!E51 -> 0 | W58: ='Skjul Resultatopstilling'!F51 -> 0 | AA58: ='Skjul Resultatopstilling'!R51*1000 -> 0 | AE58: 0 | AM58: 0 | AU58: 0 | BC58: 0 | BK58: 0 | BS58: 0 | CA58: 0 | CI58: 0 | CQ58: 0 | CY58: 0 | DG58: 0
F59: Finansiering i alt | K59: ='Skjul Resultatopstilling'!C52 -> 0 | O59: ='Skjul Resultatopstilling'!D52 -> 0 | S59: ='Skjul Resultatopstilling'!E52 -> 0 | W59: ='Skjul Resultatopstilling'!F52 -> 0 | AA59: =SUM(AA52:AA58) -> 0 | AE59: 0 | AM59: =SUM(AM52:AM58) -> 0 | AU59: =SUM(AU52:AU58) -> 0 | BC59: =SUM(BC52:BC58) -> 0 | BK59: =SUM(BK52:BK58) -> 0 | BS59: =SUM(BS52:BS58) -> 0 | CA59: =SUM(CA52:CA58) -> 0 | CI59: =SUM(CI52:CI58) -> 0 | CQ59: =SUM(CQ52:CQ58) -> 0 | CY59: =SUM(CY52:CY58) -> 0 | DG59: =SUM(DG52:DG58) -> 0
F61: Engangsposter | K61: ='Skjul Resultatopstilling'!C54 -> 0 | O61: ='Skjul Resultatopstilling'!D54 -> 0 | S61: ='Skjul Resultatopstilling'!E54 -> 0 | W61: ='Skjul Resultatopstilling'!F54 -> 0 | AA61: ='Skjul Resultatopstilling'!R54*1000 -> 0 | AE61: =IF($AC$2="Budget",AA61,W61) -> 0 | AM61: =IF(AND(AI61="",AJ61=""),AE61,IF(AJ61<>"",AJ61,AI61*AE61)) -> 0 | AU61: =IF(AND(AQ61="",AR61=""),AM61,IF(AR61<>"",AR61,AQ61*AM61)) -> 0 | BC61: =IF(AND(AY61="",AZ61=""),AU61,IF(AZ61<>"",AZ61,AY61*AU61)) -> 0 | BK61: =IF(AND(BG61="",BH61=""),BC61,IF(BH61<>"",BH61,BG61*BC61)) -> 0 | BS61: =IF(AND(BO61="",BP61=""),BK61,IF(BP61<>"",BP61,BO61*BK61)) -> 0 | CA61: =IF(AND(BW61="",BX61=""),BS61,IF(BX61<>"",BX61,BW61*BS61)) -> 0 | CI61: =IF(AND(CE61="",CF61=""),CA61,IF(CF61<>"",CF61,CE61*CA61)) -> 0 | CQ61: =IF(AND(CM61="",CN61=""),CI61,IF(CN61<>"",CN61,CM61*CI61)) -> 0 | CY61: =IF(AND(CU61="",CV61=""),CQ61,IF(CV61<>"",CV61,CU61*CQ61)) -> 0 | DG61: =IF(AND(DC61="",DD61=""),CY61,IF(DD61<>"",DD61,DC61*CY61)) -> 0
F63: Resultat efter finansiering | K63: ='Skjul Resultatopstilling'!C56 -> 0 | O63: ='Skjul Resultatopstilling'!D56 -> 0 | S63: ='Skjul Resultatopstilling'!E56 -> 0 | W63: ='Skjul Resultatopstilling'!F56 -> 0 | AA63: =AA50+AA59+AA61 -> 0 | AE63: =IF($AC$2="Budget",AA63,W63) -> 0 | AM63: =AM50+AM59+AM61 -> 0 | AU63: =AU50+AU59+AU61 -> 0 | BC63: =BC50+BC59+BC61 -> 0 | BK63: =BK50+BK59+BK61 -> 0 | BS63: =BS50+BS59+BS61 -> 0 | CA63: =CA50+CA59+CA61 -> 0 | CI63: =CI50+CI59+CI61 -> 0 | CQ63: =CQ50+CQ59+CQ61 -> 0 | CY63: =CY50+CY59+CY61 -> 0 | DG63: =DG50+DG59+DG61 -> 0
F65: Private indtægter/omkostninger | K65: ='Skjul Resultatopstilling'!C58 -> 0 | O65: ='Skjul Resultatopstilling'!D58 -> 0 | S65: ='Skjul Resultatopstilling'!E58 -> 0 | W65: ='Skjul Resultatopstilling'!F58 -> 0 | AA65: ='Skjul Resultatopstilling'!R58 -> 0 | AE65: =IF($AC$2="Budget",AA65,W65) -> 0 | AM65: =IF(AND(AI65="",AJ65=""),AE65,IF(AJ65<>"",AJ65,AI65*AE65)) -> 0 | AU65: =IF(AND(AQ65="",AR65=""),AM65,IF(AR65<>"",AR65,AQ65*AM65)) -> 0 | BC65: =IF(AND(AY65="",AZ65=""),AU65,IF(AZ65<>"",AZ65,AY65*AU65)) -> 0 | BK65: =IF(AND(BG65="",BH65=""),BC65,IF(BH65<>"",BH65,BG65*BC65)) -> 0 | BS65: =IF(AND(BO65="",BP65=""),BK65,IF(BP65<>"",BP65,BO65*BK65)) -> 0 | CA65: =IF(AND(BW65="",BX65=""),BS65,IF(BX65<>"",BX65,BW65*BS65)) -> 0 | CI65: =IF(AND(CE65="",CF65=""),CA65,IF(CF65<>"",CF65,CE65*CA65)) -> 0 | CQ65: =IF(AND(CM65="",CN65=""),CI65,IF(CN65<>"",CN65,CM65*CI65)) -> 0 | CY65: =IF(AND(CU65="",CV65=""),CQ65,IF(CV65<>"",CV65,CU65*CQ65)) -> 0 | DG65: =IF(AND(DC65="",DD65=""),CY65,IF(DD65<>"",DD65,DC65*CY65)) -> 0
F67: Resultat før regulering og skat | K67: ='Skjul Resultatopstilling'!C60 -> 0 | O67: ='Skjul Resultatopstilling'!D60 -> 0 | S67: ='Skjul Resultatopstilling'!E60 -> 0 | W67: ='Skjul Resultatopstilling'!F60 -> 0 | AA67: =AA63+AA65 -> 0 | AE67: =IF($AC$2="Budget",AA67,W67) -> 0 | AM67: =AM63+AM65 -> 0 | AU67: =AU63+AU65 -> 0 | BC67: =BC63+BC65 -> 0 | BK67: =BK63+BK65 -> 0 | BS67: =BS63+BS65 -> 0 | CA67: =CA63+CA65 -> 0 | CI67: =CI63+CI65 -> 0 | CQ67: =CQ63+CQ65 -> 0 | CY67: =CY63+CY65 -> 0 | DG67: =DG63+DG65 -> 0
F71: Pengebinding
F73: Årets resultat før skat | K73: ='Skjul Resultatopstilling'!C142 -> 0 | O73: ='Skjul Resultatopstilling'!D142 -> 0 | S73: ='Skjul Resultatopstilling'!E142 -> 0 | W73: ='Skjul Resultatopstilling'!F142 -> 0 | AA73: ='Skjul Resultatopstilling'!R142*1000 -> 0 | AE73: =IF($AC$2="Budget",AA73,W73) -> 0 | AM73: =AM67 -> 0 | AU73: =AU67 -> 0 | BC73: =BC67 -> 0 | BK73: =BK67 -> 0 | BS73: =BS67 -> 0 | CA73: =CA67 -> 0 | CI73: =CI67 -> 0 | CQ73: =CQ67 -> 0 | CY73: =CY67 -> 0 | DG73: =DG67 -> 0
F75: Tilbageførsel i alt | K75: ='Skjul Resultatopstilling'!C152 -> 0 | O75: ='Skjul Resultatopstilling'!D152 -> 0 | S75: ='Skjul Resultatopstilling'!E152 -> 0 | W75: ='Skjul Resultatopstilling'!F152 -> 0 | AA75: ='Skjul Resultatopstilling'!R152*1000 -> 0 | AE75: =IF($AC$2="Budget",AA75,W75) -> 0 | AM75: =IF(AND(AI75="",AJ75=""),-SUM(AM37:AM42),IF(AJ75<>"",AJ75,AI75*-SUM(AM37:AM42))) -> 0 | AU75: =IF(AND(AQ75="",AR75=""),-SUM(AU37:AU42),IF(AR75<>"",AR75,AQ75*-SUM(AU37:AU42))) -> 0 | BC75: =IF(AND(AY75="",AZ75=""),-SUM(BC37:BC42),IF(AZ75<>"",AZ75,AY75*-SUM(BC37:BC42))) -> 0 | BK75: =IF(AND(BG75="",BH75=""),-SUM(BK37:BK42),IF(BH75<>"",BH75,BG75*-SUM(BK37:BK42))) -> 0 | BS75: =IF(AND(BO75="",BP75=""),-SUM(BS37:BS42),IF(BP75<>"",BP75,BO75*-SUM(BS37:BS42))) -> 0 | CA75: =IF(AND(BW75="",BX75=""),-SUM(CA37:CA42),IF(BX75<>"",BX75,BW75*-SUM(CA37:CA42))) -> 0 | CI75: =IF(AND(CE75="",CF75=""),-SUM(CI37:CI42),IF(CF75<>"",CF75,CE75*-SUM(CI37:CI42))) -> 0 | CQ75: =IF(AND(CM75="",CN75=""),-SUM(CQ37:CQ42),IF(CN75<>"",CN75,CM75*-SUM(CQ37:CQ42))) -> 0 | CY75: =IF(AND(CU75="",CV75=""),-SUM(CY37:CY42),IF(CV75<>"",CV75,CU75*-SUM(CY37:CY42))) -> 0 | DG75: =IF(AND(DC75="",DD75=""),-SUM(DG37:DG42),IF(DD75<>"",DD75,DC75*-SUM(DG37:DG42))) -> 0
F77: Betalt skat | K77: ='Skjul Resultatopstilling'!C154 -> 0 | O77: ='Skjul Resultatopstilling'!D154 -> 0 | S77: ='Skjul Resultatopstilling'!E154 -> 0 | W77: ='Skjul Resultatopstilling'!F154 -> 0 | AA77: ='Skjul Resultatopstilling'!R154*1000 -> 0 | AE77: =IF($AC$2="Budget",AA77,W77) -> 0 | AM77: =IF(AND(AI77="",AJ77=""),AE77,IF(AJ77<>"",AJ77,AI77*AE77)) -> 0 | AU77: =IF(AND(AQ77="",AR77=""),AM77,IF(AR77<>"",AR77,AQ77*AM77)) -> 0 | BC77: =IF(AND(AY77="",AZ77=""),AU77,IF(AZ77<>"",AZ77,AY77*AU77)) -> 0 | BK77: =IF(AND(BG77="",BH77=""),BC77,IF(BH77<>"",BH77,BG77*BC77)) -> 0 | BS77: =IF(AND(BO77="",BP77=""),BK77,IF(BP77<>"",BP77,BO77*BK77)) -> 0 | CA77: =IF(AND(BW77="",BX77=""),BS77,IF(BX77<>"",BX77,BW77*BS77)) -> 0 | CI77: =IF(AND(CE77="",CF77=""),CA77,IF(CF77<>"",CF77,CE77*CA77)) -> 0 | CQ77: =IF(AND(CM77="",CN77=""),CI77,IF(CN77<>"",CN77,CM77*CI77)) -> 0 | CY77: =IF(AND(CU77="",CV77=""),CQ77,IF(CV77<>"",CV77,CU77*CQ77)) -> 0 | DG77: =IF(AND(DC77="",DD77=""),CY77,IF(DD77<>"",DD77,DC77*CY77)) -> 0
F78: Privat | K78: ='Skjul Resultatopstilling'!C155 -> 0 | O78: ='Skjul Resultatopstilling'!D155 -> 0 | S78: ='Skjul Resultatopstilling'!E155 -> 0 | W78: ='Skjul Resultatopstilling'!F155 -> 0 | AA78: ='Skjul Resultatopstilling'!R155*1000 -> 0 | AE78: =IF($AC$2="Budget",AA78,W78) -> 0 | AM78: =IF(AND(AI78="",AJ78=""),AE78,IF(AJ78<>"",AJ78,AI78*AE78)) -> 0 | AU78: =IF(AND(AQ78="",AR78=""),AM78,IF(AR78<>"",AR78,AQ78*AM78)) -> 0 | BC78: =IF(AND(AY78="",AZ78=""),AU78,IF(AZ78<>"",AZ78,AY78*AU78)) -> 0 | BK78: =IF(AND(BG78="",BH78=""),BC78,IF(BH78<>"",BH78,BG78*BC78)) -> 0 | BS78: =IF(AND(BO78="",BP78=""),BK78,IF(BP78<>"",BP78,BO78*BK78)) -> 0 | CA78: =IF(AND(BW78="",BX78=""),BS78,IF(BX78<>"",BX78,BW78*BS78)) -> 0 | CI78: =IF(AND(CE78="",CF78=""),CA78,IF(CF78<>"",CF78,CE78*CA78)) -> 0 | CQ78: =IF(AND(CM78="",CN78=""),CI78,IF(CN78<>"",CN78,CM78*CI78)) -> 0 | CY78: =IF(AND(CU78="",CV78=""),CQ78,IF(CV78<>"",CV78,CU78*CQ78)) -> 0 | DG78: =IF(AND(DC78="",DD78=""),CY78,IF(DD78<>"",DD78,DC78*CY78)) -> 0
F79: Afskrivninger privat tlbf. m.m. | K79: ='Skjul Resultatopstilling'!C156+'Skjul Resultatopstilling'!C157 -> 0 | O79: ='Skjul Resultatopstilling'!D156+'Skjul Resultatopstilling'!D157 -> 0 | S79: ='Skjul Resultatopstilling'!E156+'Skjul Resultatopstilling'!E157 -> 0 | W79: ='Skjul Resultatopstilling'!F156+'Skjul Resultatopstilling'!F157 -> 0 | AA79: =('Skjul Resultatopstilling'!R156+'Skjul Resultatopstilling'!R157)*1000 -> 0 | AE79: =IF($AC$2="Budget",AA79,W79) -> 0 | AM79: 0 | AU79: 0 | BC79: 0 | BK79: 0 | BS79: 0 | CA79: 0 | CI79: 0 | CQ79: 0 | CY79: 0 | DG79: 0
F80: Pensionsindbetaling | K80: ='Skjul Resultatopstilling'!C158 -> 0 | O80: ='Skjul Resultatopstilling'!D158 -> 0 | S80: ='Skjul Resultatopstilling'!E158 -> 0 | W80: ='Skjul Resultatopstilling'!F158 -> 0 | AA80: ='Skjul Resultatopstilling'!R158*1000 -> 0 | AE80: =IF($AC$2="Budget",AA80,W80) -> 0 | AM80: 0 | AU80: 0 | BC80: 0 | BK80: 0 | BS80: 0 | CA80: 0 | CI80: 0 | CQ80: 0 | CY80: 0 | DG80: 0
F81: Privat udtræk, skat og pension i alt | K81: ='Skjul Resultatopstilling'!C159 -> 0 | O81: ='Skjul Resultatopstilling'!D159 -> 0 | S81: ='Skjul Resultatopstilling'!E159 -> 0 | W81: ='Skjul Resultatopstilling'!F159 -> 0 | AA81: ='Skjul Resultatopstilling'!R159*1000 -> 0 | AE81: =IF($AC$2="Budget",AA81,W81) -> 0 | AM81: =SUM(AM77:AM80) -> 0 | AU81: =SUM(AU77:AU80) -> 0 | BC81: =SUM(BC77:BC80) -> 0 | BK81: =SUM(BK77:BK80) -> 0 | BS81: =SUM(BS77:BS80) -> 0 | CA81: =SUM(CA77:CA80) -> 0 | CI81: =SUM(CI77:CI80) -> 0 | CQ81: =SUM(CQ77:CQ80) -> 0 | CY81: =SUM(CY77:CY80) -> 0 | DG81: =SUM(DG77:DG80) -> 0
F83: Til investering og afdrag | K83: ='Skjul Resultatopstilling'!C162 -> 0 | O83: ='Skjul Resultatopstilling'!D162 -> 0 | S83: ='Skjul Resultatopstilling'!E162 -> 0 | W83: ='Skjul Resultatopstilling'!F162 -> 0 | AA83: ='Skjul Resultatopstilling'!R162*1000 -> 0 | AE83: =IF($AC$2="Budget",AA83,W83) -> 0 | AM83: =AM81+AM75+AM73 -> 0 | AU83: =AU81+AU75+AU73 -> 0 | BC83: =BC81+BC75+BC73 -> 0 | BK83: =BK81+BK75+BK73 -> 0 | BS83: =BS81+BS75+BS73 -> 0 | CA83: =CA81+CA75+CA73 -> 0 | CI83: =CI81+CI75+CI73 -> 0 | CQ83: =CQ81+CQ75+CQ73 -> 0 | CY83: =CY81+CY75+CY73 -> 0 | DG83: =DG81+DG75+DG73 -> 0
F85: Besætning | K85: ='Skjul Resultatopstilling'!C164 -> 0 | O85: ='Skjul Resultatopstilling'!D164 -> 0 | S85: ='Skjul Resultatopstilling'!E164 -> 0 | W85: ='Skjul Resultatopstilling'!F164 -> 0 | AA85: ='Skjul Resultatopstilling'!R164*1000 -> 0 | AE85: =IF($AC$2="Budget",AA85,W85) -> 0 | AM85: =IF(AJ85="",AE85,AJ85) -> 0 | AU85: =IF(AR85="",AM85,AR85) -> 0 | BC85: =IF(AZ85="",AU85,AZ85) -> 0 | BK85: =IF(BH85="",BC85,BH85) -> 0 | BS85: =IF(BP85="",BK85,BP85) -> 0 | CA85: =IF(BX85="",BS85,BX85) -> 0 | CI85: =IF(CF85="",CA85,CF85) -> 0 | CQ85: =IF(CN85="",CI85,CN85) -> 0 | CY85: =IF(CV85="",CQ85,CV85) -> 0 | DG85: =IF(DD85="",CY85,DD85) -> 0
F86: Beholdning | K86: ='Skjul Resultatopstilling'!C165+'Skjul Resultatopstilling'!C166 -> 0 | O86: ='Skjul Resultatopstilling'!D165+'Skjul Resultatopstilling'!D166 -> 0 | S86: ='Skjul Resultatopstilling'!E165+'Skjul Resultatopstilling'!E166 -> 0 | W86: ='Skjul Resultatopstilling'!F165+'Skjul Resultatopstilling'!F166 -> 0 | AA86: =('Skjul Resultatopstilling'!R165+'Skjul Resultatopstilling'!R166)*1000 -> 0 | AE86: =IF($AC$2="Budget",AA86,W86) -> 0 | AM86: =IF(AJ86="",AE86,AJ86) -> 0 | AU86: =IF(AR86="",AM86,AR86) -> 0 | BC86: =IF(AZ86="",AU86,AZ86) -> 0 | BK86: =IF(BH86="",BC86,BH86) -> 0 | BS86: =IF(BP86="",BK86,BP86) -> 0 | CA86: =IF(BX86="",BS86,BX86) -> 0 | CI86: =IF(CF86="",CA86,CF86) -> 0 | CQ86: =IF(CN86="",CI86,CN86) -> 0 | CY86: =IF(CV86="",CQ86,CV86) -> 0 | DG86: =IF(DD86="",CY86,DD86) -> 0
AI87: Levetid | AJ87: Investering | AQ87: Levetid | AR87: Investering | AY87: Levetid | AZ87: Investering | BG87: Levetid | BH87: Investering | BO87: Levetid | BP87: Investering | BW87: Levetid | BX87: Investering | CE87: Levetid | CF87: Investering | CM87: Levetid | CN87: Investering | CU87: Levetid | CV87: Investering | DC87: Levetid | DD87: Investering
F88: Jord | K88: ='Skjul Resultatopstilling'!C171 -> 0 | O88: ='Skjul Resultatopstilling'!D171 -> 0 | S88: ='Skjul Resultatopstilling'!E171 -> 0 | W88: ='Skjul Resultatopstilling'!F171 -> 0 | AA88: ='Skjul Resultatopstilling'!R171*1000 -> 0 | AE88: =IF($AC$2="Budget",AA88,W88) -> 0 | AH88: Hvis investeringen ikke skal afskrives skal levetid være tom | AM88: =IF(AJ88="",0,AJ88) -> 0 | AP88: Hvis investeringen ikke skal afskrives skal levetid være tom | AU88: =IF(AR88="",0,AR88) -> 0 | AX88: Hvis investeringen ikke skal afskrives skal levetid være tom | BC88: =IF(AZ88="",0,AZ88) -> 0 | BF88: Hvis investeringen ikke skal afskrives skal levetid være tom | BK88: =IF(BH88="",0,BH88) -> 0 | BN88: Hvis investeringen ikke skal afskrives skal levetid være tom | BS88: =IF(BP88="",0,BP88) -> 0 | BV88: Hvis investeringen ikke skal afskrives skal levetid være tom | CA88: =IF(BX88="",0,BX88) -> 0 | CD88: Hvis investeringen ikke skal afskrives skal levetid være tom | CI88: =IF(CF88="",0,CF88) -> 0 | CL88: Hvis investeringen ikke skal afskrives skal levetid være tom | CQ88: =IF(CN88="",0,CN88) -> 0 | CT88: Hvis investeringen ikke skal afskrives skal levetid være tom | CY88: =IF(CV88="",0,CV88) -> 0 | DB88: Hvis investeringen ikke skal afskrives skal levetid være tom | DG88: =IF(DD88="",0,DD88) -> 0
F89: Driftsbygninger | K89: ='Skjul Resultatopstilling'!C174 -> 0 | O89: ='Skjul Resultatopstilling'!D174 -> 0 | S89: ='Skjul Resultatopstilling'!E174 -> 0 | W89: ='Skjul Resultatopstilling'!F174 -> 0 | AA89: ='Skjul Resultatopstilling'!R174*1000 -> 0 | AE89: =IF($AC$2="Budget",AA89,W89) -> 0 | AM89: =IF(AJ89="",0,AJ89) -> 0 | AU89: =IF(AR89="",0,AR89) -> 0 | BC89: =IF(AZ89="",0,AZ89) -> 0 | BK89: =IF(BH89="",0,BH89) -> 0 | BS89: =IF(BP89="",0,BP89) -> 0 | CA89: =IF(BX89="",0,BX89) -> 0 | CI89: =IF(CF89="",0,CF89) -> 0 | CQ89: =IF(CN89="",0,CN89) -> 0 | CY89: =IF(CV89="",0,CV89) -> 0 | DG89: =IF(DD89="",0,DD89) -> 0
F90: Inventar markbrug | K90: ='Skjul Resultatopstilling'!C175 -> 0 | O90: ='Skjul Resultatopstilling'!D175 -> 0 | S90: ='Skjul Resultatopstilling'!E175 -> 0 | W90: ='Skjul Resultatopstilling'!F175 -> 0 | AA90: ='Skjul Resultatopstilling'!R175*1000 -> 0 | AE90: =IF($AC$2="Budget",AA90,W90) -> 0 | AM90: 0 | AU90: 0 | BC90: 0 | BK90: 0 | BS90: 0 | CA90: 0 | CI90: 0 | CQ90: 0 | CY90: 0 | DG90: 0
F91: Inventar husdyrbrug | K91: ='Skjul Resultatopstilling'!C176+'Skjul Resultatopstilling'!C177 -> 0 | O91: ='Skjul Resultatopstilling'!D176+'Skjul Resultatopstilling'!D177 -> 0 | S91: ='Skjul Resultatopstilling'!E176+'Skjul Resultatopstilling'!E177 -> 0 | W91: ='Skjul Resultatopstilling'!F176+'Skjul Resultatopstilling'!F177 -> 0 | AA91: =('Skjul Resultatopstilling'!R176+'Skjul Resultatopstilling'!R177)*1000 -> 0 | AE91: =IF($AC$2="Budget",AA91,W91) -> 0 | AM91: 0 | AU91: 0 | BC91: 0 | BK91: 0 | BS91: 0 | CA91: 0 | CI91: 0 | CQ91: 0 | CY91: 0 | DG91: 0
F92: Privat m.m. | K92: =K93-(K88+K89+K90+K91+K86+K85) -> 0 | O92: =O93-(O88+O89+O90+O91+O86+O85) -> 0 | S92: =S93-(S88+S89+S90+S91+S85+S86) -> 0 | W92: =W93-(W88+W89+W90+W91) -> 0 | AA92: =AA93-(AA88+AA89+AA90+AA91) -> 0 | AE92: =IF($AC$2="Budget",AA92,W92) -> 0 | AM92: 0 | AU92: 0 | BC92: 0 | BK92: 0 | BS92: 0 | CA92: 0 | CI92: 0 | CQ92: 0 | CY92: 0 | DG92: 0
F93: Investeringer i alt | K93: ='Skjul Resultatopstilling'!C181+K86+K85 -> 0 | O93: ='Skjul Resultatopstilling'!D181+O86+O85 -> 0 | S93: ='Skjul Resultatopstilling'!E181+S85+S86 -> 0 | W93: ='Skjul Resultatopstilling'!F181 -> 0 | AA93: ='Skjul Resultatopstilling'!R181*1000 -> 0 | AE93: =SUM(AE85:AE92) -> 0 | AM93: =SUM(AM88:AM92,AM85:AM86) -> 0 | AU93: =SUM(AU88:AU92,AU85:AU86) -> 0 | BC93: =SUM(BC88:BC92,BC85:BC86) -> 0 | BK93: =SUM(BK88:BK92,BK85:BK86) -> 0 | BS93: =SUM(BS88:BS92,BS85:BS86) -> 0 | CA93: =SUM(CA88:CA92,CA85:CA86) -> 0 | CI93: =SUM(CI88:CI92,CI85:CI86) -> 0 | CQ93: =SUM(CQ88:CQ92,CQ85:CQ86) -> 0 | CY93: =SUM(CY88:CY92,CY85:CY86) -> 0 | DG93: =SUM(DG88:DG92,DG85:DG86) -> 0
F95: Likviditet efter investeringer | K95: ='Skjul Resultatopstilling'!C183 -> 0 | O95: ='Skjul Resultatopstilling'!D183 -> 0 | S95: ='Skjul Resultatopstilling'!E183 -> 0 | W95: ='Skjul Resultatopstilling'!F183 -> 0 | AA95: ='Skjul Resultatopstilling'!R183*1000 -> 0 | AE95: =IF($AC$2="Budget",AA95,W95) -> 0 | AM95: =AM93+AM83 -> 0 | AU95: =AU93+AU83 -> 0 | BC95: =BC93+BC83 -> 0 | BK95: =BK93+BK83 -> 0 | BS95: =BS93+BS83 -> 0 | CA95: =CA93+CA83 -> 0 | CI95: =CI93+CI83 -> 0 | CQ95: =CQ93+CQ83 -> 0 | CY95: =CY93+CY83 -> 0 | DG95: =DG93+DG83 -> 0
F97: Finansiering: | AI97: Avendelse | AJ97: Fremskaffelse | AQ97: Avendelse | AR97: Fremskaffelse | AY97: Avendelse | AZ97: Fremskaffelse | BG97: Avendelse | BH97: Fremskaffelse | BO97: Avendelse | BP97: Fremskaffelse | BW97: Avendelse | BX97: Fremskaffelse | CE97: Avendelse | CF97: Fremskaffelse | CM97: Avendelse | CN97: Fremskaffelse | CU97: Avendelse | CV97: Fremskaffelse | DC97: Avendelse | DD97: Fremskaffelse
F98: Tilgodehavende | K98: ='Skjul Resultatopstilling'!C186 -> 0 | O98: ='Skjul Resultatopstilling'!D186 -> 0 | S98: ='Skjul Resultatopstilling'!E186 -> 0 | W98: ='Skjul Resultatopstilling'!F186 -> 0 | AA98: ='Skjul Resultatopstilling'!R186*1000 -> 0 | AE98: =IF($AC$2="Budget",AA98,W98) -> 0 | AH98: Reducering af gæld skrives med minus foran, optagelse af gæld med positivt fortegn. Kassekredit er default op til det samlede beløb | AM98: =IF(AND(AJ98="",AI98=""),0,AJ98+AI98) -> 0 | AP98: Reducering af gæld skrives med minus foran, optagelse af gæld med positivt fortegn. Kassekredit er default op til det samlede beløb | AU98: =IF(AND(AR98="",AQ98=""),0,AR98+AQ98) -> 0 | AX98: Reducering af gæld skrives med minus foran, optagelse af gæld med positivt fortegn. Kassekredit er default op til det samlede beløb | BC98: =IF(AND(AZ98="",AY98=""),0,AZ98+AY98) -> 0 | BF98: Reducering af gæld skrives med minus foran, optagelse af gæld med positivt fortegn. Kassekredit er default op til det samlede beløb | BK98: =IF(AND(BH98="",BG98=""),0,BH98+BG98) -> 0 | BN98: Reducering af gæld skrives med minus foran, optagelse af gæld med positivt fortegn. Kassekredit er default op til det samlede beløb | BS98: =IF(AND(BP98="",BO98=""),0,BP98+BO98) -> 0 | BV98: Reducering af gæld skrives med minus foran, optagelse af gæld med positivt fortegn. Kassekredit er default op til det samlede beløb | CA98: =IF(AND(BX98="",BW98=""),0,BX98+BW98) -> 0 | CD98: Reducering af gæld skrives med minus foran, optagelse af gæld med positivt fortegn. Kassekredit er default op til det samlede beløb | CI98: =IF(AND(CF98="",CE98=""),0,CF98+CE98) -> 0 | CL98: Reducering af gæld skrives med minus foran, optagelse af gæld med positivt fortegn. Kassekredit er default op til det samlede beløb | CQ98: =IF(AND(CN98="",CM98=""),0,CN98+CM98) -> 0 | CT98: Reducering af gæld skrives med minus foran, optagelse af gæld med positivt fortegn. Kassekredit er default op til det samlede beløb | CY98: =IF(AND(CV98="",CU98=""),0,CV98+CU98) -> 0 | DB98: Reducering af gæld skrives med minus foran, optagelse af gæld med positivt fortegn. Kassekredit er default op til det samlede beløb | DG98: =IF(AND(DD98="",DC98=""),0,DD98+DC98) -> 0
F99: Værdipapirer m.m. | K99: ='Skjul Resultatopstilling'!C187 -> 0 | O99: ='Skjul Resultatopstilling'!D187 -> 0 | S99: ='Skjul Resultatopstilling'!E187 -> 0 | W99: ='Skjul Resultatopstilling'!F187 -> 0 | AA99: ='Skjul Resultatopstilling'!R187*1000 -> 0 | AE99: 0 | AM99: =IF(AND(AJ99="",AI99=""),0,AJ99+AI99) -> 0 | AU99: =IF(AND(AR99="",AQ99=""),0,AR99+AQ99) -> 0 | BC99: =IF(AND(AZ99="",AY99=""),0,AZ99+AY99) -> 0 | BK99: =IF(AND(BH99="",BG99=""),0,BH99+BG99) -> 0 | BS99: =IF(AND(BP99="",BO99=""),0,BP99+BO99) -> 0 | CA99: =IF(AND(BX99="",BW99=""),0,BX99+BW99) -> 0 | CI99: =IF(AND(CF99="",CE99=""),0,CF99+CE99) -> 0 | CQ99: =IF(AND(CN99="",CM99=""),0,CN99+CM99) -> 0 | CY99: =IF(AND(CV99="",CU99=""),0,CV99+CU99) -> 0 | DG99: =IF(AND(DD99="",DC99=""),0,DD99+DC99) -> 0
F100: Realkreditinstitutter | K100: ='Skjul Resultatopstilling'!C189 -> 0 | O100: ='Skjul Resultatopstilling'!D189 -> 0 | S100: ='Skjul Resultatopstilling'!E189 -> 0 | W100: ='Skjul Resultatopstilling'!F189 -> 0 | AA100: ='Skjul Resultatopstilling'!R189*1000 -> 0 | AE100: 0 | AM100: 0 | AU100: 0 | BC100: 0 | BK100: 0 | BS100: 0 | CA100: 0 | CI100: 0 | CQ100: 0 | CY100: 0 | DG100: 0
F101: Pengeinstitut | K101: ='Skjul Resultatopstilling'!C190 -> 0 | O101: ='Skjul Resultatopstilling'!D190 -> 0 | S101: ='Skjul Resultatopstilling'!E190 -> 0 | W101: ='Skjul Resultatopstilling'!F190 -> 0 | AA101: ='Skjul Resultatopstilling'!R190*1000 -> 0 | AE101: 0 | AM101: 0 | AU101: 0 | BC101: 0 | BK101: 0 | BS101: 0 | CA101: 0 | CI101: 0 | CQ101: 0 | CY101: 0 | DG101: 0
F102: Leasingforpligtelser | K102: ='Skjul Resultatopstilling'!C192 -> 0 | O102: ='Skjul Resultatopstilling'!D192 -> 0 | S102: ='Skjul Resultatopstilling'!E192 -> 0 | W102: ='Skjul Resultatopstilling'!F192 -> 0 | AA102: ='Skjul Resultatopstilling'!R192*1000 -> 0 | AE102: 0 | AM102: 0 | AU102: 0 | BC102: 0 | BK102: 0 | BS102: 0 | CA102: 0 | CI102: 0 | CQ102: 0 | CY102: 0 | DG102: 0
F103: Anden gæld | K103: ='Skjul Resultatopstilling'!C193 -> 0 | O103: ='Skjul Resultatopstilling'!D193 -> 0 | S103: ='Skjul Resultatopstilling'!E193 -> 0 | W103: ='Skjul Resultatopstilling'!F193 -> 0 | AA103: ='Skjul Resultatopstilling'!R193*1000 -> 0 | AE103: 0 | AM103: 0 | AU103: 0 | BC103: 0 | BK103: 0 | BS103: 0 | CA103: 0 | CI103: 0 | CQ103: 0 | CY103: 0 | DG103: 0
F104: Kassekredit | K104: ='Skjul Resultatopstilling'!C191 -> 0 | O104: ='Skjul Resultatopstilling'!D191 -> 0 | S104: ='Skjul Resultatopstilling'!E191 -> 0 | W104: ='Skjul Resultatopstilling'!F191 -> 0 | AA104: ='Skjul Resultatopstilling'!R191*1000 -> 0 | AE104: 0 | AM104: =AM107-SUM(AM98:AM103,AM105) -> 0 | AU104: =AU107-SUM(AU98:AU103,AU105) -> 0 | BC104: =BC107-SUM(BC98:BC103,BC105) -> 0 | BK104: =BK107-SUM(BK98:BK103,BK105) -> 0 | BS104: =BS107-SUM(BS98:BS103,BS105) -> 0 | CA104: =CA107-SUM(CA98:CA103,CA105) -> 0 | CI104: =CI107-SUM(CI98:CI103,CI105) -> 0 | CQ104: =CQ107-SUM(CQ98:CQ103,CQ105) -> 0 | CY104: =CY107-SUM(CY98:CY103,CY105) -> 0 | DG104: =DG107-SUM(DG98:DG103,DG105) -> 0
F105: Ændring hensættelser | K105: ='Skjul Resultatopstilling'!C194 -> 0 | O105: ='Skjul Resultatopstilling'!D194 -> 0 | S105: ='Skjul Resultatopstilling'!E194 -> 0 | W105: ='Skjul Resultatopstilling'!F194 -> 0 | AA105: ='Skjul Resultatopstilling'!R194*1000 -> 0 | AE105: 0 | AM105: =IF(AND(AJ105="",AI105=""),0,AJ105+AI105) -> 0 | AU105: =IF(AND(AR105="",AQ105=""),0,AR105+AQ105) -> 0 | BC105: =IF(AND(AZ105="",AY105=""),0,AZ105+AY105) -> 0 | BK105: =IF(AND(BH105="",BG105=""),0,BH105+BG105) -> 0 | BS105: =IF(AND(BP105="",BO105=""),0,BP105+BO105) -> 0 | CA105: =IF(AND(BX105="",BW105=""),0,BX105+BW105) -> 0 | CI105: =IF(AND(CF105="",CE105=""),0,CF105+CE105) -> 0 | CQ105: =IF(AND(CN105="",CM105=""),0,CN105+CM105) -> 0 | CY105: =IF(AND(CV105="",CU105=""),0,CV105+CU105) -> 0 | DG105: =IF(AND(DD105="",DC105=""),0,DD105+DC105) -> 0
F107: Likviditetsanvendelse/-fremskaffelse | K107: ='Skjul Resultatopstilling'!C196 -> 0 | O107: ='Skjul Resultatopstilling'!D196 -> 0 | S107: ='Skjul Resultatopstilling'!E196 -> 0 | W107: ='Skjul Resultatopstilling'!F196 -> 0 | AA107: ='Skjul Resultatopstilling'!R196*1000 -> 0 | AE107: =IF($AC$2="Budget",AA107,W107) -> 0 | AM107: =-AM95 -> 0 | AU107: =-AU95 -> 0 | BC107: =-BC95 -> 0 | BK107: =-BK95 -> 0 | BS107: =-BS95 -> 0 | CA107: =-CA95 -> 0 | CI107: =-CI95 -> 0 | CQ107: =-CQ95 -> 0 | CY107: =-CY95 -> 0 | DG107: =-DG95 -> 0
F111: Balance
F113: Jord | K113: ='Skjul Resultatopstilling'!C579 -> 0 | O113: ='Skjul Resultatopstilling'!D579 -> 0 | S113: ='Skjul Resultatopstilling'!E579 -> 0 | W113: ='Skjul Resultatopstilling'!F579 -> 0 | AA113: ='Skjul Resultatopstilling'!R579*1000 -> 0 | AE113: =IF($AC$2="Budget",AA113,W113) -> 0 | AM113: =IF(AND(AI113="",AJ113=""),AE113-AJ88,IF(AJ113<>"",AJ113,AI113*(AE113-AJ88))) -> 0 | AU113: =IF(AND(AQ113="",AR113=""),AM113-AR88,IF(AR113<>"",AR113,AQ113*(AM113-AR88))) -> 0 | BC113: =IF(AND(AY113="",AZ113=""),AU113-AZ88,IF(AZ113<>"",AZ113,AY113*(AU113-AZ88))) -> 0 | BK113: =IF(AND(BG113="",BH113=""),BC113-BH88,IF(BH113<>"",BH113,BG113*(BC113-BH88))) -> 0 | BS113: =IF(AND(BO113="",BP113=""),BK113-BP88,IF(BP113<>"",BP113,BO113*(BK113-BP88))) -> 0 | CA113: =IF(AND(BW113="",BX113=""),BS113-BX88,IF(BX113<>"",BX113,BW113*(BS113-BX88))) -> 0 | CI113: =IF(AND(CE113="",CF113=""),CA113-CF88,IF(CF113<>"",CF113,CE113*(CA113-CF88))) -> 0 | CQ113: =IF(AND(CM113="",CN113=""),CI113-CN88,IF(CN113<>"",CN113,CM113*(CI113-CN88))) -> 0 | CY113: =IF(AND(CU113="",CV113=""),CQ113-CV88,IF(CV113<>"",CV113,CU113*(CQ113-CV88))) -> 0 | DG113: =IF(AND(DC113="",DD113=""),CY113-DD88,IF(DD113<>"",DD113,DC113*(CY113-DD88))) -> 0
F114: Driftsbygninger og installationer | K114: ='Skjul Resultatopstilling'!C580 -> 0 | O114: ='Skjul Resultatopstilling'!D580 -> 0 | S114: ='Skjul Resultatopstilling'!E580 -> 0 | W114: ='Skjul Resultatopstilling'!F580 -> 0 | AA114: ='Skjul Resultatopstilling'!R580*1000 -> 0 | AE114: =IF($AC$2="Budget",AA114,W114) -> 0 | AM114: =IF(AND(AI114="",AJ114=""),AE114-AJ89,IF(AJ114<>"",AJ114,AI114*AE114)) -> 0 | AU114: =IF(AND(AQ114="",AR114=""),AM114-AR89,IF(AR114<>"",AR114,AQ114*AM114)) -> 0 | BC114: =IF(AND(AY114="",AZ114=""),AU114-AZ89,IF(AZ114<>"",AZ114,AY114*AU114)) -> 0 | BK114: =IF(AND(BG114="",BH114=""),BC114-BH89,IF(BH114<>"",BH114,BG114*BC114)) -> 0 | BS114: =IF(AND(BO114="",BP114=""),BK114-BP89,IF(BP114<>"",BP114,BO114*BK114)) -> 0 | CA114: =IF(AND(BW114="",BX114=""),BS114-BX89,IF(BX114<>"",BX114,BW114*BS114)) -> 0 | CI114: =IF(AND(CE114="",CF114=""),CA114-CF89,IF(CF114<>"",CF114,CE114*CA114)) -> 0 | CQ114: =IF(AND(CM114="",CN114=""),CI114-CN89,IF(CN114<>"",CN114,CM114*CI114)) -> 0 | CY114: =IF(AND(CU114="",CV114=""),CQ114-CV89,IF(CV114<>"",CV114,CU114*CQ114)) -> 0 | DG114: =IF(AND(DC114="",DD114=""),CY114-DD89,IF(DD114<>"",DD114,DC114*CY114)) -> 0
F115: Beboelse landbrug | K115: ='Skjul Resultatopstilling'!C578 -> 0 | O115: ='Skjul Resultatopstilling'!D578 -> 0 | S115: ='Skjul Resultatopstilling'!E578 -> 0 | W115: ='Skjul Resultatopstilling'!F578 -> 0 | AA115: ='Skjul Resultatopstilling'!R578*1000 -> 0 | AE115: =IF($AC$2="Budget",AA115,W115) -> 0 | AM115: =IF(AND(AI115="",AJ115=""),AE115,IF(AJ115<>"",AJ115,AI115*AE115)) -> 0 | AU115: =IF(AND(AQ115="",AR115=""),AM115,IF(AR115<>"",AR115,AQ115*AM115)) -> 0 | BC115: =IF(AND(AY115="",AZ115=""),AU115,IF(AZ115<>"",AZ115,AY115*AU115)) -> 0 | BK115: =IF(AND(BG115="",BH115=""),BC115,IF(BH115<>"",BH115,BG115*BC115)) -> 0 | BS115: =IF(AND(BO115="",BP115=""),BK115,IF(BP115<>"",BP115,BO115*BK115)) -> 0 | CA115: =IF(AND(BW115="",BX115=""),BS115,IF(BX115<>"",BX115,BW115*BS115)) -> 0 | CI115: =IF(AND(CE115="",CF115=""),CA115,IF(CF115<>"",CF115,CE115*CA115)) -> 0 | CQ115: =IF(AND(CM115="",CN115=""),CI115,IF(CN115<>"",CN115,CM115*CI115)) -> 0 | CY115: =IF(AND(CU115="",CV115=""),CQ115,IF(CV115<>"",CV115,CU115*CQ115)) -> 0 | DG115: =IF(AND(DC115="",DD115=""),CY115,IF(DD115<>"",DD115,DC115*CY115)) -> 0
F116: Grundforbedring m.m. | K116: ='Skjul Resultatopstilling'!C581 -> 0 | O116: ='Skjul Resultatopstilling'!D581 -> 0 | S116: ='Skjul Resultatopstilling'!E581 -> 0 | W116: ='Skjul Resultatopstilling'!F581 -> 0 | AA116: ='Skjul Resultatopstilling'!R581*1000 -> 0 | AE116: =IF($AC$2="Budget",AA116,W116) -> 0 | AM116: =IF(AND(AI116="",AJ116=""),AE116,IF(AJ116<>"",AJ116,AI116*AE116)) -> 0 | AU116: =IF(AND(AQ116="",AR116=""),AM116,IF(AR116<>"",AR116,AQ116*AM116)) -> 0 | BC116: =IF(AND(AY116="",AZ116=""),AU116,IF(AZ116<>"",AZ116,AY116*AU116)) -> 0 | BK116: =IF(AND(BG116="",BH116=""),BC116,IF(BH116<>"",BH116,BG116*BC116)) -> 0 | BS116: =IF(AND(BO116="",BP116=""),BK116,IF(BP116<>"",BP116,BO116*BK116)) -> 0 | CA116: =IF(AND(BW116="",BX116=""),BS116,IF(BX116<>"",BX116,BW116*BS116)) -> 0 | CI116: =IF(AND(CE116="",CF116=""),CA116,IF(CF116<>"",CF116,CE116*CA116)) -> 0 | CQ116: =IF(AND(CM116="",CN116=""),CI116,IF(CN116<>"",CN116,CM116*CI116)) -> 0 | CY116: =IF(AND(CU116="",CV116=""),CQ116,IF(CV116<>"",CV116,CU116*CQ116)) -> 0 | DG116: =IF(AND(DC116="",DD116=""),CY116,IF(DD116<>"",DD116,DC116*CY116)) -> 0
F117: Fast ejendom i alt | K117: ='Skjul Resultatopstilling'!C78 -> 0 | O117: ='Skjul Resultatopstilling'!D78 -> 0 | S117: ='Skjul Resultatopstilling'!E78 -> 0 | W117: ='Skjul Resultatopstilling'!F78 -> 0 | AA117: ='Skjul Resultatopstilling'!R78*1000 -> 0 | AE117: =IF($AC$2="Budget",AA117,W117) -> 0 | AM117: =SUM(AM113:AM116) -> 0 | AU117: =SUM(AU113:AU116) -> 0 | BC117: =SUM(BC113:BC116) -> 0 | BK117: =SUM(BK113:BK116) -> 0 | BS117: =SUM(BS113:BS116) -> 0 | CA117: =SUM(CA113:CA116) -> 0 | CI117: =SUM(CI113:CI116) -> 0 | CQ117: =SUM(CQ113:CQ116) -> 0 | CY117: =SUM(CY113:CY116) -> 0 | DG117: =SUM(DG113:DG116) -> 0
F119: Inventar markbrug | K119: ='Skjul Resultatopstilling'!C583 -> 0 | O119: ='Skjul Resultatopstilling'!D583 -> 0 | S119: ='Skjul Resultatopstilling'!E583 -> 0 | W119: ='Skjul Resultatopstilling'!F583 -> 0 | AA119: ='Skjul Resultatopstilling'!R583*1000 -> 0 | AE119: =IF($AC$2="Budget",AA119,W119) -> 0 | AM119: =IF(AND(AI119="",AJ119=""),AE119-AJ90,IF(AJ119<>"",AJ119,AI119*AE119)) -> 0 | AU119: =IF(AND(AQ119="",AR119=""),AM119-AR90,IF(AR119<>"",AR119,AQ119*AM119)) -> 0 | BC119: =IF(AND(AY119="",AZ119=""),AU119-AZ90,IF(AZ119<>"",AZ119,AY119*AU119)) -> 0 | BK119: =IF(AND(BG119="",BH119=""),BC119-BH90,IF(BH119<>"",BH119,BG119*BC119)) -> 0 | BS119: =IF(AND(BO119="",BP119=""),BK119-BP90,IF(BP119<>"",BP119,BO119*BK119)) -> 0 | CA119: =IF(AND(BW119="",BX119=""),BS119-BX90,IF(BX119<>"",BX119,BW119*BS119)) -> 0 | CI119: =IF(AND(CE119="",CF119=""),CA119-CF90,IF(CF119<>"",CF119,CE119*CA119)) -> 0 | CQ119: =IF(AND(CM119="",CN119=""),CI119-CN90,IF(CN119<>"",CN119,CM119*CI119)) -> 0 | CY119: =IF(AND(CU119="",CV119=""),CQ119-CV90,IF(CV119<>"",CV119,CU119*CQ119)) -> 0 | DG119: =IF(AND(DC119="",DD119=""),CY119-DD90,IF(DD119<>"",DD119,DC119*CY119)) -> 0
F120: Inventar husdyrbrug m.m. | K120: ='Skjul Resultatopstilling'!C584+'Skjul Resultatopstilling'!C585 -> 0 | O120: ='Skjul Resultatopstilling'!D584+'Skjul Resultatopstilling'!D585 -> 0 | S120: ='Skjul Resultatopstilling'!E584+'Skjul Resultatopstilling'!E585 -> 0 | W120: ='Skjul Resultatopstilling'!F584+'Skjul Resultatopstilling'!F585 -> 0 | AA120: =('Skjul Resultatopstilling'!R584+'Skjul Resultatopstilling'!R585)*1000 -> 0 | AE120: =IF($AC$2="Budget",AA120,W120) -> 0 | AM120: =IF(AND(AI120="",AJ120=""),AE120-AJ91,IF(AJ120<>"",AJ120,AI120*AE120)) -> 0 | AU120: =IF(AND(AQ120="",AR120=""),AM120-AR91,IF(AR120<>"",AR120,AQ120*AM120)) -> 0 | BC120: =IF(AND(AY120="",AZ120=""),AU120-AZ91,IF(AZ120<>"",AZ120,AY120*AU120)) -> 0 | BK120: =IF(AND(BG120="",BH120=""),BC120-BH91,IF(BH120<>"",BH120,BG120*BC120)) -> 0 | BS120: =IF(AND(BO120="",BP120=""),BK120-BP91,IF(BP120<>"",BP120,BO120*BK120)) -> 0 | CA120: =IF(AND(BW120="",BX120=""),BS120-BX91,IF(BX120<>"",BX120,BW120*BS120)) -> 0 | CI120: =IF(AND(CE120="",CF120=""),CA120-CF91,IF(CF120<>"",CF120,CE120*CA120)) -> 0 | CQ120: =IF(AND(CM120="",CN120=""),CI120-CN91,IF(CN120<>"",CN120,CM120*CI120)) -> 0 | CY120: =IF(AND(CU120="",CV120=""),CQ120-CV91,IF(CV120<>"",CV120,CU120*CQ120)) -> 0 | DG120: =IF(AND(DC120="",DD120=""),CY120-DD91,IF(DD120<>"",DD120,DC120*CY120)) -> 0
F121: Besætning | K121: ='Skjul Resultatopstilling'!C83 -> 0 | O121: ='Skjul Resultatopstilling'!D83 -> 0 | S121: ='Skjul Resultatopstilling'!E83 -> 0 | W121: ='Skjul Resultatopstilling'!F83 -> 0 | AA121: ='Skjul Resultatopstilling'!R83*1000 -> 0 | AE121: =IF($AC$2="Budget",AA121,W121) -> 0 | AM121: =IF(AND(AI121="",AJ121=""),AE121-AM85,IF(AJ121<>"",AJ121,AI121*AE121)) -> 0 | AU121: =IF(AND(AQ121="",AR121=""),AM121-AU85,IF(AR121<>"",AR121,AQ121*AM121)) -> 0 | BC121: =IF(AND(AY121="",AZ121=""),AU121-BC85,IF(AZ121<>"",AZ121,AY121*AU121)) -> 0 | BK121: =IF(AND(BG121="",BH121=""),BC121-BK85,IF(BH121<>"",BH121,BG121*BC121)) -> 0 | BS121: =IF(AND(BO121="",BP121=""),BK121-BS85,IF(BP121<>"",BP121,BO121*BK121)) -> 0 | CA121: =IF(AND(BW121="",BX121=""),BS121-CA85,IF(BX121<>"",BX121,BW121*BS121)) -> 0 | CI121: =IF(AND(CE121="",CF121=""),CA121-CI85,IF(CF121<>"",CF121,CE121*CA121)) -> 0 | CQ121: =IF(AND(CM121="",CN121=""),CI121-CQ85,IF(CN121<>"",CN121,CM121*CI121)) -> 0 | CY121: =IF(AND(CU121="",CV121=""),CQ121-CY85,IF(CV121<>"",CV121,CU121*CQ121)) -> 0 | DG121: =IF(AND(DC121="",DD121=""),CY121-DG85,IF(DD121<>"",DD121,DC121*CY121)) -> 0
F122: Beholdninger | K122: ='Skjul Resultatopstilling'!C84 -> 0 | O122: ='Skjul Resultatopstilling'!D84 -> 0 | S122: ='Skjul Resultatopstilling'!E84 -> 0 | W122: ='Skjul Resultatopstilling'!F84 -> 0 | AA122: ='Skjul Resultatopstilling'!R84*1000 -> 0 | AE122: =IF($AC$2="Budget",AA122,W122) -> 0 | AM122: =IF(AND(AI122="",AJ122=""),AE122-AM86,IF(AJ122<>"",AJ122,AI122*AE122)) -> 0 | AU122: =IF(AND(AQ122="",AR122=""),AM122-AU86,IF(AR122<>"",AR122,AQ122*AM122)) -> 0 | BC122: =IF(AND(AY122="",AZ122=""),AU122-BC86,IF(AZ122<>"",AZ122,AY122*AU122)) -> 0 | BK122: =IF(AND(BG122="",BH122=""),BC122-BK86,IF(BH122<>"",BH122,BG122*BC122)) -> 0 | BS122: =IF(AND(BO122="",BP122=""),BK122-BS86,IF(BP122<>"",BP122,BO122*BK122)) -> 0 | CA122: =IF(AND(BW122="",BX122=""),BS122-CA86,IF(BX122<>"",BX122,BW122*BS122)) -> 0 | CI122: =IF(AND(CE122="",CF122=""),CA122-CI86,IF(CF122<>"",CF122,CE122*CA122)) -> 0 | CQ122: =IF(AND(CM122="",CN122=""),CI122-CQ86,IF(CN122<>"",CN122,CM122*CI122)) -> 0 | CY122: =IF(AND(CU122="",CV122=""),CQ122-CY86,IF(CV122<>"",CV122,CU122*CQ122)) -> 0 | DG122: =IF(AND(DC122="",DD122=""),CY122-DG86,IF(DD122<>"",DD122,DC122*CY122)) -> 0
F123: Landbrugsaktiver i alt | K123: ='Skjul Resultatopstilling'!C85 -> 0 | O123: ='Skjul Resultatopstilling'!D85 -> 0 | S123: ='Skjul Resultatopstilling'!E85 -> 0 | W123: ='Skjul Resultatopstilling'!F85 -> 0 | AA123: ='Skjul Resultatopstilling'!R85*1000 -> 0 | AE123: =IF($AC$2="Budget",AA123,W123) -> 0 | AM123: =SUM(AM117:AM122) -> 0 | AU123: =SUM(AU117:AU122) -> 0 | BC123: =SUM(BC117:BC122) -> 0 | BK123: =SUM(BK117:BK122) -> 0 | BS123: =SUM(BS117:BS122) -> 0 | CA123: =SUM(CA117:CA122) -> 0 | CI123: =SUM(CI117:CI122) -> 0 | CQ123: =SUM(CQ117:CQ122) -> 0 | CY123: =SUM(CY117:CY122) -> 0 | DG123: =SUM(DG117:DG122) -> 0
F125: Private aktiver og aktiver udenfor landbruget | K125: ='Skjul Resultatopstilling'!C87+'Skjul Resultatopstilling'!C88 -> 0 | O125: ='Skjul Resultatopstilling'!D87+'Skjul Resultatopstilling'!D88 -> 0 | S125: ='Skjul Resultatopstilling'!E87+'Skjul Resultatopstilling'!E88 -> 0 | W125: ='Skjul Resultatopstilling'!F87+'Skjul Resultatopstilling'!F88 -> 0 | AA125: =('Skjul Resultatopstilling'!R87+'Skjul Resultatopstilling'!R88)*1000 -> 0 | AE125: =IF($AC$2="Budget",AA125,W125) -> 0 | AM125: =IF(AND(AI125="",AJ125=""),AE125-AJ92,IF(AJ125<>"",AJ125,AI125*AE125)) -> 0 | AU125: =IF(AND(AQ125="",AR125=""),AM125-AR92,IF(AR125<>"",AR125,AQ125*AM125)) -> 0 | BC125: =IF(AND(AY125="",AZ125=""),AU125-AZ92,IF(AZ125<>"",AZ125,AY125*AU125)) -> 0 | BK125: =IF(AND(BG125="",BH125=""),BC125-BH92,IF(BH125<>"",BH125,BG125*BC125)) -> 0 | BS125: =IF(AND(BO125="",BP125=""),BK125-BP92,IF(BP125<>"",BP125,BO125*BK125)) -> 0 | CA125: =IF(AND(BW125="",BX125=""),BS125-BX92,IF(BX125<>"",BX125,BW125*BS125)) -> 0 | CI125: =IF(AND(CE125="",CF125=""),CA125-CF92,IF(CF125<>"",CF125,CE125*CA125)) -> 0 | CQ125: =IF(AND(CM125="",CN125=""),CI125-CN92,IF(CN125<>"",CN125,CM125*CI125)) -> 0 | CY125: =IF(AND(CU125="",CV125=""),CQ125-CV92,IF(CV125<>"",CV125,CU125*CQ125)) -> 0 | DG125: =IF(AND(DC125="",DD125=""),CY125-DD92,IF(DD125<>"",DD125,DC125*CY125)) -> 0
F127: Tilgodehavender | K127: ='Skjul Resultatopstilling'!C90 -> 0 | O127: ='Skjul Resultatopstilling'!D90 -> 0 | S127: ='Skjul Resultatopstilling'!E90 -> 0 | W127: ='Skjul Resultatopstilling'!F90 -> 0 | AA127: ='Skjul Resultatopstilling'!R90*1000 -> 0 | AE127: =IF($AC$2="Budget",AA127,W127) -> 0 | AM127: =IF(AND(AI127="",AJ127=""),AE127-AM98,IF(AJ127<>"",AJ127,AI127*AE127)) -> 0 | AU127: =IF(AND(AQ127="",AR127=""),AM127-AU98,IF(AR127<>"",AR127,AQ127*AM127)) -> 0 | BC127: =IF(AND(AY127="",AZ127=""),AU127-BC98,IF(AZ127<>"",AZ127,AY127*AU127)) -> 0 | BK127: =IF(AND(BG127="",BH127=""),BC127-BK98,IF(BH127<>"",BH127,BG127*BC127)) -> 0 | BS127: =IF(AND(BO127="",BP127=""),BK127-BS98,IF(BP127<>"",BP127,BO127*BK127)) -> 0 | CA127: =IF(AND(BW127="",BX127=""),BS127-CA98,IF(BX127<>"",BX127,BW127*BS127)) -> 0 | CI127: =IF(AND(CE127="",CF127=""),CA127-CI98,IF(CF127<>"",CF127,CE127*CA127)) -> 0 | CQ127: =IF(AND(CM127="",CN127=""),CI127-CQ98,IF(CN127<>"",CN127,CM127*CI127)) -> 0 | CY127: =IF(AND(CU127="",CV127=""),CQ127-CY98,IF(CV127<>"",CV127,CU127*CQ127)) -> 0 | DG127: =IF(AND(DC127="",DD127=""),CY127-DG98,IF(DD127<>"",DD127,DC127*CY127)) -> 0
F128: Andel og Mellemregning I/S | K128: ='Skjul Resultatopstilling'!C91 -> 0 | O128: ='Skjul Resultatopstilling'!D91 -> 0 | S128: ='Skjul Resultatopstilling'!E91 -> 0 | W128: ='Skjul Resultatopstilling'!F91 -> 0 | AA128: ='Skjul Resultatopstilling'!R91*1000 -> 0 | AE128: =IF($AC$2="Budget",AA128,W128) -> 0 | AM128: =IF(AND(AI128="",AJ128=""),AE128,IF(AJ128<>"",AJ128,AI128*AE128)) -> 0 | AU128: =IF(AND(AQ128="",AR128=""),AM128,IF(AR128<>"",AR128,AQ128*AM128)) -> 0 | BC128: =IF(AND(AY128="",AZ128=""),AU128,IF(AZ128<>"",AZ128,AY128*AU128)) -> 0 | BK128: =IF(AND(BG128="",BH128=""),BC128,IF(BH128<>"",BH128,BG128*BC128)) -> 0 | BS128: =IF(AND(BO128="",BP128=""),BK128,IF(BP128<>"",BP128,BO128*BK128)) -> 0 | CA128: =IF(AND(BW128="",BX128=""),BS128,IF(BX128<>"",BX128,BW128*BS128)) -> 0 | CI128: =IF(AND(CE128="",CF128=""),CA128,IF(CF128<>"",CF128,CE128*CA128)) -> 0 | CQ128: =IF(AND(CM128="",CN128=""),CI128,IF(CN128<>"",CN128,CM128*CI128)) -> 0 | CY128: =IF(AND(CU128="",CV128=""),CQ128,IF(CV128<>"",CV128,CU128*CQ128)) -> 0 | DG128: =IF(AND(DC128="",DD128=""),CY128,IF(DD128<>"",DD128,DC128*CY128)) -> 0
F129: Værdipapirer | K129: ='Skjul Resultatopstilling'!C92 -> 0 | O129: ='Skjul Resultatopstilling'!D92 -> 0 | S129: ='Skjul Resultatopstilling'!E92 -> 0 | W129: ='Skjul Resultatopstilling'!F92 -> 0 | AA129: ='Skjul Resultatopstilling'!R92*1000 -> 0 | AE129: =IF($AC$2="Budget",AA129,W129) -> 0 | AM129: =IF(AND(AI129="",AJ129=""),AE129-AM99,IF(AJ129<>"",AJ129,AI129*AE129)) -> 0 | AU129: =IF(AND(AQ129="",AR129=""),AM129-AU99,IF(AR129<>"",AR129,AQ129*AM129)) -> 0 | BC129: =IF(AND(AY129="",AZ129=""),AU129-BC99,IF(AZ129<>"",AZ129,AY129*AU129)) -> 0 | BK129: =IF(AND(BG129="",BH129=""),BC129-BK99,IF(BH129<>"",BH129,BG129*BC129)) -> 0 | BS129: =IF(AND(BO129="",BP129=""),BK129-BS99,IF(BP129<>"",BP129,BO129*BK129)) -> 0 | CA129: =IF(AND(BW129="",BX129=""),BS129-CA99,IF(BX129<>"",BX129,BW129*BS129)) -> 0 | CI129: =IF(AND(CE129="",CF129=""),CA129-CI99,IF(CF129<>"",CF129,CE129*CA129)) -> 0 | CQ129: =IF(AND(CM129="",CN129=""),CI129-CQ99,IF(CN129<>"",CN129,CM129*CI129)) -> 0 | CY129: =IF(AND(CU129="",CV129=""),CQ129-CY99,IF(CV129<>"",CV129,CU129*CQ129)) -> 0 | DG129: =IF(AND(DC129="",DD129=""),CY129-DG99,IF(DD129<>"",DD129,DC129*CY129)) -> 0
F130: Likvidide beholdninger | K130: ='Skjul Resultatopstilling'!C93 -> 0 | O130: ='Skjul Resultatopstilling'!D93 -> 0 | S130: ='Skjul Resultatopstilling'!E93 -> 0 | W130: ='Skjul Resultatopstilling'!F93 -> 0 | AA130: ='Skjul Resultatopstilling'!R93*1000 -> 0 | AE130: =IF($AC$2="Budget",AA130,W130) -> 0 | AM130: 0 | AU130: 0 | BC130: 0 | BK130: 0 | BS130: 0 | CA130: 0 | CI130: 0 | CQ130: 0 | CY130: 0 | DG130: 0
F132: Hensættelser | K132: ='Skjul Resultatopstilling'!C96 -> 0 | O132: ='Skjul Resultatopstilling'!D96 -> 0 | S132: ='Skjul Resultatopstilling'!E96 -> 0 | W132: ='Skjul Resultatopstilling'!F96 -> 0 | AA132: ='Skjul Resultatopstilling'!R96*1000 -> 0 | AE132: =IF($AC$2="Budget",AA132,W132) -> 0 | AM132: =IF(AND(AI132="",AJ132=""),AE132,IF(AJ132<>"",AJ132,AI132*AE132)) -> 0 | AU132: =IF(AND(AQ132="",AR132=""),AM132,IF(AR132<>"",AR132,AQ132*AM132)) -> 0 | BC132: =IF(AND(AY132="",AZ132=""),AU132,IF(AZ132<>"",AZ132,AY132*AU132)) -> 0 | BK132: =IF(AND(BG132="",BH132=""),BC132,IF(BH132<>"",BH132,BG132*BC132)) -> 0 | BS132: =IF(AND(BO132="",BP132=""),BK132,IF(BP132<>"",BP132,BO132*BK132)) -> 0 | CA132: =IF(AND(BW132="",BX132=""),BS132,IF(BX132<>"",BX132,BW132*BS132)) -> 0 | CI132: =IF(AND(CE132="",CF132=""),CA132,IF(CF132<>"",CF132,CE132*CA132)) -> 0 | CQ132: =IF(AND(CM132="",CN132=""),CI132,IF(CN132<>"",CN132,CM132*CI132)) -> 0 | CY132: =IF(AND(CU132="",CV132=""),CQ132,IF(CV132<>"",CV132,CU132*CQ132)) -> 0 | DG132: =IF(AND(DC132="",DD132=""),CY132,IF(DD132<>"",DD132,DC132*CY132)) -> 0
F134: Aktiver i alt | K134: ='Skjul Resultatopstilling'!C98 -> 0 | O134: ='Skjul Resultatopstilling'!D98 -> 0 | S134: ='Skjul Resultatopstilling'!E98 -> 0 | W134: ='Skjul Resultatopstilling'!F98 -> 0 | AA134: ='Skjul Resultatopstilling'!R98*1000 -> 0 | AE134: =IF($AC$2="Budget",AA134,W134) -> 0 | AM134: =SUM(AM123:AM132) -> 0 | AU134: =SUM(AU123:AU132) -> 0 | BC134: =SUM(BC123:BC132) -> 0 | BK134: =SUM(BK123:BK132) -> 0 | BS134: =SUM(BS123:BS132) -> 0 | CA134: =SUM(CA123:CA132) -> 0 | CI134: =SUM(CI123:CI132) -> 0 | CQ134: =SUM(CQ123:CQ132) -> 0 | CY134: =SUM(CY123:CY132) -> 0 | DG134: =SUM(DG123:DG132) -> 0
F136: Realkreditinstitutter | K136: ='Skjul Resultatopstilling'!C101 -> 0 | O136: ='Skjul Resultatopstilling'!D101 -> 0 | S136: ='Skjul Resultatopstilling'!E101 -> 0 | W136: ='Skjul Resultatopstilling'!F101 -> 0 | AA136: ='Skjul Resultatopstilling'!R101*1000 -> 0 | AE136: =IF($AC$2="Budget",AA136,W136) -> 0 | AM136: =IF(AJ136="",AE136-AM100,AJ136) -> 0 | AU136: =IF(AR136="",AM136-AU100,AR136) -> 0 | BC136: =IF(AZ136="",AU136-BC100,AZ136) -> 0 | BK136: =IF(BH136="",BC136-BK100,BH136) -> 0 | BS136: =IF(BP136="",BK136-BS100,BP136) -> 0 | CA136: =IF(BX136="",BS136-CA100,BX136) -> 0 | CI136: =IF(CF136="",CA136-CI100,CF136) -> 0 | CQ136: =IF(CN136="",CI136-CQ100,CN136) -> 0 | CY136: =IF(CV136="",CQ136-CY100,CV136) -> 0 | DG136: =IF(DD136="",CY136-DG100,DD136) -> 0
F137: Pengeinstitutter | K137: ='Skjul Resultatopstilling'!C102 -> 0 | O137: ='Skjul Resultatopstilling'!D102 -> 0 | S137: ='Skjul Resultatopstilling'!E102 -> 0 | W137: ='Skjul Resultatopstilling'!F102 -> 0 | AA137: ='Skjul Resultatopstilling'!R102*1000 -> 0 | AE137: 0 | AM137: =IF(AJ137="",AE137-AM101,AJ137) -> 0 | AU137: =IF(AR137="",AM137-AU101,AR137) -> 0 | BC137: =IF(AZ137="",AU137-BC101,AZ137) -> 0 | BK137: =IF(BH137="",BC137-BK101,BH137) -> 0 | BS137: =IF(BP137="",BK137-BS101,BP137) -> 0 | CA137: =IF(BX137="",BS137-CA101,BX137) -> 0 | CI137: =IF(CF137="",CA137-CI101,CF137) -> 0 | CQ137: =IF(CN137="",CI137-CQ101,CN137) -> 0 | CY137: =IF(CV137="",CQ137-CY101,CV137) -> 0 | DG137: =IF(DD137="",CY137-DG101,DD137) -> 0
F138: Leasingforpligtelser | K138: ='Skjul Resultatopstilling'!C614 -> 0 | O138: ='Skjul Resultatopstilling'!D614 -> 0 | S138: ='Skjul Resultatopstilling'!E614 -> 0 | W138: ='Skjul Resultatopstilling'!F614 -> 0 | AA138: ='Skjul Resultatopstilling'!R614*1000 -> 0 | AE138: 0 | AM138: 0 | AU138: 0 | BC138: 0 | BK138: 0 | BS138: 0 | CA138: 0 | CI138: 0 | CQ138: 0 | CY138: 0 | DG138: 0
F139: Anden gæld | K139: =K141-(K136+K137+K138+K140) -> 0 | O139: =O141-(O136+O137+O138+O140) -> 0 | S139: =S141-(S136+S137+S138+S140) -> 0 | W139: =W141-(W136+W137+W138+W140) -> 0 | AA139: =AA141-(AA136+AA137+AA138+AA140) -> 0 | AE139: 0 | AM139: 0 | AU139: 0 | BC139: 0 | BK139: 0 | BS139: 0 | CA139: 0 | CI139: 0 | CQ139: 0 | CY139: 0 | DG139: 0
F140: Kassekredit | K140: ='Skjul Resultatopstilling'!C106 -> 0 | O140: ='Skjul Resultatopstilling'!D106 -> 0 | S140: ='Skjul Resultatopstilling'!E106 -> 0 | W140: ='Skjul Resultatopstilling'!F106 -> 0 | AA140: ='Skjul Resultatopstilling'!R106*1000 -> 0 | AE140: 0 | AM140: 0 | AU140: 0 | BC140: 0 | BK140: 0 | BS140: 0 | CA140: 0 | CI140: 0 | CQ140: 0 | CY140: 0 | DG140: 0
F141: Gæld i alt | K141: ='Skjul Resultatopstilling'!C107 -> 0 | O141: ='Skjul Resultatopstilling'!D107 -> 0 | S141: ='Skjul Resultatopstilling'!E107 -> 0 | W141: ='Skjul Resultatopstilling'!F107 -> 0 | AA141: ='Skjul Resultatopstilling'!R107*1000 -> 0 | AE141: 0 | AM141: =SUM(AM136:AM140) -> 0 | AU141: =SUM(AU136:AU140) -> 0 | BC141: =SUM(BC136:BC140) -> 0 | BK141: =SUM(BK136:BK140) -> 0 | BS141: =SUM(BS136:BS140) -> 0 | CA141: =SUM(CA136:CA140) -> 0 | CI141: =SUM(CI136:CI140) -> 0 | CQ141: =SUM(CQ136:CQ140) -> 0 | CY141: =SUM(CY136:CY140) -> 0 | DG141: =SUM(DG136:DG140) -> 0
F143: Hensættelser | K143: ='Skjul Resultatopstilling'!C109 -> 0 | O143: ='Skjul Resultatopstilling'!D109 -> 0 | S143: ='Skjul Resultatopstilling'!E109 -> 0 | W143: ='Skjul Resultatopstilling'!F109 -> 0 | AA143: ='Skjul Resultatopstilling'!R109*1000 -> 0 | AE143: =IF($AC$2="Budget",AA143,W143) -> 0 | AM143: =IF(AJ143="",AE143-AM107,AJ143) -> 0 | AU143: =IF(AR143="",AM143-AU107,AR143) -> 0 | BC143: =IF(AZ143="",AU143-BC107,AZ143) -> 0 | BK143: =IF(BH143="",BC143-BK107,BH143) -> 0 | BS143: =IF(BP143="",BK143-BS107,BP143) -> 0 | CA143: =IF(BX143="",BS143-CA107,BX143) -> 0 | CI143: =IF(CF143="",CA143-CI107,CF143) -> 0 | CQ143: =IF(CN143="",CI143-CQ107,CN143) -> 0 | CY143: =IF(CV143="",CQ143-CY107,CV143) -> 0 | DG143: =IF(DD143="",CY143-DG107,DD143) -> 0
F145: Egenkapital | K145: ='Skjul Resultatopstilling'!C111 -> 0 | O145: ='Skjul Resultatopstilling'!D111 -> 0 | S145: ='Skjul Resultatopstilling'!E111 -> 0 | W145: ='Skjul Resultatopstilling'!F111 -> 0 | AA145: ='Skjul Resultatopstilling'!R111*1000 -> 0 | AE145: =IF($AC$2="Budget",AA145,W145) -> 0 | AM145: =AM143+AM141+AM134 -> 0 | AU145: =AU143+AU141+AU134 -> 0 | BC145: =BC143+BC141+BC134 -> 0 | BK145: =BK143+BK141+BK134 -> 0 | BS145: =BS143+BS141+BS134 -> 0 | CA145: =CA143+CA141+CA134 -> 0 | CI145: =CI143+CI141+CI134 -> 0 | CQ145: =CQ143+CQ141+CQ134 -> 0 | CY145: =CY143+CY141+CY134 -> 0 | DG145: =DG143+DG141+DG134 -> 0
F148: Gæld og renteudgifter | AH148: Primo | AI148: Ultimo | AJ148: Rentesats | AM148: Beløb | AP148: Primo | AQ148: Ultimo | AR148: Rentesats | AU148: Beløb | AX148: Primo | AY148: Ultimo | AZ148: Rentesats | BC148: Beløb | BF148: Primo | BG148: Ultimo | BH148: Rentesats | BK148: Beløb | BN148: Primo | BO148: Ultimo | BP148: Rentesats | BS148: Beløb | BV148: Primo | BW148: Ultimo | BX148: Rentesats | CA148: Beløb | CD148: Primo | CE148: Ultimo | CF148: Rentesats | CI148: Beløb | CL148: Primo | CM148: Ultimo | CN148: Rentesats | CQ148: Beløb | CT148: Primo | CU148: Ultimo | CV148: Rentesats | CY148: Beløb | DB148: Primo | DC148: Ultimo | DD148: Rentesats | DG148: Beløb
F149: Realkreditinstitutter | AH149: =AE136 -> 0 | AI149: =AE136-AM100 -> 0 | AM149: =(AH149+AI149)/2*AJ149/100 -> 0 | AP149: =AM136 -> 0 | AQ149: =AM136-AU100 -> 0 | AU149: =IF(AR149="",(AP149+AQ149)/2*$AJ149/100,(AP149+AQ149)/2*AR149/100) -> 0 | AX149: =AU136 -> 0 | AY149: =AU136-BC100 -> 0 | BC149: =IF(AZ149="",(AX149+AY149)/2*$AJ149/100,(AX149+AY149)/2*AZ149/100) -> 0 | BF149: =BC136 -> 0 | BG149: =BC136-BK100 -> 0 | BK149: =IF(BH149="",(BF149+BG149)/2*$AJ149/100,(BF149+BG149)/2*BH149/100) -> 0 | BN149: =BK136 -> 0 | BO149: =BK136-BS100 -> 0 | BS149: =IF(BP149="",(BN149+BO149)/2*$AJ149/100,(BN149+BO149)/2*BP149/100) -> 0 | BV149: =BS136 -> 0 | BW149: =BS136-CA100 -> 0 | CA149: =IF(BX149="",(BV149+BW149)/2*$AJ149/100,(BV149+BW149)/2*BX149/100) -> 0 | CD149: =CA136 -> 0 | CE149: =CA136-CI100 -> 0 | CI149: =IF(CF149="",(CD149+CE149)/2*$AJ149/100,(CD149+CE149)/2*CF149/100) -> 0 | CL149: =CI136 -> 0 | CM149: =CI136-CQ100 -> 0 | CQ149: =IF(CN149="",(CL149+CM149)/2*$AJ149/100,(CL149+CM149)/2*CN149/100) -> 0 | CT149: =CQ136 -> 0 | CU149: =CQ136-CY100 -> 0 | CY149: =IF(CV149="",(CT149+CU149)/2*$AJ149/100,(CT149+CU149)/2*CV149/100) -> 0 | DB149: =CY136 -> 0 | DC149: =CY136-DG100 -> 0 | DG149: =IF(DD149="",(DB149+DC149)/2*$AJ149/100,(DB149+DC149)/2*DD149/100) -> 0
F150: Pengeinstitutter | AH150: =AE137 -> 0 | AI150: =AE137-AM101 -> 0 | AM150: =(AH150+AI150)/2*AJ150/100 -> 0 | AP150: =AM137 -> 0 | AQ150: =AM137-AU101 -> 0 | AU150: =IF(AR150="",(AP150+AQ150)/2*$AJ150/100,(AP150+AQ150)/2*AR150/100) -> 0 | AX150: =AU137 -> 0 | AY150: =AU137-BC101 -> 0 | BC150: =IF(AZ150="",(AX150+AY150)/2*$AJ150/100,(AX150+AY150)/2*AZ150/100) -> 0 | BF150: =BC137 -> 0 | BG150: =BC137-BK101 -> 0 | BK150: =IF(BH150="",(BF150+BG150)/2*$AJ150/100,(BF150+BG150)/2*BH150/100) -> 0 | BN150: =BK137 -> 0 | BO150: =BK137-BS101 -> 0 | BS150: =IF(BP150="",(BN150+BO150)/2*$AJ150/100,(BN150+BO150)/2*BP150/100) -> 0 | BV150: =BS137 -> 0 | BW150: =BS137-CA101 -> 0 | CA150: =IF(BX150="",(BV150+BW150)/2*$AJ150/100,(BV150+BW150)/2*BX150/100) -> 0 | CD150: =CA137 -> 0 | CE150: =CA137-CI101 -> 0 | CI150: =IF(CF150="",(CD150+CE150)/2*$AJ150/100,(CD150+CE150)/2*CF150/100) -> 0 | CL150: =CI137 -> 0 | CM150: =CI137-CQ101 -> 0 | CQ150: =IF(CN150="",(CL150+CM150)/2*$AJ150/100,(CL150+CM150)/2*CN150/100) -> 0 | CT150: =CQ137 -> 0 | CU150: =CQ137-CY101 -> 0 | CY150: =IF(CV150="",(CT150+CU150)/2*$AJ150/100,(CT150+CU150)/2*CV150/100) -> 0 | DB150: =CY137 -> 0 | DC150: =CY137-DG101 -> 0 | DG150: =IF(DD150="",(DB150+DC150)/2*$AJ150/100,(DB150+DC150)/2*DD150/100) -> 0
F151: Leasingforpligtelser | AH151: =AE138 -> 0 | AI151: =AE138-AM102 -> 0 | AM151: =(AH151+AI151)/2*AJ151/100 -> 0 | AP151: =AM138 -> 0 | AQ151: =AM138-AU102 -> 0 | AU151: 0 | AX151: =AU138 -> 0 | AY151: =AU138-BC102 -> 0 | BC151: 0 | BF151: =BC138 -> 0 | BG151: =BC138-BK102 -> 0 | BK151: 0 | BN151: =BK138 -> 0 | BO151: =BK138-BS102 -> 0 | BS151: 0 | BV151: =BS138 -> 0 | BW151: =BS138-CA102 -> 0 | CA151: 0 | CD151: =CA138 -> 0 | CE151: =CA138-CI102 -> 0 | CI151: 0 | CL151: =CI138 -> 0 | CM151: =CI138-CQ102 -> 0 | CQ151: 0 | CT151: =CQ138 -> 0 | CU151: =CQ138-CY102 -> 0 | CY151: 0 | DB151: =CY138 -> 0 | DC151: =CY138-DG102 -> 0 | DG151: 0
F152: Anden gæld | AH152: =AE139 -> 0 | AI152: =AE139-AM103 -> 0 | AM152: =(AH152+AI152)/2*AJ152/100 -> 0 | AP152: =AM139 -> 0 | AQ152: =AM139-AU103 -> 0 | AU152: 0 | AX152: =AU139 -> 0 | AY152: =AU139-BC103 -> 0 | BC152: 0 | BF152: =BC139 -> 0 | BG152: =BC139-BK103 -> 0 | BK152: 0 | BN152: =BK139 -> 0 | BO152: =BK139-BS103 -> 0 | BS152: 0 | BV152: =BS139 -> 0 | BW152: =BS139-CA103 -> 0 | CA152: 0 | CD152: =CA139 -> 0 | CE152: =CA139-CI103 -> 0 | CI152: 0 | CL152: =CI139 -> 0 | CM152: =CI139-CQ103 -> 0 | CQ152: 0 | CT152: =CQ139 -> 0 | CU152: =CQ139-CY103 -> 0 | CY152: 0 | DB152: =CY139 -> 0 | DC152: =CY139-DG103 -> 0 | DG152: 0
F153: Kassekredit | AH153: =AE140 -> 0 | AI153: =AE140-AM104 -> 0 | AP153: =AM140 -> 0 | AQ153: =AM140-AU104 -> 0 | AX153: =AU140 -> 0 | AY153: =AU140-BC104 -> 0 | BF153: =BC140 -> 0 | BG153: =BC140-BK104 -> 0 | BN153: =BK140 -> 0 | BO153: =BK140-BS104 -> 0 | BV153: =BS140 -> 0 | BW153: =BS140-CA104 -> 0 | CD153: =CA140 -> 0 | CE153: =CA140-CI104 -> 0 | CL153: =CI140 -> 0 | CM153: =CI140-CQ104 -> 0 | CT153: =CQ140 -> 0 | CU153: =CQ140-CY104 -> 0 | DB153: =CY140 -> 0 | DC153: =CY140-DG104 -> 0
F154: Gæld i alt | AK154: Renteudg. i alt | AM154: =SUM(AM149:AM153) -> 0 | AS154: Renteudg. i alt | AU154: =SUM(AU149:AU153) -> 0 | BA154: Renteudg. i alt | BC154: =SUM(BC149:BC153) -> 0 | BI154: Renteudg. i alt | BK154: =SUM(BK149:BK153) -> 0 | BQ154: Renteudg. i alt | BS154: =SUM(BS149:BS153) -> 0 | BY154: Renteudg. i alt | CA154: =SUM(CA149:CA153) -> 0 | CG154: Renteudg. i alt | CI154: =SUM(CI149:CI153) -> 0 | CO154: Renteudg. i alt | CQ154: =SUM(CQ149:CQ153) -> 0 | CW154: Renteudg. i alt | CY154: =SUM(CY149:CY153) -> 0 | DE154: Renteudg. i alt | DG154: =SUM(DG149:DG153) -> 0
F156: Hjælpelinje til kassekredit til beregning af hvad kassekrditbeløbet skal være (Ændrer sig når det skrives ind) | AH156: =AH153 -> 0 | AI156: =AI153 -> 0 | AM156: =(AH156+AI156)/2*AJ156/100 -> 0 | AP156: =AP153 -> 0 | AQ156: =AQ153 -> 0 | AU156: =IF(AR156="",(AP156+AQ156)/2*$AJ156/100,(AP156+AQ156)/2*AR156/100) -> 0 | AX156: =AX153 -> 0 | AY156: =AY153 -> 0 | BC156: =IF(AZ156="",(AX156+AY156)/2*$AJ156/100,(AX156+AY156)/2*AZ156/100) -> 0 | BF156: =BF153 -> 0 | BG156: =BG153 -> 0 | BK156: =IF(BH156="",(BF156+BG156)/2*$AJ156/100,(BF156+BG156)/2*BH156/100) -> 0 | BN156: =BN153 -> 0 | BO156: =BO153 -> 0 | BS156: =IF(BP156="",(BN156+BO156)/2*$AJ156/100,(BN156+BO156)/2*BP156/100) -> 0 | BV156: =BV153 -> 0 | BW156: =BW153 -> 0 | CA156: =IF(BX156="",(BV156+BW156)/2*$AJ156/100,(BV156+BW156)/2*BX156/100) -> 0 | CD156: =CD153 -> 0 | CE156: =CE153 -> 0 | CI156: =IF(CF156="",(CD156+CE156)/2*$AJ156/100,(CD156+CE156)/2*CF156/100) -> 0 | CL156: =CL153 -> 0 | CM156: =CM153 -> 0 | CQ156: =IF(CN156="",(CL156+CM156)/2*$AJ156/100,(CL156+CM156)/2*CN156/100) -> 0 | CT156: =CT153 -> 0 | CU156: =CU153 -> 0 | CY156: =IF(CV156="",(CT156+CU156)/2*$AJ156/100,(CT156+CU156)/2*CV156/100) -> 0 | DB156: =DB153 -> 0 | DC156: =DC153 -> 0 | DG156: =IF(DD156="",(DB156+DC156)/2*$AJ156/100,(DB156+DC156)/2*DD156/100) -> 0
AJ158: Denne rentesat anvendes fremadrettet med mindre der skrives andet i de blå felter

Sheet Resultatopgørelse
B2: Resultatopgørelse
C4: =D4-1 -> 2021 | D4: 2022 | E4: =F4-1 -> 2023 | F4: =Forudsætninger!B34 -> 2024 | G4: =F4+1 -> 2025 | H4: =G4+1 -> 2026 | I4: 2027 | J4: 2028 | K4: 2029 | L4: =K4+1 -> 2030 | M4: 2031 | N4: =M4+1 -> 2032 | O4: 2033 | P4: =O4+1 -> 2034
B6: Dækningsbidrag:
B7: Salgsafgrøder | C7: =IF(Fremskrivning!K11="","",Fremskrivning!K11)/1000 -> 0 | D7: =IF(Fremskrivning!O11="","",Fremskrivning!O11)/1000 -> 0 | E7: =IF(Fremskrivning!S11="","",Fremskrivning!S11)/1000 -> 0 | F7: =IF(Fremskrivning!AE11="","",Fremskrivning!AE11)/1000 -> 0 | G7: =IF(Fremskrivning!AM11="","",Fremskrivning!AM11)/1000 -> 0 | H7: =IF(Fremskrivning!AU11="","",Fremskrivning!AU11)/1000 -> 0 | I7: =IF(Fremskrivning!BC11="","",Fremskrivning!BC11)/1000 -> 0 | J7: =IF(Fremskrivning!BK11="","",Fremskrivning!BK11)/1000 -> 0 | K7: =IF(Fremskrivning!BS11="","",Fremskrivning!BS11)/1000 -> 0 | L7: =IF(Fremskrivning!CA11="","",Fremskrivning!CA11)/1000 -> 0 | M7: =IF(Fremskrivning!CI11="","",Fremskrivning!CI11)/1000 -> 0 | N7: =IF(Fremskrivning!CQ11="","",Fremskrivning!CQ11)/1000 -> 0 | O7: =IF(Fremskrivning!CY11="","",Fremskrivning!CY11)/1000 -> 0 | P7: =IF(Fremskrivning!DG11="","",Fremskrivning!DG11)/1000 -> 0
B8: Kartofler | C8: =IF(Fremskrivning!K12="","",Fremskrivning!K12)/1000 -> 0 | D8: =IF(Fremskrivning!O12="","",Fremskrivning!O12)/1000 -> 0 | E8: =IF(Fremskrivning!S12="","",Fremskrivning!S12)/1000 -> 0 | F8: =IF(Fremskrivning!AE12="","",Fremskrivning!AE12)/1000 -> 0 | G8: =IF(Fremskrivning!AM12="","",Fremskrivning!AM12)/1000 -> 0 | H8: =IF(Fremskrivning!AU12="","",Fremskrivning!AU12)/1000 -> 0 | I8: =IF(Fremskrivning!BC12="","",Fremskrivning!BC12)/1000 -> 0 | J8: =IF(Fremskrivning!BK12="","",Fremskrivning!BK12)/1000 -> 0 | K8: =IF(Fremskrivning!BS12="","",Fremskrivning!BS12)/1000 -> 0 | L8: =IF(Fremskrivning!CA12="","",Fremskrivning!CA12)/1000 -> 0 | M8: =IF(Fremskrivning!CI12="","",Fremskrivning!CI12)/1000 -> 0 | N8: =IF(Fremskrivning!CQ12="","",Fremskrivning!CQ12)/1000 -> 0 | O8: =IF(Fremskrivning!CY12="","",Fremskrivning!CY12)/1000 -> 0 | P8: =IF(Fremskrivning!DG12="","",Fremskrivning!DG12)/1000 -> 0
B9: Roer | C9: =IF(Fremskrivning!K13="","",Fremskrivning!K13)/1000 -> 0 | D9: =IF(Fremskrivning!O13="","",Fremskrivning!O13)/1000 -> 0 | E9: =IF(Fremskrivning!S13="","",Fremskrivning!S13)/1000 -> 0 | F9: =IF(Fremskrivning!AE13="","",Fremskrivning!AE13)/1000 -> 0 | G9: =IF(Fremskrivning!AM13="","",Fremskrivning!AM13)/1000 -> 0 | H9: =IF(Fremskrivning!AU13="","",Fremskrivning!AU13)/1000 -> 0 | I9: =IF(Fremskrivning!BC13="","",Fremskrivning!BC13)/1000 -> 0 | J9: =IF(Fremskrivning!BK13="","",Fremskrivning!BK13)/1000 -> 0 | K9: =IF(Fremskrivning!BS13="","",Fremskrivning!BS13)/1000 -> 0 | L9: =IF(Fremskrivning!CA13="","",Fremskrivning!CA13)/1000 -> 0 | M9: =IF(Fremskrivning!CI13="","",Fremskrivning!CI13)/1000 -> 0 | N9: =IF(Fremskrivning!CQ13="","",Fremskrivning!CQ13)/1000 -> 0 | O9: =IF(Fremskrivning!CY13="","",Fremskrivning!CY13)/1000 -> 0 | P9: =IF(Fremskrivning!DG13="","",Fremskrivning!DG13)/1000 -> 0
B10: Grovfoder | C10: =IF(Fremskrivning!K14="","",Fremskrivning!K14)/1000 -> 0 | D10: =IF(Fremskrivning!O14="","",Fremskrivning!O14)/1000 -> 0 | E10: =IF(Fremskrivning!S14="","",Fremskrivning!S14)/1000 -> 0 | F10: =IF(Fremskrivning!AE14="","",Fremskrivning!AE14)/1000 -> 0 | G10: =IF(Fremskrivning!AM14="","",Fremskrivning!AM14)/1000 -> 0 | H10: =IF(Fremskrivning!AU14="","",Fremskrivning!AU14)/1000 -> 0 | I10: =IF(Fremskrivning!BC14="","",Fremskrivning!BC14)/1000 -> 0 | J10: =IF(Fremskrivning!BK14="","",Fremskrivning!BK14)/1000 -> 0 | K10: =IF(Fremskrivning!BS14="","",Fremskrivning!BS14)/1000 -> 0 | L10: =IF(Fremskrivning!CA14="","",Fremskrivning!CA14)/1000 -> 0 | M10: =IF(Fremskrivning!CI14="","",Fremskrivning!CI14)/1000 -> 0 | N10: =IF(Fremskrivning!CQ14="","",Fremskrivning!CQ14)/1000 -> 0 | O10: =IF(Fremskrivning!CY14="","",Fremskrivning!CY14)/1000 -> 0 | P10: =IF(Fremskrivning!DG14="","",Fremskrivning!DG14)/1000 -> 0
B11: =IF(AND('DB pr enhed budget'!B20="",'DB pr enhed årsrapporter'!B18=""),"",IF('DB pr enhed budget'!B20="",'DB pr enhed årsrapporter'!B18,'DB pr enhed budget'!B20)) ->  | C11: =IF(Fremskrivning!K15="","",Fremskrivning!K15)/1000 -> 0 | D11: =IF(Fremskrivning!O15="","",Fremskrivning!O15)/1000 -> 0 | E11: =IF(Fremskrivning!S15="","",Fremskrivning!S15)/1000 -> 0 | F11: =IF(Fremskrivning!AE15="","",Fremskrivning!AE15)/1000 -> 0 | G11: =IF(Fremskrivning!AM15="","",Fremskrivning!AM15)/1000 -> 0 | H11: =IF(Fremskrivning!AU15="","",Fremskrivning!AU15)/1000 -> 0 | I11: =IF(Fremskrivning!BC15="","",Fremskrivning!BC15)/1000 -> 0 | J11: =IF(Fremskrivning!BK15="","",Fremskrivning!BK15)/1000 -> 0 | K11: =IF(Fremskrivning!BS15="","",Fremskrivning!BS15)/1000 -> 0 | L11: =IF(Fremskrivning!CA15="","",Fremskrivning!CA15)/1000 -> 0 | M11: =IF(Fremskrivning!CI15="","",Fremskrivning!CI15)/1000 -> 0 | N11: =IF(Fremskrivning!CQ15="","",Fremskrivning!CQ15)/1000 -> 0 | O11: =IF(Fremskrivning!CY15="","",Fremskrivning!CY15)/1000 -> 0 | P11: =IF(Fremskrivning!DG15="","",Fremskrivning!DG15)/1000 -> 0
B12: Mælk | C12: =IF(Fremskrivning!K16="","",Fremskrivning!K16)/1000 -> 0 | D12: =IF(Fremskrivning!O16="","",Fremskrivning!O16)/1000 -> 0 | E12: =IF(Fremskrivning!S16="","",Fremskrivning!S16)/1000 -> 0 | F12: =IF(Fremskrivning!AE16="","",Fremskrivning!AE16)/1000 -> 0 | G12: =IF(Fremskrivning!AM16="","",Fremskrivning!AM16)/1000 -> 0 | H12: =IF(Fremskrivning!AU16="","",Fremskrivning!AU16)/1000 -> 0 | I12: =IF(Fremskrivning!BC16="","",Fremskrivning!BC16)/1000 -> 0 | J12: =IF(Fremskrivning!BK16="","",Fremskrivning!BK16)/1000 -> 0 | K12: =IF(Fremskrivning!BS16="","",Fremskrivning!BS16)/1000 -> 0 | L12: =IF(Fremskrivning!CA16="","",Fremskrivning!CA16)/1000 -> 0 | M12: =IF(Fremskrivning!CI16="","",Fremskrivning!CI16)/1000 -> 0 | N12: =IF(Fremskrivning!CQ16="","",Fremskrivning!CQ16)/1000 -> 0 | O12: =IF(Fremskrivning!CY16="","",Fremskrivning!CY16)/1000 -> 0 | P12: =IF(Fremskrivning!DG16="","",Fremskrivning!DG16)/1000 -> 0
B13: Slagtekalve | C13: =IF(Fremskrivning!K17="","",Fremskrivning!K17)/1000 -> 0 | D13: =IF(Fremskrivning!O17="","",Fremskrivning!O17)/1000 -> 0 | E13: =IF(Fremskrivning!S17="","",Fremskrivning!S17)/1000 -> 0 | F13: =IF(Fremskrivning!AE17="","",Fremskrivning!AE17)/1000 -> 0 | G13: =IF(Fremskrivning!AM17="","",Fremskrivning!AM17)/1000 -> 0 | H13: =IF(Fremskrivning!AU17="","",Fremskrivning!AU17)/1000 -> 0 | I13: =IF(Fremskrivning!BC17="","",Fremskrivning!BC17)/1000 -> 0 | J13: =IF(Fremskrivning!BK17="","",Fremskrivning!BK17)/1000 -> 0 | K13: =IF(Fremskrivning!BS17="","",Fremskrivning!BS17)/1000 -> 0 | L13: =IF(Fremskrivning!CA17="","",Fremskrivning!CA17)/1000 -> 0 | M13: =IF(Fremskrivning!CI17="","",Fremskrivning!CI17)/1000 -> 0 | N13: =IF(Fremskrivning!CQ17="","",Fremskrivning!CQ17)/1000 -> 0 | O13: =IF(Fremskrivning!CY17="","",Fremskrivning!CY17)/1000 -> 0 | P13: =IF(Fremskrivning!DG17="","",Fremskrivning!DG17)/1000 -> 0
B14: Sohold 7 kg | C14: =IF(Fremskrivning!K18="","",Fremskrivning!K18)/1000 -> 0 | D14: =IF(Fremskrivning!O18="","",Fremskrivning!O18)/1000 -> 0 | E14: =IF(Fremskrivning!S18="","",Fremskrivning!S18)/1000 -> 0 | F14: =IF(Fremskrivning!AE18="","",Fremskrivning!AE18)/1000 -> 0 | G14: =IF(Fremskrivning!AM18="","",Fremskrivning!AM18)/1000 -> 0 | H14: =IF(Fremskrivning!AU18="","",Fremskrivning!AU18)/1000 -> 0 | I14: =IF(Fremskrivning!BC18="","",Fremskrivning!BC18)/1000 -> 0 | J14: =IF(Fremskrivning!BK18="","",Fremskrivning!BK18)/1000 -> 0 | K14: =IF(Fremskrivning!BS18="","",Fremskrivning!BS18)/1000 -> 0 | L14: =IF(Fremskrivning!CA18="","",Fremskrivning!CA18)/1000 -> 0 | M14: =IF(Fremskrivning!CI18="","",Fremskrivning!CI18)/1000 -> 0 | N14: =IF(Fremskrivning!CQ18="","",Fremskrivning!CQ18)/1000 -> 0 | O14: =IF(Fremskrivning!CY18="","",Fremskrivning!CY18)/1000 -> 0 | P14: =IF(Fremskrivning!DG18="","",Fremskrivning!DG18)/1000 -> 0
B15: Sohold 30 kg | C15: =IF(Fremskrivning!K19="","",Fremskrivning!K19)/1000 -> 0 | D15: =IF(Fremskrivning!O19="","",Fremskrivning!O19)/1000 -> 0 | E15: =IF(Fremskrivning!S19="","",Fremskrivning!S19)/1000 -> 0 | F15: =IF(Fremskrivning!AE19="","",Fremskrivning!AE19)/1000 -> 0 | G15: =IF(Fremskrivning!AM19="","",Fremskrivning!AM19)/1000 -> 0 | H15: =IF(Fremskrivning!AU19="","",Fremskrivning!AU19)/1000 -> 0 | I15: =IF(Fremskrivning!BC19="","",Fremskrivning!BC19)/1000 -> 0 | J15: =IF(Fremskrivning!BK19="","",Fremskrivning!BK19)/1000 -> 0 | K15: =IF(Fremskrivning!BS19="","",Fremskrivning!BS19)/1000 -> 0 | L15: =IF(Fremskrivning!CA19="","",Fremskrivning!CA19)/1000 -> 0 | M15: =IF(Fremskrivning!CI19="","",Fremskrivning!CI19)/1000 -> 0 | N15: =IF(Fremskrivning!CQ19="","",Fremskrivning!CQ19)/1000 -> 0 | O15: =IF(Fremskrivning!CY19="","",Fremskrivning!CY19)/1000 -> 0 | P15: =IF(Fremskrivning!DG19="","",Fremskrivning!DG19)/1000 -> 0
B16: Slagtegrise | C16: =IF(Fremskrivning!K20="","",Fremskrivning!K20)/1000 -> 0 | D16: =IF(Fremskrivning!O20="","",Fremskrivning!O20)/1000 -> 0 | E16: =IF(Fremskrivning!S20="","",Fremskrivning!S20)/1000 -> 0 | F16: =IF(Fremskrivning!AE20="","",Fremskrivning!AE20)/1000 -> 0 | G16: =IF(Fremskrivning!AM20="","",Fremskrivning!AM20)/1000 -> 0 | H16: =IF(Fremskrivning!AU20="","",Fremskrivning!AU20)/1000 -> 0 | I16: =IF(Fremskrivning!BC20="","",Fremskrivning!BC20)/1000 -> 0 | J16: =IF(Fremskrivning!BK20="","",Fremskrivning!BK20)/1000 -> 0 | K16: =IF(Fremskrivning!BS20="","",Fremskrivning!BS20)/1000 -> 0 | L16: =IF(Fremskrivning!CA20="","",Fremskrivning!CA20)/1000 -> 0 | M16: =IF(Fremskrivning!CI20="","",Fremskrivning!CI20)/1000 -> 0 | N16: =IF(Fremskrivning!CQ20="","",Fremskrivning!CQ20)/1000 -> 0 | O16: =IF(Fremskrivning!CY20="","",Fremskrivning!CY20)/1000 -> 0 | P16: =IF(Fremskrivning!DG20="","",Fremskrivning!DG20)/1000 -> 0
B17: Slagtekyllinger | C17: =IF(Fremskrivning!K21="","",Fremskrivning!K21)/1000 -> 0 | D17: =IF(Fremskrivning!O21="","",Fremskrivning!O21)/1000 -> 0 | E17: =IF(Fremskrivning!S21="","",Fremskrivning!S21)/1000 -> 0 | F17: =IF(Fremskrivning!AE21="","",Fremskrivning!AE21)/1000 -> 0 | G17: =IF(Fremskrivning!AM21="","",Fremskrivning!AM21)/1000 -> 0 | H17: =IF(Fremskrivning!AU21="","",Fremskrivning!AU21)/1000 -> 0 | I17: =IF(Fremskrivning!BC21="","",Fremskrivning!BC21)/1000 -> 0 | J17: =IF(Fremskrivning!BK21="","",Fremskrivning!BK21)/1000 -> 0 | K17: =IF(Fremskrivning!BS21="","",Fremskrivning!BS21)/1000 -> 0 | L17: =IF(Fremskrivning!CA21="","",Fremskrivning!CA21)/1000 -> 0 | M17: =IF(Fremskrivning!CI21="","",Fremskrivning!CI21)/1000 -> 0 | N17: =IF(Fremskrivning!CQ21="","",Fremskrivning!CQ21)/1000 -> 0 | O17: =IF(Fremskrivning!CY21="","",Fremskrivning!CY21)/1000 -> 0 | P17: =IF(Fremskrivning!DG21="","",Fremskrivning!DG21)/1000 -> 0
B18: Høns | C18: =IF(Fremskrivning!K22="","",Fremskrivning!K22)/1000 -> 0 | D18: =IF(Fremskrivning!O22="","",Fremskrivning!O22)/1000 -> 0 | E18: =IF(Fremskrivning!S22="","",Fremskrivning!S22)/1000 -> 0 | F18: =IF(Fremskrivning!AE22="","",Fremskrivning!AE22)/1000 -> 0 | G18: =IF(Fremskrivning!AM22="","",Fremskrivning!AM22)/1000 -> 0 | H18: =IF(Fremskrivning!AU22="","",Fremskrivning!AU22)/1000 -> 0 | I18: =IF(Fremskrivning!BC22="","",Fremskrivning!BC22)/1000 -> 0 | J18: =IF(Fremskrivning!BK22="","",Fremskrivning!BK22)/1000 -> 0 | K18: =IF(Fremskrivning!BS22="","",Fremskrivning!BS22)/1000 -> 0 | L18: =IF(Fremskrivning!CA22="","",Fremskrivning!CA22)/1000 -> 0 | M18: =IF(Fremskrivning!CI22="","",Fremskrivning!CI22)/1000 -> 0 | N18: =IF(Fremskrivning!CQ22="","",Fremskrivning!CQ22)/1000 -> 0 | O18: =IF(Fremskrivning!CY22="","",Fremskrivning!CY22)/1000 -> 0 | P18: =IF(Fremskrivning!DG22="","",Fremskrivning!DG22)/1000 -> 0
B19: Øvrige | C19: =IF(Fremskrivning!K23="","",Fremskrivning!K23)/1000 -> 0 | D19: =IF(Fremskrivning!O23="","",Fremskrivning!O23)/1000 -> 0 | E19: =IF(Fremskrivning!S23="","",Fremskrivning!S23)/1000 -> 0 | F19: =IF(Fremskrivning!AE23="","",Fremskrivning!AE23)/1000 -> 0 | G19: =IF(Fremskrivning!AM23="","",Fremskrivning!AM23)/1000 -> 0 | H19: =IF(Fremskrivning!AU23="","",Fremskrivning!AU23)/1000 -> 0 | I19: =IF(Fremskrivning!BC23="","",Fremskrivning!BC23)/1000 -> 0 | J19: =IF(Fremskrivning!BK23="","",Fremskrivning!BK23)/1000 -> 0 | K19: =IF(Fremskrivning!BS23="","",Fremskrivning!BS23)/1000 -> 0 | L19: =IF(Fremskrivning!CA23="","",Fremskrivning!CA23)/1000 -> 0 | M19: =IF(Fremskrivning!CI23="","",Fremskrivning!CI23)/1000 -> 0 | N19: =IF(Fremskrivning!CQ23="","",Fremskrivning!CQ23)/1000 -> 0 | O19: =IF(Fremskrivning!CY23="","",Fremskrivning!CY23)/1000 -> 0 | P19: =IF(Fremskrivning!DG23="","",Fremskrivning!DG23)/1000 -> 0
B21: Dækningsbidrag i alt | C21: =IF(Fremskrivning!K25="","",Fremskrivning!K25)/1000 -> 0 | D21: =IF(Fremskrivning!O25="","",Fremskrivning!O25)/1000 -> 0 | E21: =IF(Fremskrivning!S25="","",Fremskrivning!S25)/1000 -> 0 | F21: =IF(Fremskrivning!AE25="","",Fremskrivning!AE25)/1000 -> 0 | G21: =IF(Fremskrivning!AM25="","",Fremskrivning!AM25)/1000 -> 0 | H21: =IF(Fremskrivning!AU25="","",Fremskrivning!AU25)/1000 -> 0 | I21: =IF(Fremskrivning!BC25="","",Fremskrivning!BC25)/1000 -> 0 | J21: =IF(Fremskrivning!BK25="","",Fremskrivning!BK25)/1000 -> 0 | K21: =IF(Fremskrivning!BS25="","",Fremskrivning!BS25)/1000 -> 0 | L21: =IF(Fremskrivning!CA25="","",Fremskrivning!CA25)/1000 -> 0 | M21: =IF(Fremskrivning!CI25="","",Fremskrivning!CI25)/1000 -> 0 | N21: =IF(Fremskrivning!CQ25="","",Fremskrivning!CQ25)/1000 -> 0 | O21: =IF(Fremskrivning!CY25="","",Fremskrivning!CY25)/1000 -> 0 | P21: =IF(Fremskrivning!DG25="","",Fremskrivning!DG25)/1000 -> 0
B23: Energi og brændstof | C23: =IF(Fremskrivning!K27="","",Fremskrivning!K27)/1000 -> 0 | D23: =IF(Fremskrivning!O27="","",Fremskrivning!O27)/1000 -> 0 | E23: =IF(Fremskrivning!S27="","",Fremskrivning!S27)/1000 -> 0 | F23: =IF(Fremskrivning!AE27="","",Fremskrivning!AE27)/1000 -> 0 | G23: =IF(Fremskrivning!AM27="","",Fremskrivning!AM27)/1000 -> 0 | H23: =IF(Fremskrivning!AU27="","",Fremskrivning!AU27)/1000 -> 0 | I23: =IF(Fremskrivning!BC27="","",Fremskrivning!BC27)/1000 -> 0 | J23: =IF(Fremskrivning!BK27="","",Fremskrivning!BK27)/1000 -> 0 | K23: =IF(Fremskrivning!BS27="","",Fremskrivning!BS27)/1000 -> 0 | L23: =IF(Fremskrivning!CA27="","",Fremskrivning!CA27)/1000 -> 0 | M23: =IF(Fremskrivning!CI27="","",Fremskrivning!CI27)/1000 -> 0 | N23: =IF(Fremskrivning!CQ27="","",Fremskrivning!CQ27)/1000 -> 0 | O23: =IF(Fremskrivning!CY27="","",Fremskrivning!CY27)/1000 -> 0 | P23: =IF(Fremskrivning!DG27="","",Fremskrivning!DG27)/1000 -> 0
B24: Maskinstation | C24: =IF(Fremskrivning!K28="","",Fremskrivning!K28)/1000 -> 0 | D24: =IF(Fremskrivning!O28="","",Fremskrivning!O28)/1000 -> 0 | E24: =IF(Fremskrivning!S28="","",Fremskrivning!S28)/1000 -> 0 | F24: =IF(Fremskrivning!AE28="","",Fremskrivning!AE28)/1000 -> 0 | G24: =IF(Fremskrivning!AM28="","",Fremskrivning!AM28)/1000 -> 0 | H24: =IF(Fremskrivning!AU28="","",Fremskrivning!AU28)/1000 -> 0 | I24: =IF(Fremskrivning!BC28="","",Fremskrivning!BC28)/1000 -> 0 | J24: =IF(Fremskrivning!BK28="","",Fremskrivning!BK28)/1000 -> 0 | K24: =IF(Fremskrivning!BS28="","",Fremskrivning!BS28)/1000 -> 0 | L24: =IF(Fremskrivning!CA28="","",Fremskrivning!CA28)/1000 -> 0 | M24: =IF(Fremskrivning!CI28="","",Fremskrivning!CI28)/1000 -> 0 | N24: =IF(Fremskrivning!CQ28="","",Fremskrivning!CQ28)/1000 -> 0 | O24: =IF(Fremskrivning!CY28="","",Fremskrivning!CY28)/1000 -> 0 | P24: =IF(Fremskrivning!DG28="","",Fremskrivning!DG28)/1000 -> 0
B25: Vedligeholdelse | C25: =IF(Fremskrivning!K29="","",Fremskrivning!K29)/1000 -> 0 | D25: =IF(Fremskrivning!O29="","",Fremskrivning!O29)/1000 -> 0 | E25: =IF(Fremskrivning!S29="","",Fremskrivning!S29)/1000 -> 0 | F25: =IF(Fremskrivning!AE29="","",Fremskrivning!AE29)/1000 -> 0 | G25: =IF(Fremskrivning!AM29="","",Fremskrivning!AM29)/1000 -> 0 | H25: =IF(Fremskrivning!AU29="","",Fremskrivning!AU29)/1000 -> 0 | I25: =IF(Fremskrivning!BC29="","",Fremskrivning!BC29)/1000 -> 0 | J25: =IF(Fremskrivning!BK29="","",Fremskrivning!BK29)/1000 -> 0 | K25: =IF(Fremskrivning!BS29="","",Fremskrivning!BS29)/1000 -> 0 | L25: =IF(Fremskrivning!CA29="","",Fremskrivning!CA29)/1000 -> 0 | M25: =IF(Fremskrivning!CI29="","",Fremskrivning!CI29)/1000 -> 0 | N25: =IF(Fremskrivning!CQ29="","",Fremskrivning!CQ29)/1000 -> 0 | O25: =IF(Fremskrivning!CY29="","",Fremskrivning!CY29)/1000 -> 0 | P25: =IF(Fremskrivning!DG29="","",Fremskrivning!DG29)/1000 -> 0
B26: Investeringer over driften | C26: =IF(Fremskrivning!K30="","",Fremskrivning!K30)/1000 -> 0 | D26: =IF(Fremskrivning!O30="","",Fremskrivning!O30)/1000 -> 0 | E26: =IF(Fremskrivning!S30="","",Fremskrivning!S30)/1000 -> 0 | F26: =IF(Fremskrivning!AE30="","",Fremskrivning!AE30)/1000 -> 0 | G26: =IF(Fremskrivning!AM30="","",Fremskrivning!AM30)/1000 -> 0 | H26: =IF(Fremskrivning!AU30="","",Fremskrivning!AU30)/1000 -> 0 | I26: =IF(Fremskrivning!BC30="","",Fremskrivning!BC30)/1000 -> 0 | J26: =IF(Fremskrivning!BK30="","",Fremskrivning!BK30)/1000 -> 0 | K26: =IF(Fremskrivning!BS30="","",Fremskrivning!BS30)/1000 -> 0 | L26: =IF(Fremskrivning!CA30="","",Fremskrivning!CA30)/1000 -> 0 | M26: =IF(Fremskrivning!CI30="","",Fremskrivning!CI30)/1000 -> 0 | N26: =IF(Fremskrivning!CQ30="","",Fremskrivning!CQ30)/1000 -> 0 | O26: =IF(Fremskrivning!CY30="","",Fremskrivning!CY30)/1000 -> 0 | P26: =IF(Fremskrivning!DG30="","",Fremskrivning!DG30)/1000 -> 0
B27: Lønomkostninger | C27: =IF(Fremskrivning!K31="","",Fremskrivning!K31)/1000 -> 0 | D27: =IF(Fremskrivning!O31="","",Fremskrivning!O31)/1000 -> 0 | E27: =IF(Fremskrivning!S31="","",Fremskrivning!S31)/1000 -> 0 | F27: =IF(Fremskrivning!AE31="","",Fremskrivning!AE31)/1000 -> 0 | G27: =IF(Fremskrivning!AM31="","",Fremskrivning!AM31)/1000 -> 0 | H27: =IF(Fremskrivning!AU31="","",Fremskrivning!AU31)/1000 -> 0 | I27: =IF(Fremskrivning!BC31="","",Fremskrivning!BC31)/1000 -> 0 | J27: =IF(Fremskrivning!BK31="","",Fremskrivning!BK31)/1000 -> 0 | K27: =IF(Fremskrivning!BS31="","",Fremskrivning!BS31)/1000 -> 0 | L27: =IF(Fremskrivning!CA31="","",Fremskrivning!CA31)/1000 -> 0 | M27: =IF(Fremskrivning!CI31="","",Fremskrivning!CI31)/1000 -> 0 | N27: =IF(Fremskrivning!CQ31="","",Fremskrivning!CQ31)/1000 -> 0 | O27: =IF(Fremskrivning!CY31="","",Fremskrivning!CY31)/1000 -> 0 | P27: =IF(Fremskrivning!DG31="","",Fremskrivning!DG31)/1000 -> 0
B28: Ejendomsskat og forsikringer | C28: =IF(Fremskrivning!K32="","",Fremskrivning!K32)/1000 -> 0 | D28: =IF(Fremskrivning!O32="","",Fremskrivning!O32)/1000 -> 0 | E28: =IF(Fremskrivning!S32="","",Fremskrivning!S32)/1000 -> 0 | F28: =IF(Fremskrivning!AE32="","",Fremskrivning!AE32)/1000 -> 0 | G28: =IF(Fremskrivning!AM32="","",Fremskrivning!AM32)/1000 -> 0 | H28: =IF(Fremskrivning!AU32="","",Fremskrivning!AU32)/1000 -> 0 | I28: =IF(Fremskrivning!BC32="","",Fremskrivning!BC32)/1000 -> 0 | J28: =IF(Fremskrivning!BK32="","",Fremskrivning!BK32)/1000 -> 0 | K28: =IF(Fremskrivning!BS32="","",Fremskrivning!BS32)/1000 -> 0 | L28: =IF(Fremskrivning!CA32="","",Fremskrivning!CA32)/1000 -> 0 | M28: =IF(Fremskrivning!CI32="","",Fremskrivning!CI32)/1000 -> 0 | N28: =IF(Fremskrivning!CQ32="","",Fremskrivning!CQ32)/1000 -> 0 | O28: =IF(Fremskrivning!CY32="","",Fremskrivning!CY32)/1000 -> 0 | P28: =IF(Fremskrivning!DG32="","",Fremskrivning!DG32)/1000 -> 0
B29: Diverse omkostninger | C29: =IF(Fremskrivning!K33="","",Fremskrivning!K33)/1000 -> 0 | D29: =IF(Fremskrivning!O33="","",Fremskrivning!O33)/1000 -> 0 | E29: =IF(Fremskrivning!S33="","",Fremskrivning!S33)/1000 -> 0 | F29: =IF(Fremskrivning!AE33="","",Fremskrivning!AE33)/1000 -> 0 | G29: =IF(Fremskrivning!AM33="","",Fremskrivning!AM33)/1000 -> 0 | H29: =IF(Fremskrivning!AU33="","",Fremskrivning!AU33)/1000 -> 0 | I29: =IF(Fremskrivning!BC33="","",Fremskrivning!BC33)/1000 -> 0 | J29: =IF(Fremskrivning!BK33="","",Fremskrivning!BK33)/1000 -> 0 | K29: =IF(Fremskrivning!BS33="","",Fremskrivning!BS33)/1000 -> 0 | L29: =IF(Fremskrivning!CA33="","",Fremskrivning!CA33)/1000 -> 0 | M29: =IF(Fremskrivning!CI33="","",Fremskrivning!CI33)/1000 -> 0 | N29: =IF(Fremskrivning!CQ33="","",Fremskrivning!CQ33)/1000 -> 0 | O29: =IF(Fremskrivning!CY33="","",Fremskrivning!CY33)/1000 -> 0 | P29: =IF(Fremskrivning!DG33="","",Fremskrivning!DG33)/1000 -> 0
B30: Kontante kapacitetsomkostninger | C30: =IF(Fremskrivning!K34="","",Fremskrivning!K34)/1000 -> 0 | D30: =IF(Fremskrivning!O34="","",Fremskrivning!O34)/1000 -> 0 | E30: =IF(Fremskrivning!S34="","",Fremskrivning!S34)/1000 -> 0 | F30: =IF(Fremskrivning!AE34="","",Fremskrivning!AE34)/1000 -> 0 | G30: =IF(Fremskrivning!AM34="","",Fremskrivning!AM34)/1000 -> 0 | H30: =IF(Fremskrivning!AU34="","",Fremskrivning!AU34)/1000 -> 0 | I30: =IF(Fremskrivning!BC34="","",Fremskrivning!BC34)/1000 -> 0 | J30: =IF(Fremskrivning!BK34="","",Fremskrivning!BK34)/1000 -> 0 | K30: =IF(Fremskrivning!BS34="","",Fremskrivning!BS34)/1000 -> 0 | L30: =IF(Fremskrivning!CA34="","",Fremskrivning!CA34)/1000 -> 0 | M30: =IF(Fremskrivning!CI34="","",Fremskrivning!CI34)/1000 -> 0 | N30: =IF(Fremskrivning!CQ34="","",Fremskrivning!CQ34)/1000 -> 0 | O30: =IF(Fremskrivning!CY34="","",Fremskrivning!CY34)/1000 -> 0 | P30: =IF(Fremskrivning!DG34="","",Fremskrivning!DG34)/1000 -> 0
B32: Afskrivninger | C32: =IF(Fremskrivning!K36="","",Fremskrivning!K36)/1000 -> 0 | D32: =IF(Fremskrivning!O36="","",Fremskrivning!O36)/1000 -> 0 | E32: =IF(Fremskrivning!S36="","",Fremskrivning!S36)/1000 -> 0 | F32: =IF(Fremskrivning!AE36="","",Fremskrivning!AE36)/1000 -> 0 | G32: =IF(Fremskrivning!AM36="","",Fremskrivning!AM36)/1000 -> 0 | H32: =IF(Fremskrivning!AU36="","",Fremskrivning!AU36)/1000 -> 0 | I32: =IF(Fremskrivning!BC36="","",Fremskrivning!BC36)/1000 -> 0 | J32: =IF(Fremskrivning!BK36="","",Fremskrivning!BK36)/1000 -> 0 | K32: =IF(Fremskrivning!BS36="","",Fremskrivning!BS36)/1000 -> 0 | L32: =IF(Fremskrivning!CA36="","",Fremskrivning!CA36)/1000 -> 0 | M32: =IF(Fremskrivning!CI36="","",Fremskrivning!CI36)/1000 -> 0 | N32: =IF(Fremskrivning!CQ36="","",Fremskrivning!CQ36)/1000 -> 0 | O32: =IF(Fremskrivning!CY36="","",Fremskrivning!CY36)/1000 -> 0 | P32: =IF(Fremskrivning!DG36="","",Fremskrivning!DG36)/1000 -> 0
B33: Nedskrivninger | C33: =IF(Fremskrivning!K41="","",Fremskrivning!K41)/1000 -> 0 | D33: =IF(Fremskrivning!O41="","",Fremskrivning!O41)/1000 -> 0 | E33: =IF(Fremskrivning!S41="","",Fremskrivning!S41)/1000 -> 0 | F33: =IF(Fremskrivning!AE41="","",Fremskrivning!AE41)/1000 -> 0 | G33: =IF(Fremskrivning!AM41="","",Fremskrivning!AM41)/1000 -> 0 | H33: =IF(Fremskrivning!AU41="","",Fremskrivning!AU41)/1000 -> 0 | I33: =IF(Fremskrivning!BC41="","",Fremskrivning!BC41)/1000 -> 0 | J33: =IF(Fremskrivning!BK41="","",Fremskrivning!BK41)/1000 -> 0 | K33: =IF(Fremskrivning!BS41="","",Fremskrivning!BS41)/1000 -> 0 | L33: =IF(Fremskrivning!CA41="","",Fremskrivning!CA41)/1000 -> 0 | M33: =IF(Fremskrivning!CI41="","",Fremskrivning!CI41)/1000 -> 0 | N33: =IF(Fremskrivning!CQ41="","",Fremskrivning!CQ41)/1000 -> 0 | O33: =IF(Fremskrivning!CY41="","",Fremskrivning!CY41)/1000 -> 0 | P33: =IF(Fremskrivning!DG41="","",Fremskrivning!DG41)/1000 -> 0
B34: Tab/gevinst | C34: =IF(Fremskrivning!K42="","",Fremskrivning!K42)/1000 -> 0 | D34: =IF(Fremskrivning!O42="","",Fremskrivning!O42)/1000 -> 0 | E34: =IF(Fremskrivning!S42="","",Fremskrivning!S42)/1000 -> 0 | F34: =IF(Fremskrivning!AE42="","",Fremskrivning!AE42)/1000 -> 0 | G34: =IF(Fremskrivning!AM42="","",Fremskrivning!AM42)/1000 -> 0 | H34: =IF(Fremskrivning!AU42="","",Fremskrivning!AU42)/1000 -> 0 | I34: =IF(Fremskrivning!BC42="","",Fremskrivning!BC42)/1000 -> 0 | J34: =IF(Fremskrivning!BK42="","",Fremskrivning!BK42)/1000 -> 0 | K34: =IF(Fremskrivning!BS42="","",Fremskrivning!BS42)/1000 -> 0 | L34: =IF(Fremskrivning!CA42="","",Fremskrivning!CA42)/1000 -> 0 | M34: =IF(Fremskrivning!CI42="","",Fremskrivning!CI42)/1000 -> 0 | N34: =IF(Fremskrivning!CQ42="","",Fremskrivning!CQ42)/1000 -> 0 | O34: =IF(Fremskrivning!CY42="","",Fremskrivning!CY42)/1000 -> 0 | P34: =IF(Fremskrivning!DG42="","",Fremskrivning!DG42)/1000 -> 0
B35: Kapacitetsomkostninger i alt | C35: =IF(Fremskrivning!K43="","",Fremskrivning!K43)/1000 -> 0 | D35: =IF(Fremskrivning!O43="","",Fremskrivning!O43)/1000 -> 0 | E35: =IF(Fremskrivning!S43="","",Fremskrivning!S43)/1000 -> 0 | F35: =IF(Fremskrivning!AE43="","",Fremskrivning!AE43)/1000 -> 0 | G35: =IF(Fremskrivning!AM43="","",Fremskrivning!AM43)/1000 -> 0 | H35: =IF(Fremskrivning!AU43="","",Fremskrivning!AU43)/1000 -> 0 | I35: =IF(Fremskrivning!BC43="","",Fremskrivning!BC43)/1000 -> 0 | J35: =IF(Fremskrivning!BK43="","",Fremskrivning!BK43)/1000 -> 0 | K35: =IF(Fremskrivning!BS43="","",Fremskrivning!BS43)/1000 -> 0 | L35: =IF(Fremskrivning!CA43="","",Fremskrivning!CA43)/1000 -> 0 | M35: =IF(Fremskrivning!CI43="","",Fremskrivning!CI43)/1000 -> 0 | N35: =IF(Fremskrivning!CQ43="","",Fremskrivning!CQ43)/1000 -> 0 | O35: =IF(Fremskrivning!CY43="","",Fremskrivning!CY43)/1000 -> 0 | P35: =IF(Fremskrivning!DG43="","",Fremskrivning!DG43)/1000 -> 0
B37: Resultat af primær drift | C37: =IF(Fremskrivning!K45="","",Fremskrivning!K45)/1000 -> 0 | D37: =IF(Fremskrivning!O45="","",Fremskrivning!O45)/1000 -> 0 | E37: =IF(Fremskrivning!S45="","",Fremskrivning!S45)/1000 -> 0 | F37: =IF(Fremskrivning!AE45="","",Fremskrivning!AE45)/1000 -> 0 | G37: =IF(Fremskrivning!AM45="","",Fremskrivning!AM45)/1000 -> 0 | H37: =IF(Fremskrivning!AU45="","",Fremskrivning!AU45)/1000 -> 0 | I37: =IF(Fremskrivning!BC45="","",Fremskrivning!BC45)/1000 -> 0 | J37: =IF(Fremskrivning!BK45="","",Fremskrivning!BK45)/1000 -> 0 | K37: =IF(Fremskrivning!BS45="","",Fremskrivning!BS45)/1000 -> 0 | L37: =IF(Fremskrivning!CA45="","",Fremskrivning!CA45)/1000 -> 0 | M37: =IF(Fremskrivning!CI45="","",Fremskrivning!CI45)/1000 -> 0 | N37: =IF(Fremskrivning!CQ45="","",Fremskrivning!CQ45)/1000 -> 0 | O37: =IF(Fremskrivning!CY45="","",Fremskrivning!CY45)/1000 -> 0 | P37: =IF(Fremskrivning!DG45="","",Fremskrivning!DG45)/1000 -> 0
B39: Anden indtjening/virksomhed | C39: =IF(Fremskrivning!K47="","",Fremskrivning!K47)/1000 -> 0 | D39: =IF(Fremskrivning!O47="","",Fremskrivning!O47)/1000 -> 0 | E39: =IF(Fremskrivning!S47="","",Fremskrivning!S47)/1000 -> 0 | F39: =IF(Fremskrivning!AE47="","",Fremskrivning!AE47)/1000 -> 0 | G39: =IF(Fremskrivning!AM47="","",Fremskrivning!AM47)/1000 -> 0 | H39: =IF(Fremskrivning!AU47="","",Fremskrivning!AU47)/1000 -> 0 | I39: =IF(Fremskrivning!BC47="","",Fremskrivning!BC47)/1000 -> 0 | J39: =IF(Fremskrivning!BK47="","",Fremskrivning!BK47)/1000 -> 0 | K39: =IF(Fremskrivning!BS47="","",Fremskrivning!BS47)/1000 -> 0 | L39: =IF(Fremskrivning!CA47="","",Fremskrivning!CA47)/1000 -> 0 | M39: =IF(Fremskrivning!CI47="","",Fremskrivning!CI47)/1000 -> 0 | N39: =IF(Fremskrivning!CQ47="","",Fremskrivning!CQ47)/1000 -> 0 | O39: =IF(Fremskrivning!CY47="","",Fremskrivning!CY47)/1000 -> 0 | P39: =IF(Fremskrivning!DG47="","",Fremskrivning!DG47)/1000 -> 0
B40: Afkoblet EU-støtte mv. | C40: =IF(Fremskrivning!K48="","",Fremskrivning!K48)/1000 -> 0 | D40: =IF(Fremskrivning!O48="","",Fremskrivning!O48)/1000 -> 0 | E40: =IF(Fremskrivning!S48="","",Fremskrivning!S48)/1000 -> 0 | F40: =IF(Fremskrivning!AE48="","",Fremskrivning!AE48)/1000 -> 0 | G40: =IF(Fremskrivning!AM48="","",Fremskrivning!AM48)/1000 -> 0 | H40: =IF(Fremskrivning!AU48="","",Fremskrivning!AU48)/1000 -> 0 | I40: =IF(Fremskrivning!BC48="","",Fremskrivning!BC48)/1000 -> 0 | J40: =IF(Fremskrivning!BK48="","",Fremskrivning!BK48)/1000 -> 0 | K40: =IF(Fremskrivning!BS48="","",Fremskrivning!BS48)/1000 -> 0 | L40: =IF(Fremskrivning!CA48="","",Fremskrivning!CA48)/1000 -> 0 | M40: =IF(Fremskrivning!CI48="","",Fremskrivning!CI48)/1000 -> 0 | N40: =IF(Fremskrivning!CQ48="","",Fremskrivning!CQ48)/1000 -> 0 | O40: =IF(Fremskrivning!CY48="","",Fremskrivning!CY48)/1000 -> 0 | P40: =IF(Fremskrivning!DG48="","",Fremskrivning!DG48)/1000 -> 0
B42: Resultat før finansiering | C42: =IF(Fremskrivning!K50="","",Fremskrivning!K50)/1000 -> 0 | D42: =IF(Fremskrivning!O50="","",Fremskrivning!O50)/1000 -> 0 | E42: =IF(Fremskrivning!S50="","",Fremskrivning!S50)/1000 -> 0 | F42: =IF(Fremskrivning!AE50="","",Fremskrivning!AE50)/1000 -> 0 | G42: =IF(Fremskrivning!AM50="","",Fremskrivning!AM50)/1000 -> 0 | H42: =IF(Fremskrivning!AU50="","",Fremskrivning!AU50)/1000 -> 0 | I42: =IF(Fremskrivning!BC50="","",Fremskrivning!BC50)/1000 -> 0 | J42: =IF(Fremskrivning!BK50="","",Fremskrivning!BK50)/1000 -> 0 | K42: =IF(Fremskrivning!BS50="","",Fremskrivning!BS50)/1000 -> 0 | L42: =IF(Fremskrivning!CA50="","",Fremskrivning!CA50)/1000 -> 0 | M42: =IF(Fremskrivning!CI50="","",Fremskrivning!CI50)/1000 -> 0 | N42: =IF(Fremskrivning!CQ50="","",Fremskrivning!CQ50)/1000 -> 0 | O42: =IF(Fremskrivning!CY50="","",Fremskrivning!CY50)/1000 -> 0 | P42: =IF(Fremskrivning!DG50="","",Fremskrivning!DG50)/1000 -> 0
B44: Forpagtningsindtægt | C44: =IF(Fremskrivning!K52="","",Fremskrivning!K52)/1000 -> 0 | D44: =IF(Fremskrivning!O52="","",Fremskrivning!O52)/1000 -> 0 | E44: =IF(Fremskrivning!S52="","",Fremskrivning!S52)/1000 -> 0 | F44: =IF(Fremskrivning!AE52="","",Fremskrivning!AE52)/1000 -> 0 | G44: =IF(Fremskrivning!AM52="","",Fremskrivning!AM52)/1000 -> 0 | H44: =IF(Fremskrivning!AU52="","",Fremskrivning!AU52)/1000 -> 0 | I44: =IF(Fremskrivning!BC52="","",Fremskrivning!BC52)/1000 -> 0 | J44: =IF(Fremskrivning!BK52="","",Fremskrivning!BK52)/1000 -> 0 | K44: =IF(Fremskrivning!BS52="","",Fremskrivning!BS52)/1000 -> 0 | L44: =IF(Fremskrivning!CA52="","",Fremskrivning!CA52)/1000 -> 0 | M44: =IF(Fremskrivning!CI52="","",Fremskrivning!CI52)/1000 -> 0 | N44: =IF(Fremskrivning!CQ52="","",Fremskrivning!CQ52)/1000 -> 0 | O44: =IF(Fremskrivning!CY52="","",Fremskrivning!CY52)/1000 -> 0 | P44: =IF(Fremskrivning!DG52="","",Fremskrivning!DG52)/1000 -> 0
B45: Forpagtningsafgift | C45: =IF(Fremskrivning!K53="","",Fremskrivning!K53)/1000 -> 0 | D45: =IF(Fremskrivning!O53="","",Fremskrivning!O53)/1000 -> 0 | E45: =IF(Fremskrivning!S53="","",Fremskrivning!S53)/1000 -> 0 | F45: =IF(Fremskrivning!AE53="","",Fremskrivning!AE53)/1000 -> 0 | G45: =IF(Fremskrivning!AM53="","",Fremskrivning!AM53)/1000 -> 0 | H45: =IF(Fremskrivning!AU53="","",Fremskrivning!AU53)/1000 -> 0 | I45: =IF(Fremskrivning!BC53="","",Fremskrivning!BC53)/1000 -> 0 | J45: =IF(Fremskrivning!BK53="","",Fremskrivning!BK53)/1000 -> 0 | K45: =IF(Fremskrivning!BS53="","",Fremskrivning!BS53)/1000 -> 0 | L45: =IF(Fremskrivning!CA53="","",Fremskrivning!CA53)/1000 -> 0 | M45: =IF(Fremskrivning!CI53="","",Fremskrivning!CI53)/1000 -> 0 | N45: =IF(Fremskrivning!CQ53="","",Fremskrivning!CQ53)/1000 -> 0 | O45: =IF(Fremskrivning!CY53="","",Fremskrivning!CY53)/1000 -> 0 | P45: =IF(Fremskrivning!DG53="","",Fremskrivning!DG53)/1000 -> 0
B46: Renteindtægter, aktieudbytte og tilskud | C46: =IF(Fremskrivning!K54="","",Fremskrivning!K54)/1000 -> 0 | D46: =IF(Fremskrivning!O54="","",Fremskrivning!O54)/1000 -> 0 | E46: =IF(Fremskrivning!S54="","",Fremskrivning!S54)/1000 -> 0 | F46: =IF(Fremskrivning!AE54="","",Fremskrivning!AE54)/1000 -> 0 | G46: =IF(Fremskrivning!AM54="","",Fremskrivning!AM54)/1000 -> 0 | H46: =IF(Fremskrivning!AU54="","",Fremskrivning!AU54)/1000 -> 0 | I46: =IF(Fremskrivning!BC54="","",Fremskrivning!BC54)/1000 -> 0 | J46: =IF(Fremskrivning!BK54="","",Fremskrivning!BK54)/1000 -> 0 | K46: =IF(Fremskrivning!BS54="","",Fremskrivning!BS54)/1000 -> 0 | L46: =IF(Fremskrivning!CA54="","",Fremskrivning!CA54)/1000 -> 0 | M46: =IF(Fremskrivning!CI54="","",Fremskrivning!CI54)/1000 -> 0 | N46: =IF(Fremskrivning!CQ54="","",Fremskrivning!CQ54)/1000 -> 0 | O46: =IF(Fremskrivning!CY54="","",Fremskrivning!CY54)/1000 -> 0 | P46: =IF(Fremskrivning!DG54="","",Fremskrivning!DG54)/1000 -> 0
B47: Realiseret gevinst/tab finansaktiver | C47: =IF(Fremskrivning!K55="","",Fremskrivning!K55)/1000 -> 0 | D47: =IF(Fremskrivning!O55="","",Fremskrivning!O55)/1000 -> 0 | E47: =IF(Fremskrivning!S55="","",Fremskrivning!S55)/1000 -> 0 | F47: =IF(Fremskrivning!AE55="","",Fremskrivning!AE55)/1000 -> 0 | G47: =IF(Fremskrivning!AM55="","",Fremskrivning!AM55)/1000 -> 0 | H47: =IF(Fremskrivning!AU55="","",Fremskrivning!AU55)/1000 -> 0 | I47: =IF(Fremskrivning!BC55="","",Fremskrivning!BC55)/1000 -> 0 | J47: =IF(Fremskrivning!BK55="","",Fremskrivning!BK55)/1000 -> 0 | K47: =IF(Fremskrivning!BS55="","",Fremskrivning!BS55)/1000 -> 0 | L47: =IF(Fremskrivning!CA55="","",Fremskrivning!CA55)/1000 -> 0 | M47: =IF(Fremskrivning!CI55="","",Fremskrivning!CI55)/1000 -> 0 | N47: =IF(Fremskrivning!CQ55="","",Fremskrivning!CQ55)/1000 -> 0 | O47: =IF(Fremskrivning!CY55="","",Fremskrivning!CY55)/1000 -> 0 | P47: =IF(Fremskrivning!DG55="","",Fremskrivning!DG55)/1000 -> 0
B48: Rente- og bidragsudgifter | C48: =IF(Fremskrivning!K56="","",Fremskrivning!K56)/1000 -> 0 | D48: =IF(Fremskrivning!O56="","",Fremskrivning!O56)/1000 -> 0 | E48: =IF(Fremskrivning!S56="","",Fremskrivning!S56)/1000 -> 0 | F48: =IF(Fremskrivning!AE56="","",Fremskrivning!AE56)/1000 -> 0 | G48: =IF(Fremskrivning!AM56="","",Fremskrivning!AM56)/1000 -> 0 | H48: =IF(Fremskrivning!AU56="","",Fremskrivning!AU56)/1000 -> 0 | I48: =IF(Fremskrivning!BC56="","",Fremskrivning!BC56)/1000 -> 0 | J48: =IF(Fremskrivning!BK56="","",Fremskrivning!BK56)/1000 -> 0 | K48: =IF(Fremskrivning!BS56="","",Fremskrivning!BS56)/1000 -> 0 | L48: =IF(Fremskrivning!CA56="","",Fremskrivning!CA56)/1000 -> 0 | M48: =IF(Fremskrivning!CI56="","",Fremskrivning!CI56)/1000 -> 0 | N48: =IF(Fremskrivning!CQ56="","",Fremskrivning!CQ56)/1000 -> 0 | O48: =IF(Fremskrivning!CY56="","",Fremskrivning!CY56)/1000 -> 0 | P48: =IF(Fremskrivning!DG56="","",Fremskrivning!DG56)/1000 -> 0
B49: Prioritetsomkostninger | C49: =IF(Fremskrivning!K57="","",Fremskrivning!K57)/1000 -> 0 | D49: =IF(Fremskrivning!O57="","",Fremskrivning!O57)/1000 -> 0 | E49: =IF(Fremskrivning!S57="","",Fremskrivning!S57)/1000 -> 0 | F49: =IF(Fremskrivning!AE57="","",Fremskrivning!AE57)/1000 -> 0 | G49: =IF(Fremskrivning!AM57="","",Fremskrivning!AM57)/1000 -> 0 | H49: =IF(Fremskrivning!AU57="","",Fremskrivning!AU57)/1000 -> 0 | I49: =IF(Fremskrivning!BC57="","",Fremskrivning!BC57)/1000 -> 0 | J49: =IF(Fremskrivning!BK57="","",Fremskrivning!BK57)/1000 -> 0 | K49: =IF(Fremskrivning!BS57="","",Fremskrivning!BS57)/1000 -> 0 | L49: =IF(Fremskrivning!CA57="","",Fremskrivning!CA57)/1000 -> 0 | M49: =IF(Fremskrivning!CI57="","",Fremskrivning!CI57)/1000 -> 0 | N49: =IF(Fremskrivning!CQ57="","",Fremskrivning!CQ57)/1000 -> 0 | O49: =IF(Fremskrivning!CY57="","",Fremskrivning!CY57)/1000 -> 0 | P49: =IF(Fremskrivning!DG57="","",Fremskrivning!DG57)/1000 -> 0
B50: Realiseret gevinst/tab gæld | C50: =IF(Fremskrivning!K58="","",Fremskrivning!K58)/1000 -> 0 | D50: =IF(Fremskrivning!O58="","",Fremskrivning!O58)/1000 -> 0 | E50: =IF(Fremskrivning!S58="","",Fremskrivning!S58)/1000 -> 0 | F50: =IF(Fremskrivning!AE58="","",Fremskrivning!AE58)/1000 -> 0 | G50: =IF(Fremskrivning!AM58="","",Fremskrivning!AM58)/1000 -> 0 | H50: =IF(Fremskrivning!AU58="","",Fremskrivning!AU58)/1000 -> 0 | I50: =IF(Fremskrivning!BC58="","",Fremskrivning!BC58)/1000 -> 0 | J50: =IF(Fremskrivning!BK58="","",Fremskrivning!BK58)/1000 -> 0 | K50: =IF(Fremskrivning!BS58="","",Fremskrivning!BS58)/1000 -> 0 | L50: =IF(Fremskrivning!CA58="","",Fremskrivning!CA58)/1000 -> 0 | M50: =IF(Fremskrivning!CI58="","",Fremskrivning!CI58)/1000 -> 0 | N50: =IF(Fremskrivning!CQ58="","",Fremskrivning!CQ58)/1000 -> 0 | O50: =IF(Fremskrivning!CY58="","",Fremskrivning!CY58)/1000 -> 0 | P50: =IF(Fremskrivning!DG58="","",Fremskrivning!DG58)/1000 -> 0
B51: Finansiering i alt | C51: =IF(Fremskrivning!K59="","",Fremskrivning!K59)/1000 -> 0 | D51: =IF(Fremskrivning!O59="","",Fremskrivning!O59)/1000 -> 0 | E51: =IF(Fremskrivning!S59="","",Fremskrivning!S59)/1000 -> 0 | F51: =IF(Fremskrivning!AE59="","",Fremskrivning!AE59)/1000 -> 0 | G51: =IF(Fremskrivning!AM59="","",Fremskrivning!AM59)/1000 -> 0 | H51: =IF(Fremskrivning!AU59="","",Fremskrivning!AU59)/1000 -> 0 | I51: =IF(Fremskrivning!BC59="","",Fremskrivning!BC59)/1000 -> 0 | J51: =IF(Fremskrivning!BK59="","",Fremskrivning!BK59)/1000 -> 0 | K51: =IF(Fremskrivning!BS59="","",Fremskrivning!BS59)/1000 -> 0 | L51: =IF(Fremskrivning!CA59="","",Fremskrivning!CA59)/1000 -> 0 | M51: =IF(Fremskrivning!CI59="","",Fremskrivning!CI59)/1000 -> 0 | N51: =IF(Fremskrivning!CQ59="","",Fremskrivning!CQ59)/1000 -> 0 | O51: =IF(Fremskrivning!CY59="","",Fremskrivning!CY59)/1000 -> 0 | P51: =IF(Fremskrivning!DG59="","",Fremskrivning!DG59)/1000 -> 0
B53: Engangsposter | C53: =IF(Fremskrivning!K61="","",Fremskrivning!K61)/1000 -> 0 | D53: =IF(Fremskrivning!O61="","",Fremskrivning!O61)/1000 -> 0 | E53: =IF(Fremskrivning!S61="","",Fremskrivning!S61)/1000 -> 0 | F53: =IF(Fremskrivning!AE61="","",Fremskrivning!AE61)/1000 -> 0 | G53: =IF(Fremskrivning!AM61="","",Fremskrivning!AM61)/1000 -> 0 | H53: =IF(Fremskrivning!AU61="","",Fremskrivning!AU61)/1000 -> 0 | I53: =IF(Fremskrivning!BC61="","",Fremskrivning!BC61)/1000 -> 0 | J53: =IF(Fremskrivning!BK61="","",Fremskrivning!BK61)/1000 -> 0 | K53: =IF(Fremskrivning!BS61="","",Fremskrivning!BS61)/1000 -> 0 | L53: =IF(Fremskrivning!CA61="","",Fremskrivning!CA61)/1000 -> 0 | M53: =IF(Fremskrivning!CI61="","",Fremskrivning!CI61)/1000 -> 0 | N53: =IF(Fremskrivning!CQ61="","",Fremskrivning!CQ61)/1000 -> 0 | O53: =IF(Fremskrivning!CY61="","",Fremskrivning!CY61)/1000 -> 0 | P53: =IF(Fremskrivning!DG61="","",Fremskrivning!DG61)/1000 -> 0
B55: Resultat efter finansiering | C55: =IF(Fremskrivning!K63="","",Fremskrivning!K63)/1000 -> 0 | D55: =IF(Fremskrivning!O63="","",Fremskrivning!O63)/1000 -> 0 | E55: =IF(Fremskrivning!S63="","",Fremskrivning!S63)/1000 -> 0 | F55: =IF(Fremskrivning!AE63="","",Fremskrivning!AE63)/1000 -> 0 | G55: =IF(Fremskrivning!AM63="","",Fremskrivning!AM63)/1000 -> 0 | H55: =IF(Fremskrivning!AU63="","",Fremskrivning!AU63)/1000 -> 0 | I55: =IF(Fremskrivning!BC63="","",Fremskrivning!BC63)/1000 -> 0 | J55: =IF(Fremskrivning!BK63="","",Fremskrivning!BK63)/1000 -> 0 | K55: =IF(Fremskrivning!BS63="","",Fremskrivning!BS63)/1000 -> 0 | L55: =IF(Fremskrivning!CA63="","",Fremskrivning!CA63)/1000 -> 0 | M55: =IF(Fremskrivning!CI63="","",Fremskrivning!CI63)/1000 -> 0 | N55: =IF(Fremskrivning!CQ63="","",Fremskrivning!CQ63)/1000 -> 0 | O55: =IF(Fremskrivning!CY63="","",Fremskrivning!CY63)/1000 -> 0 | P55: =IF(Fremskrivning!DG63="","",Fremskrivning!DG63)/1000 -> 0
B57: Private indtægter/omkostninger | C57: =IF(Fremskrivning!K65="","",Fremskrivning!K65)/1000 -> 0 | D57: =IF(Fremskrivning!O65="","",Fremskrivning!O65)/1000 -> 0 | E57: =IF(Fremskrivning!S65="","",Fremskrivning!S65)/1000 -> 0 | F57: =IF(Fremskrivning!AE65="","",Fremskrivning!AE65)/1000 -> 0 | G57: =IF(Fremskrivning!AM65="","",Fremskrivning!AM65)/1000 -> 0 | H57: =IF(Fremskrivning!AU65="","",Fremskrivning!AU65)/1000 -> 0 | I57: =IF(Fremskrivning!BC65="","",Fremskrivning!BC65)/1000 -> 0 | J57: =IF(Fremskrivning!BK65="","",Fremskrivning!BK65)/1000 -> 0 | K57: =IF(Fremskrivning!BS65="","",Fremskrivning!BS65)/1000 -> 0 | L57: =IF(Fremskrivning!CA65="","",Fremskrivning!CA65)/1000 -> 0 | M57: =IF(Fremskrivning!CI65="","",Fremskrivning!CI65)/1000 -> 0 | N57: =IF(Fremskrivning!CQ65="","",Fremskrivning!CQ65)/1000 -> 0 | O57: =IF(Fremskrivning!CY65="","",Fremskrivning!CY65)/1000 -> 0 | P57: =IF(Fremskrivning!DG65="","",Fremskrivning!DG65)/1000 -> 0
B59: Resultat før regulering og skat | C59: =IF(Fremskrivning!K67="","",Fremskrivning!K67)/1000 -> 0 | D59: =IF(Fremskrivning!O67="","",Fremskrivning!O67)/1000 -> 0 | E59: =IF(Fremskrivning!S67="","",Fremskrivning!S67)/1000 -> 0 | F59: =IF(Fremskrivning!AE67="","",Fremskrivning!AE67)/1000 -> 0 | G59: =IF(Fremskrivning!AM67="","",Fremskrivning!AM67)/1000 -> 0 | H59: =IF(Fremskrivning!AU67="","",Fremskrivning!AU67)/1000 -> 0 | I59: =IF(Fremskrivning!BC67="","",Fremskrivning!BC67)/1000 -> 0 | J59: =IF(Fremskrivning!BK67="","",Fremskrivning!BK67)/1000 -> 0 | K59: =IF(Fremskrivning!BS67="","",Fremskrivning!BS67)/1000 -> 0 | L59: =IF(Fremskrivning!CA67="","",Fremskrivning!CA67)/1000 -> 0 | M59: =IF(Fremskrivning!CI67="","",Fremskrivning!CI67)/1000 -> 0 | N59: =IF(Fremskrivning!CQ67="","",Fremskrivning!CQ67)/1000 -> 0 | O59: =IF(Fremskrivning!CY67="","",Fremskrivning!CY67)/1000 -> 0 | P59: =IF(Fremskrivning!DG67="","",Fremskrivning!DG67)/1000 -> 0
B63: Produktionsgrundlag, enheder:
B64: Salgsafgrøder | C64: =Fremskrivning!I11 -> 0 | D64: =Fremskrivning!M11 -> 0 | E64: =Fremskrivning!Q11 -> 0 | F64: =Fremskrivning!AC11 -> 0 | G64: =Fremskrivning!AK11 -> 0 | H64: =Fremskrivning!AS11 -> 0 | I64: =Fremskrivning!BA11 -> 0 | J64: =Fremskrivning!BI11 -> 0 | K64: =Fremskrivning!BQ11 -> 0 | L64: =Fremskrivning!BY11 -> 0 | M64: =Fremskrivning!CG11 -> 0 | N64: =Fremskrivning!CO11 -> 0 | O64: =Fremskrivning!CW11 -> 0 | P64: =Fremskrivning!DE11 -> 0
B65: Kartofler | C65: =Fremskrivning!I12 -> 0 | D65: =Fremskrivning!M12 -> 0 | E65: =Fremskrivning!Q12 -> 0 | F65: =Fremskrivning!AC12 -> 0 | G65: =Fremskrivning!AK12 -> 0 | H65: =Fremskrivning!AS12 -> 0 | I65: =Fremskrivning!BA12 -> 0 | J65: =Fremskrivning!BI12 -> 0 | K65: =Fremskrivning!BQ12 -> 0 | L65: =Fremskrivning!BY12 -> 0 | M65: =Fremskrivning!CG12 -> 0 | N65: =Fremskrivning!CO12 -> 0 | O65: =Fremskrivning!CW12 -> 0 | P65: =Fremskrivning!DE12 -> 0
B66: Roer | C66: =Fremskrivning!I13 -> 0 | D66: =Fremskrivning!M13 -> 0 | E66: =Fremskrivning!Q13 -> 0 | F66: =Fremskrivning!AC13 -> 0 | G66: =Fremskrivning!AK13 -> 0 | H66: =Fremskrivning!AS13 -> 0 | I66: =Fremskrivning!BA13 -> 0 | J66: =Fremskrivning!BI13 -> 0 | K66: =Fremskrivning!BQ13 -> 0 | L66: =Fremskrivning!BY13 -> 0 | M66: =Fremskrivning!CG13 -> 0 | N66: =Fremskrivning!CO13 -> 0 | O66: =Fremskrivning!CW13 -> 0 | P66: =Fremskrivning!DE13 -> 0
B67: Grovfoder | C67: =Fremskrivning!I14 -> 0 | D67: =Fremskrivning!M14 -> 0 | E67: =Fremskrivning!Q14 -> 0 | F67: =Fremskrivning!AC14 -> 0 | G67: =Fremskrivning!AK14 -> 0 | H67: =Fremskrivning!AS14 -> 0 | I67: =Fremskrivning!BA14 -> 0 | J67: =Fremskrivning!BI14 -> 0 | K67: =Fremskrivning!BQ14 -> 0 | L67: =Fremskrivning!BY14 -> 0 | M67: =Fremskrivning!CG14 -> 0 | N67: =Fremskrivning!CO14 -> 0 | O67: =Fremskrivning!CW14 -> 0 | P67: =Fremskrivning!DE14 -> 0
B68: =IF(AND('DB pr enhed budget'!B20="",'DB pr enhed årsrapporter'!B18=""),"",IF('DB pr enhed budget'!B20="",'DB pr enhed årsrapporter'!B18,'DB pr enhed budget'!B20)) ->  | C68: =Fremskrivning!I15 -> 0 | D68: =Fremskrivning!M15 -> 0 | E68: =Fremskrivning!Q15 -> 0 | F68: =Fremskrivning!AC15 -> 0 | G68: =Fremskrivning!AK15 -> 0 | H68: =Fremskrivning!AS15 -> 0 | I68: =Fremskrivning!BA15 -> 0 | J68: =Fremskrivning!BI15 -> 0 | K68: =Fremskrivning!BQ15 -> 0 | L68: =Fremskrivning!BY15 -> 0 | M68: =Fremskrivning!CG15 -> 0 | N68: =Fremskrivning!CO15 -> 0 | O68: =Fremskrivning!CW15 -> 0 | P68: =Fremskrivning!DE15 -> 0
B69: Mælk | C69: =Fremskrivning!I16 -> 0 | D69: =Fremskrivning!M16 -> 0 | E69: =Fremskrivning!Q16 -> 0 | F69: =Fremskrivning!AC16 -> 0 | G69: =Fremskrivning!AK16 -> 0 | H69: =Fremskrivning!AS16 -> 0 | I69: =Fremskrivning!BA16 -> 0 | J69: =Fremskrivning!BI16 -> 0 | K69: =Fremskrivning!BQ16 -> 0 | L69: =Fremskrivning!BY16 -> 0 | M69: =Fremskrivning!CG16 -> 0 | N69: =Fremskrivning!CO16 -> 0 | O69: =Fremskrivning!CW16 -> 0 | P69: =Fremskrivning!DE16 -> 0
B70: Slagtekalve | C70: =Fremskrivning!I17 -> 0 | D70: =Fremskrivning!M17 -> 0 | E70: =Fremskrivning!Q17 -> 0 | F70: =Fremskrivning!AC17 -> 0 | G70: =Fremskrivning!AK17 -> 0 | H70: =Fremskrivning!AS17 -> 0 | I70: =Fremskrivning!BA17 -> 0 | J70: =Fremskrivning!BI17 -> 0 | K70: =Fremskrivning!BQ17 -> 0 | L70: =Fremskrivning!BY17 -> 0 | M70: =Fremskrivning!CG17 -> 0 | N70: =Fremskrivning!CO17 -> 0 | O70: =Fremskrivning!CW17 -> 0 | P70: =Fremskrivning!DE17 -> 0
B71: Sohold 7 kg | C71: =Fremskrivning!I18 -> 0 | D71: =Fremskrivning!M18 -> 0 | E71: =Fremskrivning!Q18 -> 0 | F71: =Fremskrivning!AC18 -> 0 | G71: =Fremskrivning!AK18 -> 0 | H71: =Fremskrivning!AS18 -> 0 | I71: =Fremskrivning!BA18 -> 0 | J71: =Fremskrivning!BI18 -> 0 | K71: =Fremskrivning!BQ18 -> 0 | L71: =Fremskrivning!BY18 -> 0 | M71: =Fremskrivning!CG18 -> 0 | N71: =Fremskrivning!CO18 -> 0 | O71: =Fremskrivning!CW18 -> 0 | P71: =Fremskrivning!DE18 -> 0
B72: Sohold 30 kg | C72: =Fremskrivning!I19 -> 0 | D72: =Fremskrivning!M19 -> 0 | E72: =Fremskrivning!Q19 -> 0 | F72: =Fremskrivning!AC19 -> 0 | G72: =Fremskrivning!AK19 -> 0 | H72: =Fremskrivning!AS19 -> 0 | I72: =Fremskrivning!BA19 -> 0 | J72: =Fremskrivning!BI19 -> 0 | K72: =Fremskrivning!BQ19 -> 0 | L72: =Fremskrivning!BY19 -> 0 | M72: =Fremskrivning!CG19 -> 0 | N72: =Fremskrivning!CO19 -> 0 | O72: =Fremskrivning!CW19 -> 0 | P72: =Fremskrivning!DE19 -> 0
B73: Slagtegrise | C73: =Fremskrivning!I20 -> 0 | D73: =Fremskrivning!M20 -> 0 | E73: =Fremskrivning!Q20 -> 0 | F73: =Fremskrivning!AC20 -> 0 | G73: =Fremskrivning!AK20 -> 0 | H73: =Fremskrivning!AS20 -> 0 | I73: =Fremskrivning!BA20 -> 0 | J73: =Fremskrivning!BI20 -> 0 | K73: =Fremskrivning!BQ20 -> 0 | L73: =Fremskrivning!BY20 -> 0 | M73: =Fremskrivning!CG20 -> 0 | N73: =Fremskrivning!CO20 -> 0 | O73: =Fremskrivning!CW20 -> 0 | P73: =Fremskrivning!DE20 -> 0
B74: Slagtekyllinger | C74: =Fremskrivning!I21 -> 0 | D74: =Fremskrivning!M21 -> 0 | E74: =Fremskrivning!Q21 -> 0 | F74: =Fremskrivning!AC21 -> 0 | G74: =Fremskrivning!AK21 -> 0 | H74: =Fremskrivning!AS21 -> 0 | I74: =Fremskrivning!BA21 -> 0 | J74: =Fremskrivning!BI21 -> 0 | K74: =Fremskrivning!BQ21 -> 0 | L74: =Fremskrivning!BY21 -> 0 | M74: =Fremskrivning!CG21 -> 0 | N74: =Fremskrivning!CO21 -> 0 | O74: =Fremskrivning!CW21 -> 0 | P74: =Fremskrivning!DE21 -> 0
B75: Høns | C75: =Fremskrivning!I22 -> 0 | D75: =Fremskrivning!M22 -> 0 | E75: =Fremskrivning!Q22 -> 0 | F75: =Fremskrivning!AC22 -> 0 | G75: =Fremskrivning!AK22 -> 0 | H75: =Fremskrivning!AS22 -> 0 | I75: =Fremskrivning!BA22 -> 0 | J75: =Fremskrivning!BI22 -> 0 | K75: =Fremskrivning!BQ22 -> 0 | L75: =Fremskrivning!BY22 -> 0 | M75: =Fremskrivning!CG22 -> 0 | N75: =Fremskrivning!CO22 -> 0 | O75: =Fremskrivning!CW22 -> 0 | P75: =Fremskrivning!DE22 -> 0
B76: Øvrige | C76: =Fremskrivning!I23 -> 0 | D76: =Fremskrivning!M23 -> 0 | E76: =Fremskrivning!Q23 -> 0 | F76: =Fremskrivning!AC23 -> 0 | G76: =Fremskrivning!AK23 -> 0 | H76: =Fremskrivning!AS23 -> 0 | I76: =Fremskrivning!BA23 -> 0 | J76: =Fremskrivning!BI23 -> 0 | K76: =Fremskrivning!BQ23 -> 0 | L76: =Fremskrivning!BY23 -> 0 | M76: =Fremskrivning!CG23 -> 0 | N76: =Fremskrivning!CO23 -> 0 | O76: =Fremskrivning!CW23 -> 0 | P76: =Fremskrivning!DE23 -> 0
B78: Produktionsgrundlag, kr. pr. enhed:
B79: Salgsafgrøder | C79: =Fremskrivning!J11 -> 0 | D79: =Fremskrivning!N11 -> 0 | E79: =Fremskrivning!R11 -> 0 | F79: =Fremskrivning!AD11 -> 0 | G79: =Fremskrivning!AL11 -> 0 | H79: =Fremskrivning!AT11 -> 0 | I79: =Fremskrivning!BB11 -> 0 | J79: =Fremskrivning!BJ11 -> 0 | K79: =Fremskrivning!BR11 -> 0 | L79: =Fremskrivning!BZ11 -> 0 | M79: =Fremskrivning!CH11 -> 0 | N79: =Fremskrivning!CP11 -> 0 | O79: =Fremskrivning!CX11 -> 0 | P79: =Fremskrivning!DF11 -> 0
B80: Kartofler | C80: =Fremskrivning!J12 -> 0 | D80: =Fremskrivning!N12 -> 0 | E80: =Fremskrivning!R12 -> 0 | F80: =Fremskrivning!AD12 -> 0 | G80: =Fremskrivning!AL12 -> 0 | H80: =Fremskrivning!AT12 -> 0 | I80: =Fremskrivning!BB12 -> 0 | J80: =Fremskrivning!BJ12 -> 0 | K80: =Fremskrivning!BR12 -> 0 | L80: =Fremskrivning!BZ12 -> 0 | M80: =Fremskrivning!CH12 -> 0 | N80: =Fremskrivning!CP12 -> 0 | O80: =Fremskrivning!CX12 -> 0 | P80: =Fremskrivning!DF12 -> 0
B81: Roer | C81: =Fremskrivning!J13 -> 0 | D81: =Fremskrivning!N13 -> 0 | E81: =Fremskrivning!R13 -> 0 | F81: =Fremskrivning!AD13 -> 0 | G81: =Fremskrivning!AL13 -> 0 | H81: =Fremskrivning!AT13 -> 0 | I81: =Fremskrivning!BB13 -> 0 | J81: =Fremskrivning!BJ13 -> 0 | K81: =Fremskrivning!BR13 -> 0 | L81: =Fremskrivning!BZ13 -> 0 | M81: =Fremskrivning!CH13 -> 0 | N81: =Fremskrivning!CP13 -> 0 | O81: =Fremskrivning!CX13 -> 0 | P81: =Fremskrivning!DF13 -> 0
B82: Grovfoder | C82: =Fremskrivning!J14 -> 0 | D82: =Fremskrivning!N14 -> 0 | E82: =Fremskrivning!R14 -> 0 | F82: =Fremskrivning!AD14 -> 0 | G82: =Fremskrivning!AL14 -> 0 | H82: =Fremskrivning!AT14 -> 0 | I82: =Fremskrivning!BB14 -> 0 | J82: =Fremskrivning!BJ14 -> 0 | K82: =Fremskrivning!BR14 -> 0 | L82: =Fremskrivning!BZ14 -> 0 | M82: =Fremskrivning!CH14 -> 0 | N82: =Fremskrivning!CP14 -> 0 | O82: =Fremskrivning!CX14 -> 0 | P82: =Fremskrivning!DF14 -> 0
B83: =IF(AND('DB pr enhed budget'!B20="",'DB pr enhed årsrapporter'!B18=""),"",IF('DB pr enhed budget'!B20="",'DB pr enhed årsrapporter'!B18,'DB pr enhed budget'!B20)) ->  | C83: =Fremskrivning!J15 -> 0 | D83: =Fremskrivning!N15 -> 0 | E83: =Fremskrivning!R15 -> 0 | F83: =Fremskrivning!AD15 -> 0 | G83: =Fremskrivning!AL15 -> 0 | H83: =Fremskrivning!AT15 -> 0 | I83: =Fremskrivning!BB15 -> 0 | J83: =Fremskrivning!BJ15 -> 0 | K83: =Fremskrivning!BR15 -> 0 | L83: =Fremskrivning!BZ15 -> 0 | M83: =Fremskrivning!CH15 -> 0 | N83: =Fremskrivning!CP15 -> 0 | O83: =Fremskrivning!CX15 -> 0 | P83: =Fremskrivning!DF15 -> 0
B84: Mælk | C84: =Fremskrivning!J16 -> 0 | D84: =Fremskrivning!N16 -> 0 | E84: =Fremskrivning!R16 -> 0 | F84: =Fremskrivning!AD16 -> 0 | G84: =Fremskrivning!AL16 -> 0 | H84: =Fremskrivning!AT16 -> 0 | I84: =Fremskrivning!BB16 -> 0 | J84: =Fremskrivning!BJ16 -> 0 | K84: =Fremskrivning!BR16 -> 0 | L84: =Fremskrivning!BZ16 -> 0 | M84: =Fremskrivning!CH16 -> 0 | N84: =Fremskrivning!CP16 -> 0 | O84: =Fremskrivning!CX16 -> 0 | P84: =Fremskrivning!DF16 -> 0
B85: Slagtekalve | C85: =Fremskrivning!J17 -> 0 | D85: =Fremskrivning!N17 -> 0 | E85: =Fremskrivning!R17 -> 0 | F85: =Fremskrivning!AD17 -> 0 | G85: =Fremskrivning!AL17 -> 0 | H85: =Fremskrivning!AT17 -> 0 | I85: =Fremskrivning!BB17 -> 0 | J85: =Fremskrivning!BJ17 -> 0 | K85: =Fremskrivning!BR17 -> 0 | L85: =Fremskrivning!BZ17 -> 0 | M85: =Fremskrivning!CH17 -> 0 | N85: =Fremskrivning!CP17 -> 0 | O85: =Fremskrivning!CX17 -> 0 | P85: =Fremskrivning!DF17 -> 0
B86: Sohold 7 kg | C86: =Fremskrivning!J18 -> 0 | D86: =Fremskrivning!N18 -> 0 | E86: =Fremskrivning!R18 -> 0 | F86: =Fremskrivning!AD18 -> 0 | G86: =Fremskrivning!AL18 -> 0 | H86: =Fremskrivning!AT18 -> 0 | I86: =Fremskrivning!BB18 -> 0 | J86: =Fremskrivning!BJ18 -> 0 | K86: =Fremskrivning!BR18 -> 0 | L86: =Fremskrivning!BZ18 -> 0 | M86: =Fremskrivning!CH18 -> 0 | N86: =Fremskrivning!CP18 -> 0 | O86: =Fremskrivning!CX18 -> 0 | P86: =Fremskrivning!DF18 -> 0
B87: Sohold 30 kg | C87: =Fremskrivning!J19 -> 0 | D87: =Fremskrivning!N19 -> 0 | E87: =Fremskrivning!R19 -> 0 | F87: =Fremskrivning!AD19 -> 0 | G87: =Fremskrivning!AL19 -> 0 | H87: =Fremskrivning!AT19 -> 0 | I87: =Fremskrivning!BB19 -> 0 | J87: =Fremskrivning!BJ19 -> 0 | K87: =Fremskrivning!BR19 -> 0 | L87: =Fremskrivning!BZ19 -> 0 | M87: =Fremskrivning!CH19 -> 0 | N87: =Fremskrivning!CP19 -> 0 | O87: =Fremskrivning!CX19 -> 0 | P87: =Fremskrivning!DF19 -> 0
B88: Slagtegrise | C88: =Fremskrivning!J20 -> 0 | D88: =Fremskrivning!N20 -> 0 | E88: =Fremskrivning!R20 -> 0 | F88: =Fremskrivning!AD20 -> 0 | G88: =Fremskrivning!AL20 -> 0 | H88: =Fremskrivning!AT20 -> 0 | I88: =Fremskrivning!BB20 -> 0 | J88: =Fremskrivning!BJ20 -> 0 | K88: =Fremskrivning!BR20 -> 0 | L88: =Fremskrivning!BZ20 -> 0 | M88: =Fremskrivning!CH20 -> 0 | N88: =Fremskrivning!CP20 -> 0 | O88: =Fremskrivning!CX20 -> 0 | P88: =Fremskrivning!DF20 -> 0
B89: Slagtekyllinger | C89: =Fremskrivning!J21 -> 0 | D89: =Fremskrivning!N21 -> 0 | E89: =Fremskrivning!R21 -> 0 | F89: =Fremskrivning!AD21 -> 0 | G89: =Fremskrivning!AL21 -> 0 | H89: =Fremskrivning!AT21 -> 0 | I89: =Fremskrivning!BB21 -> 0 | J89: =Fremskrivning!BJ21 -> 0 | K89: =Fremskrivning!BR21 -> 0 | L89: =Fremskrivning!BZ21 -> 0 | M89: =Fremskrivning!CH21 -> 0 | N89: =Fremskrivning!CP21 -> 0 | O89: =Fremskrivning!CX21 -> 0 | P89: =Fremskrivning!DF21 -> 0
B90: Høns | C90: =Fremskrivning!J22 -> 0 | D90: =Fremskrivning!N22 -> 0 | E90: =Fremskrivning!R22 -> 0 | F90: =Fremskrivning!AD22 -> 0 | G90: =Fremskrivning!AL22 -> 0 | H90: =Fremskrivning!AT22 -> 0 | I90: =Fremskrivning!BB22 -> 0 | J90: =Fremskrivning!BJ22 -> 0 | K90: =Fremskrivning!BR22 -> 0 | L90: =Fremskrivning!BZ22 -> 0 | M90: =Fremskrivning!CH22 -> 0 | N90: =Fremskrivning!CP22 -> 0 | O90: =Fremskrivning!CX22 -> 0 | P90: =Fremskrivning!DF22 -> 0
B91: Øvrige | C91: =Fremskrivning!J23 -> 0 | D91: =Fremskrivning!N23 -> 0 | E91: =Fremskrivning!R23 -> 0 | F91: =Fremskrivning!AD23 -> 0 | G91: =Fremskrivning!AL23 -> 0 | H91: =Fremskrivning!AT23 -> 0 | I91: =Fremskrivning!BB23 -> 0 | J91: =Fremskrivning!BJ23 -> 0 | K91: =Fremskrivning!BR23 -> 0 | L91: =Fremskrivning!BZ23 -> 0 | M91: =Fremskrivning!CH23 -> 0 | N91: =Fremskrivning!CP23 -> 0 | O91: =Fremskrivning!CX23 -> 0 | P91: =Fremskrivning!DF23 -> 0
B93: Produktionsgrundlag, i alt (1.000 kr)
B94: Salgsafgrøder | C94: =Fremskrivning!K11/1000 -> 0 | D94: =Fremskrivning!O11/1000 -> 0 | E94: =Fremskrivning!S11/1000 -> 0 | F94: =Fremskrivning!AE11/1000 -> 0 | G94: =Fremskrivning!AM11/1000 -> 0 | H94: =Fremskrivning!AU11/1000 -> 0 | I94: =Fremskrivning!BC11/1000 -> 0 | J94: =Fremskrivning!BK11/1000 -> 0 | K94: =Fremskrivning!BS11/1000 -> 0 | L94: =Fremskrivning!CA11/1000 -> 0 | M94: =Fremskrivning!CI11/1000 -> 0 | N94: =Fremskrivning!CQ11/1000 -> 0 | O94: =Fremskrivning!CY11/1000 -> 0 | P94: =Fremskrivning!DG11/1000 -> 0
B95: Kartofler | C95: =Fremskrivning!K12/1000 -> 0 | D95: =Fremskrivning!O12/1000 -> 0 | E95: =Fremskrivning!S12/1000 -> 0 | F95: =Fremskrivning!AE12/1000 -> 0 | G95: =Fremskrivning!AM12/1000 -> 0 | H95: =Fremskrivning!AU12/1000 -> 0 | I95: =Fremskrivning!BC12/1000 -> 0 | J95: =Fremskrivning!BK12/1000 -> 0 | K95: =Fremskrivning!BS12/1000 -> 0 | L95: =Fremskrivning!CA12/1000 -> 0 | M95: =Fremskrivning!CI12/1000 -> 0 | N95: =Fremskrivning!CQ12/1000 -> 0 | O95: =Fremskrivning!CY12/1000 -> 0 | P95: =Fremskrivning!DG12/1000 -> 0
B96: Roer | C96: =Fremskrivning!K13/1000 -> 0 | D96: =Fremskrivning!O13/1000 -> 0 | E96: =Fremskrivning!S13/1000 -> 0 | F96: =Fremskrivning!AE13/1000 -> 0 | G96: =Fremskrivning!AM13/1000 -> 0 | H96: =Fremskrivning!AU13/1000 -> 0 | I96: =Fremskrivning!BC13/1000 -> 0 | J96: =Fremskrivning!BK13/1000 -> 0 | K96: =Fremskrivning!BS13/1000 -> 0 | L96: =Fremskrivning!CA13/1000 -> 0 | M96: =Fremskrivning!CI13/1000 -> 0 | N96: =Fremskrivning!CQ13/1000 -> 0 | O96: =Fremskrivning!CY13/1000 -> 0 | P96: =Fremskrivning!DG13/1000 -> 0
B97: Grovfoder | C97: =Fremskrivning!K14/1000 -> 0 | D97: =Fremskrivning!O14/1000 -> 0 | E97: =Fremskrivning!S14/1000 -> 0 | F97: =Fremskrivning!AE14/1000 -> 0 | G97: =Fremskrivning!AM14/1000 -> 0 | H97: =Fremskrivning!AU14/1000 -> 0 | I97: =Fremskrivning!BC14/1000 -> 0 | J97: =Fremskrivning!BK14/1000 -> 0 | K97: =Fremskrivning!BS14/1000 -> 0 | L97: =Fremskrivning!CA14/1000 -> 0 | M97: =Fremskrivning!CI14/1000 -> 0 | N97: =Fremskrivning!CQ14/1000 -> 0 | O97: =Fremskrivning!CY14/1000 -> 0 | P97: =Fremskrivning!DG14/1000 -> 0
B98: =IF(AND('DB pr enhed budget'!B20="",'DB pr enhed årsrapporter'!B18=""),"",IF('DB pr enhed budget'!B20="",'DB pr enhed årsrapporter'!B18,'DB pr enhed budget'!B20)) ->  | C98: =Fremskrivning!K15/1000 -> 0 | D98: =Fremskrivning!O15/1000 -> 0 | E98: =Fremskrivning!S15/1000 -> 0 | F98: =Fremskrivning!AE15/1000 -> 0 | G98: =Fremskrivning!AM15/1000 -> 0 | H98: =Fremskrivning!AU15/1000 -> 0 | I98: =Fremskrivning!BC15/1000 -> 0 | J98: =Fremskrivning!BK15/1000 -> 0 | K98: =Fremskrivning!BS15/1000 -> 0 | L98: =Fremskrivning!CA15/1000 -> 0 | M98: =Fremskrivning!CI15/1000 -> 0 | N98: =Fremskrivning!CQ15/1000 -> 0 | O98: =Fremskrivning!CY15/1000 -> 0 | P98: =Fremskrivning!DG15/1000 -> 0
B99: Mælk | C99: =Fremskrivning!K16/1000 -> 0 | D99: =Fremskrivning!O16/1000 -> 0 | E99: =Fremskrivning!S16/1000 -> 0 | F99: =Fremskrivning!AE16/1000 -> 0 | G99: =Fremskrivning!AM16/1000 -> 0 | H99: =Fremskrivning!AU16/1000 -> 0 | I99: =Fremskrivning!BC16/1000 -> 0 | J99: =Fremskrivning!BK16/1000 -> 0 | K99: =Fremskrivning!BS16/1000 -> 0 | L99: =Fremskrivning!CA16/1000 -> 0 | M99: =Fremskrivning!CI16/1000 -> 0 | N99: =Fremskrivning!CQ16/1000 -> 0 | O99: =Fremskrivning!CY16/1000 -> 0 | P99: =Fremskrivning!DG16/1000 -> 0
B100: Slagtekalve | C100: =Fremskrivning!K17/1000 -> 0 | D100: =Fremskrivning!O17/1000 -> 0 | E100: =Fremskrivning!S17/1000 -> 0 | F100: =Fremskrivning!AE17/1000 -> 0 | G100: =Fremskrivning!AM17/1000 -> 0 | H100: =Fremskrivning!AU17/1000 -> 0 | I100: =Fremskrivning!BC17/1000 -> 0 | J100: =Fremskrivning!BK17/1000 -> 0 | K100: =Fremskrivning!BS17/1000 -> 0 | L100: =Fremskrivning!CA17/1000 -> 0 | M100: =Fremskrivning!CI17/1000 -> 0 | N100: =Fremskrivning!CQ17/1000 -> 0 | O100: =Fremskrivning!CY17/1000 -> 0 | P100: =Fremskrivning!DG17/1000 -> 0
B101: Sohold 7 kg | C101: =Fremskrivning!K18/1000 -> 0 | D101: =Fremskrivning!O18/1000 -> 0 | E101: =Fremskrivning!S18/1000 -> 0 | F101: =Fremskrivning!AE18/1000 -> 0 | G101: =Fremskrivning!AM18/1000 -> 0 | H101: =Fremskrivning!AU18/1000 -> 0 | I101: =Fremskrivning!BC18/1000 -> 0 | J101: =Fremskrivning!BK18/1000 -> 0 | K101: =Fremskrivning!BS18/1000 -> 0 | L101: =Fremskrivning!CA18/1000 -> 0 | M101: =Fremskrivning!CI18/1000 -> 0 | N101: =Fremskrivning!CQ18/1000 -> 0 | O101: =Fremskrivning!CY18/1000 -> 0 | P101: =Fremskrivning!DG18/1000 -> 0
B102: Sohold 30 kg | C102: =Fremskrivning!K19/1000 -> 0 | D102: =Fremskrivning!O19/1000 -> 0 | E102: =Fremskrivning!S19/1000 -> 0 | F102: =Fremskrivning!AE19/1000 -> 0 | G102: =Fremskrivning!AM19/1000 -> 0 | H102: =Fremskrivning!AU19/1000 -> 0 | I102: =Fremskrivning!BC19/1000 -> 0 | J102: =Fremskrivning!BK19/1000 -> 0 | K102: =Fremskrivning!BS19/1000 -> 0 | L102: =Fremskrivning!CA19/1000 -> 0 | M102: =Fremskrivning!CI19/1000 -> 0 | N102: =Fremskrivning!CQ19/1000 -> 0 | O102: =Fremskrivning!CY19/1000 -> 0 | P102: =Fremskrivning!DG19/1000 -> 0
B103: Slagtegrise | C103: =Fremskrivning!K20/1000 -> 0 | D103: =Fremskrivning!O20/1000 -> 0 | E103: =Fremskrivning!S20/1000 -> 0 | F103: =Fremskrivning!AE20/1000 -> 0 | G103: =Fremskrivning!AM20/1000 -> 0 | H103: =Fremskrivning!AU20/1000 -> 0 | I103: =Fremskrivning!BC20/1000 -> 0 | J103: =Fremskrivning!BK20/1000 -> 0 | K103: =Fremskrivning!BS20/1000 -> 0 | L103: =Fremskrivning!CA20/1000 -> 0 | M103: =Fremskrivning!CI20/1000 -> 0 | N103: =Fremskrivning!CQ20/1000 -> 0 | O103: =Fremskrivning!CY20/1000 -> 0 | P103: =Fremskrivning!DG20/1000 -> 0
B104: Slagtekyllinger | C104: =Fremskrivning!K21/1000 -> 0 | D104: =Fremskrivning!O21/1000 -> 0 | E104: =Fremskrivning!S21/1000 -> 0 | F104: =Fremskrivning!AE21/1000 -> 0 | G104: =Fremskrivning!AM21/1000 -> 0 | H104: =Fremskrivning!AU21/1000 -> 0 | I104: =Fremskrivning!BC21/1000 -> 0 | J104: =Fremskrivning!BK21/1000 -> 0 | K104: =Fremskrivning!BS21/1000 -> 0 | L104: =Fremskrivning!CA21/1000 -> 0 | M104: =Fremskrivning!CI21/1000 -> 0 | N104: =Fremskrivning!CQ21/1000 -> 0 | O104: =Fremskrivning!CY21/1000 -> 0 | P104: =Fremskrivning!DG21/1000 -> 0
B105: Høns | C105: =Fremskrivning!K22/1000 -> 0 | D105: =Fremskrivning!O22/1000 -> 0 | E105: =Fremskrivning!S22/1000 -> 0 | F105: =Fremskrivning!AE22/1000 -> 0 | G105: =Fremskrivning!AM22/1000 -> 0 | H105: =Fremskrivning!AU22/1000 -> 0 | I105: =Fremskrivning!BC22/1000 -> 0 | J105: =Fremskrivning!BK22/1000 -> 0 | K105: =Fremskrivning!BS22/1000 -> 0 | L105: =Fremskrivning!CA22/1000 -> 0 | M105: =Fremskrivning!CI22/1000 -> 0 | N105: =Fremskrivning!CQ22/1000 -> 0 | O105: =Fremskrivning!CY22/1000 -> 0 | P105: =Fremskrivning!DG22/1000 -> 0
B106: Øvrige | C106: =Fremskrivning!K23/1000 -> 0 | D106: =Fremskrivning!O23/1000 -> 0 | E106: =Fremskrivning!S23/1000 -> 0 | F106: =Fremskrivning!AE23/1000 -> 0 | G106: =Fremskrivning!AM23/1000 -> 0 | H106: =Fremskrivning!AU23/1000 -> 0 | I106: =Fremskrivning!BC23/1000 -> 0 | J106: =Fremskrivning!BK23/1000 -> 0 | K106: =Fremskrivning!BS23/1000 -> 0 | L106: =Fremskrivning!CA23/1000 -> 0 | M106: =Fremskrivning!CI23/1000 -> 0 | N106: =Fremskrivning!CQ23/1000 -> 0 | O106: =Fremskrivning!CY23/1000 -> 0 | P106: =Fremskrivning!DG23/1000 -> 0

Sheet Pengebinding
B2: Pengebinding
C4: =D4-1 -> 2021 | D4: 2022 | E4: =F4-1 -> 2023 | F4: =Forudsætninger!B34 -> 2024 | G4: =F4+1 -> 2025 | H4: =G4+1 -> 2026 | I4: 2027 | J4: 2028 | K4: 2029 | L4: 2030 | M4: 2031 | N4: 2032 | O4: 2033 | P4: 2034
B7: Årets resultat før skat | C7: =IF(Fremskrivning!K73="","",Fremskrivning!K73)/1000 -> 0 | D7: =IF(Fremskrivning!O73="","",Fremskrivning!O73)/1000 -> 0 | E7: =IF(Fremskrivning!S73="","",Fremskrivning!S73)/1000 -> 0 | F7: =IF(Fremskrivning!AE73="","",Fremskrivning!AE73)/1000 -> 0 | G7: =IF(Fremskrivning!AM73="","",Fremskrivning!AM73)/1000 -> 0 | H7: =IF(Fremskrivning!AU73="","",Fremskrivning!AU73)/1000 -> 0 | I7: =IF(Fremskrivning!BC73="","",Fremskrivning!BC73)/1000 -> 0 | J7: =IF(Fremskrivning!BK73="","",Fremskrivning!BK73)/1000 -> 0 | K7: =IF(Fremskrivning!BS73="","",Fremskrivning!BS73)/1000 -> 0 | L7: =IF(Fremskrivning!CA73="","",Fremskrivning!CA73)/1000 -> 0 | M7: =IF(Fremskrivning!CI73="","",Fremskrivning!CI73)/1000 -> 0 | N7: =IF(Fremskrivning!CQ73="","",Fremskrivning!CQ73)/1000 -> 0 | O7: =IF(Fremskrivning!CY73="","",Fremskrivning!CY73)/1000 -> 0 | P7: =IF(Fremskrivning!DG73="","",Fremskrivning!DG73)/1000 -> 0
B9: Tilbageførsel i alt | C9: =IF(Fremskrivning!K75="","",Fremskrivning!K75)/1000 -> 0 | D9: =IF(Fremskrivning!O75="","",Fremskrivning!O75)/1000 -> 0 | E9: =IF(Fremskrivning!S75="","",Fremskrivning!S75)/1000 -> 0 | F9: =IF(Fremskrivning!AE75="","",Fremskrivning!AE75)/1000 -> 0 | G9: =IF(Fremskrivning!AM75="","",Fremskrivning!AM75)/1000 -> 0 | H9: =IF(Fremskrivning!AU75="","",Fremskrivning!AU75)/1000 -> 0 | I9: =IF(Fremskrivning!BC75="","",Fremskrivning!BC75)/1000 -> 0 | J9: =IF(Fremskrivning!BK75="","",Fremskrivning!BK75)/1000 -> 0 | K9: =IF(Fremskrivning!BS75="","",Fremskrivning!BS75)/1000 -> 0 | L9: =IF(Fremskrivning!CA75="","",Fremskrivning!CA75)/1000 -> 0 | M9: =IF(Fremskrivning!CI75="","",Fremskrivning!CI75)/1000 -> 0 | N9: =IF(Fremskrivning!CQ75="","",Fremskrivning!CQ75)/1000 -> 0 | O9: =IF(Fremskrivning!CY75="","",Fremskrivning!CY75)/1000 -> 0 | P9: =IF(Fremskrivning!DG75="","",Fremskrivning!DG75)/1000 -> 0
B11: Betalt skat | C11: =IF(Fremskrivning!K77="","",Fremskrivning!K77)/1000 -> 0 | D11: =IF(Fremskrivning!O77="","",Fremskrivning!O77)/1000 -> 0 | E11: =IF(Fremskrivning!S77="","",Fremskrivning!S77)/1000 -> 0 | F11: =IF(Fremskrivning!AE77="","",Fremskrivning!AE77)/1000 -> 0 | G11: =IF(Fremskrivning!AM77="","",Fremskrivning!AM77)/1000 -> 0 | H11: =IF(Fremskrivning!AU77="","",Fremskrivning!AU77)/1000 -> 0 | I11: =IF(Fremskrivning!BC77="","",Fremskrivning!BC77)/1000 -> 0 | J11: =IF(Fremskrivning!BK77="","",Fremskrivning!BK77)/1000 -> 0 | K11: =IF(Fremskrivning!BS77="","",Fremskrivning!BS77)/1000 -> 0 | L11: =IF(Fremskrivning!CA77="","",Fremskrivning!CA77)/1000 -> 0 | M11: =IF(Fremskrivning!CI77="","",Fremskrivning!CI77)/1000 -> 0 | N11: =IF(Fremskrivning!CQ77="","",Fremskrivning!CQ77)/1000 -> 0 | O11: =IF(Fremskrivning!CY77="","",Fremskrivning!CY77)/1000 -> 0 | P11: =IF(Fremskrivning!DG77="","",Fremskrivning!DG77)/1000 -> 0
B12: Privat | C12: =IF(Fremskrivning!K78="","",Fremskrivning!K78)/1000 -> 0 | D12: =IF(Fremskrivning!O78="","",Fremskrivning!O78)/1000 -> 0 | E12: =IF(Fremskrivning!S78="","",Fremskrivning!S78)/1000 -> 0 | F12: =IF(Fremskrivning!AE78="","",Fremskrivning!AE78)/1000 -> 0 | G12: =IF(Fremskrivning!AM78="","",Fremskrivning!AM78)/1000 -> 0 | H12: =IF(Fremskrivning!AU78="","",Fremskrivning!AU78)/1000 -> 0 | I12: =IF(Fremskrivning!BC78="","",Fremskrivning!BC78)/1000 -> 0 | J12: =IF(Fremskrivning!BK78="","",Fremskrivning!BK78)/1000 -> 0 | K12: =IF(Fremskrivning!BS78="","",Fremskrivning!BS78)/1000 -> 0 | L12: =IF(Fremskrivning!CA78="","",Fremskrivning!CA78)/1000 -> 0 | M12: =IF(Fremskrivning!CI78="","",Fremskrivning!CI78)/1000 -> 0 | N12: =IF(Fremskrivning!CQ78="","",Fremskrivning!CQ78)/1000 -> 0 | O12: =IF(Fremskrivning!CY78="","",Fremskrivning!CY78)/1000 -> 0 | P12: =IF(Fremskrivning!DG78="","",Fremskrivning!DG78)/1000 -> 0
B13: Afskrivninger privat tlbf. m.m. | C13: =IF(Fremskrivning!K79="","",Fremskrivning!K79)/1000 -> 0 | D13: =IF(Fremskrivning!O79="","",Fremskrivning!O79)/1000 -> 0 | E13: =IF(Fremskrivning!S79="","",Fremskrivning!S79)/1000 -> 0 | F13: =IF(Fremskrivning!AE79="","",Fremskrivning!AE79)/1000 -> 0 | G13: =IF(Fremskrivning!AM79="","",Fremskrivning!AM79)/1000 -> 0 | H13: =IF(Fremskrivning!AU79="","",Fremskrivning!AU79)/1000 -> 0 | I13: =IF(Fremskrivning!BC79="","",Fremskrivning!BC79)/1000 -> 0 | J13: =IF(Fremskrivning!BK79="","",Fremskrivning!BK79)/1000 -> 0 | K13: =IF(Fremskrivning!BS79="","",Fremskrivning!BS79)/1000 -> 0 | L13: =IF(Fremskrivning!CA79="","",Fremskrivning!CA79)/1000 -> 0 | M13: =IF(Fremskrivning!CI79="","",Fremskrivning!CI79)/1000 -> 0 | N13: =IF(Fremskrivning!CQ79="","",Fremskrivning!CQ79)/1000 -> 0 | O13: =IF(Fremskrivning!CY79="","",Fremskrivning!CY79)/1000 -> 0 | P13: =IF(Fremskrivning!DG79="","",Fremskrivning!DG79)/1000 -> 0
B14: Pensionsindbetaling | C14: =IF(Fremskrivning!K80="","",Fremskrivning!K80)/1000 -> 0 | D14: =IF(Fremskrivning!O80="","",Fremskrivning!O80)/1000 -> 0 | E14: =IF(Fremskrivning!S80="","",Fremskrivning!S80)/1000 -> 0 | F14: =IF(Fremskrivning!AE80="","",Fremskrivning!AE80)/1000 -> 0 | G14: =IF(Fremskrivning!AM80="","",Fremskrivning!AM80)/1000 -> 0 | H14: =IF(Fremskrivning!AU80="","",Fremskrivning!AU80)/1000 -> 0 | I14: =IF(Fremskrivning!BC80="","",Fremskrivning!BC80)/1000 -> 0 | J14: =IF(Fremskrivning!BK80="","",Fremskrivning!BK80)/1000 -> 0 | K14: =IF(Fremskrivning!BS80="","",Fremskrivning!BS80)/1000 -> 0 | L14: =IF(Fremskrivning!CA80="","",Fremskrivning!CA80)/1000 -> 0 | M14: =IF(Fremskrivning!CI80="","",Fremskrivning!CI80)/1000 -> 0 | N14: =IF(Fremskrivning!CQ80="","",Fremskrivning!CQ80)/1000 -> 0 | O14: =IF(Fremskrivning!CY80="","",Fremskrivning!CY80)/1000 -> 0 | P14: =IF(Fremskrivning!DG80="","",Fremskrivning!DG80)/1000 -> 0
B15: Privat udtræk, skat og pension i alt | C15: =IF(Fremskrivning!K81="","",Fremskrivning!K81)/1000 -> 0 | D15: =IF(Fremskrivning!O81="","",Fremskrivning!O81)/1000 -> 0 | E15: =IF(Fremskrivning!S81="","",Fremskrivning!S81)/1000 -> 0 | F15: =IF(Fremskrivning!AE81="","",Fremskrivning!AE81)/1000 -> 0 | G15: =IF(Fremskrivning!AM81="","",Fremskrivning!AM81)/1000 -> 0 | H15: =IF(Fremskrivning!AU81="","",Fremskrivning!AU81)/1000 -> 0 | I15: =IF(Fremskrivning!BC81="","",Fremskrivning!BC81)/1000 -> 0 | J15: =IF(Fremskrivning!BK81="","",Fremskrivning!BK81)/1000 -> 0 | K15: =IF(Fremskrivning!BS81="","",Fremskrivning!BS81)/1000 -> 0 | L15: =IF(Fremskrivning!CA81="","",Fremskrivning!CA81)/1000 -> 0 | M15: =IF(Fremskrivning!CI81="","",Fremskrivning!CI81)/1000 -> 0 | N15: =IF(Fremskrivning!CQ81="","",Fremskrivning!CQ81)/1000 -> 0 | O15: =IF(Fremskrivning!CY81="","",Fremskrivning!CY81)/1000 -> 0 | P15: =IF(Fremskrivning!DG81="","",Fremskrivning!DG81)/1000 -> 0
B17: Til investering og afdrag | C17: =IF(Fremskrivning!K83="","",Fremskrivning!K83)/1000 -> 0 | D17: =IF(Fremskrivning!O83="","",Fremskrivning!O83)/1000 -> 0 | E17: =IF(Fremskrivning!S83="","",Fremskrivning!S83)/1000 -> 0 | F17: =IF(Fremskrivning!AE83="","",Fremskrivning!AE83)/1000 -> 0 | G17: =IF(Fremskrivning!AM83="","",Fremskrivning!AM83)/1000 -> 0 | H17: =IF(Fremskrivning!AU83="","",Fremskrivning!AU83)/1000 -> 0 | I17: =IF(Fremskrivning!BC83="","",Fremskrivning!BC83)/1000 -> 0 | J17: =IF(Fremskrivning!BK83="","",Fremskrivning!BK83)/1000 -> 0 | K17: =IF(Fremskrivning!BS83="","",Fremskrivning!BS83)/1000 -> 0 | L17: =IF(Fremskrivning!CA83="","",Fremskrivning!CA83)/1000 -> 0 | M17: =IF(Fremskrivning!CI83="","",Fremskrivning!CI83)/1000 -> 0 | N17: =IF(Fremskrivning!CQ83="","",Fremskrivning!CQ83)/1000 -> 0 | O17: =IF(Fremskrivning!CY83="","",Fremskrivning!CY83)/1000 -> 0 | P17: =IF(Fremskrivning!DG83="","",Fremskrivning!DG83)/1000 -> 0
B19: Besætning | C19: =IF(Fremskrivning!K85="","",Fremskrivning!K85)/1000 -> 0 | D19: =IF(Fremskrivning!O85="","",Fremskrivning!O85)/1000 -> 0 | E19: =IF(Fremskrivning!S85="","",Fremskrivning!S85)/1000 -> 0 | F19: =IF(Fremskrivning!AE85="","",Fremskrivning!AE85)/1000 -> 0 | G19: =IF(Fremskrivning!AM85="","",Fremskrivning!AM85)/1000 -> 0 | H19: =IF(Fremskrivning!AU85="","",Fremskrivning!AU85)/1000 -> 0 | I19: =IF(Fremskrivning!BC85="","",Fremskrivning!BC85)/1000 -> 0 | J19: =IF(Fremskrivning!BK85="","",Fremskrivning!BK85)/1000 -> 0 | K19: =IF(Fremskrivning!BS85="","",Fremskrivning!BS85)/1000 -> 0 | L19: =IF(Fremskrivning!CA85="","",Fremskrivning!CA85)/1000 -> 0 | M19: =IF(Fremskrivning!CI85="","",Fremskrivning!CI85)/1000 -> 0 | N19: =IF(Fremskrivning!CQ85="","",Fremskrivning!CQ85)/1000 -> 0 | O19: =IF(Fremskrivning!CY85="","",Fremskrivning!CY85)/1000 -> 0 | P19: =IF(Fremskrivning!DG85="","",Fremskrivning!DG85)/1000 -> 0
B20: Beholdning | C20: =IF(Fremskrivning!K86="","",Fremskrivning!K86)/1000 -> 0 | D20: =IF(Fremskrivning!O86="","",Fremskrivning!O86)/1000 -> 0 | E20: =IF(Fremskrivning!S86="","",Fremskrivning!S86)/1000 -> 0 | F20: =IF(Fremskrivning!AE86="","",Fremskrivning!AE86)/1000 -> 0 | G20: =IF(Fremskrivning!AM86="","",Fremskrivning!AM86)/1000 -> 0 | H20: =IF(Fremskrivning!AU86="","",Fremskrivning!AU86)/1000 -> 0 | I20: =IF(Fremskrivning!BC86="","",Fremskrivning!BC86)/1000 -> 0 | J20: =IF(Fremskrivning!BK86="","",Fremskrivning!BK86)/1000 -> 0 | K20: =IF(Fremskrivning!BS86="","",Fremskrivning!BS86)/1000 -> 0 | L20: =IF(Fremskrivning!CA86="","",Fremskrivning!CA86)/1000 -> 0 | M20: =IF(Fremskrivning!CI86="","",Fremskrivning!CI86)/1000 -> 0 | N20: =IF(Fremskrivning!CQ86="","",Fremskrivning!CQ86)/1000 -> 0 | O20: =IF(Fremskrivning!CY86="","",Fremskrivning!CY86)/1000 -> 0 | P20: =IF(Fremskrivning!DG86="","",Fremskrivning!DG86)/1000 -> 0
B22: Jord | C22: =IF(Fremskrivning!K88="","",Fremskrivning!K88)/1000 -> 0 | D22: =IF(Fremskrivning!O88="","",Fremskrivning!O88)/1000 -> 0 | E22: =IF(Fremskrivning!S88="","",Fremskrivning!S88)/1000 -> 0 | F22: =IF(Fremskrivning!AE88="","",Fremskrivning!AE88)/1000 -> 0 | G22: =IF(Fremskrivning!AM88="","",Fremskrivning!AM88)/1000 -> 0 | H22: =IF(Fremskrivning!AU88="","",Fremskrivning!AU88)/1000 -> 0 | I22: =IF(Fremskrivning!BC88="","",Fremskrivning!BC88)/1000 -> 0 | J22: =IF(Fremskrivning!BK88="","",Fremskrivning!BK88)/1000 -> 0 | K22: =IF(Fremskrivning!BS88="","",Fremskrivning!BS88)/1000 -> 0 | L22: =IF(Fremskrivning!CA88="","",Fremskrivning!CA88)/1000 -> 0 | M22: =IF(Fremskrivning!CI88="","",Fremskrivning!CI88)/1000 -> 0 | N22: =IF(Fremskrivning!CQ88="","",Fremskrivning!CQ88)/1000 -> 0 | O22: =IF(Fremskrivning!CY88="","",Fremskrivning!CY88)/1000 -> 0 | P22: =IF(Fremskrivning!DG88="","",Fremskrivning!DG88)/1000 -> 0
B23: Driftsbygninger | C23: =IF(Fremskrivning!K89="","",Fremskrivning!K89)/1000 -> 0 | D23: =IF(Fremskrivning!O89="","",Fremskrivning!O89)/1000 -> 0 | E23: =IF(Fremskrivning!S89="","",Fremskrivning!S89)/1000 -> 0 | F23: =IF(Fremskrivning!AE89="","",Fremskrivning!AE89)/1000 -> 0 | G23: =IF(Fremskrivning!AM89="","",Fremskrivning!AM89)/1000 -> 0 | H23: =IF(Fremskrivning!AU89="","",Fremskrivning!AU89)/1000 -> 0 | I23: =IF(Fremskrivning!BC89="","",Fremskrivning!BC89)/1000 -> 0 | J23: =IF(Fremskrivning!BK89="","",Fremskrivning!BK89)/1000 -> 0 | K23: =IF(Fremskrivning!BS89="","",Fremskrivning!BS89)/1000 -> 0 | L23: =IF(Fremskrivning!CA89="","",Fremskrivning!CA89)/1000 -> 0 | M23: =IF(Fremskrivning!CI89="","",Fremskrivning!CI89)/1000 -> 0 | N23: =IF(Fremskrivning!CQ89="","",Fremskrivning!CQ89)/1000 -> 0 | O23: =IF(Fremskrivning!CY89="","",Fremskrivning!CY89)/1000 -> 0 | P23: =IF(Fremskrivning!DG89="","",Fremskrivning!DG89)/1000 -> 0
B24: Inventar markbrug | C24: =IF(Fremskrivning!K90="","",Fremskrivning!K90)/1000 -> 0 | D24: =IF(Fremskrivning!O90="","",Fremskrivning!O90)/1000 -> 0 | E24: =IF(Fremskrivning!S90="","",Fremskrivning!S90)/1000 -> 0 | F24: =IF(Fremskrivning!AE90="","",Fremskrivning!AE90)/1000 -> 0 | G24: =IF(Fremskrivning!AM90="","",Fremskrivning!AM90)/1000 -> 0 | H24: =IF(Fremskrivning!AU90="","",Fremskrivning!AU90)/1000 -> 0 | I24: =IF(Fremskrivning!BC90="","",Fremskrivning!BC90)/1000 -> 0 | J24: =IF(Fremskrivning!BK90="","",Fremskrivning!BK90)/1000 -> 0 | K24: =IF(Fremskrivning!BS90="","",Fremskrivning!BS90)/1000 -> 0 | L24: =IF(Fremskrivning!CA90="","",Fremskrivning!CA90)/1000 -> 0 | M24: =IF(Fremskrivning!CI90="","",Fremskrivning!CI90)/1000 -> 0 | N24: =IF(Fremskrivning!CQ90="","",Fremskrivning!CQ90)/1000 -> 0 | O24: =IF(Fremskrivning!CY90="","",Fremskrivning!CY90)/1000 -> 0 | P24: =IF(Fremskrivning!DG90="","",Fremskrivning!DG90)/1000 -> 0
B25: Inventar husdyrbrug | C25: =IF(Fremskrivning!K91="","",Fremskrivning!K91)/1000 -> 0 | D25: =IF(Fremskrivning!O91="","",Fremskrivning!O91)/1000 -> 0 | E25: =IF(Fremskrivning!S91="","",Fremskrivning!S91)/1000 -> 0 | F25: =IF(Fremskrivning!AE91="","",Fremskrivning!AE91)/1000 -> 0 | G25: =IF(Fremskrivning!AM91="","",Fremskrivning!AM91)/1000 -> 0 | H25: =IF(Fremskrivning!AU91="","",Fremskrivning!AU91)/1000 -> 0 | I25: =IF(Fremskrivning!BC91="","",Fremskrivning!BC91)/1000 -> 0 | J25: =IF(Fremskrivning!BK91="","",Fremskrivning!BK91)/1000 -> 0 | K25: =IF(Fremskrivning!BS91="","",Fremskrivning!BS91)/1000 -> 0 | L25: =IF(Fremskrivning!CA91="","",Fremskrivning!CA91)/1000 -> 0 | M25: =IF(Fremskrivning!CI91="","",Fremskrivning!CI91)/1000 -> 0 | N25: =IF(Fremskrivning!CQ91="","",Fremskrivning!CQ91)/1000 -> 0 | O25: =IF(Fremskrivning!CY91="","",Fremskrivning!CY91)/1000 -> 0 | P25: =IF(Fremskrivning!DG91="","",Fremskrivning!DG91)/1000 -> 0
B26: Privat m.m. | C26: =IF(Fremskrivning!K92="","",Fremskrivning!K92)/1000 -> 0 | D26: =IF(Fremskrivning!O92="","",Fremskrivning!O92)/1000 -> 0 | E26: =IF(Fremskrivning!S92="","",Fremskrivning!S92)/1000 -> 0 | F26: =IF(Fremskrivning!AE92="","",Fremskrivning!AE92)/1000 -> 0 | G26: =IF(Fremskrivning!AM92="","",Fremskrivning!AM92)/1000 -> 0 | H26: =IF(Fremskrivning!AU92="","",Fremskrivning!AU92)/1000 -> 0 | I26: =IF(Fremskrivning!BC92="","",Fremskrivning!BC92)/1000 -> 0 | J26: =IF(Fremskrivning!BK92="","",Fremskrivning!BK92)/1000 -> 0 | K26: =IF(Fremskrivning!BS92="","",Fremskrivning!BS92)/1000 -> 0 | L26: =IF(Fremskrivning!CA92="","",Fremskrivning!CA92)/1000 -> 0 | M26: =IF(Fremskrivning!CI92="","",Fremskrivning!CI92)/1000 -> 0 | N26: =IF(Fremskrivning!CQ92="","",Fremskrivning!CQ92)/1000 -> 0 | O26: =IF(Fremskrivning!CY92="","",Fremskrivning!CY92)/1000 -> 0 | P26: =IF(Fremskrivning!DG92="","",Fremskrivning!DG92)/1000 -> 0
B27: Investeringer i alt | C27: =IF(Fremskrivning!K93="","",Fremskrivning!K93)/1000 -> 0 | D27: =IF(Fremskrivning!O93="","",Fremskrivning!O93)/1000 -> 0 | E27: =IF(Fremskrivning!S93="","",Fremskrivning!S93)/1000 -> 0 | F27: =IF(Fremskrivning!AE93="","",Fremskrivning!AE93)/1000 -> 0 | G27: =IF(Fremskrivning!AM93="","",Fremskrivning!AM93)/1000 -> 0 | H27: =IF(Fremskrivning!AU93="","",Fremskrivning!AU93)/1000 -> 0 | I27: =IF(Fremskrivning!BC93="","",Fremskrivning!BC93)/1000 -> 0 | J27: =IF(Fremskrivning!BK93="","",Fremskrivning!BK93)/1000 -> 0 | K27: =IF(Fremskrivning!BS93="","",Fremskrivning!BS93)/1000 -> 0 | L27: =IF(Fremskrivning!CA93="","",Fremskrivning!CA93)/1000 -> 0 | M27: =IF(Fremskrivning!CI93="","",Fremskrivning!CI93)/1000 -> 0 | N27: =IF(Fremskrivning!CQ93="","",Fremskrivning!CQ93)/1000 -> 0 | O27: =IF(Fremskrivning!CY93="","",Fremskrivning!CY93)/1000 -> 0 | P27: =IF(Fremskrivning!DG93="","",Fremskrivning!DG93)/1000 -> 0
B29: Likviditet efter investeringer | C29: =IF(Fremskrivning!K95="","",Fremskrivning!K95)/1000 -> 0 | D29: =IF(Fremskrivning!O95="","",Fremskrivning!O95)/1000 -> 0 | E29: =IF(Fremskrivning!S95="","",Fremskrivning!S95)/1000 -> 0 | F29: =IF(Fremskrivning!AE95="","",Fremskrivning!AE95)/1000 -> 0 | G29: =IF(Fremskrivning!AM95="","",Fremskrivning!AM95)/1000 -> 0 | H29: =IF(Fremskrivning!AU95="","",Fremskrivning!AU95)/1000 -> 0 | I29: =IF(Fremskrivning!BC95="","",Fremskrivning!BC95)/1000 -> 0 | J29: =IF(Fremskrivning!BK95="","",Fremskrivning!BK95)/1000 -> 0 | K29: =IF(Fremskrivning!BS95="","",Fremskrivning!BS95)/1000 -> 0 | L29: =IF(Fremskrivning!CA95="","",Fremskrivning!CA95)/1000 -> 0 | M29: =IF(Fremskrivning!CI95="","",Fremskrivning!CI95)/1000 -> 0 | N29: =IF(Fremskrivning!CQ95="","",Fremskrivning!CQ95)/1000 -> 0 | O29: =IF(Fremskrivning!CY95="","",Fremskrivning!CY95)/1000 -> 0 | P29: =IF(Fremskrivning!DG95="","",Fremskrivning!DG95)/1000 -> 0
B31: Finansiering:
B32: Tilgodehavende | C32: =IF(Fremskrivning!K98="","",Fremskrivning!K98)/1000 -> 0 | D32: =IF(Fremskrivning!O98="","",Fremskrivning!O98)/1000 -> 0 | E32: =IF(Fremskrivning!S98="","",Fremskrivning!S98)/1000 -> 0 | F32: =IF(Fremskrivning!AE98="","",Fremskrivning!AE98)/1000 -> 0 | G32: =IF(Fremskrivning!AM98="","",Fremskrivning!AM98)/1000 -> 0 | H32: =IF(Fremskrivning!AU98="","",Fremskrivning!AU98)/1000 -> 0 | I32: =IF(Fremskrivning!BC98="","",Fremskrivning!BC98)/1000 -> 0 | J32: =IF(Fremskrivning!BK98="","",Fremskrivning!BK98)/1000 -> 0 | K32: =IF(Fremskrivning!BS98="","",Fremskrivning!BS98)/1000 -> 0 | L32: =IF(Fremskrivning!CA98="","",Fremskrivning!CA98)/1000 -> 0 | M32: =IF(Fremskrivning!CI98="","",Fremskrivning!CI98)/1000 -> 0 | N32: =IF(Fremskrivning!CQ98="","",Fremskrivning!CQ98)/1000 -> 0 | O32: =IF(Fremskrivning!CY98="","",Fremskrivning!CY98)/1000 -> 0 | P32: =IF(Fremskrivning!DG98="","",Fremskrivning!DG98)/1000 -> 0
B33: Værdipapirer m.m. | C33: =IF(Fremskrivning!K99="","",Fremskrivning!K99)/1000 -> 0 | D33: =IF(Fremskrivning!O99="","",Fremskrivning!O99)/1000 -> 0 | E33: =IF(Fremskrivning!S99="","",Fremskrivning!S99)/1000 -> 0 | F33: =IF(Fremskrivning!AE99="","",Fremskrivning!AE99)/1000 -> 0 | G33: =IF(Fremskrivning!AM99="","",Fremskrivning!AM99)/1000 -> 0 | H33: =IF(Fremskrivning!AU99="","",Fremskrivning!AU99)/1000 -> 0 | I33: =IF(Fremskrivning!BC99="","",Fremskrivning!BC99)/1000 -> 0 | J33: =IF(Fremskrivning!BK99="","",Fremskrivning!BK99)/1000 -> 0 | K33: =IF(Fremskrivning!BS99="","",Fremskrivning!BS99)/1000 -> 0 | L33: =IF(Fremskrivning!CA99="","",Fremskrivning!CA99)/1000 -> 0 | M33: =IF(Fremskrivning!CI99="","",Fremskrivning!CI99)/1000 -> 0 | N33: =IF(Fremskrivning!CQ99="","",Fremskrivning!CQ99)/1000 -> 0 | O33: =IF(Fremskrivning!CY99="","",Fremskrivning!CY99)/1000 -> 0 | P33: =IF(Fremskrivning!DG99="","",Fremskrivning!DG99)/1000 -> 0
B34: Realkreditinstitutter | C34: =IF(Fremskrivning!K100="","",Fremskrivning!K100)/1000 -> 0 | D34: =IF(Fremskrivning!O100="","",Fremskrivning!O100)/1000 -> 0 | E34: =IF(Fremskrivning!S100="","",Fremskrivning!S100)/1000 -> 0 | F34: =IF(Fremskrivning!AE100="","",Fremskrivning!AE100)/1000 -> 0 | G34: =IF(Fremskrivning!AM100="","",Fremskrivning!AM100)/1000 -> 0 | H34: =IF(Fremskrivning!AU100="","",Fremskrivning!AU100)/1000 -> 0 | I34: =IF(Fremskrivning!BC100="","",Fremskrivning!BC100)/1000 -> 0 | J34: =IF(Fremskrivning!BK100="","",Fremskrivning!BK100)/1000 -> 0 | K34: =IF(Fremskrivning!BS100="","",Fremskrivning!BS100)/1000 -> 0 | L34: =IF(Fremskrivning!CA100="","",Fremskrivning!CA100)/1000 -> 0 | M34: =IF(Fremskrivning!CI100="","",Fremskrivning!CI100)/1000 -> 0 | N34: =IF(Fremskrivning!CQ100="","",Fremskrivning!CQ100)/1000 -> 0 | O34: =IF(Fremskrivning!CY100="","",Fremskrivning!CY100)/1000 -> 0 | P34: =IF(Fremskrivning!DG100="","",Fremskrivning!DG100)/1000 -> 0
B35: Pengeinstitut | C35: =IF(Fremskrivning!K101="","",Fremskrivning!K101)/1000 -> 0 | D35: =IF(Fremskrivning!O101="","",Fremskrivning!O101)/1000 -> 0 | E35: =IF(Fremskrivning!S101="","",Fremskrivning!S101)/1000 -> 0 | F35: =IF(Fremskrivning!AE101="","",Fremskrivning!AE101)/1000 -> 0 | G35: =IF(Fremskrivning!AM101="","",Fremskrivning!AM101)/1000 -> 0 | H35: =IF(Fremskrivning!AU101="","",Fremskrivning!AU101)/1000 -> 0 | I35: =IF(Fremskrivning!BC101="","",Fremskrivning!BC101)/1000 -> 0 | J35: =IF(Fremskrivning!BK101="","",Fremskrivning!BK101)/1000 -> 0 | K35: =IF(Fremskrivning!BS101="","",Fremskrivning!BS101)/1000 -> 0 | L35: =IF(Fremskrivning!CA101="","",Fremskrivning!CA101)/1000 -> 0 | M35: =IF(Fremskrivning!CI101="","",Fremskrivning!CI101)/1000 -> 0 | N35: =IF(Fremskrivning!CQ101="","",Fremskrivning!CQ101)/1000 -> 0 | O35: =IF(Fremskrivning!CY101="","",Fremskrivning!CY101)/1000 -> 0 | P35: =IF(Fremskrivning!DG101="","",Fremskrivning!DG101)/1000 -> 0
B36: Leasingforpligtelser | C36: =IF(Fremskrivning!K102="","",Fremskrivning!K102)/1000 -> 0 | D36: =IF(Fremskrivning!O102="","",Fremskrivning!O102)/1000 -> 0 | E36: =IF(Fremskrivning!S102="","",Fremskrivning!S102)/1000 -> 0 | F36: =IF(Fremskrivning!AE102="","",Fremskrivning!AE102)/1000 -> 0 | G36: =IF(Fremskrivning!AM102="","",Fremskrivning!AM102)/1000 -> 0 | H36: =IF(Fremskrivning!AU102="","",Fremskrivning!AU102)/1000 -> 0 | I36: =IF(Fremskrivning!BC102="","",Fremskrivning!BC102)/1000 -> 0 | J36: =IF(Fremskrivning!BK102="","",Fremskrivning!BK102)/1000 -> 0 | K36: =IF(Fremskrivning!BS102="","",Fremskrivning!BS102)/1000 -> 0 | L36: =IF(Fremskrivning!CA102="","",Fremskrivning!CA102)/1000 -> 0 | M36: =IF(Fremskrivning!CI102="","",Fremskrivning!CI102)/1000 -> 0 | N36: =IF(Fremskrivning!CQ102="","",Fremskrivning!CQ102)/1000 -> 0 | O36: =IF(Fremskrivning!CY102="","",Fremskrivning!CY102)/1000 -> 0 | P36: =IF(Fremskrivning!DG102="","",Fremskrivning!DG102)/1000 -> 0
B37: Anden gæld | C37: =IF(Fremskrivning!K103="","",Fremskrivning!K103)/1000 -> 0 | D37: =IF(Fremskrivning!O103="","",Fremskrivning!O103)/1000 -> 0 | E37: =IF(Fremskrivning!S103="","",Fremskrivning!S103)/1000 -> 0 | F37: =IF(Fremskrivning!AE103="","",Fremskrivning!AE103)/1000 -> 0 | G37: =IF(Fremskrivning!AM103="","",Fremskrivning!AM103)/1000 -> 0 | H37: =IF(Fremskrivning!AU103="","",Fremskrivning!AU103)/1000 -> 0 | I37: =IF(Fremskrivning!BC103="","",Fremskrivning!BC103)/1000 -> 0 | J37: =IF(Fremskrivning!BK103="","",Fremskrivning!BK103)/1000 -> 0 | K37: =IF(Fremskrivning!BS103="","",Fremskrivning!BS103)/1000 -> 0 | L37: =IF(Fremskrivning!CA103="","",Fremskrivning!CA103)/1000 -> 0 | M37: =IF(Fremskrivning!CI103="","",Fremskrivning!CI103)/1000 -> 0 | N37: =IF(Fremskrivning!CQ103="","",Fremskrivning!CQ103)/1000 -> 0 | O37: =IF(Fremskrivning!CY103="","",Fremskrivning!CY103)/1000 -> 0 | P37: =IF(Fremskrivning!DG103="","",Fremskrivning!DG103)/1000 -> 0
B38: Kassekredit | C38: =IF(Fremskrivning!K104="","",Fremskrivning!K104)/1000 -> 0 | D38: =IF(Fremskrivning!O104="","",Fremskrivning!O104)/1000 -> 0 | E38: =IF(Fremskrivning!S104="","",Fremskrivning!S104)/1000 -> 0 | F38: =IF(Fremskrivning!AE104="","",Fremskrivning!AE104)/1000 -> 0 | G38: =IF(Fremskrivning!AM104="","",Fremskrivning!AM104)/1000 -> 0 | H38: =IF(Fremskrivning!AU104="","",Fremskrivning!AU104)/1000 -> 0 | I38: =IF(Fremskrivning!BC104="","",Fremskrivning!BC104)/1000 -> 0 | J38: =IF(Fremskrivning!BK104="","",Fremskrivning!BK104)/1000 -> 0 | K38: =IF(Fremskrivning!BS104="","",Fremskrivning!BS104)/1000 -> 0 | L38: =IF(Fremskrivning!CA104="","",Fremskrivning!CA104)/1000 -> 0 | M38: =IF(Fremskrivning!CI104="","",Fremskrivning!CI104)/1000 -> 0 | N38: =IF(Fremskrivning!CQ104="","",Fremskrivning!CQ104)/1000 -> 0 | O38: =IF(Fremskrivning!CY104="","",Fremskrivning!CY104)/1000 -> 0 | P38: =IF(Fremskrivning!DG104="","",Fremskrivning!DG104)/1000 -> 0
B39: Ændring hensættelser | C39: =IF(Fremskrivning!K105="","",Fremskrivning!K105)/1000 -> 0 | D39: =IF(Fremskrivning!O105="","",Fremskrivning!O105)/1000 -> 0 | E39: =IF(Fremskrivning!S105="","",Fremskrivning!S105)/1000 -> 0 | F39: =IF(Fremskrivning!AE105="","",Fremskrivning!AE105)/1000 -> 0 | G39: =IF(Fremskrivning!AM105="","",Fremskrivning!AM105)/1000 -> 0 | H39: =IF(Fremskrivning!AU105="","",Fremskrivning!AU105)/1000 -> 0 | I39: =IF(Fremskrivning!BC105="","",Fremskrivning!BC105)/1000 -> 0 | J39: =IF(Fremskrivning!BK105="","",Fremskrivning!BK105)/1000 -> 0 | K39: =IF(Fremskrivning!BS105="","",Fremskrivning!BS105)/1000 -> 0 | L39: =IF(Fremskrivning!CA105="","",Fremskrivning!CA105)/1000 -> 0 | M39: =IF(Fremskrivning!CI105="","",Fremskrivning!CI105)/1000 -> 0 | N39: =IF(Fremskrivning!CQ105="","",Fremskrivning!CQ105)/1000 -> 0 | O39: =IF(Fremskrivning!CY105="","",Fremskrivning!CY105)/1000 -> 0 | P39: =IF(Fremskrivning!DG105="","",Fremskrivning!DG105)/1000 -> 0
B41: Likviditetsanvendelse | C41: =IF(Fremskrivning!K107="","",Fremskrivning!K107)/1000 -> 0 | D41: =IF(Fremskrivning!O107="","",Fremskrivning!O107)/1000 -> 0 | E41: =IF(Fremskrivning!S107="","",Fremskrivning!S107)/1000 -> 0 | F41: =IF(Fremskrivning!AE107="","",Fremskrivning!AE107)/1000 -> 0 | G41: =IF(Fremskrivning!AM107="","",Fremskrivning!AM107)/1000 -> 0 | H41: =IF(Fremskrivning!AU107="","",Fremskrivning!AU107)/1000 -> 0 | I41: =IF(Fremskrivning!BC107="","",Fremskrivning!BC107)/1000 -> 0 | J41: =IF(Fremskrivning!BK107="","",Fremskrivning!BK107)/1000 -> 0 | K41: =IF(Fremskrivning!BS107="","",Fremskrivning!BS107)/1000 -> 0 | L41: =IF(Fremskrivning!CA107="","",Fremskrivning!CA107)/1000 -> 0 | M41: =IF(Fremskrivning!CI107="","",Fremskrivning!CI107)/1000 -> 0 | N41: =IF(Fremskrivning!CQ107="","",Fremskrivning!CQ107)/1000 -> 0 | O41: =IF(Fremskrivning!CY107="","",Fremskrivning!CY107)/1000 -> 0 | P41: =IF(Fremskrivning!DG107="","",Fremskrivning!DG107)/1000 -> 0

Sheet Balance
B2: Balance
C4: =D4-1 -> 2021 | D4: 2022 | E4: =F4-1 -> 2023 | F4: =Forudsætninger!B34 -> 2024 | G4: =F4+1 -> 2025 | H4: =G4+1 -> 2026 | I4: 2027 | J4: 2028 | K4: 2029 | L4: 2030 | M4: 2031 | N4: 2032 | O4: 2033 | P4: 2034
B7: Jord | C7: =IF(Fremskrivning!K113="","",Fremskrivning!K113)/1000 -> 0 | D7: =IF(Fremskrivning!O113="","",Fremskrivning!O113)/1000 -> 0 | E7: =IF(Fremskrivning!S113="","",Fremskrivning!S113)/1000 -> 0 | F7: =IF(Fremskrivning!AE113="","",Fremskrivning!AE113)/1000 -> 0 | G7: =IF(Fremskrivning!AM113="","",Fremskrivning!AM113)/1000 -> 0 | H7: =IF(Fremskrivning!AU113="","",Fremskrivning!AU113)/1000 -> 0 | I7: =IF(Fremskrivning!BC113="","",Fremskrivning!BC113)/1000 -> 0 | J7: =IF(Fremskrivning!BK113="","",Fremskrivning!BK113)/1000 -> 0 | K7: =IF(Fremskrivning!BS113="","",Fremskrivning!BS113)/1000 -> 0 | L7: =IF(Fremskrivning!CA113="","",Fremskrivning!CA113)/1000 -> 0 | M7: =IF(Fremskrivning!CI113="","",Fremskrivning!CI113)/1000 -> 0 | N7: =IF(Fremskrivning!CQ113="","",Fremskrivning!CQ113)/1000 -> 0 | O7: =IF(Fremskrivning!CY113="","",Fremskrivning!CY113)/1000 -> 0 | P7: =IF(Fremskrivning!DG113="","",Fremskrivning!DG113)/1000 -> 0
B8: Driftsbygninger og installationer | C8: =IF(Fremskrivning!K114="","",Fremskrivning!K114)/1000 -> 0 | D8: =IF(Fremskrivning!O114="","",Fremskrivning!O114)/1000 -> 0 | E8: =IF(Fremskrivning!S114="","",Fremskrivning!S114)/1000 -> 0 | F8: =IF(Fremskrivning!AE114="","",Fremskrivning!AE114)/1000 -> 0 | G8: =IF(Fremskrivning!AM114="","",Fremskrivning!AM114)/1000 -> 0 | H8: =IF(Fremskrivning!AU114="","",Fremskrivning!AU114)/1000 -> 0 | I8: =IF(Fremskrivning!BC114="","",Fremskrivning!BC114)/1000 -> 0 | J8: =IF(Fremskrivning!BK114="","",Fremskrivning!BK114)/1000 -> 0 | K8: =IF(Fremskrivning!BS114="","",Fremskrivning!BS114)/1000 -> 0 | L8: =IF(Fremskrivning!CA114="","",Fremskrivning!CA114)/1000 -> 0 | M8: =IF(Fremskrivning!CI114="","",Fremskrivning!CI114)/1000 -> 0 | N8: =IF(Fremskrivning!CQ114="","",Fremskrivning!CQ114)/1000 -> 0 | O8: =IF(Fremskrivning!CY114="","",Fremskrivning!CY114)/1000 -> 0 | P8: =IF(Fremskrivning!DG114="","",Fremskrivning!DG114)/1000 -> 0
B9: Beboelse landbrug | C9: =IF(Fremskrivning!K115="","",Fremskrivning!K115)/1000 -> 0 | D9: =IF(Fremskrivning!O115="","",Fremskrivning!O115)/1000 -> 0 | E9: =IF(Fremskrivning!S115="","",Fremskrivning!S115)/1000 -> 0 | F9: =IF(Fremskrivning!AE115="","",Fremskrivning!AE115)/1000 -> 0 | G9: =IF(Fremskrivning!AM115="","",Fremskrivning!AM115)/1000 -> 0 | H9: =IF(Fremskrivning!AU115="","",Fremskrivning!AU115)/1000 -> 0 | I9: =IF(Fremskrivning!BC115="","",Fremskrivning!BC115)/1000 -> 0 | J9: =IF(Fremskrivning!BK115="","",Fremskrivning!BK115)/1000 -> 0 | K9: =IF(Fremskrivning!BS115="","",Fremskrivning!BS115)/1000 -> 0 | L9: =IF(Fremskrivning!CA115="","",Fremskrivning!CA115)/1000 -> 0 | M9: =IF(Fremskrivning!CI115="","",Fremskrivning!CI115)/1000 -> 0 | N9: =IF(Fremskrivning!CQ115="","",Fremskrivning!CQ115)/1000 -> 0 | O9: =IF(Fremskrivning!CY115="","",Fremskrivning!CY115)/1000 -> 0 | P9: =IF(Fremskrivning!DG115="","",Fremskrivning!DG115)/1000 -> 0
B10: Grundforbedring m.m. | C10: =IF(Fremskrivning!K116="","",Fremskrivning!K116)/1000 -> 0 | D10: =IF(Fremskrivning!O116="","",Fremskrivning!O116)/1000 -> 0 | E10: =IF(Fremskrivning!S116="","",Fremskrivning!S116)/1000 -> 0 | F10: =IF(Fremskrivning!AE116="","",Fremskrivning!AE116)/1000 -> 0 | G10: =IF(Fremskrivning!AM116="","",Fremskrivning!AM116)/1000 -> 0 | H10: =IF(Fremskrivning!AU116="","",Fremskrivning!AU116)/1000 -> 0 | I10: =IF(Fremskrivning!BC116="","",Fremskrivning!BC116)/1000 -> 0 | J10: =IF(Fremskrivning!BK116="","",Fremskrivning!BK116)/1000 -> 0 | K10: =IF(Fremskrivning!BS116="","",Fremskrivning!BS116)/1000 -> 0 | L10: =IF(Fremskrivning!CA116="","",Fremskrivning!CA116)/1000 -> 0 | M10: =IF(Fremskrivning!CI116="","",Fremskrivning!CI116)/1000 -> 0 | N10: =IF(Fremskrivning!CQ116="","",Fremskrivning!CQ116)/1000 -> 0 | O10: =IF(Fremskrivning!CY116="","",Fremskrivning!CY116)/1000 -> 0 | P10: =IF(Fremskrivning!DG116="","",Fremskrivning!DG116)/1000 -> 0
B11: Fast ejendom i alt | C11: =IF(Fremskrivning!K117="","",Fremskrivning!K117)/1000 -> 0 | D11: =IF(Fremskrivning!O117="","",Fremskrivning!O117)/1000 -> 0 | E11: =IF(Fremskrivning!S117="","",Fremskrivning!S117)/1000 -> 0 | F11: =IF(Fremskrivning!AE117="","",Fremskrivning!AE117)/1000 -> 0 | G11: =IF(Fremskrivning!AM117="","",Fremskrivning!AM117)/1000 -> 0 | H11: =IF(Fremskrivning!AU117="","",Fremskrivning!AU117)/1000 -> 0 | I11: =IF(Fremskrivning!BC117="","",Fremskrivning!BC117)/1000 -> 0 | J11: =IF(Fremskrivning!BK117="","",Fremskrivning!BK117)/1000 -> 0 | K11: =IF(Fremskrivning!BS117="","",Fremskrivning!BS117)/1000 -> 0 | L11: =IF(Fremskrivning!CA117="","",Fremskrivning!CA117)/1000 -> 0 | M11: =IF(Fremskrivning!CI117="","",Fremskrivning!CI117)/1000 -> 0 | N11: =IF(Fremskrivning!CQ117="","",Fremskrivning!CQ117)/1000 -> 0 | O11: =IF(Fremskrivning!CY117="","",Fremskrivning!CY117)/1000 -> 0 | P11: =IF(Fremskrivning!DG117="","",Fremskrivning!DG117)/1000 -> 0
B13: Inventar markbrug | C13: =IF(Fremskrivning!K119="","",Fremskrivning!K119)/1000 -> 0 | D13: =IF(Fremskrivning!O119="","",Fremskrivning!O119)/1000 -> 0 | E13: =IF(Fremskrivning!S119="","",Fremskrivning!S119)/1000 -> 0 | F13: =IF(Fremskrivning!AE119="","",Fremskrivning!AE119)/1000 -> 0 | G13: =IF(Fremskrivning!AM119="","",Fremskrivning!AM119)/1000 -> 0 | H13: =IF(Fremskrivning!AU119="","",Fremskrivning!AU119)/1000 -> 0 | I13: =IF(Fremskrivning!BC119="","",Fremskrivning!BC119)/1000 -> 0 | J13: =IF(Fremskrivning!BK119="","",Fremskrivning!BK119)/1000 -> 0 | K13: =IF(Fremskrivning!BS119="","",Fremskrivning!BS119)/1000 -> 0 | L13: =IF(Fremskrivning!CA119="","",Fremskrivning!CA119)/1000 -> 0 | M13: =IF(Fremskrivning!CI119="","",Fremskrivning!CI119)/1000 -> 0 | N13: =IF(Fremskrivning!CQ119="","",Fremskrivning!CQ119)/1000 -> 0 | O13: =IF(Fremskrivning!CY119="","",Fremskrivning!CY119)/1000 -> 0 | P13: =IF(Fremskrivning!DG119="","",Fremskrivning!DG119)/1000 -> 0
B14: Inventar husdyrbrug m.m. | C14: =IF(Fremskrivning!K120="","",Fremskrivning!K120)/1000 -> 0 | D14: =IF(Fremskrivning!O120="","",Fremskrivning!O120)/1000 -> 0 | E14: =IF(Fremskrivning!S120="","",Fremskrivning!S120)/1000 -> 0 | F14: =IF(Fremskrivning!AE120="","",Fremskrivning!AE120)/1000 -> 0 | G14: =IF(Fremskrivning!AM120="","",Fremskrivning!AM120)/1000 -> 0 | H14: =IF(Fremskrivning!AU120="","",Fremskrivning!AU120)/1000 -> 0 | I14: =IF(Fremskrivning!BC120="","",Fremskrivning!BC120)/1000 -> 0 | J14: =IF(Fremskrivning!BK120="","",Fremskrivning!BK120)/1000 -> 0 | K14: =IF(Fremskrivning!BS120="","",Fremskrivning!BS120)/1000 -> 0 | L14: =IF(Fremskrivning!CA120="","",Fremskrivning!CA120)/1000 -> 0 | M14: =IF(Fremskrivning!CI120="","",Fremskrivning!CI120)/1000 -> 0 | N14: =IF(Fremskrivning!CQ120="","",Fremskrivning!CQ120)/1000 -> 0 | O14: =IF(Fremskrivning!CY120="","",Fremskrivning!CY120)/1000 -> 0 | P14: =IF(Fremskrivning!DG120="","",Fremskrivning!DG120)/1000 -> 0
B15: Besætning | C15: =IF(Fremskrivning!K121="","",Fremskrivning!K121)/1000 -> 0 | D15: =IF(Fremskrivning!O121="","",Fremskrivning!O121)/1000 -> 0 | E15: =IF(Fremskrivning!S121="","",Fremskrivning!S121)/1000 -> 0 | F15: =IF(Fremskrivning!AE121="","",Fremskrivning!AE121)/1000 -> 0 | G15: =IF(Fremskrivning!AM121="","",Fremskrivning!AM121)/1000 -> 0 | H15: =IF(Fremskrivning!AU121="","",Fremskrivning!AU121)/1000 -> 0 | I15: =IF(Fremskrivning!BC121="","",Fremskrivning!BC121)/1000 -> 0 | J15: =IF(Fremskrivning!BK121="","",Fremskrivning!BK121)/1000 -> 0 | K15: =IF(Fremskrivning!BS121="","",Fremskrivning!BS121)/1000 -> 0 | L15: =IF(Fremskrivning!CA121="","",Fremskrivning!CA121)/1000 -> 0 | M15: =IF(Fremskrivning!CI121="","",Fremskrivning!CI121)/1000 -> 0 | N15: =IF(Fremskrivning!CQ121="","",Fremskrivning!CQ121)/1000 -> 0 | O15: =IF(Fremskrivning!CY121="","",Fremskrivning!CY121)/1000 -> 0 | P15: =IF(Fremskrivning!DG121="","",Fremskrivning!DG121)/1000 -> 0
B16: Beholdninger | C16: =IF(Fremskrivning!K122="","",Fremskrivning!K122)/1000 -> 0 | D16: =IF(Fremskrivning!O122="","",Fremskrivning!O122)/1000 -> 0 | E16: =IF(Fremskrivning!S122="","",Fremskrivning!S122)/1000 -> 0 | F16: =IF(Fremskrivning!AE122="","",Fremskrivning!AE122)/1000 -> 0 | G16: =IF(Fremskrivning!AM122="","",Fremskrivning!AM122)/1000 -> 0 | H16: =IF(Fremskrivning!AU122="","",Fremskrivning!AU122)/1000 -> 0 | I16: =IF(Fremskrivning!BC122="","",Fremskrivning!BC122)/1000 -> 0 | J16: =IF(Fremskrivning!BK122="","",Fremskrivning!BK122)/1000 -> 0 | K16: =IF(Fremskrivning!BS122="","",Fremskrivning!BS122)/1000 -> 0 | L16: =IF(Fremskrivning!CA122="","",Fremskrivning!CA122)/1000 -> 0 | M16: =IF(Fremskrivning!CI122="","",Fremskrivning!CI122)/1000 -> 0 | N16: =IF(Fremskrivning!CQ122="","",Fremskrivning!CQ122)/1000 -> 0 | O16: =IF(Fremskrivning!CY122="","",Fremskrivning!CY122)/1000 -> 0 | P16: =IF(Fremskrivning!DG122="","",Fremskrivning!DG122)/1000 -> 0
B17: Landbrugsaktiver i alt | C17: =IF(Fremskrivning!K123="","",Fremskrivning!K123)/1000 -> 0 | D17: =IF(Fremskrivning!O123="","",Fremskrivning!O123)/1000 -> 0 | E17: =IF(Fremskrivning!S123="","",Fremskrivning!S123)/1000 -> 0 | F17: =IF(Fremskrivning!AE123="","",Fremskrivning!AE123)/1000 -> 0 | G17: =IF(Fremskrivning!AM123="","",Fremskrivning!AM123)/1000 -> 0 | H17: =IF(Fremskrivning!AU123="","",Fremskrivning!AU123)/1000 -> 0 | I17: =IF(Fremskrivning!BC123="","",Fremskrivning!BC123)/1000 -> 0 | J17: =IF(Fremskrivning!BK123="","",Fremskrivning!BK123)/1000 -> 0 | K17: =IF(Fremskrivning!BS123="","",Fremskrivning!BS123)/1000 -> 0 | L17: =IF(Fremskrivning!CA123="","",Fremskrivning!CA123)/1000 -> 0 | M17: =IF(Fremskrivning!CI123="","",Fremskrivning!CI123)/1000 -> 0 | N17: =IF(Fremskrivning!CQ123="","",Fremskrivning!CQ123)/1000 -> 0 | O17: =IF(Fremskrivning!CY123="","",Fremskrivning!CY123)/1000 -> 0 | P17: =IF(Fremskrivning!DG123="","",Fremskrivning!DG123)/1000 -> 0
B19: Private aktiver og aktiver udenfor landbruget | C19: =IF(Fremskrivning!K125="","",Fremskrivning!K125)/1000 -> 0 | D19: =IF(Fremskrivning!O125="","",Fremskrivning!O125)/1000 -> 0 | E19: =IF(Fremskrivning!S125="","",Fremskrivning!S125)/1000 -> 0 | F19: =IF(Fremskrivning!AE125="","",Fremskrivning!AE125)/1000 -> 0 | G19: =IF(Fremskrivning!AM125="","",Fremskrivning!AM125)/1000 -> 0 | H19: =IF(Fremskrivning!AU125="","",Fremskrivning!AU125)/1000 -> 0 | I19: =IF(Fremskrivning!BC125="","",Fremskrivning!BC125)/1000 -> 0 | J19: =IF(Fremskrivning!BK125="","",Fremskrivning!BK125)/1000 -> 0 | K19: =IF(Fremskrivning!BS125="","",Fremskrivning!BS125)/1000 -> 0 | L19: =IF(Fremskrivning!CA125="","",Fremskrivning!CA125)/1000 -> 0 | M19: =IF(Fremskrivning!CI125="","",Fremskrivning!CI125)/1000 -> 0 | N19: =IF(Fremskrivning!CQ125="","",Fremskrivning!CQ125)/1000 -> 0 | O19: =IF(Fremskrivning!CY125="","",Fremskrivning!CY125)/1000 -> 0 | P19: =IF(Fremskrivning!DG125="","",Fremskrivning!DG125)/1000 -> 0
B21: Tilgodehavender | C21: =IF(Fremskrivning!K127="","",Fremskrivning!K127)/1000 -> 0 | D21: =IF(Fremskrivning!O127="","",Fremskrivning!O127)/1000 -> 0 | E21: =IF(Fremskrivning!S127="","",Fremskrivning!S127)/1000 -> 0 | F21: =IF(Fremskrivning!AE127="","",Fremskrivning!AE127)/1000 -> 0 | G21: =IF(Fremskrivning!AM127="","",Fremskrivning!AM127)/1000 -> 0 | H21: =IF(Fremskrivning!AU127="","",Fremskrivning!AU127)/1000 -> 0 | I21: =IF(Fremskrivning!BC127="","",Fremskrivning!BC127)/1000 -> 0 | J21: =IF(Fremskrivning!BK127="","",Fremskrivning!BK127)/1000 -> 0 | K21: =IF(Fremskrivning!BS127="","",Fremskrivning!BS127)/1000 -> 0 | L21: =IF(Fremskrivning!CA127="","",Fremskrivning!CA127)/1000 -> 0 | M21: =IF(Fremskrivning!CI127="","",Fremskrivning!CI127)/1000 -> 0 | N21: =IF(Fremskrivning!CQ127="","",Fremskrivning!CQ127)/1000 -> 0 | O21: =IF(Fremskrivning!CY127="","",Fremskrivning!CY127)/1000 -> 0 | P21: =IF(Fremskrivning!DG127="","",Fremskrivning!DG127)/1000 -> 0
B22: Andel og Mellemregning I/S | C22: =IF(Fremskrivning!K128="","",Fremskrivning!K128)/1000 -> 0 | D22: =IF(Fremskrivning!O128="","",Fremskrivning!O128)/1000 -> 0 | E22: =IF(Fremskrivning!S128="","",Fremskrivning!S128)/1000 -> 0 | F22: =IF(Fremskrivning!AE128="","",Fremskrivning!AE128)/1000 -> 0 | G22: =IF(Fremskrivning!AM128="","",Fremskrivning!AM128)/1000 -> 0 | H22: =IF(Fremskrivning!AU128="","",Fremskrivning!AU128)/1000 -> 0 | I22: =IF(Fremskrivning!BC128="","",Fremskrivning!BC128)/1000 -> 0 | J22: =IF(Fremskrivning!BK128="","",Fremskrivning!BK128)/1000 -> 0 | K22: =IF(Fremskrivning!BS128="","",Fremskrivning!BS128)/1000 -> 0 | L22: =IF(Fremskrivning!CA128="","",Fremskrivning!CA128)/1000 -> 0 | M22: =IF(Fremskrivning!CI128="","",Fremskrivning!CI128)/1000 -> 0 | N22: =IF(Fremskrivning!CQ128="","",Fremskrivning!CQ128)/1000 -> 0 | O22: =IF(Fremskrivning!CY128="","",Fremskrivning!CY128)/1000 -> 0 | P22: =IF(Fremskrivning!DG128="","",Fremskrivning!DG128)/1000 -> 0
B23: Værdipapirer | C23: =IF(Fremskrivning!K129="","",Fremskrivning!K129)/1000 -> 0 | D23: =IF(Fremskrivning!O129="","",Fremskrivning!O129)/1000 -> 0 | E23: =IF(Fremskrivning!S129="","",Fremskrivning!S129)/1000 -> 0 | F23: =IF(Fremskrivning!AE129="","",Fremskrivning!AE129)/1000 -> 0 | G23: =IF(Fremskrivning!AM129="","",Fremskrivning!AM129)/1000 -> 0 | H23: =IF(Fremskrivning!AU129="","",Fremskrivning!AU129)/1000 -> 0 | I23: =IF(Fremskrivning!BC129="","",Fremskrivning!BC129)/1000 -> 0 | J23: =IF(Fremskrivning!BK129="","",Fremskrivning!BK129)/1000 -> 0 | K23: =IF(Fremskrivning!BS129="","",Fremskrivning!BS129)/1000 -> 0 | L23: =IF(Fremskrivning!CA129="","",Fremskrivning!CA129)/1000 -> 0 | M23: =IF(Fremskrivning!CI129="","",Fremskrivning!CI129)/1000 -> 0 | N23: =IF(Fremskrivning!CQ129="","",Fremskrivning!CQ129)/1000 -> 0 | O23: =IF(Fremskrivning!CY129="","",Fremskrivning!CY129)/1000 -> 0 | P23: =IF(Fremskrivning!DG129="","",Fremskrivning!DG129)/1000 -> 0
B24: Likvidide beholdninger | C24: =IF(Fremskrivning!K130="","",Fremskrivning!K130)/1000 -> 0 | D24: =IF(Fremskrivning!O130="","",Fremskrivning!O130)/1000 -> 0 | E24: =IF(Fremskrivning!S130="","",Fremskrivning!S130)/1000 -> 0 | F24: =IF(Fremskrivning!AE130="","",Fremskrivning!AE130)/1000 -> 0 | G24: =IF(Fremskrivning!AM130="","",Fremskrivning!AM130)/1000 -> 0 | H24: =IF(Fremskrivning!AU130="","",Fremskrivning!AU130)/1000 -> 0 | I24: =IF(Fremskrivning!BC130="","",Fremskrivning!BC130)/1000 -> 0 | J24: =IF(Fremskrivning!BK130="","",Fremskrivning!BK130)/1000 -> 0 | K24: =IF(Fremskrivning!BS130="","",Fremskrivning!BS130)/1000 -> 0 | L24: =IF(Fremskrivning!CA130="","",Fremskrivning!CA130)/1000 -> 0 | M24: =IF(Fremskrivning!CI130="","",Fremskrivning!CI130)/1000 -> 0 | N24: =IF(Fremskrivning!CQ130="","",Fremskrivning!CQ130)/1000 -> 0 | O24: =IF(Fremskrivning!CY130="","",Fremskrivning!CY130)/1000 -> 0 | P24: =IF(Fremskrivning!DG130="","",Fremskrivning!DG130)/1000 -> 0
B26: Hensættelser | C26: =IF(Fremskrivning!K132="","",Fremskrivning!K132)/1000 -> 0 | D26: =IF(Fremskrivning!O132="","",Fremskrivning!O132)/1000 -> 0 | E26: =IF(Fremskrivning!S132="","",Fremskrivning!S132)/1000 -> 0 | F26: =IF(Fremskrivning!AE132="","",Fremskrivning!AE132)/1000 -> 0 | G26: =IF(Fremskrivning!AM132="","",Fremskrivning!AM132)/1000 -> 0 | H26: =IF(Fremskrivning!AU132="","",Fremskrivning!AU132)/1000 -> 0 | I26: =IF(Fremskrivning!BC132="","",Fremskrivning!BC132)/1000 -> 0 | J26: =IF(Fremskrivning!BK132="","",Fremskrivning!BK132)/1000 -> 0 | K26: =IF(Fremskrivning!BS132="","",Fremskrivning!BS132)/1000 -> 0 | L26: =IF(Fremskrivning!CA132="","",Fremskrivning!CA132)/1000 -> 0 | M26: =IF(Fremskrivning!CI132="","",Fremskrivning!CI132)/1000 -> 0 | N26: =IF(Fremskrivning!CQ132="","",Fremskrivning!CQ132)/1000 -> 0 | O26: =IF(Fremskrivning!CY132="","",Fremskrivning!CY132)/1000 -> 0 | P26: =IF(Fremskrivning!DG132="","",Fremskrivning!DG132)/1000 -> 0
B28: Aktiver i alt | C28: =IF(Fremskrivning!K134="","",Fremskrivning!K134)/1000 -> 0 | D28: =IF(Fremskrivning!O134="","",Fremskrivning!O134)/1000 -> 0 | E28: =IF(Fremskrivning!S134="","",Fremskrivning!S134)/1000 -> 0 | F28: =IF(Fremskrivning!AE134="","",Fremskrivning!AE134)/1000 -> 0 | G28: =IF(Fremskrivning!AM134="","",Fremskrivning!AM134)/1000 -> 0 | H28: =IF(Fremskrivning!AU134="","",Fremskrivning!AU134)/1000 -> 0 | I28: =IF(Fremskrivning!BC134="","",Fremskrivning!BC134)/1000 -> 0 | J28: =IF(Fremskrivning!BK134="","",Fremskrivning!BK134)/1000 -> 0 | K28: =IF(Fremskrivning!BS134="","",Fremskrivning!BS134)/1000 -> 0 | L28: =IF(Fremskrivning!CA134="","",Fremskrivning!CA134)/1000 -> 0 | M28: =IF(Fremskrivning!CI134="","",Fremskrivning!CI134)/1000 -> 0 | N28: =IF(Fremskrivning!CQ134="","",Fremskrivning!CQ134)/1000 -> 0 | O28: =IF(Fremskrivning!CY134="","",Fremskrivning!CY134)/1000 -> 0 | P28: =IF(Fremskrivning!DG134="","",Fremskrivning!DG134)/1000 -> 0
B30: Realkreditinstitutter | C30: =IF(Fremskrivning!K136="","",Fremskrivning!K136)/1000 -> 0 | D30: =IF(Fremskrivning!O136="","",Fremskrivning!O136)/1000 -> 0 | E30: =IF(Fremskrivning!S136="","",Fremskrivning!S136)/1000 -> 0 | F30: =IF(Fremskrivning!AE136="","",Fremskrivning!AE136)/1000 -> 0 | G30: =IF(Fremskrivning!AM136="","",Fremskrivning!AM136)/1000 -> 0 | H30: =IF(Fremskrivning!AU136="","",Fremskrivning!AU136)/1000 -> 0 | I30: =IF(Fremskrivning!BC136="","",Fremskrivning!BC136)/1000 -> 0 | J30: =IF(Fremskrivning!BK136="","",Fremskrivning!BK136)/1000 -> 0 | K30: =IF(Fremskrivning!BS136="","",Fremskrivning!BS136)/1000 -> 0 | L30: =IF(Fremskrivning!CA136="","",Fremskrivning!CA136)/1000 -> 0 | M30: =IF(Fremskrivning!CI136="","",Fremskrivning!CI136)/1000 -> 0 | N30: =IF(Fremskrivning!CQ136="","",Fremskrivning!CQ136)/1000 -> 0 | O30: =IF(Fremskrivning!CY136="","",Fremskrivning!CY136)/1000 -> 0 | P30: =IF(Fremskrivning!DG136="","",Fremskrivning!DG136)/1000 -> 0
B31: Pengeinstitutter | C31: =IF(Fremskrivning!K137="","",Fremskrivning!K137)/1000 -> 0 | D31: =IF(Fremskrivning!O137="","",Fremskrivning!O137)/1000 -> 0 | E31: =IF(Fremskrivning!S137="","",Fremskrivning!S137)/1000 -> 0 | F31: =IF(Fremskrivning!AE137="","",Fremskrivning!AE137)/1000 -> 0 | G31: =IF(Fremskrivning!AM137="","",Fremskrivning!AM137)/1000 -> 0 | H31: =IF(Fremskrivning!AU137="","",Fremskrivning!AU137)/1000 -> 0 | I31: =IF(Fremskrivning!BC137="","",Fremskrivning!BC137)/1000 -> 0 | J31: =IF(Fremskrivning!BK137="","",Fremskrivning!BK137)/1000 -> 0 | K31: =IF(Fremskrivning!BS137="","",Fremskrivning!BS137)/1000 -> 0 | L31: =IF(Fremskrivning!CA137="","",Fremskrivning!CA137)/1000 -> 0 | M31: =IF(Fremskrivning!CI137="","",Fremskrivning!CI137)/1000 -> 0 | N31: =IF(Fremskrivning!CQ137="","",Fremskrivning!CQ137)/1000 -> 0 | O31: =IF(Fremskrivning!CY137="","",Fremskrivning!CY137)/1000 -> 0 | P31: =IF(Fremskrivning!DG137="","",Fremskrivning!DG137)/1000 -> 0
B32: Leasingforpligtelser | C32: =IF(Fremskrivning!K138="","",Fremskrivning!K138)/1000 -> 0 | D32: =IF(Fremskrivning!O138="","",Fremskrivning!O138)/1000 -> 0 | E32: =IF(Fremskrivning!S138="","",Fremskrivning!S138)/1000 -> 0 | F32: =IF(Fremskrivning!AE138="","",Fremskrivning!AE138)/1000 -> 0 | G32: =IF(Fremskrivning!AM138="","",Fremskrivning!AM138)/1000 -> 0 | H32: =IF(Fremskrivning!AU138="","",Fremskrivning!AU138)/1000 -> 0 | I32: =IF(Fremskrivning!BC138="","",Fremskrivning!BC138)/1000 -> 0 | J32: =IF(Fremskrivning!BK138="","",Fremskrivning!BK138)/1000 -> 0 | K32: =IF(Fremskrivning!BS138="","",Fremskrivning!BS138)/1000 -> 0 | L32: =IF(Fremskrivning!CA138="","",Fremskrivning!CA138)/1000 -> 0 | M32: =IF(Fremskrivning!CI138="","",Fremskrivning!CI138)/1000 -> 0 | N32: =IF(Fremskrivning!CQ138="","",Fremskrivning!CQ138)/1000 -> 0 | O32: =IF(Fremskrivning!CY138="","",Fremskrivning!CY138)/1000 -> 0 | P32: =IF(Fremskrivning!DG138="","",Fremskrivning!DG138)/1000 -> 0
B33: Anden gæld | C33: =IF(Fremskrivning!K139="","",Fremskrivning!K139)/1000 -> 0 | D33: =IF(Fremskrivning!O139="","",Fremskrivning!O139)/1000 -> 0 | E33: =IF(Fremskrivning!S139="","",Fremskrivning!S139)/1000 -> 0 | F33: =IF(Fremskrivning!AE139="","",Fremskrivning!AE139)/1000 -> 0 | G33: =IF(Fremskrivning!AM139="","",Fremskrivning!AM139)/1000 -> 0 | H33: =IF(Fremskrivning!AU139="","",Fremskrivning!AU139)/1000 -> 0 | I33: =IF(Fremskrivning!BC139="","",Fremskrivning!BC139)/1000 -> 0 | J33: =IF(Fremskrivning!BK139="","",Fremskrivning!BK139)/1000 -> 0 | K33: =IF(Fremskrivning!BS139="","",Fremskrivning!BS139)/1000 -> 0 | L33: =IF(Fremskrivning!CA139="","",Fremskrivning!CA139)/1000 -> 0 | M33: =IF(Fremskrivning!CI139="","",Fremskrivning!CI139)/1000 -> 0 | N33: =IF(Fremskrivning!CQ139="","",Fremskrivning!CQ139)/1000 -> 0 | O33: =IF(Fremskrivning!CY139="","",Fremskrivning!CY139)/1000 -> 0 | P33: =IF(Fremskrivning!DG139="","",Fremskrivning!DG139)/1000 -> 0
B34: Kassekredit | C34: =IF(Fremskrivning!K140="","",Fremskrivning!K140)/1000 -> 0 | D34: =IF(Fremskrivning!O140="","",Fremskrivning!O140)/1000 -> 0 | E34: =IF(Fremskrivning!S140="","",Fremskrivning!S140)/1000 -> 0 | F34: =IF(Fremskrivning!AE140="","",Fremskrivning!AE140)/1000 -> 0 | G34: =IF(Fremskrivning!AM140="","",Fremskrivning!AM140)/1000 -> 0 | H34: =IF(Fremskrivning!AU140="","",Fremskrivning!AU140)/1000 -> 0 | I34: =IF(Fremskrivning!BC140="","",Fremskrivning!BC140)/1000 -> 0 | J34: =IF(Fremskrivning!BK140="","",Fremskrivning!BK140)/1000 -> 0 | K34: =IF(Fremskrivning!BS140="","",Fremskrivning!BS140)/1000 -> 0 | L34: =IF(Fremskrivning!CA140="","",Fremskrivning!CA140)/1000 -> 0 | M34: =IF(Fremskrivning!CI140="","",Fremskrivning!CI140)/1000 -> 0 | N34: =IF(Fremskrivning!CQ140="","",Fremskrivning!CQ140)/1000 -> 0 | O34: =IF(Fremskrivning!CY140="","",Fremskrivning!CY140)/1000 -> 0 | P34: =IF(Fremskrivning!DG140="","",Fremskrivning!DG140)/1000 -> 0
B35: Gæld i alt | C35: =IF(Fremskrivning!K141="","",Fremskrivning!K141)/1000 -> 0 | D35: =IF(Fremskrivning!O141="","",Fremskrivning!O141)/1000 -> 0 | E35: =IF(Fremskrivning!S141="","",Fremskrivning!S141)/1000 -> 0 | F35: =IF(Fremskrivning!AE141="","",Fremskrivning!AE141)/1000 -> 0 | G35: =IF(Fremskrivning!AM141="","",Fremskrivning!AM141)/1000 -> 0 | H35: =IF(Fremskrivning!AU141="","",Fremskrivning!AU141)/1000 -> 0 | I35: =IF(Fremskrivning!BC141="","",Fremskrivning!BC141)/1000 -> 0 | J35: =IF(Fremskrivning!BK141="","",Fremskrivning!BK141)/1000 -> 0 | K35: =IF(Fremskrivning!BS141="","",Fremskrivning!BS141)/1000 -> 0 | L35: =IF(Fremskrivning!CA141="","",Fremskrivning!CA141)/1000 -> 0 | M35: =IF(Fremskrivning!CI141="","",Fremskrivning!CI141)/1000 -> 0 | N35: =IF(Fremskrivning!CQ141="","",Fremskrivning!CQ141)/1000 -> 0 | O35: =IF(Fremskrivning!CY141="","",Fremskrivning!CY141)/1000 -> 0 | P35: =IF(Fremskrivning!DG141="","",Fremskrivning!DG141)/1000 -> 0
B37: Hensættelser | C37: =IF(Fremskrivning!K143="","",Fremskrivning!K143)/1000 -> 0 | D37: =IF(Fremskrivning!O143="","",Fremskrivning!O143)/1000 -> 0 | E37: =IF(Fremskrivning!S143="","",Fremskrivning!S143)/1000 -> 0 | F37: =IF(Fremskrivning!AE143="","",Fremskrivning!AE143)/1000 -> 0 | G37: =IF(Fremskrivning!AM143="","",Fremskrivning!AM143)/1000 -> 0 | H37: =IF(Fremskrivning!AU143="","",Fremskrivning!AU143)/1000 -> 0 | I37: =IF(Fremskrivning!BC143="","",Fremskrivning!BC143)/1000 -> 0 | J37: =IF(Fremskrivning!BK143="","",Fremskrivning!BK143)/1000 -> 0 | K37: =IF(Fremskrivning!BS143="","",Fremskrivning!BS143)/1000 -> 0 | L37: =IF(Fremskrivning!CA143="","",Fremskrivning!CA143)/1000 -> 0 | M37: =IF(Fremskrivning!CI143="","",Fremskrivning!CI143)/1000 -> 0 | N37: =IF(Fremskrivning!CQ143="","",Fremskrivning!CQ143)/1000 -> 0 | O37: =IF(Fremskrivning!CY143="","",Fremskrivning!CY143)/1000 -> 0 | P37: =IF(Fremskrivning!DG143="","",Fremskrivning!DG143)/1000 -> 0
B39: Egenkapital | C39: =IF(Fremskrivning!K145="","",Fremskrivning!K145)/1000 -> 0 | D39: =IF(Fremskrivning!O145="","",Fremskrivning!O145)/1000 -> 0 | E39: =IF(Fremskrivning!S145="","",Fremskrivning!S145)/1000 -> 0 | F39: =IF(Fremskrivning!AE145="","",Fremskrivning!AE145)/1000 -> 0 | G39: =IF(Fremskrivning!AM145="","",Fremskrivning!AM145)/1000 -> 0 | H39: =IF(Fremskrivning!AU145="","",Fremskrivning!AU145)/1000 -> 0 | I39: =IF(Fremskrivning!BC145="","",Fremskrivning!BC145)/1000 -> 0 | J39: =IF(Fremskrivning!BK145="","",Fremskrivning!BK145)/1000 -> 0 | K39: =IF(Fremskrivning!BS145="","",Fremskrivning!BS145)/1000 -> 0 | L39: =IF(Fremskrivning!CA145="","",Fremskrivning!CA145)/1000 -> 0 | M39: =IF(Fremskrivning!CI145="","",Fremskrivning!CI145)/1000 -> 0 | N39: =IF(Fremskrivning!CQ145="","",Fremskrivning!CQ145)/1000 -> 0 | O39: =IF(Fremskrivning!CY145="","",Fremskrivning!CY145)/1000 -> 0 | P39: =IF(Fremskrivning!DG145="","",Fremskrivning!DG145)/1000 -> 0
B43: Soliditetsgrad | C43: =C39/C28 ->  | D43: =D39/D28 ->  | E43: =E39/E28 -> 

Sheet Budget n (hidden)
A1: INDSÆT BUDGET HER -> | C1: Budget
C2: 0
C3: 01.01.2023
C4: 31.12.2023
C13: 2023-2025
A14: =IFERROR(VALUE(_xlfn.CONCAT(LEFT(E14,4),MID(E14&" ",6,2))),"") ->  | E14: Resultat - Internt
A15: =IFERROR(VALUE(_xlfn.CONCAT(LEFT(E15,4),MID(E15&" ",6,2))),"") ->  | E15: RESULTATBUDGET 2023
E16: 1.000 kr | G16: Jan | I16: Feb | K16: Mar | M16: Apr | O16: Maj | Q16: Jun | S16: Jul | U16: Aug | W16: Sep | Y16: Okt | AA16: Nov | AC16: Dec | AE16: I alt
E17: Korn | U17: 2277 | AA17: 100 | AE17: 2377
E18: Raps | AA18: 807 | AE18: 807
E19: Svin | G19: 1468 | I19: 1468 | K19: 1467 | M19: 1733 | O19: 1733 | Q19: 1731 | S19: 1688 | U19: 1688 | W19: 1686 | Y19: 1550 | AA19: 1550 | AC19: 1672 | AE19: 19433
E20: Andre landbrugsindtægter | G20: 15 | I20: 15 | K20: 15 | M20: 15 | O20: 15 | Q20: 15 | S20: 15 | U20: 15 | W20: 15 | Y20: 15 | AA20: 180 | AC20: 15 | AE20: 345
E21: Bruttoudbytte | G21: 1483 | I21: 1483 | K21: 1482 | M21: 1748 | O21: 1748 | Q21: 1746 | S21: 1703 | U21: 3980 | W21: 1701 | Y21: 1565 | AA21: 2637 | AC21: 1687 | AE21: 22962
E23: Udsæd | I23: -40 | Q23: -25 | U23: -104 | W23: -2 | AE23: -171
E24: Gødning | O24: -173 | Q24: -29 | AE24: -201
E25: Planteværn | G25: -4 | M25: -72 | O25: -26 | U25: -79 | W25: -32 | Y25: -88 | AE25: -300
E26: Diverse vedrørende markbrug | K26: -10 | Q26: -10 | U26: -10 | W26: -11 | AC26: -10 | AE26: -49
E27: Korn | G27: -446 | I27: -449 | K27: -449 | M27: -430 | O27: -431 | Q27: -433 | S27: -366 | U27: -364 | W27: -366 | Y27: -365 | AA27: -366 | AC27: -365 | AE27: -4830
E28: Færdigblanding mv. | G28: -325 | I28: -325 | K28: -325 | M28: -325 | O28: -325 | Q28: -325 | S28: -325 | U28: -325 | W28: -325 | Y28: -325 | AA28: -325 | AC28: -325 | AE28: -3903
E29: Andet indkøbt foder | G29: -31 | I29: -31 | K29: -31 | M29: -31 | O29: -31 | Q29: -31 | S29: -31 | U29: -31 | W29: -31 | Y29: -31 | AA29: -31 | AC29: -31 | AE29: -372
E30: Dyrlæge og medicin | G30: -78 | I30: -78 | K30: -53 | M30: -53 | O30: -53 | Q30: -53 | S30: -53 | U30: -53 | W30: -53 | Y30: -53 | AA30: -53 | AC30: -53 | AE30: -690
E31: Diverse vedr. husdyr | G31: -54 | I31: -54 | K31: -79 | M31: -54 | O31: -54 | Q31: -54 | S31: -54 | U31: -54 | W31: -54 | Y31: -54 | AA31: -54 | AC31: -54 | AE31: -667
E32: Stykomkostninger | G32: -938 | I32: -977 | K32: -946 | M32: -965 | O32: -1093 | Q32: -959 | S32: -829 | U32: -1021 | W32: -874 | Y32: -915 | AA32: -829 | AC32: -837 | AE32: -11183
E34: Dækningsbidrag | G34: 545 | I34: 506 | K34: 536 | M34: 783 | O34: 655 | Q34: 787 | S34: 873 | U34: 2959 | W34: 827 | Y34: 650 | AA34: 1807 | AC34: 849 | AE34: 11779
E36: Energi | G36: -128 | I36: -122 | K36: -119 | M36: -124 | O36: -116 | Q36: -117 | S36: -110 | U36: -120 | W36: -116 | Y36: -117 | AA36: -117 | AC36: -117 | AE36: -1422
E37: Maskinstation mv. | K37: -166 | M37: -160 | O37: -109 | W37: -162 | Y37: -170 | AC37: -62 | AE37: -830
E38: Vedligehold | G38: -55 | I38: -55 | K38: -95 | M38: -55 | O38: -55 | Q38: -55 | S38: -55 | U38: -55 | W38: -55 | Y38: -65 | AA38: -55 | AC38: -55 | AE38: -715
E39: Lønomkostninger | G39: -208 | I39: -218 | K39: -222 | M39: -211 | O39: -193 | Q39: -193 | S39: -210 | U39: -193 | W39: -193 | Y39: -198 | AA39: -198 | AC39: -198 | AE39: -2436
E40: Ejendomsskat og forsikringer | K40: -37 | Q40: -9 | W40: -95 | Y40: -41 | AC40: -9 | AE40: -190
E41: Diverse omkostninger | G41: -38 | I41: -36 | K41: -53 | M41: -33 | O41: -33 | Q41: -66 | S41: -29 | U41: -38 | W41: -59 | Y41: -23 | AA41: -23 | AC41: -30 | AE41: -461
E42: Kontante kapacitetsomkostninger | G42: -429 | I42: -432 | K42: -693 | M42: -583 | O42: -507 | Q42: -440 | S42: -404 | U42: -406 | W42: -681 | Y42: -614 | AA42: -393 | AC42: -471 | AE42: -6055
E44: Af- og nedskrivninger mv. | G44: -59 | I44: -59 | K44: -59 | M44: -59 | O44: -59 | Q44: -59 | S44: -59 | U44: -59 | W44: -59 | Y44: -59 | AA44: -59 | AC44: -59 | AE44: -705
E45: Kapacitetsomkostninger i alt | G45: -487 | I45: -490 | K45: -752 | M45: -642 | O45: -566 | Q45: -499 | S45: -463 | U45: -465 | W45: -740 | Y45: -672 | AA45: -452 | AC45: -530 | AE45: -6759
E47: Resultat af primær drift | G47: 58 | I47: 16 | K47: -216 | M47: 141 | O47: 89 | Q47: 288 | S47: 410 | U47: 2494 | W47: 87 | Y47: -23 | AA47: 1355 | AC47: 319 | AE47: 5020
E50: Afkoblet EU-støtte mv. | AC50: 400 | AE50: 400
E52: Resultat før finansiering | G52: 58 | I52: 16 | K52: -216 | M52: 141 | O52: 89 | Q52: 288 | S52: 410 | U52: 2494 | W52: 87 | Y52: -23 | AA52: 1355 | AC52: 719 | AE52: 5420
E54: Finansieringstilskud | AC54: 31 | AE54: 31
E55: Forpagtningsafgift mv. | G55: -50 | K55: -153 | M55: -70 | Q55: -43 | S55: -50 | U55: 14 | W55: -281 | Y55: -91 | AC55: -162 | AE55: -887
E56: Renteudgifter | K56: -352 | Q56: -372 | W56: -348 | AC56: -331 | AE56: -1407
E57: Finansiering ialt | G57: -50 | K57: -505 | M57: -70 | Q57: -415 | S57: -50 | U57: 13 | W57: -629 | Y57: -92 | AC57: -461 | AE57: -2262
E59: Resultat efter finansiering | G59: 8 | I59: 16 | K59: -721 | M59: 71 | O59: 89 | Q59: -127 | S59: 360 | U59: 2507 | W59: -542 | Y59: -114 | AA59: 1355 | AC59: 258 | AE59: 3158
E62: Resultat før regulering og skat | G62: 8 | I62: 16 | K62: -721 | M62: 71 | O62: 89 | Q62: -127 | S62: 360 | U62: 2507 | W62: -542 | Y62: -114 | AA62: 1355 | AC62: 258 | AE62: 3158
E64: Resultat før skat | G64: 8 | I64: 16 | K64: -721 | M64: 71 | O64: 89 | Q64: -127 | S64: 360 | U64: 2507 | W64: -542 | Y64: -114 | AA64: 1355 | AC64: 258 | AE64: 3158
E66: Skat | AC66: -1227 | AE66: -1227
E68: Resultat efter skat | G68: 8 | I68: 16 | K68: -721 | M68: 71 | O68: 89 | Q68: -127 | S68: 360 | U68: 2507 | W68: -542 | Y68: -114 | AA68: 1355 | AC68: -969 | AE68: 1931
E69: Investering og finansiering - Internt
E70: RESULTATBUDGET 2023
E71: 1.000 kr | G71: Jan | I71: Feb | K71: Mar | M71: Apr | O71: Maj | Q71: Jun | S71: Jul | U71: Aug | W71: Sep | Y71: Okt | AA71: Nov | AC71: Dec | AE71: I alt
E72: Resultat før skat | G72: 8 | I72: 16 | K72: -721 | M72: 71 | O72: 89 | Q72: -127 | S72: 360 | U72: 2507 | W72: -542 | Y72: -114 | AA72: 1355 | AC72: 258 | AE72: 3158
E74: Afskrivninger mv. | G74: 59 | I74: 59 | K74: 59 | M74: 59 | O74: 59 | Q74: 59 | S74: 59 | U74: 59 | W74: 59 | Y74: 59 | AA74: 59 | AC74: 59 | AE74: 705
E75: Tilbageførsel af ikke likvide poster | G75: 59 | I75: 59 | K75: 59 | M75: 59 | O75: 59 | Q75: 59 | S75: 59 | U75: 59 | W75: 59 | Y75: 59 | AA75: 59 | AC75: 59 | AE75: 705
E77: Betalt skat | AC77: -522 | AE77: -522
E78: Privat | G78: -18 | I78: -17 | K78: -17 | M78: -18 | O78: -17 | Q78: -18 | S78: -18 | U78: -17 | W78: -18 | Y78: -17 | AA78: -17 | AC78: -267 | AE78: -460
A79: =IFERROR(VALUE(_xlfn.CONCAT(LEFT(E79,4),MID(E79&" ",6,2))),"") ->  | E79: Afskrivninger privat tlbf. | G79: 1 | I79: 1 | K79: 1 | M79: 1 | O79: 1 | Q79: 1 | S79: 1 | U79: 1 | W79: 1 | Y79: 1 | AA79: 1 | AC79: 1 | AE79: 11
E80: Privat udtræk, skat og pension i alt | G80: -17 | I80: -16 | K80: -16 | M80: -17 | O80: -16 | Q80: -17 | S80: -17 | U80: -16 | W80: -17 | Y80: -16 | AA80: -16 | AC80: -788 | AE80: -971
E82: Til investering og afdrag | G82: 50 | I82: 58 | K82: -679 | M82: 113 | O82: 131 | Q82: -85 | S82: 402 | U82: 2550 | W82: -501 | Y82: -72 | AA82: 1397 | AC82: -472 | AE82: 2891
E84: Beholdninger | G84: -48 | I84: -46 | K84: -48 | M84: -48 | O84: -48 | Q84: -19 | S84: 366 | U84: -1913 | W84: 366 | Y84: 365 | AA84: 366 | AC84: 365 | AE84: -341
E86: Likviditet før anlægsinvesteringer | G86: 2 | I86: 12 | K86: -726 | M86: 65 | O86: 83 | Q86: -105 | S86: 768 | U86: 636 | W86: -135 | Y86: 293 | AA86: 1764 | AC86: -107 | AE86: 2550
E89: Likviditetsoverskud/-behov | G89: 2 | I89: 12 | K89: -726 | M89: 65 | O89: 83 | Q89: -105 | S89: 768 | U89: 636 | W89: -135 | Y89: 293 | AA89: 1764 | AC89: -107 | AE89: 2550
E91: Værdipapirer | AC91: 50 | AE91: 50
E92: Likvider, indlån og KK pos. | AA92: -1363 | AC92: 142 | AE92: -1221
E93: Ansvarlig lånekapital | AC93: -1564 | AE93: -1564
E94: Realkreditinstitutter | K94: -77 | Q94: -77 | W94: -77 | AC94: -77 | AE94: -307
E95: Pengeinstitutter | G95: -6 | I95: -6 | K95: -185 | M95: -6 | O95: -6 | Q95: -185 | S95: -6 | U95: -6 | W95: -185 | Y95: -6 | AA95: -6 | AC95: -185 | AE95: -787
E96: Anden langfristet gæld | AC96: -31 | AE96: -31
E97: Anden gæld | O97: -3 | AC97: 2086 | AE97: 2083
E98: Moms og afgifter | G98: 15 | I98: 22 | K98: -665 | M98: 42 | O98: 37 | Q98: 115 | S98: 218 | U98: 170 | W98: -66 | Y98: 113 | AA98: 419 | AC98: -313 | AE98: 106
E99: Kassekredit | G99: -12 | I99: -28 | K99: 1653 | M99: -101 | O99: -111 | Q99: 251 | S99: -980 | U99: -801 | W99: 462 | Y99: -399 | AA99: -813 | AE99: -879
E101: Likviditetsanvendelse/-fremskaffelse | G101: -2 | I101: -12 | K101: 726 | M101: -65 | O101: -83 | Q101: 105 | S101: -768 | U101: -636 | W101: 135 | Y101: -293 | AA101: -1764 | AC101: 107 | AE101: -2550
E103: Afstemning
E104: Positiv saldo | H104: Maxtræk | I104: Negativ saldo
D105: Primo | H105: -3000 | I105: -879
D106: Jan | H106: -3000 | I106: -868
D107: Feb | H107: -3000 | I107: -839
D108: Mar | H108: -3000 | I108: -2492
D109: Apr | H109: -3000 | I109: -2391
D110: Maj | H110: -3000 | I110: -2280
D111: Jun | H111: -3000 | I111: -2531
D112: Jul | H112: -3000 | I112: -1551
D113: Aug | H113: -3000 | I113: -750
D114: Sep | H114: -3000 | I114: -1213
D115: Okt | H115: -3000 | I115: -813
A116: 1363 | D116: Nov | E116: 1363 | H116: -3000
A117: 950 | D117: Dec | E117: 950 | H117: -3000
C118: F,N,N | E118: Kassekreditoplysninger | I118: Momsoplysninger
C119: N,N,N | E119: Konto for kassekredit | G119: 2600 00 | H119: S | I119: Momsprincip | K119: kvartal | L119: S
C120: N,N,N | E120: Rentekonto for kassekredit | G120: 5600 00 | H120: S | I120: Momsprincip før 1/1 | K120: kvartal | L120: S
C121: N,N,N | I121: Momssats | K121: 0.25 | L121: S
C122: N,N,N | E122: Rentesats ved positiv saldo % | H122: S
C123: N,N,N | E123: Rentesats op til max træk % | G123: 7.75 | H123: S
C124: N,N,N | E124: Rentesats over max træk % | G124: 7.75 | H124: S
C125: N,N,N | E125: Provision af aftalt max træk pr. år % | H125: S
C126: N,N,N
C127: N,N,N | E127: Renteperioder pr. år | G127: 4 | H127: S
C128: N,N,N | E128: Første rentemåned | G128: Mar | H128: S
E129: Balance - Internt
E130: RESULTATBUDGET 2023
E131: 1.000 kr | G131: Primo | I131: Jan | K131: Feb | M131: Mar | O131: Apr | Q131: Maj | S131: Jun | U131: Jul | W131: Aug | Y131: Sep | AA131: Okt | AC131: Nov | AE131: Dec
E133: Fast ejendom | G133: 27551 | I133: 27520 | K133: 27488 | M133: 27457 | O133: 27425 | Q133: 27394 | S133: 27362 | U133: 27331 | W133: 27299 | Y133: 27268 | AA133: 27236 | AC133: 27205 | AE133: 27173
E134: Inventar markbrug | G134: 832 | I134: 823 | K134: 814 | M134: 805 | O134: 796 | Q134: 787 | S134: 777 | U134: 768 | W134: 759 | Y134: 750 | AA134: 741 | AC134: 732 | AE134: 723
E135: Inventar husdyrbrug | G135: 753 | I135: 740 | K135: 727 | M135: 715 | O135: 702 | Q135: 690 | S135: 677 | U135: 665 | W135: 652 | Y135: 639 | AA135: 627 | AC135: 614 | AE135: 602
E136: Inventar andet | G136: 7 | I136: 7 | K136: 7 | M136: 7 | O136: 7 | Q136: 7 | S136: 7 | U136: 7 | W136: 7 | Y136: 6 | AA136: 6 | AC136: 6 | AE136: 6
E137: Svin | G137: 4697 | I137: 4697 | K137: 4697 | M137: 4697 | O137: 4697 | Q137: 4697 | S137: 4697 | U137: 4697 | W137: 4697 | Y137: 4697 | AA137: 4697 | AC137: 4697 | AE137: 4697
E138: Beholdninger egen avl | G138: 89 | I138: 136 | K138: 182 | M138: 230 | O138: 278 | Q138: 326 | S138: 373 | U138: 7 | W138: 1920 | Y138: 1554 | AA138: 1189 | AC138: 823 | AE138: 458
E139: Beholdning indkøbt foder | G139: 113 | I139: 113 | K139: 113 | M139: 113 | O139: 113 | Q139: 113 | S139: 113 | U139: 113 | W139: 113 | Y139: 113 | AA139: 113 | AC139: 113 | AE139: 113
E140: Jordbeholdninger | G140: 202 | I140: 202 | K140: 202 | M140: 202 | O140: 202 | Q140: 202 | S140: 202 | U140: 202 | W140: 202 | Y140: 202 | AA140: 202 | AC140: 202 | AE140: 202
E141: Andre beholdninger | G141: 123 | I141: 123 | K141: 123 | M141: 123 | O141: 123 | Q141: 123 | S141: 94 | U141: 94 | W141: 94 | Y141: 94 | AA141: 94 | AC141: 94 | AE141: 94
E142: Landbrugsaktiver | G142: 34367 | I142: 34361 | K142: 34354 | M142: 34349 | O142: 34343 | Q142: 34338 | S142: 34304 | U142: 33884 | W142: 35744 | Y142: 35325 | AA142: 34907 | AC142: 34487 | AE142: 34069
A143: =IFERROR(VALUE(_xlfn.CONCAT(LEFT(E143,4),MID(E143&" ",6,2))),"") -> 
E144: Private aktiver | G144: 115 | I144: 109 | K144: 103 | M144: 96 | O144: 90 | Q144: 83 | S144: 77 | U144: 70 | W144: 64 | Y144: 58 | AA144: 51 | AC144: 45 | AE144: 38
E146: Tilgodehavender | G146: 961 | I146: 961 | K146: 961 | M146: 961 | O146: 961 | Q146: 961 | S146: 961 | U146: 961 | W146: 961 | Y146: 961 | AA146: 961 | AC146: 961 | AE146: 961
E147: Værdipapirer | G147: 513 | I147: 513 | K147: 513 | M147: 513 | O147: 513 | Q147: 513 | S147: 513 | U147: 513 | W147: 513 | Y147: 513 | AA147: 513 | AC147: 513 | AE147: 463
E148: Indlån | G148: 2 | I148: 2 | K148: 2 | M148: 2 | O148: 2 | Q148: 2 | S148: 2 | U148: 2 | W148: 2 | Y148: 2 | AA148: 2 | AC148: 2 | AE148: 274
E149: Kassekredit | AC149: 1363 | AE149: 950
E150: Finansaktiver | G150: 1476 | I150: 1476 | K150: 1476 | M150: 1476 | O150: 1476 | Q150: 1476 | S150: 1476 | U150: 1476 | W150: 1476 | Y150: 1476 | AA150: 1476 | AC150: 2840 | AE150: 2648
E152: Aktiver i alt | G152: 35959 | I152: 35947 | K152: 35933 | M152: 35921 | O152: 35909 | Q152: 35898 | S152: 35857 | U152: 35431 | W152: 37285 | Y152: 36859 | AA152: 36434 | AC152: 37372 | AE152: 36755
E156: Ansvarlig lånekapital | G156: -6511 | I156: -6511 | K156: -6511 | M156: -6511 | O156: -6511 | Q156: -6511 | S156: -6511 | U156: -6511 | W156: -6511 | Y156: -6511 | AA156: -6511 | AC156: -6511 | AE156: -4947
E157: Realkreditinstitutter | G157: -19806 | I157: -19806 | K157: -19806 | M157: -19729 | O157: -19729 | Q157: -19729 | S157: -19652 | U157: -19652 | W157: -19652 | Y157: -19576 | AA157: -19576 | AC157: -19576 | AE157: -19499
E158: Pengeinstitutter | G158: -3880 | I158: -3874 | K158: -3868 | M158: -3683 | O158: -3677 | Q158: -3672 | S158: -3487 | U158: -3481 | W158: -3475 | Y158: -3290 | AA158: -3284 | AC158: -3278 | AE158: -3093
E159: Anden langfristet gæld | G159: -248 | I159: -248 | K159: -248 | M159: -248 | O159: -248 | Q159: -248 | S159: -248 | U159: -248 | W159: -248 | Y159: -248 | AA159: -248 | AC159: -248 | AE159: -217
E160: Anden gæld | G160: -1144 | I160: -1144 | K160: -1144 | M160: -1144 | O160: -1144 | Q160: -1141 | S160: -1141 | U160: -1141 | W160: -1141 | Y160: -1141 | AA160: -1141 | AC160: -1141 | AE160: -3227
E161: Moms | G161: -587 | I161: -602 | K161: -624 | M161: 40 | O161: -2 | Q161: -38 | S161: -153 | U161: -371 | W161: -541 | Y161: -475 | AA161: -587 | AC161: -1006 | AE161: -693
E162: Kassekredit | G162: -879 | I162: -868 | K162: -839 | M162: -2492 | O162: -2391 | Q162: -2280 | S162: -2531 | U162: -1551 | W162: -750 | Y162: -1213 | AA162: -813
E163: Gæld i alt | G163: -33055 | I163: -33053 | K163: -33041 | M163: -33767 | O163: -33702 | Q163: -33619 | S163: -33724 | U163: -32956 | W163: -32319 | Y163: -32454 | AA163: -32161 | AC163: -31761 | AE163: -31676
E166: Hensættelse til udskudt skat | G166: 202 | I166: 202 | K166: 202 | M166: 202 | O166: 202 | Q166: 202 | S166: 202 | U166: 202 | W166: 202 | Y166: 202 | AA166: 202 | AC166: 202 | AE166: -503
E168: Egenkapital | G168: 3106 | I168: 3096 | K168: 3094 | M168: 2356 | O168: 2409 | Q168: 2480 | S168: 2335 | U168: 2677 | W168: 5168 | Y168: 4607 | AA168: 4475 | AC168: 5813 | AE168: 4577
E170: Resultat specifikationer - Internt
E171: RESULTATBUDGET 2023
G172: Jan | I172: Feb | K172: Mar | M172: Apr | O172: Maj | Q172: Jun | S172: Jul | U172: Aug | W172: Sep | Y172: Okt | AA172: Nov | AC172: Dec | AE172: I alt
E173: Korn
A175: 300080 | E175: 3000 80 Byg overført til husdyr
E176: Beløb | U176: 658617 | AE176: 658617
E177: Kg | U177: 372100 | AE177: 372100
E178: Pris | U178: 1.77 | AE178: 1.77
A180: 300280 | E180: 3002 80 Vinterbyg overført til husdyr
E181: Beløb | U181: 158946 | AE181: 158946
E182: Kg | U182: 89800 | AE182: 89800
E183: Pris | U183: 1.77 | AE183: 1.77
A185: 300480 | E185: 3004 80 Hvede overført til husdyr
E186: Beløb | U186: 1459896 | AE186: 1459896
E187: Kg | U187: 824800 | AE187: 824800
E188: Pris | U188: 1.77 | AE188: 1.77
A190: 301800 | E190: 3018 00 Halm
E191: Beløb | AA191: 100000 | AE191: 100000
E193: Korn i alt
U194: 2277459 | AA194: 100000 | AE194: 2377459
E196: Raps
A198: 303600 | E198: 3036 00 Raps
E199: Beløb | AA199: 806660 | AE199: 806660
E200: Kg | AA200: 189200 | AE200: 189200
E201: Pris | AA201: 4.26 | AE201: 4.26
E203: Raps i alt
AA204: 806660 | AE204: 806660
E206: Svin
A207: =IFERROR(VALUE(_xlfn.CONCAT(LEFT(E207,4),MID(E207&" ",6,2))),"") -> 
A208: 340400 | E208: 3404 00 Søer og gylte
E209: Beløb | G209: 71685 | I209: 71685 | K209: 71685 | M209: 71685 | O209: 71685 | Q209: 71685 | S209: 71685 | U209: 71685 | W209: 71685 | Y209: 71685 | AA209: 71685 | AC209: 71685 | AE209: 860220
E210: Stk | G210: 44 | I210: 44 | K210: 44 | M210: 44 | O210: 44 | Q210: 44 | S210: 44 | U210: 44 | W210: 44 | Y210: 44 | AA210: 44 | AC210: 44 | AE210: 531
E211: Pris | G211: 1620 | I211: 1620 | K211: 1620 | M211: 1620 | O211: 1620 | Q211: 1620 | S211: 1620 | U211: 1620 | W211: 1620 | Y211: 1620 | AA211: 1620 | AC211: 1620 | AE211: 1620
A213: 341700 | E213: 3417 00 Smågrise 25-30 kg
E214: Beløb | G214: 1293408 | I214: 1293408 | K214: 1292909 | M214: 1550016 | O214: 1550016 | Q214: 1549418 | S214: 1508544 | U214: 1508544 | W214: 1507962 | Y214: 1378944 | AA214: 1378944 | AC214: 1378412 | AE214: 17190525
E215: Stk | G215: 2592 | I215: 2592 | K215: 2591 | M215: 2592 | O215: 2592 | Q215: 2591 | S215: 2592 | U215: 2592 | W215: 2591 | Y215: 2592 | AA215: 2592 | AC215: 2591 | AE215: 31100
E216: Pris | G216: 499 | I216: 499 | K216: 499 | M216: 598 | O216: 598 | Q216: 598 | S216: 582 | U216: 582 | W216: 582 | Y216: 532 | AA216: 532 | AC216: 532 | AE216: 552
A218: 346100 | E218: 3461 00 Slagtesvin
E219: Beløb | G219: 103316 | I219: 103316 | K219: 102193 | M219: 111228 | O219: 111228 | Q219: 110019 | S219: 107272 | U219: 107272 | W219: 106106 | Y219: 99360 | AA219: 99360 | AC219: 98280 | AE219: 1258950
E220: Stk | G220: 92 | I220: 92 | K220: 91 | M220: 92 | O220: 92 | Q220: 91 | S220: 92 | U220: 92 | W220: 91 | Y220: 92 | AA220: 92 | AC220: 91 | AE220: 1100
E221: Pris | G221: 1123 | I221: 1123 | K221: 1123 | M221: 1209 | O221: 1209 | Q221: 1209 | S221: 1166 | U221: 1166 | W221: 1166 | Y221: 1080 | AA221: 1080 | AC221: 1080 | AE221: 1144
A223: 346300 | E223: 3463 00 Slagtesvin efterbetaling
E224: Beløb | AC224: 123200 | AE224: 123200
E225: Kg | AC225: 1100 | AE225: 1100
E226: Pris | AC226: 112 | AE226: 112
E228: Svin i alt
G229: 1468409 | I229: 1468409 | K229: 1466787 | M229: 1732929 | O229: 1732929 | Q229: 1731122 | S229: 1687501 | U229: 1687501 | W229: 1685753 | Y229: 1549989 | AA229: 1549989 | AC229: 1671577 | AE229: 19432895
E231: Andre landbrugsindtægter
A233: 381201 | E233: 3812 01 Lejeindtægt stuehus Sentvedvej 25
E234: Beløb | G234: 10500 | I234: 10500 | K234: 10500 | M234: 10500 | O234: 10500 | Q234: 10500 | S234: 10500 | U234: 10500 | W234: 10500 | Y234: 10500 | AA234: 10500 | AC234: 10500 | AE234: 126000
A236: 381202 | E236: 3812 02 Lejeindtægt hus Sentvedvej 23A
E237: Beløb | G237: 4500 | I237: 4500 | K237: 4500 | M237: 4500 | O237: 4500 | Q237: 4500 | S237: 4500 | U237: 4500 | W237: 4500 | Y237: 4500 | AA237: 4500 | AC237: 4500 | AE237: 54000
A239: 318810 | E239: 3188 10 Kompensation omsætningstab COVID-19
E240: Beløb | AA240: 165000 | AE240: 165000
E242: Andre landbrugsindtægter i alt
G243: 15000 | I243: 15000 | K243: 15000 | M243: 15000 | O243: 15000 | Q243: 15000 | S243: 15000 | U243: 15000 | W243: 15000 | Y243: 15000 | AA243: 180000 | AC243: 15000 | AE243: 345000
E245: Bruttoudbytte
G246: 1483409 | I246: 1483409 | K246: 1481787 | M246: 1747929 | O246: 1747929 | Q246: 1746122 | S246: 1702501 | U246: 3979960 | W246: 1700753 | Y246: 1564989 | AA246: 2636649 | AC246: 1686577 | AE246: 22962014
E248: Udsæd
A250: 400010 | E250: 4000 10 Udsæd vårbyg
E251: Beløb | I251: -40000 | AE251: -40000
E252: Kg | I252: -10000 | AE252: -10000
E253: Pris | I253: 4 | AE253: 4
A255: 400020 | E255: 4000 20 Udsæd vinterbyg
E256: Beløb | U256: -10000 | W256: -2000 | AE256: -12000
A258: 400030 | E258: 4000 30 Udsæd vinterhvede
E259: Beløb | U259: -64350 | AE259: -64350
E260: Kg | U260: -16500 | AE260: -16500
E261: Pris | U261: 3.9 | AE261: 3.9
A263: 400310 | E263: 4003 10 Udsæd raps
E264: Beløb | U264: -30000 | AE264: -30000
A266: 400700 | E266: 4007 00 Udsæd efterafgrøder miljø
E267: Beløb | Q267: -25000 | AE267: -25000
E269: Udsæd i alt
... 942 more rows

Sheet Budget n+1 (hidden)
A1: INDSÆT BUDGET HER -> | C1: Budget
C2: 0
C3: 01.01.2024
C4: 31.12.2024
C13: 2023-2025
A14: =IFERROR(VALUE(_xlfn.CONCAT(LEFT(E14,4),MID(E14&" ",6,2))),"") ->  | E14: Resultat - Internt
A15: =IFERROR(VALUE(_xlfn.CONCAT(LEFT(E15,4),MID(E15&" ",6,2))),"") ->  | E15: RESULTATBUDGET 2024
E16: 1.000 kr | G16: Jan | I16: Feb | K16: Mar | M16: Apr | O16: Maj | Q16: Jun | S16: Jul | U16: Aug | W16: Sep | Y16: Okt | AA16: Nov | AC16: Dec | AE16: I alt
E17: Korn | U17: 1413 | AA17: 100 | AE17: 1513
E18: Raps | AA18: 494 | AE18: 494
E19: Svin | G19: 1273 | I19: 1273 | K19: 1272 | M19: 1279 | O19: 1279 | Q19: 1278 | S19: 1276 | U19: 1276 | W19: 1275 | Y19: 1275 | AA19: 1275 | AC19: 1397 | AE19: 15430
E20: Andre landbrugsindtægter | G20: 15 | I20: 15 | K20: 15 | M20: 15 | O20: 15 | Q20: 15 | S20: 15 | U20: 15 | W20: 15 | Y20: 15 | AA20: 180 | AC20: 15 | AE20: 345
E21: Bruttoudbytte | G21: 1288 | I21: 1288 | K21: 1287 | M21: 1294 | O21: 1294 | Q21: 1293 | S21: 1291 | U21: 2705 | W21: 1290 | Y21: 1290 | AA21: 2048 | AC21: 1412 | AE21: 17782
E23: Udsæd | I23: -30 | Q23: -25 | U23: -104 | W23: -2 | AE23: -161
E24: Gødning | G24: 29 | I24: -76 | O24: -57 | Q24: -29 | AE24: -133
E25: Planteværn | G25: -3 | M25: -54 | O25: -19 | U25: -59 | W25: -24 | Y25: -66 | AE25: -225
E26: Diverse vedrørende markbrug | K26: -10 | Q26: -10 | U26: -10 | W26: -11 | AC26: -10 | AE26: -49
E27: Korn | G27: -366 | I27: -455 | K27: -458 | M27: -438 | O27: -439 | Q27: -441 | S27: -304 | U27: -303 | W27: -268 | Y27: -268 | AA27: -268 | AC27: -268 | AE27: -4275
E28: Færdigblanding mv. | G28: -257 | I28: -257 | K28: -257 | M28: -257 | O28: -257 | Q28: -257 | S28: -257 | U28: -257 | W28: -257 | Y28: -257 | AA28: -257 | AC28: -257 | AE28: -3086
E29: Andet indkøbt foder | G29: -12 | I29: -12 | K29: -12 | M29: -12 | O29: -12 | Q29: -12 | S29: -12 | U29: -12 | W29: -12 | Y29: -12 | AA29: -12 | AC29: -12 | AE29: -149
E30: Dyrlæge og medicin | G30: -78 | I30: -78 | K30: -53 | M30: -53 | O30: -53 | Q30: -53 | S30: -53 | U30: -53 | W30: -53 | Y30: -53 | AA30: -53 | AC30: -53 | AE30: -690
E31: Diverse vedr. husdyr | G31: -54 | I31: -54 | K31: -79 | M31: -54 | O31: -54 | Q31: -54 | S31: -54 | U31: -54 | W31: -54 | Y31: -54 | AA31: -54 | AC31: -54 | AE31: -667
E32: Stykomkostninger | G32: -742 | I32: -963 | K32: -869 | M32: -868 | O32: -892 | Q32: -880 | S32: -681 | U32: -853 | W32: -680 | Y32: -710 | AA32: -644 | AC32: -653 | AE32: -9435
E34: Dækningsbidrag | G34: 546 | I34: 326 | K34: 418 | M34: 426 | O34: 402 | Q34: 413 | S34: 611 | U34: 1851 | W34: 610 | Y34: 580 | AA34: 1404 | AC34: 758 | AE34: 8346
E36: Energi | G36: -128 | I36: -122 | K36: -119 | M36: -124 | O36: -116 | Q36: -117 | S36: -110 | U36: -120 | W36: -116 | Y36: -117 | AA36: -117 | AC36: -117 | AE36: -1422
E37: Maskinstation mv. | K37: -153 | M37: -148 | O37: -109 | W37: -123 | Y37: -137 | AC37: -50 | AE37: -720
E38: Vedligehold | G38: -55 | I38: -55 | K38: -95 | M38: -55 | O38: -55 | Q38: -55 | S38: -55 | U38: -55 | W38: -55 | Y38: -65 | AA38: -55 | AC38: -55 | AE38: -715
E39: Lønomkostninger | G39: -208 | I39: -218 | K39: -222 | M39: -211 | O39: -193 | Q39: -193 | S39: -210 | U39: -193 | W39: -193 | Y39: -198 | AA39: -198 | AC39: -198 | AE39: -2436
E40: Ejendomsskat og forsikringer | K40: -37 | Q40: -9 | W40: -95 | Y40: -41 | AC40: -9 | AE40: -190
E41: Diverse omkostninger | G41: -38 | I41: -36 | K41: -53 | M41: -33 | O41: -33 | Q41: -66 | S41: -29 | U41: -38 | W41: -59 | Y41: -23 | AA41: -23 | AC41: -30 | AE41: -461
E42: Kontante kapacitetsomkostninger | G42: -429 | I42: -432 | K42: -680 | M42: -571 | O42: -507 | Q42: -440 | S42: -404 | U42: -406 | W42: -642 | Y42: -581 | AA42: -393 | AC42: -459 | AE42: -5945
E44: Af- og nedskrivninger mv. | G44: -53 | I44: -53 | K44: -53 | M44: -53 | O44: -53 | Q44: -53 | S44: -53 | U44: -53 | W44: -53 | Y44: -53 | AA44: -53 | AC44: -53 | AE44: -633
E45: Kapacitetsomkostninger i alt | G45: -481 | I45: -484 | K45: -733 | M45: -624 | O45: -560 | Q45: -493 | S45: -457 | U45: -459 | W45: -695 | Y45: -633 | AA45: -446 | AC45: -512 | AE45: -6578
E47: Resultat af primær drift | G47: 65 | I47: -159 | K47: -315 | M47: -198 | O47: -158 | Q47: -80 | S47: 154 | U47: 1392 | W47: -85 | Y47: -53 | AA47: 958 | AC47: 246 | AE47: 1768
E50: Afkoblet EU-støtte mv. | AC50: 295 | AE50: 295
E52: Resultat før finansiering | G52: 65 | I52: -159 | K52: -315 | M52: -198 | O52: -158 | Q52: -80 | S52: 154 | U52: 1392 | W52: -85 | Y52: -53 | AA52: 958 | AC52: 541 | AE52: 2063
E54: Finansieringstilskud | AC54: 31 | AE54: 31
E55: Forpagtningsafgift mv. | G55: -50 | K55: -72 | M55: -70 | Q55: -43 | S55: -50 | U55: 14 | W55: -119 | Y55: -91 | AC55: -81 | AE55: -562
E56: Renteudgifter | K56: -312 | Q56: -359 | W56: -368 | AC56: -347 | AE56: -1388
E57: Finansiering ialt | G57: -50 | K57: -384 | M57: -70 | Q57: -403 | S57: -50 | U57: 13 | W57: -487 | Y57: -92 | AC57: -396 | AE57: -1919
E59: Resultat efter finansiering | G59: 15 | I59: -159 | K59: -699 | M59: -267 | O59: -158 | Q59: -483 | S59: 103 | U59: 1405 | W59: -571 | Y59: -145 | AA59: 958 | AC59: 145 | AE59: 144
E62: Resultat før regulering og skat | G62: 15 | I62: -159 | K62: -699 | M62: -267 | O62: -158 | Q62: -483 | S62: 103 | U62: 1405 | W62: -571 | Y62: -145 | AA62: 958 | AC62: 145 | AE62: 144
E64: Resultat før skat | G64: 15 | I64: -159 | K64: -699 | M64: -267 | O64: -158 | Q64: -483 | S64: 103 | U64: 1405 | W64: -571 | Y64: -145 | AA64: 958 | AC64: 145 | AE64: 144
E66: Skat | AC66: -632 | AE66: -632
E68: Resultat efter skat | G68: 15 | I68: -159 | K68: -699 | M68: -267 | O68: -158 | Q68: -483 | S68: 103 | U68: 1405 | W68: -571 | Y68: -145 | AA68: 958 | AC68: -487 | AE68: -488
E69: Investering og finansiering - Internt
E70: RESULTATBUDGET 2024
E71: 1.000 kr | G71: Jan | I71: Feb | K71: Mar | M71: Apr | O71: Maj | Q71: Jun | S71: Jul | U71: Aug | W71: Sep | Y71: Okt | AA71: Nov | AC71: Dec | AE71: I alt
E72: Resultat før skat | G72: 15 | I72: -159 | K72: -699 | M72: -267 | O72: -158 | Q72: -483 | S72: 103 | U72: 1405 | W72: -571 | Y72: -145 | AA72: 958 | AC72: 145 | AE72: 144
E74: Afskrivninger mv. | G74: 53 | I74: 53 | K74: 53 | M74: 53 | O74: 53 | Q74: 53 | S74: 53 | U74: 53 | W74: 53 | Y74: 53 | AA74: 53 | AC74: 53 | AE74: 633
E75: Tilbageførsel af ikke likvide poster | G75: 53 | I75: 53 | K75: 53 | M75: 53 | O75: 53 | Q75: 53 | S75: 53 | U75: 53 | W75: 53 | Y75: 53 | AA75: 53 | AC75: 53 | AE75: 633
E77: Betalt skat | AC77: -200 | AE77: -200
E78: Privat | G78: -17 | I78: -17 | K78: -17 | M78: -18 | O78: -17 | Q78: -18 | S78: -17 | U78: -17 | W78: -18 | Y78: -17 | AA78: -17 | AC78: -17 | AE78: -206
A79: =IFERROR(VALUE(_xlfn.CONCAT(LEFT(E79,4),MID(E79&" ",6,2))),"") ->  | E79: Afskrivninger privat tlbf. | G79: 1 | I79: 1 | K79: 1 | M79: 1 | O79: 1 | Q79: 1 | S79: 1 | U79: 1 | W79: 1 | Y79: 1 | AA79: 1 | AC79: 1 | AE79: 7
E80: Privat udtræk, skat og pension i alt | G80: -17 | I80: -16 | K80: -16 | M80: -17 | O80: -16 | Q80: -17 | S80: -17 | U80: -16 | W80: -17 | Y80: -16 | AA80: -16 | AC80: -216 | AE80: -399
E82: Til investering og afdrag | G82: 51 | I82: -123 | K82: -663 | M82: -232 | O82: -122 | Q82: -447 | S82: 140 | U82: 1442 | W82: -536 | Y82: -108 | AA82: 995 | AC82: -19 | AE82: 378
E84: Beholdninger | G84: 79 | I84: -40 | K84: -38 | M84: -40 | O84: -40 | Q84: -11 | S84: 304 | U84: -1110 | W84: 268 | Y84: 268 | AA84: 268 | AC84: 268 | AE84: 175
E86: Likviditet før anlægsinvesteringer | G86: 130 | I86: -162 | K86: -701 | M86: -271 | O86: -161 | Q86: -459 | S86: 444 | U86: 332 | W86: -268 | Y86: 159 | AA86: 1262 | AC86: 249 | AE86: 553
E89: Likviditetsoverskud/-behov | G89: 130 | I89: -162 | K89: -701 | M89: -271 | O89: -161 | Q89: -459 | S89: 444 | U89: 332 | W89: -268 | Y89: 159 | AA89: 1262 | AC89: 249 | AE89: 553
E91: Værdipapirer | AC91: 50 | AE91: 50
E92: Likvider, indlån og KK pos. | G92: -171 | I92: 190 | K92: 931 | AE92: 950
E93: Realkreditinstitutter | K93: -80 | Q93: -80 | W93: -80 | AC93: -80 | AE93: -319
E94: Pengeinstitutter | G94: -6 | I94: -6 | K94: -199 | M94: -6 | O94: -6 | Q94: -199 | S94: -6 | U94: -6 | W94: -199 | Y94: -6 | AA94: -6 | AC94: -199 | AE94: -844
E95: Anden langfristet gæld | AC95: -31 | AE95: -31
E96: Anden gæld | O96: -1814 | AE96: -1814
E97: Moms og afgifter | G97: 47 | I97: -21 | K97: -774 | M97: -42 | O97: -25 | Q97: 39 | S97: 137 | U97: 94 | W97: 143 | Y97: 79 | AA97: 293 | AC97: -151 | AE97: -182
E98: Kassekredit | K98: 823 | M98: 319 | O98: 2006 | Q98: 699 | S98: -575 | U98: -420 | W98: 405 | Y98: -233 | AA98: -1549 | AC98: 163 | AE98: 1638
E100: Likviditetsanvendelse/-fremskaffelse | G100: -130 | I100: 162 | K100: 701 | M100: 271 | O100: 161 | Q100: 459 | S100: -444 | U100: -332 | W100: 268 | Y100: -159 | AA100: -1262 | AC100: -249 | AE100: -553
E102: Afstemning
E103: Positiv saldo | H103: Maxtræk | I103: Negativ saldo
A104: 950 | D104: Primo | E104: 950 | H104: -3000
A105: 1121 | D105: Jan | E105: 1121 | H105: -3000
A106: 931 | D106: Feb | E106: 931 | H106: -3000
D107: Mar | H107: -3000 | I107: -823
D108: Apr | H108: -3000 | I108: -1142
D109: Maj | H109: -3000 | I109: -3148
D110: Jun | H110: -3000 | I110: -3847
D111: Jul | H111: -3000 | I111: -3273
D112: Aug | H112: -3000 | I112: -2853
D113: Sep | H113: -3000 | I113: -3258
D114: Okt | H114: -3000 | I114: -3025
D115: Nov | H115: -3000 | I115: -1476
D116: Dec | H116: -3000 | I116: -1638
C117: F,N,N | E117: Kassekreditoplysninger | I117: Momsoplysninger
C118: N,N,N | E118: Konto for kassekredit | G118: 2600 00 | H118: S | I118: Momsprincip | K118: kvartal | L118: S
C119: N,N,N | E119: Rentekonto for kassekredit | G119: 5600 00 | H119: S | I119: Momsprincip før 1/1 | K119: kvartal | L119: S
C120: N,N,N | I120: Momssats | K120: 0.25 | L120: S
C121: N,N,N | E121: Rentesats ved positiv saldo % | H121: S
C122: N,N,N | E122: Rentesats op til max træk % | G122: 7.75 | H122: S
C123: N,N,N | E123: Rentesats over max træk % | G123: 7.75 | H123: S
C124: N,N,N | E124: Provision af aftalt max træk pr. år % | H124: S
C125: N,N,N
C126: N,N,N | E126: Renteperioder pr. år | G126: 4 | H126: S
C127: N,N,N | E127: Første rentemåned | G127: Mar | H127: S
E128: Balance - Internt
E129: RESULTATBUDGET 2024
E130: 1.000 kr | G130: Primo | I130: Jan | K130: Feb | M130: Mar | O130: Apr | Q130: Maj | S130: Jun | U130: Jul | W130: Aug | Y130: Sep | AA130: Okt | AC130: Nov | AE130: Dec
E132: Fast ejendom | G132: 27173 | I132: 27142 | K132: 27110 | M132: 27079 | O132: 27048 | Q132: 27016 | S132: 26985 | U132: 26953 | W132: 26922 | Y132: 26890 | AA132: 26859 | AC132: 26827 | AE132: 26796
E133: Inventar markbrug | G133: 723 | I133: 715 | K133: 706 | M133: 697 | O133: 689 | Q133: 680 | S133: 672 | U133: 663 | W133: 654 | Y133: 646 | AA133: 637 | AC133: 629 | AE133: 620
E134: Inventar husdyrbrug | G134: 602 | I134: 589 | K134: 577 | M134: 564 | O134: 551 | Q134: 539 | S134: 526 | U134: 514 | W134: 501 | Y134: 489 | AA134: 476 | AC134: 463 | AE134: 451
E135: Inventar andet | G135: 6 | I135: 6 | K135: 6 | M135: 6 | O135: 6 | Q135: 6 | S135: 5 | U135: 5 | W135: 5 | Y135: 5 | AA135: 5 | AC135: 5 | AE135: 5
E136: Svin | G136: 4697 | I136: 4697 | K136: 4697 | M136: 4697 | O136: 4697 | Q136: 4697 | S136: 4697 | U136: 4697 | W136: 4697 | Y136: 4697 | AA136: 4697 | AC136: 4697 | AE136: 4697
E137: Beholdninger egen avl | G137: 381 | I137: 273 | K137: 313 | M137: 351 | O137: 391 | Q137: 431 | S137: 470 | U137: 166 | W137: 1276 | Y137: 1008 | AA137: 741 | AC137: 473 | AE137: 206
E138: Beholdning indkøbt foder | G138: 113 | I138: 113 | K138: 113 | M138: 113 | O138: 113 | Q138: 113 | S138: 113 | U138: 113 | W138: 113 | Y138: 113 | AA138: 113 | AC138: 113 | AE138: 113
E139: Jordbeholdninger | G139: 202 | I139: 202 | K139: 202 | M139: 202 | O139: 202 | Q139: 202 | S139: 202 | U139: 202 | W139: 202 | Y139: 202 | AA139: 202 | AC139: 202 | AE139: 202
E140: Andre beholdninger | G140: 94 | I140: 123 | K140: 123 | M140: 123 | O140: 123 | Q140: 123 | S140: 94 | U140: 94 | W140: 94 | Y140: 94 | AA140: 94 | AC140: 94 | AE140: 94
E141: Landbrugsaktiver | G141: 33992 | I141: 33860 | K141: 33847 | M141: 33833 | O141: 33820 | Q141: 33807 | S141: 33765 | U141: 33408 | W141: 34465 | Y141: 34145 | AA141: 33824 | AC141: 33504 | AE141: 33184
A143: =IFERROR(VALUE(_xlfn.CONCAT(LEFT(E143,4),MID(E143&" ",6,2))),"") ->  | E143: Private aktiver | G143: 38 | I143: 38 | K143: 37 | M143: 37 | O143: 36 | Q143: 35 | S143: 35 | U143: 34 | W143: 34 | Y143: 33 | AA143: 32 | AC143: 32 | AE143: 31
E145: Tilgodehavender | G145: 961 | I145: 961 | K145: 961 | M145: 961 | O145: 961 | Q145: 961 | S145: 961 | U145: 961 | W145: 961 | Y145: 961 | AA145: 961 | AC145: 961 | AE145: 961
E146: Værdipapirer | G146: 463 | I146: 463 | K146: 463 | M146: 463 | O146: 463 | Q146: 463 | S146: 463 | U146: 463 | W146: 463 | Y146: 463 | AA146: 463 | AC146: 463 | AE146: 413
E147: Indlån | G147: 274 | I147: 274 | K147: 274 | M147: 274 | O147: 274 | Q147: 274 | S147: 274 | U147: 274 | W147: 274 | Y147: 274 | AA147: 274 | AC147: 274 | AE147: 274
E148: Kassekredit | G148: 950 | I148: 1121 | K148: 931
E149: Finansaktiver | G149: 2648 | I149: 2819 | K149: 2629 | M149: 1698 | O149: 1698 | Q149: 1698 | S149: 1698 | U149: 1698 | W149: 1698 | Y149: 1698 | AA149: 1698 | AC149: 1698 | AE149: 1648
E151: Aktiver i alt | G151: 36678 | I151: 36717 | K151: 36514 | M151: 35567 | O151: 35554 | Q151: 35540 | S151: 35498 | U151: 35140 | W151: 36197 | Y151: 35876 | AA151: 35555 | AC151: 35234 | AE151: 34863
E155: Ansvarlig lånekapital | G155: -4947 | I155: -4947 | K155: -4947 | M155: -4947 | O155: -4947 | Q155: -4947 | S155: -4947 | U155: -4947 | W155: -4947 | Y155: -4947 | AA155: -4947 | AC155: -4947 | AE155: -4947
E156: Realkreditinstitutter | G156: -19499 | I156: -19499 | K156: -19499 | M156: -19419 | O156: -19419 | Q156: -19419 | S156: -19339 | U156: -19339 | W156: -19339 | Y156: -19260 | AA156: -19260 | AC156: -19260 | AE156: -19180
E157: Pengeinstitutter | G157: -3093 | I157: -3087 | K157: -3082 | M157: -2882 | O157: -2876 | Q157: -2870 | S157: -2671 | U157: -2665 | W157: -2659 | Y157: -2460 | AA157: -2454 | AC157: -2448 | AE157: -2249
E158: Anden langfristet gæld | G158: -217 | I158: -217 | K158: -217 | M158: -217 | O158: -217 | Q158: -217 | S158: -217 | U158: -217 | W158: -217 | Y158: -217 | AA158: -217 | AC158: -217 | AE158: -186
E159: Anden gæld | G159: -3227 | I159: -3227 | K159: -3227 | M159: -3227 | O159: -3227 | Q159: -1412 | S159: -1412 | U159: -1412 | W159: -1412 | Y159: -1412 | AA159: -1412 | AC159: -1412 | AE159: -1412
E160: Moms | G160: -693 | I160: -740 | K160: -719 | M160: 56 | O160: 98 | Q160: 122 | S160: 84 | U160: -53 | W160: -146 | Y160: -289 | AA160: -368 | AC160: -661 | AE160: -510
E161: Kassekredit | M161: -823 | O161: -1142 | Q161: -3148 | S161: -3847 | U161: -3273 | W161: -2853 | Y161: -3258 | AA161: -3025 | AC161: -1476 | AE161: -1638
E162: Gæld i alt | G162: -31676 | I162: -31717 | K162: -31690 | M162: -31459 | O162: -31731 | Q162: -31892 | S162: -32351 | U162: -31907 | W162: -31575 | Y162: -31843 | AA162: -31684 | AC162: -30422 | AE162: -30123
E165: Hensættelse til udskudt skat | G165: -503 | I165: -503 | K165: -503 | M165: -503 | O165: -503 | Q165: -503 | S165: -503 | U165: -503 | W165: -503 | Y165: -503 | AA165: -503 | AC165: -503 | AE165: -935
E167: Egenkapital | G167: 4499 | I167: 4497 | K167: 4321 | M167: 3605 | O167: 3320 | Q167: 3145 | S167: 2644 | U167: 2730 | W167: 4119 | Y167: 3530 | AA167: 3368 | AC167: 4309 | AE167: 3805
E169: Resultat specifikationer - Internt
E170: RESULTATBUDGET 2024
G171: Jan | I171: Feb | K171: Mar | M171: Apr | O171: Maj | Q171: Jun | S171: Jul | U171: Aug | W171: Sep | Y171: Okt | AA171: Nov | AC171: Dec | AE171: I alt
E172: Korn
A174: 300080 | E174: 3000 80 Byg overført til husdyr
E175: Beløb | U175: 411600 | AE175: 411600
E176: Kg | U176: 280000 | AE176: 280000
E177: Pris | U177: 1.47 | AE177: 1.47
A179: 300280 | E179: 3002 80 Vinterbyg overført til husdyr
E180: Beløb | U180: 101871 | AE180: 101871
E181: Kg | U181: 69300 | AE181: 69300
E182: Pris | U182: 1.47 | AE182: 1.47
A184: 300480 | E184: 3004 80 Hvede overført til husdyr
E185: Beløb | U185: 899640 | AE185: 899640
E186: Kg | U186: 612000 | AE186: 612000
E187: Pris | U187: 1.47 | AE187: 1.47
A189: 301800 | E189: 3018 00 Halm
E190: Beløb | AA190: 100000 | AE190: 100000
E192: Korn i alt
U193: 1413111 | AA193: 100000 | AE193: 1513111
E195: Raps
A197: 303600 | E197: 3036 00 Raps
E198: Beløb | AA198: 493500 | AE198: 493500
E199: Kg | AA199: 141000 | AE199: 141000
E200: Pris | AA200: 3.5 | AE200: 3.5
E202: Raps i alt
AA203: 493500 | AE203: 493500
E205: Svin
A207: =IFERROR(VALUE(_xlfn.CONCAT(LEFT(E207,4),MID(E207&" ",6,2))),"") -> 340400 | E207: 3404 00 Søer og gylte
E208: Beløb | G208: 53100 | I208: 53100 | K208: 53100 | M208: 53100 | O208: 53100 | Q208: 53100 | S208: 53100 | U208: 53100 | W208: 53100 | Y208: 53100 | AA208: 53100 | AC208: 53100 | AE208: 637200
E209: Stk | G209: 44 | I209: 44 | K209: 44 | M209: 44 | O209: 44 | Q209: 44 | S209: 44 | U209: 44 | W209: 44 | Y209: 44 | AA209: 44 | AC209: 44 | AE209: 531
E210: Pris | G210: 1200 | I210: 1200 | K210: 1200 | M210: 1200 | O210: 1200 | Q210: 1200 | S210: 1200 | U210: 1200 | W210: 1200 | Y210: 1200 | AA210: 1200 | AC210: 1200 | AE210: 1200
A212: 341700 | E212: 3417 00 Smågrise 25-30 kg
E213: Beløb | G213: 1140480 | I213: 1140480 | K213: 1140040 | M213: 1140480 | O213: 1140480 | Q213: 1140040 | S213: 1140480 | U213: 1140480 | W213: 1140040 | Y213: 1140480 | AA213: 1140480 | AC213: 1140040 | AE213: 13684000
E214: Stk | G214: 2592 | I214: 2592 | K214: 2591 | M214: 2592 | O214: 2592 | Q214: 2591 | S214: 2592 | U214: 2592 | W214: 2591 | Y214: 2592 | AA214: 2592 | AC214: 2591 | AE214: 31100
E215: Pris | G215: 440 | I215: 440 | K215: 440 | M215: 440 | O215: 440 | Q215: 440 | S215: 440 | U215: 440 | W215: 440 | Y215: 440 | AA215: 440 | AC215: 440 | AE215: 440
A217: 346100 | E217: 3461 00 Slagtesvin
E218: Beløb | G218: 79769 | I218: 79769 | K218: 78901 | M218: 85877 | O218: 85877 | Q218: 84943 | S218: 82822 | U218: 82822 | W218: 81922 | Y218: 81260 | AA218: 81260 | AC218: 80377 | AE218: 985600
E219: Stk | G219: 92 | I219: 92 | K219: 91 | M219: 92 | O219: 92 | Q219: 91 | S219: 92 | U219: 92 | W219: 91 | Y219: 92 | AA219: 92 | AC219: 91 | AE219: 1100
E220: Pris | G220: 867 | I220: 867 | K220: 867 | M220: 933 | O220: 933 | Q220: 933 | S220: 900 | U220: 900 | W220: 900 | Y220: 883 | AA220: 883 | AC220: 883 | AE220: 896
A222: 346300 | E222: 3463 00 Slagtesvin efterbetaling
E223: Beløb | AC223: 123200 | AE223: 123200
E224: Kg | AC224: 1100 | AE224: 1100
E225: Pris | AC225: 112 | AE225: 112
E227: Svin i alt
G228: 1273349 | I228: 1273349 | K228: 1272041 | M228: 1279457 | O228: 1279457 | Q228: 1278083 | S228: 1276402 | U228: 1276402 | W228: 1275062 | Y228: 1274840 | AA228: 1274840 | AC228: 1396717 | AE228: 15430000
E230: Andre landbrugsindtægter
A232: 381201 | E232: 3812 01 Lejeindtægt stuehus Sentvedvej 25
E233: Beløb | G233: 10500 | I233: 10500 | K233: 10500 | M233: 10500 | O233: 10500 | Q233: 10500 | S233: 10500 | U233: 10500 | W233: 10500 | Y233: 10500 | AA233: 10500 | AC233: 10500 | AE233: 126000
A235: 381202 | E235: 3812 02 Lejeindtægt hus Sentvedvej 23A
E236: Beløb | G236: 4500 | I236: 4500 | K236: 4500 | M236: 4500 | O236: 4500 | Q236: 4500 | S236: 4500 | U236: 4500 | W236: 4500 | Y236: 4500 | AA236: 4500 | AC236: 4500 | AE236: 54000
A238: 387010 | E238: 3870 10 Kompensation omsætningstab COVID-19
E239: Beløb | AA239: 165000 | AE239: 165000
E241: Andre landbrugsindtægter i alt
G242: 15000 | I242: 15000 | K242: 15000 | M242: 15000 | O242: 15000 | Q242: 15000 | S242: 15000 | U242: 15000 | W242: 15000 | Y242: 15000 | AA242: 180000 | AC242: 15000 | AE242: 345000
E244: Bruttoudbytte
G245: 1288349 | I245: 1288349 | K245: 1287041 | M245: 1294457 | O245: 1294457 | Q245: 1293083 | S245: 1291402 | U245: 2704513 | W245: 1290062 | Y245: 1289840 | AA245: 2048340 | AC245: 1411717 | AE245: 17781611
E247: Udsæd
A249: 400010 | E249: 4000 10 Udsæd vårbyg
E250: Beløb | I250: -30000 | AE250: -30000
A252: 400020 | E252: 4000 20 Udsæd vinterbyg
E253: Beløb | U253: -10000 | W253: -2000 | AE253: -12000
A255: 400030 | E255: 4000 30 Udsæd vinterhvede
E256: Beløb | U256: -64350 | AE256: -64350
E257: Kg | U257: -16500 | AE257: -16500
E258: Pris | U258: 3.9 | AE258: 3.9
A260: 400310 | E260: 4003 10 Udsæd raps
E261: Beløb | U261: -30000 | AE261: -30000
A263: 400700 | E263: 4007 00 Udsæd efterafgrøder miljø
E264: Beløb | Q264: -25000 | AE264: -25000
E266: Udsæd i alt
I267: -30000 | Q267: -25000 | U267: -104350 | W267: -2000 | AE267: -161350
E269: Gødning
A271: =IFERROR(VALUE(_xlfn.CONCAT(LEFT(E271,4),MID(E271&" ",6,2))),"") -> 402300 | E271: 4023 00 N-gødning
E272: Beløb | I272: -76000 | O272: -57000 | AE272: -133000
E273: Kg | I273: -20000 | O273: -15000 | AE273: -35000
... 890 more rows

Sheet Budget n+2 (hidden)
A1: INDSÆT BUDGET HER -> | C1: Budget
C2: 0
C3: 01.01.2025
C4: 31.12.2025
C13: 2023-2025
A14: =IFERROR(VALUE(_xlfn.CONCAT(LEFT(E14,4),MID(E14&" ",6,2))),"") ->  | E14: Resultat - Internt
A15: =IFERROR(VALUE(_xlfn.CONCAT(LEFT(E15,4),MID(E15&" ",6,2))),"") ->  | E15: RESULTATBUDGET 2025
E16: 1.000 kr | G16: Jan | I16: Feb | K16: Mar | M16: Apr | O16: Maj | Q16: Jun | S16: Jul | U16: Aug | W16: Sep | Y16: Okt | AA16: Nov | AC16: Dec | AE16: I alt
E17: Korn | U17: 1413 | AA17: 100 | AE17: 1513
E18: Raps | AA18: 494 | AE18: 494
E19: Svin | G19: 1615 | I19: 706 | K19: 706 | M19: 710 | O19: 710 | Q19: 709 | S19: 708 | U19: 708 | W19: 707 | Y19: 707 | AA19: 707 | AC19: -132 | AE19: 8563
E20: Andre landbrugsindtægter | G20: 15 | I20: 15 | K20: 15 | M20: 15 | O20: 15 | Q20: 15 | S20: 15 | U20: 15 | W20: 15 | Y20: 15 | AA20: 180 | AC20: 15 | AE20: 345
E21: Bruttoudbytte | G21: 1630 | I21: 721 | K21: 721 | M21: 725 | O21: 725 | Q21: 724 | S21: 723 | U21: 2136 | W21: 722 | Y21: 722 | AA21: 1481 | AC21: -117 | AE21: 10915
E23: Udsæd | I23: -30 | Q23: -25 | U23: -104 | W23: -2 | AE23: -161
E24: Gødning | G24: 29 | I24: -76 | O24: -57 | Q24: -29 | AE24: -133
E25: Planteværn | G25: -3 | M25: -54 | O25: -19 | U25: -59 | W25: -24 | Y25: -66 | AE25: -225
E26: Diverse vedrørende markbrug | K26: -10 | Q26: -10 | U26: -10 | W26: -11 | AC26: -10 | AE26: -49
E27: Korn | G27: -226 | I27: -314 | K27: -317 | M27: -231 | O27: -163 | Q27: -163 | S27: -163 | U27: -164 | W27: -163 | Y27: -163 | AA27: -163 | AC27: -163 | AE27: -2394
E28: Færdigblanding mv. | G28: -145 | I28: -145 | K28: -145 | M28: -145 | O28: -145 | Q28: -145 | S28: -145 | U28: -145 | W28: -145 | Y28: -145 | AA28: -145 | AC28: -145 | AE28: -1734
E29: Andet indkøbt foder | G29: -7 | I29: -7 | K29: -7 | M29: -7 | O29: -7 | Q29: -7 | S29: -7 | U29: -7 | W29: -7 | Y29: -7 | AA29: -7 | AC29: -7 | AE29: -81
E30: Dyrlæge og medicin | G30: -44 | I30: -44 | K30: -30 | M30: -30 | O30: -30 | Q30: -30 | S30: -30 | U30: -30 | W30: -30 | Y30: -30 | AA30: -30 | AC30: -30 | AE30: -390
E31: Diverse vedr. husdyr | G31: -31 | I31: -31 | K31: -56 | M31: -31 | O31: -31 | Q31: -31 | S31: -31 | U31: -31 | W31: -31 | Y31: -31 | AA31: -31 | AC31: -31 | AE31: -395
E32: Stykomkostninger | G32: -427 | I32: -647 | K32: -564 | M32: -497 | O32: -452 | Q32: -439 | S32: -375 | U32: -550 | W32: -412 | Y32: -441 | AA32: -375 | AC32: -385 | AE32: -5564
E34: Dækningsbidrag | G34: 1203 | I34: 75 | K34: 157 | M34: 228 | O34: 273 | Q34: 286 | S34: 348 | U34: 1587 | W34: 311 | Y34: 281 | AA34: 1105 | AC34: -502 | AE34: 5351
E36: Energi | G36: -103 | I36: -98 | K36: -96 | M36: -99 | O36: -94 | Q36: -94 | S36: -88 | U36: -96 | W36: -93 | Y36: -94 | AA36: -94 | AC36: -94 | AE36: -1144
E37: Maskinstation mv. | K37: -153 | M37: -148 | O37: -109 | W37: -123 | Y37: -137 | AC37: -50 | AE37: -720
E38: Vedligehold | G38: -47 | I38: -47 | K38: -87 | M38: -47 | O38: -47 | Q38: -47 | S38: -47 | U38: -47 | W38: -47 | Y38: -57 | AA38: -47 | AC38: -47 | AE38: -615
E39: Lønomkostninger | G39: -100 | I39: -100 | K39: -100 | M39: -100 | O39: -100 | Q39: -100 | S39: -100 | U39: -100 | W39: -100 | Y39: -100 | AA39: -100 | AC39: -100 | AE39: -1200
E40: Ejendomsskat og forsikringer | K40: -37 | Q40: -9 | W40: -95 | Y40: -41 | AC40: -9 | AE40: -190
E41: Diverse omkostninger | G41: -38 | I41: -36 | K41: -53 | M41: -33 | O41: -33 | Q41: -66 | S41: -29 | U41: -38 | W41: -59 | Y41: -23 | AA41: -23 | AC41: -30 | AE41: -461
E42: Kontante kapacitetsomkostninger | G42: -288 | I42: -281 | K42: -526 | M42: -427 | O42: -383 | Q42: -316 | S42: -265 | U42: -281 | W42: -517 | Y42: -451 | AA42: -264 | AC42: -330 | AE42: -4330
E44: Af- og nedskrivninger mv. | G44: -48 | I44: -48 | K44: -48 | M44: -48 | O44: -48 | Q44: -48 | S44: -48 | U44: -48 | W44: -48 | Y44: -48 | AA44: -48 | AC44: -48 | AE44: -572
E45: Kapacitetsomkostninger i alt | G45: -335 | I45: -329 | K45: -574 | M45: -475 | O45: -431 | Q45: -364 | S45: -312 | U45: -329 | W45: -565 | Y45: -499 | AA45: -311 | AC45: -377 | AE45: -4901
E47: Resultat af primær drift | G47: 868 | I47: -254 | K47: -417 | M47: -247 | O47: -158 | Q47: -78 | S47: 36 | U47: 1258 | W47: -254 | Y47: -218 | AA47: 794 | AC47: -879 | AE47: 450
E50: Afkoblet EU-støtte mv. | AC50: 295 | AE50: 295
E52: Resultat før finansiering | G52: 868 | I52: -254 | K52: -417 | M52: -247 | O52: -158 | Q52: -78 | S52: 36 | U52: 1258 | W52: -254 | Y52: -218 | AA52: 794 | AC52: -585 | AE52: 745
E54: Finansieringstilskud | AC54: 31 | AE54: 31
E55: Forpagtningsafgift mv. | K55: -72 | M55: -20 | Q55: -43 | U55: 14 | W55: -119 | Y55: -41 | AC55: -81 | AE55: -362
E56: Renteudgifter | K56: -340 | Q56: -375 | W56: -378 | AC56: -376 | AE56: -1470
E57: Finansiering ialt | K57: -412 | M57: -20 | Q57: -419 | U57: 14 | W57: -497 | Y57: -41 | AC57: -425 | AE57: -1801
E59: Resultat efter finansiering | G59: 868 | I59: -254 | K59: -829 | M59: -267 | O59: -158 | Q59: -497 | S59: 35 | U59: 1271 | W59: -751 | Y59: -259 | AA59: 794 | AC59: -1010 | AE59: -1056
E62: Resultat før regulering og skat | G62: 868 | I62: -254 | K62: -829 | M62: -267 | O62: -158 | Q62: -497 | S62: 35 | U62: 1271 | W62: -751 | Y62: -259 | AA62: 794 | AC62: -1010 | AE62: -1056
E64: Resultat før skat | G64: 868 | I64: -254 | K64: -829 | M64: -267 | O64: -158 | Q64: -497 | S64: 35 | U64: 1271 | W64: -751 | Y64: -259 | AA64: 794 | AC64: -1010 | AE64: -1056
E67: Resultat efter skat | G67: 868 | I67: -254 | K67: -829 | M67: -267 | O67: -158 | Q67: -497 | S67: 35 | U67: 1271 | W67: -751 | Y67: -259 | AA67: 794 | AC67: -1010 | AE67: -1056
E68: Investering og finansiering - Internt
E69: RESULTATBUDGET 2025
E70: 1.000 kr | G70: Jan | I70: Feb | K70: Mar | M70: Apr | O70: Maj | Q70: Jun | S70: Jul | U70: Aug | W70: Sep | Y70: Okt | AA70: Nov | AC70: Dec | AE70: I alt
E71: Resultat før skat | G71: 868 | I71: -254 | K71: -829 | M71: -267 | O71: -158 | Q71: -497 | S71: 35 | U71: 1271 | W71: -751 | Y71: -259 | AA71: 794 | AC71: -1010 | AE71: -1056
E73: Afskrivninger mv. | G73: 48 | I73: 48 | K73: 48 | M73: 48 | O73: 48 | Q73: 48 | S73: 48 | U73: 48 | W73: 48 | Y73: 48 | AA73: 48 | AC73: 48 | AE73: 572
E74: Tilbageførsel af ikke likvide poster | G74: 48 | I74: 48 | K74: 48 | M74: 48 | O74: 48 | Q74: 48 | S74: 48 | U74: 48 | W74: 48 | Y74: 48 | AA74: 48 | AC74: 48 | AE74: 572
E76: Privat | G76: -17 | I76: -17 | K76: -17 | M76: -18 | O76: -17 | Q76: -18 | S76: -17 | U76: -17 | W76: -18 | Y76: -17 | AA76: -17 | AC76: -17 | AE76: -206
E77: Afskrivninger privat tlbf. | G77: 1 | I77: 1 | K77: 1 | M77: 1 | O77: 1 | Q77: 1 | S77: 1 | U77: 1 | W77: 1 | Y77: 1 | AA77: 1 | AC77: 1 | AE77: 7
E78: Privat udtræk, skat og pension i alt | G78: -17 | I78: -16 | K78: -16 | M78: -17 | O78: -16 | Q78: -17 | S78: -17 | U78: -16 | W78: -17 | Y78: -16 | AA78: -16 | AC78: -16 | AE78: -199
A79: =IFERROR(VALUE(_xlfn.CONCAT(LEFT(E79,4),MID(E79&" ",6,2))),"") -> 
E80: Til investering og afdrag | G80: 899 | I80: -223 | K80: -797 | M80: -237 | O80: -126 | Q80: -466 | S80: 66 | U80: 1302 | W80: -721 | Y80: -228 | AA80: 825 | AC80: -979 | AE80: -684
E82: Besætning | G82: -909 | AC82: 909
E83: Beholdninger | G83: -61 | I83: -181 | K83: -179 | M83: 16 | O83: 163 | Q83: 192 | S83: 163 | U83: -1250 | W83: 163 | Y83: 163 | AA83: 163 | AC83: 163 | AE83: -484
E85: Likviditet før anlægsinvesteringer | G85: -71 | I85: -403 | K85: -977 | M85: -220 | O85: 37 | Q85: -274 | S85: 230 | U85: 53 | W85: -558 | Y85: -65 | AA85: 988 | AC85: 94 | AE85: -1167
E88: Likviditetsoverskud/-behov | G88: -71 | I88: -403 | K88: -977 | M88: -220 | O88: 37 | Q88: -274 | S88: 230 | U88: 53 | W88: -558 | Y88: -65 | AA88: 988 | AC88: 94 | AE88: -1167
E90: Værdipapirer | AC90: 50 | AE90: 50
E91: Realkreditinstitutter | K91: -83 | Q91: -83 | W91: -83 | AC91: -83 | AE91: -331
E92: Pengeinstitutter | G92: -6 | I92: -6 | K92: -215 | M92: -6 | O92: -6 | Q92: -215 | S92: -6 | U92: -6 | W92: -215 | Y92: -6 | AA92: -6 | AC92: -215 | AE92: -907
E93: Anden langfristet gæld | AC93: -31 | AE93: -31
E94: Moms og afgifter | G94: -21 | I94: -103 | K94: -677 | M94: -49 | O94: 9 | Q94: 309 | S94: 62 | U94: 8 | W94: -4 | Y94: 6 | AA94: 207 | AC94: -4 | AE94: -258
E95: Kassekredit | G95: 99 | I95: 513 | K95: 1951 | M95: 275 | O95: -40 | Q95: 263 | S95: -286 | U95: -55 | W95: 859 | Y95: 65 | AA95: -1190 | AC95: 190 | AE95: 2644
E97: Likviditetsanvendelse/-fremskaffelse | G97: 71 | I97: 403 | K97: 977 | M97: 220 | O97: -37 | Q97: 274 | S97: -230 | U97: -53 | W97: 558 | Y97: 65 | AA97: -988 | AC97: -94 | AE97: 1167
E99: Afstemning
E100: Positiv saldo | H100: Maxtræk | I100: Negativ saldo
D101: Primo | H101: -3000 | I101: -1638
D102: Jan | H102: -3000 | I102: -1737
D103: Feb | H103: -3000 | I103: -2250
D104: Mar | H104: -3000 | I104: -4201
D105: Apr | H105: -3000 | I105: -4477
D106: Maj | H106: -3000 | I106: -4437
D107: Jun | H107: -3000 | I107: -4700
D108: Jul | H108: -3000 | I108: -4414
D109: Aug | H109: -3000 | I109: -4359
D110: Sep | H110: -3000 | I110: -5218
D111: Okt | H111: -3000 | I111: -5283
D112: Nov | H112: -3000 | I112: -4093
D113: Dec | H113: -3000 | I113: -4283
C114: F,N,N | E114: Kassekreditoplysninger | I114: Momsoplysninger
C115: N,N,N | E115: Konto for kassekredit | G115: 2600 00 | H115: S | I115: Momsprincip | K115: kvartal | L115: S
C116: N,N,N | E116: Rentekonto for kassekredit | G116: 5600 00 | H116: S | I116: Momsprincip før 1/1 | K116: kvartal | L116: S
C117: N,N,N | I117: Momssats | K117: 0.25 | L117: S
C118: N,N,N | E118: Rentesats ved positiv saldo % | H118: S
C119: N,N,N | E119: Rentesats op til max træk % | G119: 7.75 | H119: S
C120: N,N,N | E120: Rentesats over max træk % | G120: 7.75 | H120: S
C121: N,N,N | E121: Provision af aftalt max træk pr. år % | H121: S
C122: N,N,N
C123: N,N,N | E123: Renteperioder pr. år | G123: 4 | H123: S
C124: N,N,N | E124: Første rentemåned | G124: Mar | H124: S
E125: Balance - Internt
E126: RESULTATBUDGET 2025
E127: 1.000 kr | G127: Primo | I127: Jan | K127: Feb | M127: Mar | O127: Apr | Q127: Maj | S127: Jun | U127: Jul | W127: Aug | Y127: Sep | AA127: Okt | AC127: Nov | AE127: Dec
E129: Fast ejendom | G129: 26796 | I129: 26764 | K129: 26733 | M129: 26701 | O129: 26670 | Q129: 26638 | S129: 26607 | U129: 26575 | W129: 26544 | Y129: 26512 | AA129: 26481 | AC129: 26449 | AE129: 26418
E130: Inventar markbrug | G130: 620 | I130: 612 | K130: 603 | M130: 594 | O130: 586 | Q130: 577 | S130: 569 | U130: 560 | W130: 551 | Y130: 543 | AA130: 534 | AC130: 526 | AE130: 517
E131: Inventar husdyrbrug | G131: 451 | I131: 443 | K131: 436 | M131: 428 | O131: 421 | Q131: 414 | S131: 406 | U131: 399 | W131: 391 | Y131: 384 | AA131: 376 | AC131: 369 | AE131: 361
E132: Inventar andet | G132: 5 | I132: 5 | K132: 5 | M132: 5 | O132: 4 | Q132: 4 | S132: 4 | U132: 4 | W132: 4 | Y132: 4 | AA132: 4 | AC132: 4 | AE132: 4
E133: Svin | G133: 3788 | I133: 4697 | K133: 4697 | M133: 4697 | O133: 4697 | Q133: 4697 | S133: 4697 | U133: 4697 | W133: 4697 | Y133: 4697 | AA133: 4697 | AC133: 4697 | AE133: 3788
E134: Beholdninger egen avl | G134: 206 | I134: 238 | K134: 419 | M134: 598 | O134: 582 | Q134: 419 | S134: 256 | U134: 93 | W134: 1342 | Y134: 1179 | AA134: 1016 | AC134: 853 | AE134: 689
E135: Beholdning indkøbt foder | G135: 113 | I135: 113 | K135: 113 | M135: 113 | O135: 113 | Q135: 113 | S135: 113 | U135: 113 | W135: 113 | Y135: 113 | AA135: 113 | AC135: 113 | AE135: 113
E136: Jordbeholdninger | G136: 202 | I136: 202 | K136: 202 | M136: 202 | O136: 202 | Q136: 202 | S136: 202 | U136: 202 | W136: 202 | Y136: 202 | AA136: 202 | AC136: 202 | AE136: 202
E137: Andre beholdninger | G137: 94 | I137: 123 | K137: 123 | M137: 123 | O137: 123 | Q137: 123 | S137: 94 | U137: 94 | W137: 94 | Y137: 94 | AA137: 94 | AC137: 94 | AE137: 94
E138: Landbrugsaktiver | G138: 32275 | I138: 33197 | K138: 33330 | M138: 33462 | O138: 33398 | Q138: 33187 | S138: 32948 | U138: 32737 | W138: 33939 | Y138: 33728 | AA138: 33517 | AC138: 33307 | AE138: 32187
E140: Private aktiver | G140: 31 | I140: 31 | K140: 30 | M140: 30 | O140: 29 | Q140: 28 | S140: 28 | U140: 27 | W140: 27 | Y140: 26 | AA140: 25 | AC140: 25 | AE140: 24
E142: Tilgodehavender | G142: 961 | I142: 961 | K142: 961 | M142: 961 | O142: 961 | Q142: 961 | S142: 961 | U142: 961 | W142: 961 | Y142: 961 | AA142: 961 | AC142: 961 | AE142: 961
A143: =IFERROR(VALUE(_xlfn.CONCAT(LEFT(E143,4),MID(E143&" ",6,2))),"") ->  | E143: Værdipapirer | G143: 413 | I143: 413 | K143: 413 | M143: 413 | O143: 413 | Q143: 413 | S143: 413 | U143: 413 | W143: 413 | Y143: 413 | AA143: 413 | AC143: 413 | AE143: 363
E144: Indlån | G144: 274 | I144: 274 | K144: 274 | M144: 274 | O144: 274 | Q144: 274 | S144: 274 | U144: 274 | W144: 274 | Y144: 274 | AA144: 274 | AC144: 274 | AE144: 274
E145: Finansaktiver | G145: 1648 | I145: 1648 | K145: 1648 | M145: 1648 | O145: 1648 | Q145: 1648 | S145: 1648 | U145: 1648 | W145: 1648 | Y145: 1648 | AA145: 1648 | AC145: 1648 | AE145: 1598
E147: Aktiver i alt | G147: 33954 | I147: 34876 | K147: 35008 | M147: 35140 | O147: 35075 | Q147: 34864 | S147: 34624 | U147: 34412 | W147: 35614 | Y147: 35402 | AA147: 35191 | AC147: 34980 | AE147: 33809
E151: Ansvarlig lånekapital | G151: -4947 | I151: -4947 | K151: -4947 | M151: -4947 | O151: -4947 | Q151: -4947 | S151: -4947 | U151: -4947 | W151: -4947 | Y151: -4947 | AA151: -4947 | AC151: -4947 | AE151: -4947
E152: Realkreditinstitutter | G152: -19180 | I152: -19180 | K152: -19180 | M152: -19097 | O152: -19097 | Q152: -19097 | S152: -19014 | U152: -19014 | W152: -19014 | Y152: -18932 | AA152: -18932 | AC152: -18932 | AE152: -18849
E153: Pengeinstitutter | G153: -2249 | I153: -2243 | K153: -2237 | M153: -2022 | O153: -2016 | Q153: -2010 | S153: -1795 | U153: -1789 | W153: -1783 | Y153: -1569 | AA153: -1563 | AC153: -1557 | AE153: -1342
E154: Anden langfristet gæld | G154: -186 | I154: -186 | K154: -186 | M154: -186 | O154: -186 | Q154: -186 | S154: -186 | U154: -186 | W154: -186 | Y154: -186 | AA154: -186 | AC154: -186 | AE154: -155
E155: Anden gæld | G155: -1412 | I155: -1412 | K155: -1412 | M155: -1412 | O155: -1412 | Q155: -1412 | S155: -1412 | U155: -1412 | W155: -1412 | Y155: -1412 | AA155: -1412 | AC155: -1412 | AE155: -1412
E156: Moms | G156: -510 | I156: -489 | K156: -385 | M156: 292 | O156: 341 | Q156: 332 | S156: 23 | U156: -39 | W156: -47 | Y156: -44 | AA156: -49 | AC156: -257 | AE156: -252
E157: Kassekredit | G157: -1638 | I157: -1737 | K157: -2250 | M157: -4201 | O157: -4477 | Q157: -4437 | S157: -4700 | U157: -4414 | W157: -4359 | Y157: -5218 | AA157: -5283 | AC157: -4093 | AE157: -4283
E158: Gæld i alt | G158: -30123 | I158: -30194 | K158: -30598 | M158: -31575 | O158: -31795 | Q158: -31758 | S158: -32033 | U158: -31803 | W158: -31750 | Y158: -32308 | AA158: -32372 | AC158: -31384 | AE158: -31240
E161: Hensættelse til udskudt skat | G161: -935 | I161: -935 | K161: -935 | M161: -935 | O161: -935 | Q161: -935 | S161: -935 | U161: -935 | W161: -935 | Y161: -935 | AA161: -935 | AC161: -935 | AE161: -935
E163: Egenkapital | G163: 2896 | I163: 3747 | K163: 3476 | M163: 2630 | O163: 2345 | Q163: 2171 | S163: 1656 | U163: 1674 | W163: 2929 | Y163: 2160 | AA163: 1884 | AC163: 2661 | AE163: 1634
E165: Resultat specifikationer - Internt
E166: RESULTATBUDGET 2025
G167: Jan | I167: Feb | K167: Mar | M167: Apr | O167: Maj | Q167: Jun | S167: Jul | U167: Aug | W167: Sep | Y167: Okt | AA167: Nov | AC167: Dec | AE167: I alt
E168: Korn
A170: 300080 | E170: 3000 80 Byg overført til husdyr
E171: Beløb | U171: 411600 | AE171: 411600
E172: Kg | U172: 280000 | AE172: 280000
E173: Pris | U173: 1.47 | AE173: 1.47
A175: 300280 | E175: 3002 80 Vinterbyg overført til husdyr
E176: Beløb | U176: 101871 | AE176: 101871
E177: Kg | U177: 69300 | AE177: 69300
E178: Pris | U178: 1.47 | AE178: 1.47
A180: 300480 | E180: 3004 80 Hvede overført til husdyr
E181: Beløb | U181: 899640 | AE181: 899640
E182: Kg | U182: 612000 | AE182: 612000
E183: Pris | U183: 1.47 | AE183: 1.47
A185: 301800 | E185: 3018 00 Halm
E186: Beløb | AA186: 100000 | AE186: 100000
E188: Korn i alt
U189: 1413111 | AA189: 100000 | AE189: 1513111
E191: Raps
A193: 303600 | E193: 3036 00 Raps
E194: Beløb | AA194: 493500 | AE194: 493500
E195: Kg | AA195: 141000 | AE195: 141000
E196: Pris | AA196: 3.5 | AE196: 3.5
E198: Raps i alt
AA199: 493500 | AE199: 493500
E201: Svin
A203: 340400 | E203: 3404 00 Søer og gylte
E204: Beløb | G204: 30000 | I204: 30000 | K204: 30000 | M204: 30000 | O204: 30000 | Q204: 30000 | S204: 30000 | U204: 30000 | W204: 30000 | Y204: 30000 | AA204: 30000 | AC204: 30000 | AE204: 360000
E205: Stk | G205: 25 | I205: 25 | K205: 25 | M205: 25 | O205: 25 | Q205: 25 | S205: 25 | U205: 25 | W205: 25 | Y205: 25 | AA205: 25 | AC205: 25 | AE205: 300
E206: Pris | G206: 1200 | I206: 1200 | K206: 1200 | M206: 1200 | O206: 1200 | Q206: 1200 | S206: 1200 | U206: 1200 | W206: 1200 | Y206: 1200 | AA206: 1200 | AC206: 1200 | AE206: 1200
A207: =IFERROR(VALUE(_xlfn.CONCAT(LEFT(E207,4),MID(E207&" ",6,2))),"") -> 
A208: 341700 | E208: 3417 00 Smågrise 25-30 kg
E209: Beløb | G209: 630748 | I209: 630748 | K209: 630504 | M209: 630748 | O209: 630748 | Q209: 630504 | S209: 630748 | U209: 630748 | W209: 630504 | Y209: 630748 | AA209: 630748 | AC209: 630504 | AE209: 7568000
E210: Stk | G210: 1434 | I210: 1434 | K210: 1433 | M210: 1434 | O210: 1434 | Q210: 1433 | S210: 1434 | U210: 1434 | W210: 1433 | Y210: 1434 | AA210: 1434 | AC210: 1433 | AE210: 17200
E211: Pris | G211: 439 | I211: 439 | K211: 440 | M211: 439 | O211: 439 | Q211: 440 | S211: 439 | U211: 439 | W211: 440 | Y211: 439 | AA211: 439 | AC211: 440 | AE211: 439
A213: 346100 | E213: 3461 00 Slagtesvin
E214: Beløb | G214: 45686 | I214: 45686 | K214: 45189 | M214: 49184 | O214: 49184 | Q214: 48649 | S214: 47435 | U214: 47435 | W214: 46919 | Y214: 46540 | AA214: 46540 | AC214: 46034 | AE214: 564480
E215: Stk | G215: 53 | I215: 53 | K215: 52 | M215: 53 | O215: 53 | Q215: 52 | S215: 53 | U215: 53 | W215: 52 | Y215: 53 | AA215: 53 | AC215: 52 | AE215: 630
E216: Pris | G216: 867 | I216: 867 | K216: 867 | M216: 933 | O216: 933 | Q216: 933 | S216: 900 | U216: 900 | W216: 900 | Y216: 883 | AA216: 883 | AC216: 883 | AE216: 895
A218: 346300 | E218: 3463 00 Slagtesvin efterbetaling
E219: Beløb | AC219: 70560 | AE219: 70560
E220: Kg | AC220: 630 | AE220: 630
E221: Pris | AC221: 112 | AE221: 112
E224: Besætningsforskydning
A226: 146100 | E226: 1461 00 Søer
E227: Beløb | G227: 494000 | AC227: -494000
E228: Stk | G228: 190 | AC228: -190
E229: Pris | G229: 2600 | AC229: 2600
A231: 147209 | E231: 1472 09 Smågrise 7 - 30 kg
E232: Beløb | G232: 340795 | AC232: -340795
E233: Stk | G233: 1391 | AC233: -1391
E234: Pris | G234: 245 | AC234: 245
A236: 147214 | E236: 1472 14 Smågrise under 7 kg
E237: Beløb | G237: 74250 | AC237: -74250
E238: Stk | G238: 550 | AC238: -550
E239: Pris | G239: 135 | AC239: 135
E241: Besætningsforskydning i alt
G242: 909045 | AC242: -909045
E244: Svin i alt
G245: 1615479 | I245: 706434 | K245: 705693 | M245: 709932 | O245: 709932 | Q245: 709154 | S245: 708182 | U245: 708182 | W245: 707424 | Y245: 707288 | AA245: 707288 | AC245: -131947 | AE245: 8563040
E247: Andre landbrugsindtægter
A249: 381201 | E249: 3812 01 Lejeindtægt stuehus Sentvedvej 25
E250: Beløb | G250: 10500 | I250: 10500 | K250: 10500 | M250: 10500 | O250: 10500 | Q250: 10500 | S250: 10500 | U250: 10500 | W250: 10500 | Y250: 10500 | AA250: 10500 | AC250: 10500 | AE250: 126000
A252: 381202 | E252: 3812 02 Lejeindtægt hus Sentvedvej 23A
E253: Beløb | G253: 4500 | I253: 4500 | K253: 4500 | M253: 4500 | O253: 4500 | Q253: 4500 | S253: 4500 | U253: 4500 | W253: 4500 | Y253: 4500 | AA253: 4500 | AC253: 4500 | AE253: 54000
A255: 387010 | E255: 3870 10 Kompensation omsætningstab COVID-19
E256: Beløb | AA256: 165000 | AE256: 165000
E258: Andre landbrugsindtægter i alt
G259: 15000 | I259: 15000 | K259: 15000 | M259: 15000 | O259: 15000 | Q259: 15000 | S259: 15000 | U259: 15000 | W259: 15000 | Y259: 15000 | AA259: 180000 | AC259: 15000 | AE259: 345000
E261: Bruttoudbytte
G262: 1630479 | I262: 721434 | K262: 720693 | M262: 724932 | O262: 724932 | Q262: 724154 | S262: 723182 | U262: 2136293 | W262: 722424 | Y262: 722288 | AA262: 1480788 | AC262: -116947 | AE262: 10914651
E264: Udsæd
A266: 400010 | E266: 4000 10 Udsæd vårbyg
E267: Beløb | I267: -30000 | AE267: -30000
A269: 400020 | E269: 4000 20 Udsæd vinterbyg
E270: Beløb | U270: -10000 | W270: -2000 | AE270: -12000
A271: =IFERROR(VALUE(_xlfn.CONCAT(LEFT(E271,4),MID(E271&" ",6,2))),"") -> 
... 867 more rows

Sheet Budget n+3 (hidden)
A1: INDSÆT BUDGET HER ->
A14: =IFERROR(VALUE(_xlfn.CONCAT(LEFT(E14,4),MID(E14&" ",6,2))),"") -> 
A15: =IFERROR(VALUE(_xlfn.CONCAT(LEFT(E15,4),MID(E15&" ",6,2))),"") -> 
A79: =IFERROR(VALUE(_xlfn.CONCAT(LEFT(E79,4),MID(E79&" ",6,2))),"") -> 
A143: =IFERROR(VALUE(_xlfn.CONCAT(LEFT(E143,4),MID(E143&" ",6,2))),"") -> 
A207: =IFERROR(VALUE(_xlfn.CONCAT(LEFT(E207,4),MID(E207&" ",6,2))),"") -> 
A271: =IFERROR(VALUE(_xlfn.CONCAT(LEFT(E271,4),MID(E271&" ",6,2))),"") -> 
A335: =IFERROR(VALUE(_xlfn.CONCAT(LEFT(E335,4),MID(E335&" ",6,2))),"") -> 
A399: =IFERROR(VALUE(_xlfn.CONCAT(LEFT(E399,4),MID(E399&" ",6,2))),"") -> 
A463: =IFERROR(VALUE(_xlfn.CONCAT(LEFT(E463,4),MID(E463&" ",6,2))),"") -> 
A527: =IFERROR(VALUE(_xlfn.CONCAT(LEFT(E527,4),MID(E527&" ",6,2))),"") -> 
A591: =IFERROR(VALUE(_xlfn.CONCAT(LEFT(E591,4),MID(E591&" ",6,2))),"") -> 
A655: =IFERROR(VALUE(_xlfn.CONCAT(LEFT(E655,4),MID(E655&" ",6,2))),"") -> 
A719: =IFERROR(VALUE(_xlfn.CONCAT(LEFT(E719,4),MID(E719&" ",6,2))),"") -> 
A783: =IFERROR(VALUE(_xlfn.CONCAT(LEFT(E783,4),MID(E783&" ",6,2))),"") -> 
A847: =IFERROR(VALUE(_xlfn.CONCAT(LEFT(E847,4),MID(E847&" ",6,2))),"") -> 
A911: =IFERROR(VALUE(_xlfn.CONCAT(LEFT(E911,4),MID(E911&" ",6,2))),"") -> 
A975: =IFERROR(VALUE(_xlfn.CONCAT(LEFT(E975,4),MID(E975&" ",6,2))),"") -> 
A1039: =IFERROR(VALUE(_xlfn.CONCAT(LEFT(E1039,4),MID(E1039&" ",6,2))),"") -> 
A1103: =IFERROR(VALUE(_xlfn.CONCAT(LEFT(E1103,4),MID(E1103&" ",6,2))),"") -> 
A1167: =IFERROR(VALUE(_xlfn.CONCAT(LEFT(E1167,4),MID(E1167&" ",6,2))),"") -> 
A1231: =IFERROR(VALUE(_xlfn.CONCAT(LEFT(E1231,4),MID(E1231&" ",6,2))),"") -> 
A1295: =IFERROR(VALUE(_xlfn.CONCAT(LEFT(E1295,4),MID(E1295&" ",6,2))),"") -> 
A1359: =IFERROR(VALUE(_xlfn.CONCAT(LEFT(E1359,4),MID(E1359&" ",6,2))),"") -> 
A1423: =IFERROR(VALUE(_xlfn.CONCAT(LEFT(E1423,4),MID(E1423&" ",6,2))),"") -> 
A1487: =IFERROR(VALUE(_xlfn.CONCAT(LEFT(E1487,4),MID(E1487&" ",6,2))),"") -> 
A1551: =IFERROR(VALUE(_xlfn.CONCAT(LEFT(E1551,4),MID(E1551&" ",6,2))),"") -> 
A1615: =IFERROR(VALUE(_xlfn.CONCAT(LEFT(E1615,4),MID(E1615&" ",6,2))),"") -> 
A1679: =IFERROR(VALUE(_xlfn.CONCAT(LEFT(E1679,4),MID(E1679&" ",6,2))),"") -> 
A1743: =IFERROR(VALUE(_xlfn.CONCAT(LEFT(E1743,4),MID(E1743&" ",6,2))),"") -> 
A1807: =IFERROR(VALUE(_xlfn.CONCAT(LEFT(E1807,4),MID(E1807&" ",6,2))),"") -> 
A1871: =IFERROR(VALUE(_xlfn.CONCAT(LEFT(E1871,4),MID(E1871&" ",6,2))),"") -> 
A1935: =IFERROR(VALUE(_xlfn.CONCAT(LEFT(E1935,4),MID(E1935&" ",6,2))),"") -> 
A1999: =IFERROR(VALUE(_xlfn.CONCAT(LEFT(E1999,4),MID(E1999&" ",6,2))),"") -> 
A2063: =IFERROR(VALUE(_xlfn.CONCAT(LEFT(E2063,4),MID(E2063&" ",6,2))),"") -> 
A2127: =IFERROR(VALUE(_xlfn.CONCAT(LEFT(E2127,4),MID(E2127&" ",6,2))),"") -> 
A2191: =IFERROR(VALUE(_xlfn.CONCAT(LEFT(E2191,4),MID(E2191&" ",6,2))),"") -> 
A2255: =IFERROR(VALUE(_xlfn.CONCAT(LEFT(E2255,4),MID(E2255&" ",6,2))),"") -> 
A2319: =IFERROR(VALUE(_xlfn.CONCAT(LEFT(E2319,4),MID(E2319&" ",6,2))),"") -> 
A2383: =IFERROR(VALUE(_xlfn.CONCAT(LEFT(E2383,4),MID(E2383&" ",6,2))),"") -> 
A2447: =IFERROR(VALUE(_xlfn.CONCAT(LEFT(E2447,4),MID(E2447&" ",6,2))),"") -> 
A2511: =IFERROR(VALUE(_xlfn.CONCAT(LEFT(E2511,4),MID(E2511&" ",6,2))),"") -> 
A2575: =IFERROR(VALUE(_xlfn.CONCAT(LEFT(E2575,4),MID(E2575&" ",6,2))),"") -> 
A2639: =IFERROR(VALUE(_xlfn.CONCAT(LEFT(E2639,4),MID(E2639&" ",6,2))),"") -> 
A2703: =IFERROR(VALUE(_xlfn.CONCAT(LEFT(E2703,4),MID(E2703&" ",6,2))),"") -> 
A2767: =IFERROR(VALUE(_xlfn.CONCAT(LEFT(E2767,4),MID(E2767&" ",6,2))),"") -> 
A2831: =IFERROR(VALUE(_xlfn.CONCAT(LEFT(E2831,4),MID(E2831&" ",6,2))),"") -> 
A2895: =IFERROR(VALUE(_xlfn.CONCAT(LEFT(E2895,4),MID(E2895&" ",6,2))),"") -> 
A2959: =IFERROR(VALUE(_xlfn.CONCAT(LEFT(E2959,4),MID(E2959&" ",6,2))),"") -> 
A3023: =IFERROR(VALUE(_xlfn.CONCAT(LEFT(E3023,4),MID(E3023&" ",6,2))),"") -> 
A3087: =IFERROR(VALUE(_xlfn.CONCAT(LEFT(E3087,4),MID(E3087&" ",6,2))),"") -> 
A3151: =IFERROR(VALUE(_xlfn.CONCAT(LEFT(E3151,4),MID(E3151&" ",6,2))),"") -> 
A3215: =IFERROR(VALUE(_xlfn.CONCAT(LEFT(E3215,4),MID(E3215&" ",6,2))),"") -> 
A3279: =IFERROR(VALUE(_xlfn.CONCAT(LEFT(E3279,4),MID(E3279&" ",6,2))),"") -> 
A3343: =IFERROR(VALUE(_xlfn.CONCAT(LEFT(E3343,4),MID(E3343&" ",6,2))),"") -> 
A3407: =IFERROR(VALUE(_xlfn.CONCAT(LEFT(E3407,4),MID(E3407&" ",6,2))),"") -> 
A3471: =IFERROR(VALUE(_xlfn.CONCAT(LEFT(E3471,4),MID(E3471&" ",6,2))),"") -> 
A3535: =IFERROR(VALUE(_xlfn.CONCAT(LEFT(E3535,4),MID(E3535&" ",6,2))),"") -> 
A3599: =IFERROR(VALUE(_xlfn.CONCAT(LEFT(E3599,4),MID(E3599&" ",6,2))),"") -> 
A3663: =IFERROR(VALUE(_xlfn.CONCAT(LEFT(E3663,4),MID(E3663&" ",6,2))),"") -> 
A3727: =IFERROR(VALUE(_xlfn.CONCAT(LEFT(E3727,4),MID(E3727&" ",6,2))),"") -> 
A3791: =IFERROR(VALUE(_xlfn.CONCAT(LEFT(E3791,4),MID(E3791&" ",6,2))),"") -> 

Sheet Budget n+4 (hidden)
A1: INDSÆT BUDGET HER ->
A14: =IFERROR(VALUE(_xlfn.CONCAT(LEFT(E14,4),MID(E14&" ",6,2))),"") -> 
A15: =IFERROR(VALUE(_xlfn.CONCAT(LEFT(E15,4),MID(E15&" ",6,2))),"") -> 
A79: =IFERROR(VALUE(_xlfn.CONCAT(LEFT(E79,4),MID(E79&" ",6,2))),"") -> 
A143: =IFERROR(VALUE(_xlfn.CONCAT(LEFT(E143,4),MID(E143&" ",6,2))),"") -> 
A207: =IFERROR(VALUE(_xlfn.CONCAT(LEFT(E207,4),MID(E207&" ",6,2))),"") -> 
A271: =IFERROR(VALUE(_xlfn.CONCAT(LEFT(E271,4),MID(E271&" ",6,2))),"") -> 
A335: =IFERROR(VALUE(_xlfn.CONCAT(LEFT(E335,4),MID(E335&" ",6,2))),"") -> 
A399: =IFERROR(VALUE(_xlfn.CONCAT(LEFT(E399,4),MID(E399&" ",6,2))),"") -> 
A463: =IFERROR(VALUE(_xlfn.CONCAT(LEFT(E463,4),MID(E463&" ",6,2))),"") -> 
A527: =IFERROR(VALUE(_xlfn.CONCAT(LEFT(E527,4),MID(E527&" ",6,2))),"") -> 
A591: =IFERROR(VALUE(_xlfn.CONCAT(LEFT(E591,4),MID(E591&" ",6,2))),"") -> 
A655: =IFERROR(VALUE(_xlfn.CONCAT(LEFT(E655,4),MID(E655&" ",6,2))),"") -> 
A719: =IFERROR(VALUE(_xlfn.CONCAT(LEFT(E719,4),MID(E719&" ",6,2))),"") -> 
A783: =IFERROR(VALUE(_xlfn.CONCAT(LEFT(E783,4),MID(E783&" ",6,2))),"") -> 
A847: =IFERROR(VALUE(_xlfn.CONCAT(LEFT(E847,4),MID(E847&" ",6,2))),"") -> 
A911: =IFERROR(VALUE(_xlfn.CONCAT(LEFT(E911,4),MID(E911&" ",6,2))),"") -> 
A975: =IFERROR(VALUE(_xlfn.CONCAT(LEFT(E975,4),MID(E975&" ",6,2))),"") -> 
A1039: =IFERROR(VALUE(_xlfn.CONCAT(LEFT(E1039,4),MID(E1039&" ",6,2))),"") -> 
A1103: =IFERROR(VALUE(_xlfn.CONCAT(LEFT(E1103,4),MID(E1103&" ",6,2))),"") -> 
A1167: =IFERROR(VALUE(_xlfn.CONCAT(LEFT(E1167,4),MID(E1167&" ",6,2))),"") -> 
A1231: =IFERROR(VALUE(_xlfn.CONCAT(LEFT(E1231,4),MID(E1231&" ",6,2))),"") -> 
A1295: =IFERROR(VALUE(_xlfn.CONCAT(LEFT(E1295,4),MID(E1295&" ",6,2))),"") -> 
A1359: =IFERROR(VALUE(_xlfn.CONCAT(LEFT(E1359,4),MID(E1359&" ",6,2))),"") -> 
A1423: =IFERROR(VALUE(_xlfn.CONCAT(LEFT(E1423,4),MID(E1423&" ",6,2))),"") -> 
A1487: =IFERROR(VALUE(_xlfn.CONCAT(LEFT(E1487,4),MID(E1487&" ",6,2))),"") -> 
A1551: =IFERROR(VALUE(_xlfn.CONCAT(LEFT(E1551,4),MID(E1551&" ",6,2))),"") -> 
A1615: =IFERROR(VALUE(_xlfn.CONCAT(LEFT(E1615,4),MID(E1615&" ",6,2))),"") -> 
A1679: =IFERROR(VALUE(_xlfn.CONCAT(LEFT(E1679,4),MID(E1679&" ",6,2))),"") -> 
A1743: =IFERROR(VALUE(_xlfn.CONCAT(LEFT(E1743,4),MID(E1743&" ",6,2))),"") -> 
A1807: =IFERROR(VALUE(_xlfn.CONCAT(LEFT(E1807,4),MID(E1807&" ",6,2))),"") -> 
A1871: =IFERROR(VALUE(_xlfn.CONCAT(LEFT(E1871,4),MID(E1871&" ",6,2))),"") -> 
A1935: =IFERROR(VALUE(_xlfn.CONCAT(LEFT(E1935,4),MID(E1935&" ",6,2))),"") -> 
A1999: =IFERROR(VALUE(_xlfn.CONCAT(LEFT(E1999,4),MID(E1999&" ",6,2))),"") -> 
A2063: =IFERROR(VALUE(_xlfn.CONCAT(LEFT(E2063,4),MID(E2063&" ",6,2))),"") -> 
A2127: =IFERROR(VALUE(_xlfn.CONCAT(LEFT(E2127,4),MID(E2127&" ",6,2))),"") -> 
A2191: =IFERROR(VALUE(_xlfn.CONCAT(LEFT(E2191,4),MID(E2191&" ",6,2))),"") -> 
A2255: =IFERROR(VALUE(_xlfn.CONCAT(LEFT(E2255,4),MID(E2255&" ",6,2))),"") -> 
A2319: =IFERROR(VALUE(_xlfn.CONCAT(LEFT(E2319,4),MID(E2319&" ",6,2))),"") -> 
A2383: =IFERROR(VALUE(_xlfn.CONCAT(LEFT(E2383,4),MID(E2383&" ",6,2))),"") -> 
A2447: =IFERROR(VALUE(_xlfn.CONCAT(LEFT(E2447,4),MID(E2447&" ",6,2))),"") -> 
A2511: =IFERROR(VALUE(_xlfn.CONCAT(LEFT(E2511,4),MID(E2511&" ",6,2))),"") -> 
A2575: =IFERROR(VALUE(_xlfn.CONCAT(LEFT(E2575,4),MID(E2575&" ",6,2))),"") -> 
A2639: =IFERROR(VALUE(_xlfn.CONCAT(LEFT(E2639,4),MID(E2639&" ",6,2))),"") -> 
A2703: =IFERROR(VALUE(_xlfn.CONCAT(LEFT(E2703,4),MID(E2703&" ",6,2))),"") -> 
A2767: =IFERROR(VALUE(_xlfn.CONCAT(LEFT(E2767,4),MID(E2767&" ",6,2))),"") -> 
A2831: =IFERROR(VALUE(_xlfn.CONCAT(LEFT(E2831,4),MID(E2831&" ",6,2))),"") -> 
A2895: =IFERROR(VALUE(_xlfn.CONCAT(LEFT(E2895,4),MID(E2895&" ",6,2))),"") -> 
A2959: =IFERROR(VALUE(_xlfn.CONCAT(LEFT(E2959,4),MID(E2959&" ",6,2))),"") -> 
A3023: =IFERROR(VALUE(_xlfn.CONCAT(LEFT(E3023,4),MID(E3023&" ",6,2))),"") -> 
A3087: =IFERROR(VALUE(_xlfn.CONCAT(LEFT(E3087,4),MID(E3087&" ",6,2))),"") -> 
A3151: =IFERROR(VALUE(_xlfn.CONCAT(LEFT(E3151,4),MID(E3151&" ",6,2))),"") -> 
A3215: =IFERROR(VALUE(_xlfn.CONCAT(LEFT(E3215,4),MID(E3215&" ",6,2))),"") -> 
A3279: =IFERROR(VALUE(_xlfn.CONCAT(LEFT(E3279,4),MID(E3279&" ",6,2))),"") -> 
A3343: =IFERROR(VALUE(_xlfn.CONCAT(LEFT(E3343,4),MID(E3343&" ",6,2))),"") -> 
A3407: =IFERROR(VALUE(_xlfn.CONCAT(LEFT(E3407,4),MID(E3407&" ",6,2))),"") -> 
A3471: =IFERROR(VALUE(_xlfn.CONCAT(LEFT(E3471,4),MID(E3471&" ",6,2))),"") -> 
A3535: =IFERROR(VALUE(_xlfn.CONCAT(LEFT(E3535,4),MID(E3535&" ",6,2))),"") -> 
A3599: =IFERROR(VALUE(_xlfn.CONCAT(LEFT(E3599,4),MID(E3599&" ",6,2))),"") -> 
A3663: =IFERROR(VALUE(_xlfn.CONCAT(LEFT(E3663,4),MID(E3663&" ",6,2))),"") -> 
A3727: =IFERROR(VALUE(_xlfn.CONCAT(LEFT(E3727,4),MID(E3727&" ",6,2))),"") -> 
